Workbook

Sheet Cover

Sheet Model Index
B9: A. | E9: B. | H9: C. | K9: D.
B11: A. | E11: B. | H11: C. | K11: D.
B13: A. | E13: B. | H13: C.
B15: A. | E15: B. | H15: C. | K15: E.
H17: C.
B20: Version | D20: Date | F20: Description | L20: Approved By:
B21: 1 | D21: 2019-01-02 | F21: Final | L21: Ausgrid

Sheet A. Summary
A1: Asset Summary Information
A3: Data Inputs
B5: Data Inputs
B6: Population | C6: ='A. Age Profile'!L4 -> 568
B7: Object Types | C7: TX_SUBTRAN – Subtransmission Power Tx TX_ZONE – Zone Power Tx
B8: Conditional & Function Failures (count) | C8: 38
B9: Analysis Period (Years) | C9: 6
B10: Asset RAB Life (Years) | C10: ='D. Risk Index Parameters'!E23 -> 45.89
B11: Planned Replacement Cost | C11: ='D. Risk Index Parameters'!$E$22 -> 1120000
B12: WACC | C12: ='D. Risk Index Parameters'!$E$21 -> 0.039
B15: Loss of Supply Consequence Information
B16: ='C. PoC Summary Stats & Para'!C16 -> Proportion Failures Resulting in Unserved Energy | C16: ='C. PoC Summary Stats & Para'!E16 -> 0
B17: Value of Customer Reliability (VCR) per kWh | C17: ='C. PoC Summary Stats & Para'!F14 -> 40.729
B18: Outage Type (HV / LV / CBD) | C18: ='C. PoC Summary Stats & Para'!F18 -> HV-single | D18: ='C. PoC Summary Stats & Para'!G18 -> HV
B19: Automatic Protection Time (minutes) | C19: ='C. PoC Summary Stats & Para'!F19 -> 0 | D19: ='C. PoC Summary Stats & Para'!G19 -> 0
B20: Switching Time (hours) | C20: ='C. PoC Summary Stats & Para'!F20 -> 2 | D20: ='C. PoC Summary Stats & Para'!G20 -> 2
B21: Restoration/Repair Time (hours) | C21: ='C. PoC Summary Stats & Para'!F21 -> 8 | D21: ='C. PoC Summary Stats & Para'!G21 -> 8
B22: Automatic Protection (% load) | C22: ='C. PoC Summary Stats & Para'!F22 -> 0 | D22: ='C. PoC Summary Stats & Para'!G22 -> 0
B23: Switching (% load) | C23: ='C. PoC Summary Stats & Para'!F23 -> 0 | D23: ='C. PoC Summary Stats & Para'!G23 -> 0
B24: Restoration/Repair (% load) | C24: ='C. PoC Summary Stats & Para'!F24 -> 0 | D24: ='C. PoC Summary Stats & Para'!G24 -> 0
B25: Time without Supply (hours) | C25: ='C. PoC Summary Stats & Para'!F25 -> 0 | D25: ='C. PoC Summary Stats & Para'!G25 -> 0
B26: Avg. Value of Energy Unserved (per asset per event) | C26: =AVERAGE('C. Reliability Consequence'!H6:$H$1048576) -> 0 | D26: =AVERAGE('C. Reliability Consequence'!$H6:I$1048576) -> 0
B29: Finance Consequence Information
B30: Reactive Replacement Cost | C30: ='C. PoC Summary Stats & Para'!E31 -> 1120000
B31: Repair Cost | C31: ='C. PoC Summary Stats & Para'!E33 -> 6528
B32: Proportion Replacement | C32: ='C. PoC Summary Stats & Para'!E32 -> 1
B33: ='C. PoC Summary Stats & Para'!C35 -> Weighted Replacement / Repair Cost | C33: ='C. PoC Summary Stats & Para'!E35 -> 42985.42348
B34: Maintenance original asset per annum | C34: ='C. PoC Summary Stats & Para'!E38 -> 2928
B35: Maintenance replacement asset per annum | C35: ='C. PoC Summary Stats & Para'!E39 -> 1983
B36: Maintenance benefit per asset per annum | C36: ='C. PoC Summary Stats & Para'!E40 -> 945
A39: Failure Model Parameters
B41: Weibull Parameters | E41: Crow-AMSAA Parameters
B42: βgood | C42: =IF('B. PoF Summary Stats & Params'!$C$12="C", "Not Applicable", 'B. PoF Summary Stats & Params'!M12) -> 3.5648 | E42: βgood | F42: =IF('B. PoF Summary Stats & Params'!$C$12="W", "Not Applicable", 'B. PoF Summary Stats & Params'!I12) -> Not Applicable
B43: ηgood | C43: =IF('B. PoF Summary Stats & Params'!$C$12="C", "Not Applicable", 'B. PoF Summary Stats & Params'!O12) -> 111.5424 | E43: βaverage | F43: =IF('B. PoF Summary Stats & Params'!$C$12="W", "Not Applicable", 'B. PoF Summary Stats & Params'!I6) -> Not Applicable
B44: βaverage | C44: =IF('B. PoF Summary Stats & Params'!$C$12="C", "Not Applicable", 'B. PoF Summary Stats & Params'!M6) -> 3.7754 | E44: βpoor | F44: =IF('B. PoF Summary Stats & Params'!$C$12="W", "Not Applicable", 'B. PoF Summary Stats & Params'!I10) -> Not Applicable
B45: ηaverage | C45: =IF('B. PoF Summary Stats & Params'!$C$12="C", "Not Applicable", 'B. PoF Summary Stats & Params'!M8) -> 85.7497 | E45: λaverage | F45: =IF('B. PoF Summary Stats & Params'!$C$12="W", "Not Applicable", 'B. PoF Summary Stats & Params'!I8) -> Not Applicable
B46: βpoor | C46: =IF('B. PoF Summary Stats & Params'!$C$12="C", "Not Applicable", 'B. PoF Summary Stats & Params'!M14) -> 3.986
B47: ηpoor | C47: =IF('B. PoF Summary Stats & Params'!$C$12="C", "Not Applicable", 'B. PoF Summary Stats & Params'!O14) -> 67.7787
B48: b (intercept) | C48: =IF('B. PoF Summary Stats & Params'!$C$12="C", "Not Applicable", 'B. PoF Summary Stats & Params'!M10) -> -16.806
A51: Adjustments to Probability of Failure (PoF)
B53: PoF Adjustment Fators
B54: =IF(ISBLANK('A. Population Info'!G5), "", 'A. Population Info'!G5) -> Insulation Type
B55: =IF(ISBLANK('A. Population Info'!H5), "", 'A. Population Info'!H5) -> Oil Test Results
B56: =IF(ISBLANK('A. Population Info'!I5), "", 'A. Population Info'!I5) -> Leakages
B57: =IF(ISBLANK('A. Population Info'!J5), "", 'A. Population Info'!J5) -> 
B58: =IF(ISBLANK('A. Population Info'!K5), "", 'A. Population Info'!K5) -> 
A61: Adjustments to Probability of Consequence (PoC)
B63: PoC Adjustment Factors
B64: =IF(ISBLANK('A. Population Info'!L5), "", 'A. Population Info'!L5) -> Insulation Type
B65: =IF(ISBLANK('A. Population Info'!M5), "", 'A. Population Info'!M5) -> 
B66: =IF(ISBLANK('A. Population Info'!N5), "", 'A. Population Info'!N5) -> 
B67: =IF(ISBLANK('A. Population Info'!O5), "", 'A. Population Info'!O5) -> 
B68: =IF(ISBLANK('A. Population Info'!P5), "", 'A. Population Info'!P5) -> 
A71: Model Calculated Failures
E73: Financial Year | F73: FY19 | G73: FY20 | H73: FY21 | I73: FY22 | J73: FY23 | K73: FY24
E74: Model Calculated Failures | F74: ='B. Asset PoF & Health Index'!J4 -> 3.302923965 | G74: ='B. Asset PoF & Health Index'!K4 -> 3.497228913 | H74: ='B. Asset PoF & Health Index'!L4 -> 3.699983401 | I74: ='B. Asset PoF & Health Index'!M4 -> 3.911415137 | J74: ='B. Asset PoF & Health Index'!N4 -> 4.131748928 | K74: ='B. Asset PoF & Health Index'!O4 -> 4.361207009
A79: Asset Health Index
A118: Asset Risk Index

Sheet A. Population Info
C1: Asset Population Information
A4: Asset Identifier | B4: Asset Age | C4: Asset Length or Number within Asset ID | D4: Reliability Asset ID | E4: Average Energy Usage (kW) | F4: Reliability Asset Voltage | G4: PoF Factor 1 | H4: PoF Factor 2 | I4: PoF Factor 3 | J4: PoF Factor 4 | K4: PoF Factor 5 | L4: Consequence Factor 1 | M4: Consequence Factor 2 | N4: Consequence Factor 3 | O4: Consequence Factor 4 | P4: Consequence Factor 5
G5: Insulation Type | H5: Oil Test Results | I5: Leakages | L5: Insulation Type
A6: 1000023626 | B6: 12 | C6: 1 | D6: T.S.ZN00340.TXF.T00001/0.TX | E6: 2518.74942 | F6: HV | G6: OIL | H6: 1 | I6: 0 | L6: OIL
A7: 1000023638 | B7: 12 | C7: 1 | D7: T.S.ZN00340.TXF.T00003/0.TX | E7: 2518.74942 | F7: HV | G7: OIL | H7: 1 | I7: 0 | L7: OIL
A8: 1000023649 | B8: 11 | C8: 1 | D8: T.S.ZN00384.TXF.T00004/0.TX | E8: 2946.736828 | F8: HV | G8: OIL | H8: 1 | I8: 0 | L8: OIL
A9: 1000048071 | B9: 12 | C9: 1 | D9: T.S.ZN03672.TXF.T00003/0.TX | E9: 8213.055963 | F9: HV | G9: OIL | H9: 1 | I9: 0 | L9: OIL
A10: 1000048606 | B10: 11 | C10: 1 | D10: T.S.ZN00526.TXF.T00001/0.TX | E10: 2124.267398 | F10: HV | G10: OIL | H10: 1 | I10: 0 | L10: OIL
A11: 1000048621 | B11: 11 | C11: 1 | D11: T.S.ZN00526.TXF.T00002/0.TX | E11: 2124.267398 | F11: HV | G11: OIL | H11: 1 | I11: 0 | L11: OIL
A12: 1000048751 | B12: 12 | C12: 1 | D12: T.S.ZN03155.TXF.T00002/0.TX | E12: 7818.884944 | F12: HV | G12: OIL | H12: 1 | I12: 0 | L12: OIL
A13: 1000063506 | B13: 12 | C13: 1 | D13: T.S.ZN00230.TXF.T00002/0.TX | E13: 1860.786158 | F13: HV | G13: OIL | H13: 1 | I13: 0 | L13: OIL
A14: 1000096500 | B14: 11 | C14: 1 | D14: T.S.ZN00270.TXF.T00001/0.TX | E14: 4174.384223 | F14: HV | G14: OIL | H14: 1 | I14: 0 | L14: OIL
A15: 1000096880 | B15: 11 | C15: 1 | D15: T.S.ZN15006.TXF.T00002/0.TX | E15: 5814.469587 | F15: HV | G15: OIL | H15: 1 | I15: 0 | L15: OIL
A16: 1000114250 | B16: 10 | C16: 1 | D16: T.S.TS07140.TXF.T00002/0.TX | E16: 18479.30312 | F16: HV | G16: OIL | H16: 1 | I16: 0 | L16: OIL
A17: 1000131033 | B17: 9 | C17: 1 | D17: T.S.ZN00224.TXF.T00004/0.TX | E17: 6189.420669 | F17: HV | G17: OIL | H17: 1 | I17: 0 | L17: OIL
A18: 1000207623 | B18: 10 | C18: 1 | D18: T.S.ZN00630.TXF.T00005/0.TX | E18: 3783.377986 | F18: HV | G18: OIL | H18: 1 | I18: 0 | L18: OIL
A19: 1000207714 | B19: 11 | C19: 1 | D19: T.S.ZN00813.TXF.T00002/0.TX | E19: 2263.979372 | F19: HV | G19: OIL | H19: 1 | I19: 0 | L19: OIL
A20: 1000207726 | B20: 11 | C20: 1 | D20: T.S.ZN00813.TXF.T00003/0.TX | E20: 2263.979372 | F20: HV | G20: OIL | H20: 1 | I20: 0 | L20: OIL
A21: 1000224415 | B21: 7 | C21: 1 | D21: T.S.ZN35500.TXF.T00002/0.TX | E21: 8743.268417 | F21: HV | G21: OIL | H21: 1 | I21: 0 | L21: OIL
A22: 1000224424 | B22: 10 | C22: 1 | D22: T.S.TS14450.TXF.T00011/0.TX | E22: 7650.294065 | F22: HV | G22: OIL | H22: 3 | I22: 0 | L22: OIL
A23: 1000224437 | B23: 10 | C23: 1 | D23: T.S.TS14450.TXF.T00012/0.TX | E23: 7650.294065 | F23: HV | G23: OIL | H23: 1 | I23: 0 | L23: OIL
A24: 1000224450 | B24: 10 | C24: 1 | D24: T.S.TS14450.TXF.T00014/0.TX | E24: 7650.294065 | F24: HV | G24: OIL | H24: 2 | I24: 0 | L24: OIL
A25: 1000224464 | B25: 10 | C25: 1 | D25: T.S.TS00404.TXF.T00004/0.TX | E25: 10276.80802 | F25: HV | G25: OIL | H25: 1 | I25: 0 | L25: OIL
A26: 1000224475 | B26: 3 | C26: 1 | D26: T.S.ZN05959.TXF.T00003/0.TX | F26: HV | G26: OIL_FR3 | H26: 3 | I26: 0 | L26: OIL_FR3
A27: 1000267271 | B27: 11 | C27: 1 | D27: T.S.ZN00931.TXF.T00001/0.TX | E27: 5529.703236 | F27: HV | G27: OIL | H27: 1 | I27: 0 | L27: OIL
A28: 1000276491 | B28: 11 | C28: 1 | D28: T.S.ZN00340.TXF.T00002/0.TX | E28: 2518.74942 | F28: HV | G28: OIL | H28: 2 | I28: 0 | L28: OIL
A29: 1000276518 | B29: 9 | C29: 1 | D29: T.S.ZN00224.TXF.T00005/0.TX | E29: 6189.420669 | F29: HV | G29: OIL | H29: 1 | I29: 0 | L29: OIL
A30: 1000276530 | B30: 9 | C30: 1 | D30: T.S.TS00416.TXF.T00001/0.TX | E30: 13031.87002 | F30: HV | G30: OIL | H30: 1 | I30: 0 | L30: OIL
A31: 1000276542 | B31: 9 | C31: 1 | D31: T.S.TS00416.TXF.T00003/0.TX | E31: 13031.87002 | F31: HV | G31: OIL | H31: 1 | I31: 0 | L31: OIL
A32: 1000299647 | B32: 29 | C32: 1 | D32: T.S.ZN00811.TXF.T00001/0.TX | E32: 421.0909154 | F32: HV-single | G32: OIL | H32: 1 | I32: 0 | L32: OIL
A33: 1000314154 | B33: 72 | C33: 1 | D33: T.S.ZN00630.TXF.T00001/0.TX | E33: 3783.377986 | F33: HV | G33: OIL | H33: 2 | I33: 600 | L33: OIL
A34: 1000314337 | B34: 67 | C34: 1 | D34: T.S.ZN00711.TXF.T00002/0.TX | E34: 2594.891272 | F34: HV | G34: OIL | H34: 3 | I34: 0 | L34: OIL
A35: 1000314363 | B35: 65 | C35: 1 | D35: T.S.ZN00630.TXF.T00006/0.TX | E35: 3783.377986 | F35: HV | G35: OIL | H35: 3 | I35: 400 | L35: OIL
A36: 1000318066 | B36: 64 | C36: 1 | D36: T.S.ZN00711.TXF.T00001/0.TX | E36: 2594.891272 | F36: HV | G36: OIL | H36: 2 | I36: 0 | L36: OIL
A37: 1000318448 | B37: 58 | C37: 1 | D37: T.S.ZN00072.TXF.T00004/0.TX | E37: 832.8119211 | F37: HV | G37: OIL | H37: 4 | I37: 0 | L37: OIL
A38: 1000318505 | B38: 58 | C38: 1 | D38: T.S.S001586.TXF.T9A | F38: HV | G38: OIL | H38: 2 | I38: 0 | L38: OIL
A39: 1000318801 | B39: 56 | C39: 1 | D39: T.S.ZN00340.TXF.T00004/0.TX | E39: 2518.74942 | F39: HV | G39: OIL | H39: 1 | I39: 500 | L39: OIL
A40: 1000318835 | B40: 56 | C40: 1 | D40: T.S.ZN00874.TXF.T00001/0.TX | E40: 4322.381588 | F40: HV | G40: OIL | H40: 2 | I40: 500 | L40: OIL
A41: 1000318894 | B41: 55 | C41: 1 | D41: T.S.ZN12580.TXF.T00001/0.TX | E41: 4411.069517 | F41: HV | G41: OIL | H41: 2 | I41: 0 | L41: OIL
A42: 1000318924 | B42: 56 | C42: 1 | D42: T.S.ZN01648.TXF.T00001/0.TX | E42: 3133.459502 | F42: HV | G42: OIL | H42: 3 | I42: 0 | L42: OIL
A43: 1000318955 | B43: 56 | C43: 1 | D43: T.S.ZN01648.TXF.T00003/0.TX | E43: 3133.459502 | F43: HV | G43: OIL | H43: 3 | I43: 1500 | L43: OIL
A44: 1000318984 | B44: 55 | C44: 1 | D44: T.S.ZN09037.TXF.T00001/0.TX | E44: 4752.340779 | F44: HV | G44: OIL | H44: 2 | I44: 500 | L44: OIL
A45: 1000323012 | B45: 56 | C45: 1 | D45: T.S.ZN01648.TXF.T00002/0.TX | E45: 3133.459502 | F45: HV | G45: OIL | H45: 1 | I45: 0 | L45: OIL
A46: 1000323042 | B46: 55 | C46: 1 | D46: T.S.ZN00630.TXF.T00002/0.TX | E46: 3783.377986 | F46: HV | G46: OIL | H46: 1 | I46: 0 | L46: OIL
A47: 1000323073 | B47: 54 | C47: 1 | D47: T.S.ZN09252.TXF.T00001/0.TX | E47: 3602.282892 | F47: HV | G47: OIL | H47: 1 | I47: 0 | L47: OIL
A48: 1000323106 | B48: 55 | C48: 1 | D48: T.S.ZN00398.TXF.T00004/0.TX | E48: 4869.50029 | F48: HV | G48: OIL | H48: 3 | I48: 0 | L48: OIL
A49: 1000323136 | B49: 56 | C49: 1 | D49: T.S.ZN01673.TXF.T00002/0.TX | E49: 4859.84425 | F49: HV | G49: OIL | H49: 3 | I49: 0 | L49: OIL
A50: 1000323169 | B50: 55 | C50: 1 | D50: T.S.ZN00167.TXF.T00004/0.TX | E50: 3172.235904 | F50: HV | G50: OIL | H50: 1 | I50: 600 | L50: OIL
A51: 1000323229 | B51: 56 | C51: 1 | D51: T.S.ZN01673.TXF.T00001/0.TX | E51: 4859.84425 | F51: HV | G51: OIL | H51: 1 | I51: 0 | L51: OIL
A52: 1000323262 | B52: 54 | C52: 1 | D52: T.S.ZN00874.TXF.T00003/0.TX | E52: 4322.381588 | F52: HV | G52: OIL | H52: 2 | I52: 1800 | L52: OIL
A53: 1000323289 | B53: 55 | C53: 1 | D53: T.S.ZN09037.TXF.T00002/0.TX | E53: 4752.340779 | F53: HV | G53: OIL | H53: 2 | I53: 1000 | L53: OIL
A54: 1000323320 | B54: 55 | C54: 1 | D54: T.S.ZN00167.TXF.T00003/0.TX | E54: 3172.235904 | F54: HV | G54: OIL | H54: 3 | I54: 300 | L54: OIL
A55: 1000323378 | B55: 54 | C55: 1 | D55: T.S.ZN01600.TXF.T0000D/0.TX | E55: 2603.078125 | F55: HV | G55: OIL | H55: 3 | I55: 0 | L55: OIL
A56: 1000323408 | B56: 54 | C56: 1 | D56: T.S.ZN01600.TXF.T0000E/0.TX | E56: 2603.078125 | F56: HV | G56: OIL | H56: 3 | I56: 0 | L56: OIL
A57: 1000323435 | B57: 54 | C57: 1 | D57: T.S.ZN01600.TXF.T0000A/0.TX | E57: 2603.078125 | F57: HV | G57: OIL | H57: 2 | I57: 0 | L57: OIL
A58: 1000323556 | B58: 54 | C58: 1 | D58: T.S.ZN01068.TXF.T00001/0.TX | E58: 3039.306887 | F58: HV | G58: OIL | H58: 2 | I58: 0 | L58: OIL
A59: 1000323583 | B59: 54 | C59: 1 | D59: T.S.ZN01600.TXF.T0000C/0.TX | E59: 2603.078125 | F59: HV | G59: OIL | H59: 2 | I59: 0 | L59: OIL
A60: 1000323796 | B60: 53 | C60: 1 | D60: T.S.ZN09037.TXF.T00003/0.TX | E60: 4752.340779 | F60: HV | G60: OIL | H60: 1 | I60: 0 | L60: OIL
A61: 1000323882 | B61: 53 | C61: 1 | D61: T.S.ZN01788.TXF.T00003/0.TX | E61: 5386.208469 | F61: HV | G61: OIL | H61: 1 | I61: 1900 | L61: OIL
A62: 1000323941 | B62: 53 | C62: 1 | D62: T.S.ZN01788.TXF.T00002/0.TX | E62: 5386.208469 | F62: HV | G62: OIL | H62: 2 | I62: 0 | L62: OIL
A63: 1000323998 | B63: 52 | C63: 1 | D63: T.S.ZN00711.TXF.T00004/0.TX | E63: 2594.891272 | F63: HV | G63: OIL | H63: 1 | I63: 300 | L63: OIL
A64: 1000328026 | B64: 53 | C64: 1 | D64: T.S.ZN01788.TXF.T00001/0.TX | E64: 5386.208469 | F64: HV | G64: OIL | H64: 1 | I64: 0 | L64: OIL
A65: 1000328057 | B65: 52 | C65: 1 | D65: T.S.ZN01850.TXF.T00001/0.TX | E65: 3427.513835 | F65: HV | G65: OIL | H65: 2 | I65: 1100 | L65: OIL
A66: 1000328085 | B66: 52 | C66: 1 | D66: T.S.ZN12580.TXF.T00003/0.TX | E66: 4411.069517 | F66: HV | G66: OIL | H66: 2 | I66: 0 | L66: OIL
A67: 1000328116 | B67: 52 | C67: 1 | D67: T.S.ZN01850.TXF.T00011/0.TX | E67: 3427.513835 | F67: HV | G67: OIL | H67: 1 | I67: 800 | L67: OIL
A68: 1000328175 | B68: 54 | C68: 1 | D68: T.S.ZN00195.TXF.T00001/0.TX | E68: 4347.799658 | F68: HV | G68: OIL | H68: 3 | I68: 0 | L68: OIL
A69: 1000328208 | B69: 51 | C69: 1 | D69: T.S.ZN01600.TXF.T0000F/0.TX | E69: 2603.078125 | F69: HV | G69: OIL | H69: 2 | I69: 0 | L69: OIL
A70: 1000328413 | B70: 51 | C70: 1 | D70: T.S.ZN01600.TXF.T0000B/0.TX | E70: 2603.078125 | F70: HV | G70: OIL | H70: 2 | I70: 0 | L70: OIL
A71: 1000328506 | B71: 51 | C71: 1 | D71: T.S.ZN02310.TXF.T00013/0.TX | E71: 3083.318332 | F71: HV | G71: OIL | H71: 3 | I71: 0 | L71: OIL
A72: 1000328533 | B72: 51 | C72: 1 | D72: T.S.ZN02310.TXF.T00002/0.TX | E72: 3083.318332 | F72: HV | G72: OIL | H72: 2 | I72: 2160 | L72: OIL
A73: 1000328564 | B73: 51 | C73: 1 | D73: T.S.ZN02310.TXF.T00001/0.TX | E73: 3083.318332 | F73: HV | G73: OIL | H73: 2 | I73: 1700 | L73: OIL
A74: 1000328590 | B74: 50 | C74: 1 | D74: T.S.ZN00398.TXF.T00002/0.TX | E74: 4869.50029 | F74: HV | G74: OIL | H74: 3 | I74: 1300 | L74: OIL
A75: 1000328647 | B75: 50 | C75: 1 | D75: T.S.ZN00398.TXF.T00003/0.TX | E75: 4869.50029 | F75: HV | G75: OIL | H75: 3 | I75: 0 | L75: OIL
A76: 1000328676 | B76: 50 | C76: 1 | D76: T.S.ZN00874.TXF.T00002/0.TX | E76: 4322.381588 | F76: HV | G76: OIL | H76: 1 | I76: 0 | L76: OIL
A77: 1000328766 | B77: 50 | C77: 1 | D77: T.S.ZN00398.TXF.T00001/0.TX | E77: 4869.50029 | F77: HV | G77: OIL | H77: 3 | I77: 0 | L77: OIL
A78: 1000328796 | B78: 50 | C78: 1 | D78: T.S.ZN01673.TXF.T00003/0.TX | E78: 4859.84425 | F78: HV | G78: OIL | H78: 4 | I78: 0 | L78: OIL
A79: 1000328825 | B79: 50 | C79: 1 | D79: T.S.ZN00874.TXF.T00004/0.TX | E79: 4322.381588 | F79: HV | G79: OIL | H79: 3 | I79: 0 | L79: OIL
A80: 1000328852 | B80: 35 | C80: 1 | D80: T.S.ZN00690.TXF.T00002/0.TX | E80: 6983.871295 | F80: HV | G80: OIL | H80: 1 | I80: 0 | L80: OIL
A81: 1000328910 | B81: 49 | C81: 1 | D81: T.S.ZN03154.TXF.T00001/0.TX | E81: 5485.326949 | F81: HV | G81: OIL | H81: 2 | I81: 300 | L81: OIL
A82: 1000332025 | B82: 49 | C82: 1 | D82: T.S.ZN00630.TXF.T00003/0.TX | E82: 3783.377986 | F82: HV | G82: OIL | H82: 2 | I82: 800 | L82: OIL
A83: 1000332304 | B83: 49 | C83: 1 | D83: T.S.ZN00129.TXF.T00002/0.TX | E83: 7148.302266 | F83: HV | G83: OIL | H83: 1 | I83: 0 | L83: OIL
A84: 1000332390 | B84: 49 | C84: 1 | D84: T.S.ZN02635.TXF.T00002/0.TX | E84: 8791.07353 | F84: HV | G84: OIL | H84: 3 | I84: 0 | L84: OIL
A85: 1000332419 | B85: 47 | C85: 1 | D85: T.S.ZN01788.TXF.T00004/0.TX | E85: 5386.208469 | F85: HV | G85: OIL | H85: 1 | I85: 0 | L85: OIL
A86: 1000332450 | B86: 48 | C86: 1 | D86: T.S.ZN12580.TXF.T00002/0.TX | E86: 4411.069517 | F86: HV | G86: OIL | H86: 2 | I86: 0 | L86: OIL
A87: 1000332539 | B87: 28 | C87: 1 | D87: T.S.ZN00262.TXF.T00001/0.TX | E87: 8881.850058 | F87: HV | G87: OIL | H87: 1 | I87: 0 | L87: OIL
A88: 1000332568 | B88: 48 | C88: 1 | D88: T.S.ZN00901.TXF.T00004/0.TX | E88: 4410.785574 | F88: HV | G88: OIL | H88: 1 | I88: 500 | L88: OIL
A89: 1000332625 | B89: 48 | C89: 1 | D89: T.S.ZN02835.TXF.T00001/0.TX | E89: 9334.287879 | F89: HV | G89: OIL | H89: 5 | I89: 1000 | L89: OIL
A90: 1000332657 | B90: 48 | C90: 1 | D90: T.S.ZN01285.TXF.T00002/0.TX | E90: 7059.447826 | F90: HV | G90: OIL | H90: 3 | I90: 0 | L90: OIL
A91: 1000332778 | B91: 47 | C91: 1 | D91: T.S.ZN00195.TXF.T00004/0.TX | E91: 4347.799658 | F91: HV | G91: OIL | H91: 2 | I91: 0 | L91: OIL
A92: 1000332841 | B92: 46 | C92: 1 | D92: T.S.ZN09550.TXF.T00003/0.TX | E92: 4295.426614 | F92: HV | G92: OIL | H92: 1 | I92: 0 | L92: OIL
A93: 1000332870 | B93: 46 | C93: 1 | D93: T.S.ZN09550.TXF.T00001/0.TX | E93: 4295.426614 | F93: HV | G93: OIL | H93: 1 | I93: 0 | L93: OIL
A94: 1000332902 | B94: 46 | C94: 1 | D94: T.S.ZN01287.TXF.T00003/0.TX | E94: 8034.119686 | F94: HV | G94: OIL | H94: 1 | I94: 0 | L94: OIL
A95: 1000332930 | B95: 47 | C95: 1 | D95: T.S.ZN02310.TXF.T00012/0.TX | E95: 3083.318332 | F95: HV | G95: OIL | H95: 1 | I95: 0 | L95: OIL
A96: 1000336019 | B96: 46 | C96: 1 | D96: T.S.ZN03425.TXF.T00003/0.TX | E96: 7567.320014 | F96: HV | G96: OIL | H96: 1 | I96: 0 | L96: OIL
A97: 1000336048 | B97: 34 | C97: 1 | D97: T.S.ZN02466.TXF.T00001/0.TX | E97: 10801.89745 | F97: HV | G97: OIL | H97: 1 | I97: 0 | L97: OIL
A98: 1000336078 | B98: 46 | C98: 1 | D98: T.S.ZN00901.TXF.T00003/0.TX | E98: 4410.785574 | F98: HV | G98: OIL | H98: 2 | I98: 500 | L98: OIL
A99: 1000336106 | B99: 30 | C99: 1 | D99: T.S.ZN00901.TXF.T00002/0.TX | E99: 4410.785574 | F99: HV | G99: OIL | H99: 1 | I99: 0 | L99: OIL
A100: 1000336136 | B100: 46 | C100: 1 | D100: T.S.ZN00262.TXF.T00003/0.TX | E100: 8881.850058 | F100: HV | G100: OIL | H100: 1 | I100: 700 | L100: OIL
A101: 1000336165 | B101: 45 | C101: 1 | D101: T.S.ZN02466.TXF.T00004/0.TX | E101: 10801.89745 | F101: HV | G101: OIL | H101: 3 | I101: 0 | L101: OIL
A102: 1000336194 | B102: 45 | C102: 1 | D102: T.S.ZN03155.TXF.T00001/0.TX | E102: 7818.884944 | F102: HV | G102: OIL | H102: 1 | I102: 1900 | L102: OIL
A103: 1000336225 | B103: 45 | C103: 1 | D103: T.S.ZN03155.TXF.T00003/0.TX | E103: 7818.884944 | F103: HV | G103: OIL | H103: 2 | I103: 1900 | L103: OIL
A104: 1000336313 | B104: 45 | C104: 1 | D104: T.S.ZN02466.TXF.T00002/0.TX | E104: 10801.89745 | F104: HV | G104: OIL | H104: 1 | I104: 0 | L104: OIL
A105: 1000336348 | B105: 46 | C105: 1 | D105: T.S.ZN00180.TXF.T00003/0.TX | E105: 7827.305212 | F105: HV | G105: OIL | H105: 1 | I105: 0 | L105: OIL
A106: 1000336383 | B106: 45 | C106: 1 | D106: T.S.ZN03425.TXF.T00001/0.TX | E106: 7567.320014 | F106: HV | G106: OIL | H106: 2 | I106: 0 | L106: OIL
A107: 1000336450 | B107: 44 | C107: 1 | D107: T.S.ZN03154.TXF.T00003/0.TX | E107: 5485.326949 | F107: HV | G107: OIL | H107: 2 | I107: 0 | L107: OIL
A108: 1000336477 | B108: 43 | C108: 1 | D108: T.S.ZN00690.TXF.T00001/0.TX | E108: 6983.871295 | F108: HV | G108: OIL | H108: 1 | I108: 0 | L108: OIL
A109: 1000336508 | B109: 43 | C109: 1 | D109: T.S.ZN03472.TXF.T00003/0.TX | E109: 5069.591715 | F109: HV | G109: OIL | H109: 1 | I109: 0 | L109: OIL
A110: 1000336536 | B110: 43 | C110: 1 | D110: T.S.ZN03472.TXF.T00001/0.TX | E110: 5069.591715 | F110: HV | G110: OIL | H110: 1 | I110: 500 | L110: OIL
A111: 1000336594 | B111: 44 | C111: 1 | D111: T.S.ZN00180.TXF.T00001/0.TX | E111: 7827.305212 | F111: HV | G111: OIL | H111: 1 | I111: 0 | L111: OIL
A112: 1000336623 | B112: 42 | C112: 1 | D112: T.S.ZN15001.TXF.T00001/0.TX | E112: 6114.415186 | F112: HV | G112: OIL | H112: 1 | I112: 0 | L112: OIL
A113: 1000336651 | B113: 45 | C113: 1 | D113: T.S.ZN03155.TXF.T00004/0.TX | E113: 7818.884944 | F113: HV | G113: OIL | H113: 2 | I113: 0 | L113: OIL
A114: 1000336679 | B114: 44 | C114: 1 | D114: T.S.ZN02400.TXF.T00001/0.TX | E114: 3172.979891 | F114: HV | G114: OIL | H114: 1 | I114: 0 | L114: OIL
A115: 1000336708 | B115: 44 | C115: 1 | D115: T.S.ZN02400.TXF.T00002/0.TX | E115: 3172.979891 | F115: HV | G115: OIL | H115: 1 | I115: 0 | L115: OIL
A116: 1000336737 | B116: 41 | C116: 1 | D116: T.S.ZN02568.TXF.T00002/0.TX | E116: 9522.405355 | F116: HV | G116: OIL | H116: 1 | I116: 0 | L116: OIL
A117: 1000336855 | B117: 39 | C117: 1 | D117: T.S.ZN14891.TXF.T00002/0.TX | E117: 8268.012903 | F117: HV | G117: OIL | H117: 1 | I117: 0 | L117: OIL
A118: 1000336884 | B118: 40 | C118: 1 | D118: T.S.ZN09700.TXF.T00003/0.TX | E118: 8385.636477 | F118: HV | G118: OIL | H118: 1 | I118: 0 | L118: OIL
A119: 1000336912 | B119: 39 | C119: 1 | D119: T.S.ZN03922.TXF.T00001/0.TX | E119: 10988.14217 | F119: HV | G119: OIL | H119: 1 | I119: 1400 | L119: OIL
A120: 1000336942 | B120: 39 | C120: 1 | D120: T.S.ZN03922.TXF.T00002/0.TX | E120: 10988.14217 | F120: HV | G120: OIL | H120: 2 | I120: 0 | L120: OIL
A121: 1000336972 | B121: 43 | C121: 1 | D121: T.S.ZN01287.TXF.T00001/0.TX | E121: 8034.119686 | F121: HV | G121: OIL | H121: 1 | I121: 1800 | L121: OIL
A122: 1000340000 | B122: 39 | C122: 1 | D122: T.S.ZN00901.TXF.T00001/0.TX | E122: 4410.785574 | F122: HV | G122: OIL | H122: 1 | I122: 0 | L122: OIL
A123: 1000340030 | B123: 39 | C123: 1 | D123: T.S.ZN02835.TXF.T00003/0.TX | E123: 9334.287879 | F123: HV | G123: OIL | H123: 1 | I123: 0 | L123: OIL
A124: 1000340058 | B124: 38 | C124: 1 | D124: T.S.ZN03672.TXF.T00002/0.TX | E124: 8213.055963 | F124: HV | G124: OIL | H124: 1 | I124: 0 | L124: OIL
A125: 1000340087 | B125: 38 | C125: 1 | D125: T.S.ZN04545.TXF.T00001/0.TX | E125: 10921.47214 | F125: HV | G125: OIL | H125: 1 | I125: 0 | L125: OIL
A126: 1000340114 | B126: 38 | C126: 1 | D126: T.S.ZN04545.TXF.T00002/0.TX | E126: 10921.47214 | F126: HV | G126: OIL | H126: 1 | I126: 0 | L126: OIL
A127: 1000340144 | B127: 38 | C127: 1 | D127: T.S.ZN03672.TXF.T00001/0.TX | E127: 8213.055963 | F127: HV | G127: OIL | H127: 1 | I127: 600 | L127: OIL
A128: 1000340385 | B128: 49 | C128: 1 | D128: T.S.ZN10997.TXF.T00001/0.TX | E128: 3160.526317 | F128: HV | G128: OIL | H128: 3 | I128: 500 | L128: OIL
A129: 1000340415 | B129: 49 | C129: 1 | D129: T.S.ZN10997.TXF.T00003/0.TX | E129: 3160.526317 | F129: HV | G129: OIL | H129: 4 | I129: 0 | L129: OIL
A130: 1000340445 | B130: 58 | C130: 1 | D130: T.S.ZN10990.TXF.T00001/0.TX | E130: 3541.290222 | F130: HV | G130: OIL | H130: 3 | I130: 1720 | L130: OIL
A131: 1000340477 | B131: 53 | C131: 1 | D131: T.S.ZN10990.TXF.T00002/0.TX | E131: 3541.290222 | F131: HV | G131: OIL | H131: 3 | I131: 0 | L131: OIL
A132: 1000340534 | B132: 54 | C132: 1 | D132: T.S.ZN10991.TXF.T00001/0.TX | E132: 2874.896617 | F132: HV | G132: OIL | H132: 3 | I132: 0 | L132: OIL
A133: 1000340565 | B133: 54 | C133: 1 | D133: T.S.ZN10991.TXF.T00002/0.TX | E133: 2874.896617 | F133: HV | G133: OIL | H133: 1 | I133: 0 | L133: OIL
A134: 1000340593 | B134: 54 | C134: 1 | D134: T.S.ZN10991.TXF.T00003/0.TX | E134: 2874.896617 | F134: HV | G134: OIL | H134: 1 | I134: 500 | L134: OIL
A135: 1000340623 | B135: 48 | C135: 1 | D135: T.S.ZN05868.TXF.T00004/0.TX | E135: 7842.47809 | F135: HV | G135: OIL | H135: 3 | I135: 0 | L135: OIL
A136: 1000340657 | B136: 46 | C136: 1 | D136: T.S.ZN05868.TXF.T00001/0.TX | E136: 7842.47809 | F136: HV | G136: OIL | H136: 2 | I136: 0 | L136: OIL
A137: 1000340689 | B137: 48 | C137: 1 | D137: T.S.ZN05868.TXF.T00002/0.TX | E137: 7842.47809 | F137: HV | G137: OIL | H137: 4 | I137: 0 | L137: OIL
A138: 1000340819 | B138: 37 | C138: 1 | D138: T.S.ZN09118.TXF.T00001/0.TX | E138: 10849.13847 | F138: HV | G138: OIL | H138: 1 | I138: 0 | L138: OIL
A139: 1000340854 | B139: 37 | C139: 1 | D139: T.S.ZN00965.TXF.T00002/0.TX | E139: 10411.82723 | F139: HV | G139: OIL | H139: 1 | I139: 0 | L139: OIL
A140: 1000340887 | B140: 37 | C140: 1 | D140: T.S.ZN00965.TXF.T00001/0.TX | E140: 10411.82723 | F140: HV | G140: OIL | H140: 1 | I140: 0 | L140: OIL
A141: 1000340972 | B141: 37 | C141: 1 | D141: T.S.ZN09118.TXF.T00002/0.TX | E141: 10849.13847 | F141: HV | G141: OIL | H141: 1 | I141: 0 | L141: OIL
A142: 1000344030 | B142: 35 | C142: 1 | D142: T.S.ZN00188.TXF.T00002/0.TX | E142: 7495.116175 | F142: HV | G142: OIL | H142: 1 | I142: 0 | L142: OIL
A143: 1000344072 | B143: 36 | C143: 1 | D143: T.S.ZN00262.TXF.T00004/0.TX | E143: 8881.850058 | F143: HV | G143: OIL | H143: 2 | I143: 500 | L143: OIL
A144: 1000344130 | B144: 34 | C144: 1 | D144: T.S.ZN02835.TXF.T00002/0.TX | E144: 9334.287879 | F144: HV | G144: OIL | H144: 2 | I144: 1000 | L144: OIL
A145: 1000344161 | B145: 35 | C145: 1 | D145: T.S.ZN00188.TXF.T00004/0.TX | E145: 7495.116175 | F145: HV | G145: OIL | H145: 1 | I145: 500 | L145: OIL
A146: 1000344307 | B146: 31 | C146: 1 | D146: T.S.ZN09900.TXF.T00002/0.TX | E146: 7327.862708 | F146: HV | G146: OIL | H146: 1 | I146: 0 | L146: OIL
A147: 1000344336 | B147: 31 | C147: 1 | D147: T.S.ZN09900.TXF.T00001/0.TX | E147: 7327.862708 | F147: HV | G147: OIL | H147: 1 | I147: 2000 | L147: OIL
A148: 1000344368 | B148: 58 | C148: 1 | D148: T.S.ZN14460.TXF.T00002/0.TX | E148: 1611.48274 | F148: HV | G148: OIL | H148: 3 | I148: 0 | L148: OIL
A149: 1000344393 | B149: 58 | C149: 1 | D149: T.S.ZN14460.TXF.T00001/0.TX | E149: 1611.48274 | F149: HV | G149: OIL | H149: 3 | I149: 0 | L149: OIL
A150: 1000344489 | B150: 26 | C150: 1 | D150: T.S.ZN05868.TXF.T00003/0.TX | E150: 7842.47809 | F150: HV | G150: OIL | H150: 1 | I150: 0 | L150: OIL
A151: 1000344516 | B151: 25 | C151: 1 | D151: T.S.ZN03425.TXF.T00002/0.TX | E151: 7567.320014 | F151: HV | G151: OIL | H151: 1 | I151: 0 | L151: OIL
A152: 1000344547 | B152: 24 | C152: 1 | D152: T.S.ZN02466.TXF.T00003/0.TX | E152: 10801.89745 | F152: HV | G152: OIL | H152: 1 | I152: 1900 | L152: OIL
A153: 1000344577 | B153: 26 | C153: 1 | D153: T.S.ZN09035.TXF.T00001/0.TX | E153: 5860.455698 | F153: HV | G153: OIL | H153: 2 | I153: 0 | L153: OIL
A154: 1000344603 | B154: 26 | C154: 1 | D154: T.S.ZN09035.TXF.T00002/0.TX | E154: 5860.455698 | F154: HV | G154: OIL | H154: 1 | I154: 0 | L154: OIL
A155: 1000344840 | B155: 25 | C155: 1 | D155: T.S.ZN02568.TXF.T00001/0.TX | E155: 9522.405355 | F155: HV | G155: OIL | H155: 1 | I155: 0 | L155: OIL
A156: 1000344872 | B156: 24 | C156: 1 | D156: T.S.ZN14143.TXF.T00001/0.TX | E156: 4585.360875 | F156: HV | G156: OIL | H156: 1 | I156: 0 | L156: OIL
A157: 1000344903 | B157: 24 | C157: 1 | D157: T.S.ZN14143.TXF.T00002/0.TX | E157: 4585.360875 | F157: HV | G157: OIL | H157: 2 | I157: 0 | L157: OIL
A158: 1000344995 | B158: 56 | C158: 1 | D158: T.S.TS07150.TXF.T00003/0.TX | E158: 8371.083075 | F158: HV | G158: OIL | H158: 1 | I158: 0 | L158: OIL
A159: 1000349025 | B159: 21 | C159: 1 | D159: T.S.ZN04545.TXF.T00003/0.TX | E159: 10921.47214 | F159: HV | G159: OIL | H159: 1 | I159: 0 | L159: OIL
A160: 1000349053 | B160: 20 | C160: 1 | D160: T.S.ZN01610.TXF.T00001/0.TX | E160: 10055.10704 | F160: HV | G160: OIL | H160: 1 | I160: 0 | L160: OIL
A161: 1000349084 | B161: 20 | C161: 1 | D161: T.S.ZN01610.TXF.T00002/0.TX | E161: 10055.10704 | F161: HV | G161: OIL | H161: 1 | I161: 0 | L161: OIL
A162: 1000349112 | B162: 19 | C162: 1 | D162: T.S.TS16600.TXF.T00004/0.TX | E162: 20854.44896 | F162: HV | G162: OIL | H162: 1 | I162: 0 | L162: OIL
A163: 1000349143 | B163: 18 | C163: 1 | D163: T.S.TS16600.TXF.T00002/0.TX | E163: 20854.44896 | F163: HV | G163: OIL | H163: 1 | I163: 0 | L163: OIL
A164: 1000349169 | B164: 21 | C164: 1 | D164: T.S.ZN07481.TXF.T00011/0.TX | E164: 15375.50131 | F164: HV | G164: OIL | H164: 1 | I164: 0 | L164: OIL
A165: 1000349201 | B165: 21 | C165: 1 | D165: T.S.ZN07481.TXF.T00012/0.TX | E165: 15375.50131 | F165: HV | G165: OIL | H165: 1 | I165: 0 | L165: OIL
A166: 1000349231 | B166: 19 | C166: 1 | D166: T.S.ZN00188.TXF.T00003/0.TX | E166: 7495.116175 | F166: HV | G166: OIL | H166: 1 | I166: 600 | L166: OIL
A167: 1000349259 | B167: 19 | C167: 1 | D167: T.S.ZN00847.TXF.T00002/0.TX | E167: 11181.7989 | F167: HV | G167: OIL | H167: 1 | I167: 0 | L167: OIL
A168: 1000349287 | B168: 19 | C168: 1 | D168: T.S.ZN00847.TXF.T00003/0.TX | E168: 11181.7989 | F168: HV | G168: OIL | H168: 1 | I168: 0 | L168: OIL
A169: 1000349315 | B169: 18 | C169: 1 | D169: T.S.ZN00931.TXF.T00002/0.TX | E169: 5529.703236 | F169: HV | G169: OIL | H169: 1 | I169: 0 | L169: OIL
A170: 1000349346 | B170: 18 | C170: 1 | D170: T.S.ZN00931.TXF.T00003/0.TX | E170: 5529.703236 | F170: HV | G170: OIL | H170: 1 | I170: 0 | L170: OIL
A171: 1000349374 | B171: 18 | C171: 1 | D171: T.S.ZN00931.TXF.T00004/0.TX | E171: 5529.703236 | F171: HV | G171: OIL | H171: 1 | I171: 0 | L171: OIL
A172: 1000349403 | B172: 18 | C172: 1 | D172: T.S.ZN00965.TXF.T00003/0.TX | E172: 10411.82723 | F172: HV | G172: OIL | H172: 1 | I172: 0 | L172: OIL
A173: 1000349461 | B173: 19 | C173: 1 | D173: T.S.ZN02835.TXF.T00004/0.TX | E173: 9334.287879 | F173: HV | G173: OIL | H173: 1 | I173: 0 | L173: OIL
A174: 1000349494 | B174: 16 | C174: 1 | D174: T.S.ZN00532.TXF.T00001/0.TX | E174: 5707.866544 | F174: HV | G174: OIL | H174: 1 | I174: 0 | L174: OIL
A175: 1000349615 | B175: 18 | C175: 1 | D175: T.S.ZN00340.TXF.T00011/0 | E175: 2518.74942 | F175: HV | G175: OIL | H175: 1 | I175: 0 | L175: OIL
A176: 1000349645 | B176: 17 | C176: 1 | D176: T.S.ZN14892.TXF.T00001/0.TX | E176: 8545.53427 | F176: HV | G176: OIL | H176: 1 | I176: 0 | L176: OIL
A177: 1000349674 | B177: 17 | C177: 1 | D177: T.S.ZN14892.TXF.T00002/0.TX | E177: 8545.53427 | F177: HV | G177: OIL | H177: 1 | I177: 0 | L177: OIL
A178: 1000349704 | B178: 15 | C178: 1 | D178: T.S.ZN02196.TXF.T00002/0.TX | E178: 10796.74516 | F178: HV | G178: OIL | H178: 1 | I178: 0 | L178: OIL
A179: 1000349797 | B179: 15 | C179: 1 | D179: T.S.ZN09171.TXF.T00002/0.TX | E179: 2485.942428 | F179: HV | G179: OIL | H179: 1 | I179: 0 | L179: OIL
A180: 1000349829 | B180: 15 | C180: 1 | D180: T.S.ZN09171.TXF.T00001/0.TX | E180: 2485.942428 | F180: HV | G180: OIL | H180: 1 | I180: 0 | L180: OIL
A181: 1000349857 | B181: 16 | C181: 1 | D181: T.S.ZN01285.TXF.T00001/0.TX | E181: 7059.447826 | F181: HV | G181: OIL | H181: 1 | I181: 0 | L181: OIL
A182: 1000349884 | B182: 17 | C182: 1 | D182: T.S.ZN00263.TXF.T00003/0.TX | E182: 8497.641362 | F182: HV | G182: OIL | H182: 1 | I182: 0 | L182: OIL
A183: 1000349913 | B183: 18 | C183: 1 | D183: T.S.ZN00342.TXF.T00003/0.TX | E183: 6532.970166 | F183: HV | G183: OIL | H183: 1 | I183: 0 | L183: OIL
A184: 1000349939 | B184: 17 | C184: 1 | D184: T.S.ZN08000.TXF.T00001/0.TX | E184: 14700.26421 | F184: HV | G184: OIL | H184: 3 | I184: 0 | L184: OIL
A185: 1000349972 | B185: 17 | C185: 1 | D185: T.S.ZN08000.TXF.T00002/0.TX | E185: 14700.26421 | F185: HV | G185: OIL | H185: 2 | I185: 0 | L185: OIL
A186: 1000353004 | B186: 17 | C186: 1 | D186: T.S.TS10900.TXF.T00004/0.TX | E186: 14303.16471 | F186: HV | G186: OIL | H186: 1 | I186: 0 | L186: OIL
A187: 1000353037 | B187: 15 | C187: 1 | D187: T.S.ZN00116.TXF.T00004/0.TX | E187: 3510.82138 | F187: HV | G187: OIL | H187: 1 | I187: 0 | L187: OIL
A188: 1000353068 | B188: 16 | C188: 1 | D188: T.S.ZN04990.TXF.T00003/0.TX | E188: 11187.43971 | F188: HV | G188: OIL | H188: 1 | I188: 0 | L188: OIL
A189: 1000353101 | B189: 16 | C189: 1 | D189: T.S.ZN04990.TXF.T00002/0.TX | E189: 11187.43971 | F189: HV | G189: OIL | H189: 1 | I189: 0 | L189: OIL
A190: 1000353135 | B190: 16 | C190: 1 | D190: T.S.ZN04990.TXF.T00004/0.TX | E190: 11187.43971 | F190: HV | G190: OIL | H190: 1 | I190: 0 | L190: OIL
A191: 1000353167 | B191: 16 | C191: 1 | D191: T.S.ZN15002.TXF.T00002/0.TX | E191: 2687.849949 | F191: HV | G191: OIL | H191: 1 | I191: 0 | L191: OIL
A192: 1000353227 | B192: 16 | C192: 1 | D192: T.S.ZN01193.TXF.T00002/0.TX | E192: 4133.810095 | F192: HV | G192: OIL | H192: 1 | I192: 0 | L192: OIL
A193: 1000353258 | B193: 16 | C193: 1 | D193: T.S.ZN01193.TXF.T00003/0.TX | E193: 4133.810095 | F193: HV | G193: OIL | H193: 1 | I193: 0 | L193: OIL
A194: 1000353287 | B194: 16 | C194: 1 | D194: T.S.ZN02310.TXF.T00011/0.TX | E194: 3083.318332 | F194: HV | G194: OIL | H194: 1 | I194: 0 | L194: OIL
A195: 1000353314 | B195: 14 | C195: 1 | D195: T.S.ZN03425.TXF.T00004/0.TX | E195: 7567.320014 | F195: HV | G195: OIL | H195: 1 | I195: 0 | L195: OIL
A196: 1000353347 | B196: 15 | C196: 1 | D196: T.S.ZN02196.TXF.T00003/0.TX | E196: 10796.74516 | F196: HV | G196: OIL | H196: 1 | I196: 0 | L196: OIL
A197: 1000353379 | B197: 15 | C197: 1 | D197: T.S.ZN12650.TXF.T00013/0.TX | E197: 11089.43928 | F197: HV | G197: OIL | H197: 3 | I197: 0 | L197: OIL
A198: 1000353459 | B198: 15 | C198: 1 | D198: T.S.ZN12650.TXF.T00011/0.TX | E198: 11089.43928 | F198: HV | G198: OIL | H198: 1 | I198: 0 | L198: OIL
A199: 1000353491 | B199: 15 | C199: 1 | D199: T.S.ZN00210.TXF.T00001/0.TX | E199: 3760.364306 | F199: HV | G199: OIL | H199: 1 | I199: 0 | L199: OIL
A200: 1000353523 | B200: 13 | C200: 1 | D200: T.S.ZN00210.TXF.T00002/0.TX | E200: 3760.364306 | F200: HV | G200: OIL | H200: 1 | I200: 0 | L200: OIL
A201: 1000353554 | B201: 14 | C201: 1 | D201: T.S.ZN00263.TXF.T00002/0.TX | E201: 8497.641362 | F201: HV | G201: OIL | H201: 1 | I201: 0 | L201: OIL
A202: 1000353588 | B202: 15 | C202: 1 | D202: T.S.ZN00205.TXF.T00002/0.TX | E202: 4176.449511 | F202: HV | G202: OIL | H202: 1 | I202: 250 | L202: OIL
... 371 more rows

Sheet A. Age Profile
C1: Asset Population Age Profile
A3: Asset Age | B3: Median Age (x) | C3: Freq. of x (f) | D3: Cumulative Freq. of x (F) | E3: f.x | G3: E(f) | H3: Asset Units | K3: Summary Statisitics | N3: Additional Information for Graph
A4: 0 | B4: 0.5 | C4: =COUNTIF('A. Population Info'!$B:$B, 'A. Age Profile'!A4) -> 1 | D4: =SUM($C$4:C4) -> 1 | E4: =B4*C4 -> 0.5 | F4: =(B4-$L$6)^2*C4 -> 697.3132842 | G4: =_xlfn.NORM.DIST(B4,$L$6,$L$7,FALSE)*$L$4 -> 4.64328972 | H4: =SUMIF('A. Population Info'!$B:$B, A4,'A. Population Info'!$C:$C) -> 1 | K4: Population Bins (n) | L4: =SUM(C:C) -> 568
A5: 1 | B5: 1.5 | C5: =COUNTIF('A. Population Info'!$B:$B, 'A. Age Profile'!A5) -> 10 | D5: =SUM($C$4:C5) -> 11 | E5: =B5*C5 -> 15 | F5: 6454.999039 | G5: =_xlfn.NORM.DIST(B5,$L$6,$L$7,FALSE)*$L$4 -> 4.971015693 | H5: =SUMIF('A. Population Info'!$B:$B, A5,'A. Population Info'!$C:$C) -> 10 | K5: No. of Asset Units | L5: =SUM(H:H) -> 568
A6: 2 | B6: 2.5 | C6: =COUNTIF('A. Population Info'!$B:$B, 'A. Age Profile'!A6) -> 1 | D6: =SUM($C$4:C6) -> 12 | E6: =B6*C6 -> 2.5 | F6: 595.6865236 | G6: 5.307880989 | H6: =SUMIF('A. Population Info'!$B:$B, A6,'A. Population Info'!$C:$C) -> 1 | K6: Mean Age | L6: =SUM(E:E)/SUM(C:C) -> 26.90669014 | N6: Mean Marker | O6: =MATCH(L6,$A$4:$A$104,1) -> 27 | P6: =P8 -> 27
A7: 3 | B7: 3.5 | C7: =COUNTIF('A. Population Info'!$B:$B, 'A. Age Profile'!A7) -> 12 | D7: =SUM($C$4:C7) -> 24 | E7: 42 | F7: 6574.47772 | G7: 5.65267362 | H7: =SUMIF('A. Population Info'!$B:$B, A7,'A. Population Info'!$C:$C) -> 12 | K7: Standard Deviation | L7: =(SUM(F:F)/SUM(C:C))^0.5 -> 19.48993305
A8: 4 | B8: 4.5 | C8: =COUNTIF('A. Population Info'!$B:$B, 'A. Age Profile'!A8) -> 8 | D8: =SUM($C$4:C8) -> 32 | E8: 36 | F8: 4016.478105 | G8: 6.004036656 | H8: =SUMIF('A. Population Info'!$B:$B, A8,'A. Population Info'!$C:$C) -> 8 | K8: Median Age | L8: =L13+(((L4/2)-L10)/L11)*L12 -> 15.94736842 | N8: Median Marker | O8: =MATCH(L8,$A$4:$A$104,1) -> 16 | P8: =INDEX($C$4:$C$104,O8)+8 -> 27
A9: 5 | B9: 5.5 | C9: =COUNTIF('A. Population Info'!$B:$B, 'A. Age Profile'!A9) -> 7 | D9: =SUM($C$4:C9) -> 39 | E9: 38.5 | F9: 3207.72468 | G9: 6.360473547 | H9: =SUMIF('A. Population Info'!$B:$B, A9,'A. Population Info'!$C:$C) -> 7 | K9: Mode Age | L9: =MATCH(MAX(C4:C104),C4:C104,0) -> 12
A10: 6 | B10: 6.5 | C10: =COUNTIF('A. Population Info'!$B:$B, 'A. Age Profile'!A10) -> 17 | D10: =SUM($C$4:C10) -> 56 | E10: 110.5 | F10: 7079.361043 | G10: 6.720355655 | H10: =SUMIF('A. Population Info'!$B:$B, A10,'A. Population Info'!$C:$C) -> 17 | K10: F | L10: =INDEX(D4:D104,MATCH(L4/2,$D$4:$D$104,1)) -> 266
A11: 7 | B11: 7.5 | C11: =COUNTIF('A. Population Info'!$B:$B, 'A. Age Profile'!A11) -> 25 | D11: =SUM($C$4:C11) -> 81 | E11: 187.5 | F11: 9415.490556 | G11: 7.081932045 | H11: =SUMIF('A. Population Info'!$B:$B, A11,'A. Population Info'!$C:$C) -> 25 | K11: fm | L11: =INDEX(C4:C104,MATCH(L4/2,$D$4:$D$104,1)+1) -> 19
A12: 8 | B12: 8.5 | C12: =COUNTIF('A. Population Info'!$B:$B, 'A. Age Profile'!A12) -> 29 | D12: =SUM($C$4:C12) -> 110 | E12: 246.5 | F12: 9825.381016 | G12: 7.443341483 | H12: =SUMIF('A. Population Info'!$B:$B, A12,'A. Population Info'!$C:$C) -> 29 | K12: i | L12: =B6-B5 -> 1
A13: 9 | B13: 9.5 | C13: =COUNTIF('A. Population Info'!$B:$B, 'A. Age Profile'!A13) -> 20 | D13: =SUM($C$4:C13) -> 130 | E13: 190 | F13: 6059.857233 | G13: 7.802626593 | H13: =SUMIF('A. Population Info'!$B:$B, A13,'A. Population Info'!$C:$C) -> 20 | K13: Lm | L13: =INDEX(B4:B104,MATCH(L4/2,$D$4:$D$104,1))+L12/2 -> 15
A14: 10 | B14: 10.5 | C14: =COUNTIF('A. Population Info'!$B:$B, 'A. Age Profile'!A14) -> 27 | D14: =SUM($C$4:C14) -> 157 | E14: 283.5 | F14: 7267.845997 | G14: 8.157750045 | H14: =SUMIF('A. Population Info'!$B:$B, A14,'A. Population Info'!$C:$C) -> 27
A15: 11 | B15: 11.5 | C15: =COUNTIF('A. Population Info'!$B:$B, 'A. Age Profile'!A15) -> 36 | D15: =SUM($C$4:C15) -> 193 | E15: 414 | F15: 8545.179639 | G15: 8.506612621 | H15: =SUMIF('A. Population Info'!$B:$B, A15,'A. Population Info'!$C:$C) -> 36
A16: 12 | B16: 12.5 | C16: =COUNTIF('A. Population Info'!$B:$B, 'A. Age Profile'!A16) -> 23 | D16: =SUM($C$4:C16) -> 216 | E16: 287.5 | F16: 4773.712579 | G16: 8.847072961 | H16: =SUMIF('A. Population Info'!$B:$B, A16,'A. Population Info'!$C:$C) -> 23
A17: 13 | B17: 13.5 | C17: =COUNTIF('A. Population Info'!$B:$B, 'A. Age Profile'!A17) -> 27 | D17: =SUM($C$4:C17) -> 243 | E17: 364.5 | F17: 4852.962194 | G17: 9.176968747 | H17: =SUMIF('A. Population Info'!$B:$B, A17,'A. Population Info'!$C:$C) -> 27
A18: 14 | B18: 14.5 | C18: =COUNTIF('A. Population Info'!$B:$B, 'A. Age Profile'!A18) -> 23 | D18: =SUM($C$4:C18) -> 266 | E18: 333.5 | F18: 3540.297086 | G18: 9.494139037 | H18: =SUMIF('A. Population Info'!$B:$B, A18,'A. Population Info'!$C:$C) -> 23
A19: 15 | B19: 15.5 | C19: =COUNTIF('A. Population Info'!$B:$B, 'A. Age Profile'!A19) -> 19 | D19: =SUM($C$4:C19) -> 285 | E19: 294.5 | F19: 2472.139019 | G19: 9.796447452 | H19: =SUMIF('A. Population Info'!$B:$B, A19,'A. Population Info'!$C:$C) -> 19
A20: 16 | B20: 16.5 | C20: =COUNTIF('A. Population Info'!$B:$B, 'A. Age Profile'!A20) -> 10 | D20: =SUM($C$4:C20) -> 295 | E20: 165 | F20: 1082.991997 | G20: 10.08180586 | H20: =SUMIF('A. Population Info'!$B:$B, A20,'A. Population Info'!$C:$C) -> 10
A21: 17 | B21: 17.5 | C21: =COUNTIF('A. Population Info'!$B:$B, 'A. Age Profile'!A21) -> 7 | D21: =SUM($C$4:C21) -> 302 | E21: 122.5 | F21: 619.4007358 | G21: 10.34819819 | H21: =SUMIF('A. Population Info'!$B:$B, A21,'A. Population Info'!$C:$C) -> 7
A22: 18 | B22: 18.5 | C22: =COUNTIF('A. Population Info'!$B:$B, 'A. Age Profile'!A22) -> 8 | D22: =SUM($C$4:C22) -> 310 | E22: 148 | F22: 565.379513 | G22: 10.59370407 | H22: =SUMIF('A. Population Info'!$B:$B, A22,'A. Population Info'!$C:$C) -> 8
A23: 19 | B23: 19.5 | C23: =COUNTIF('A. Population Info'!$B:$B, 'A. Age Profile'!A23) -> 5 | D23: =SUM($C$4:C23) -> 315 | E23: 97.5 | F23: 274.2952942 | G23: 10.81652172 | H23: =SUMIF('A. Population Info'!$B:$B, A23,'A. Population Info'!$C:$C) -> 5
A24: 20 | B24: 20.5 | C24: =COUNTIF('A. Population Info'!$B:$B, 'A. Age Profile'!A24) -> 2 | D24: =SUM($C$4:C24) -> 317 | E24: 41 | F24: 82.09135712 | G24: 11.01499001 | H24: =SUMIF('A. Population Info'!$B:$B, A24,'A. Population Info'!$C:$C) -> 2
A25: 21 | B25: 21.5 | C25: =COUNTIF('A. Population Info'!$B:$B, 'A. Age Profile'!A25) -> 3 | D25: =SUM($C$4:C25) -> 320 | E25: 64.5 | F25: 87.69689484 | G25: 11.187609 | H25: =SUMIF('A. Population Info'!$B:$B, A25,'A. Population Info'!$C:$C) -> 3
A26: 22 | B26: 22.5 | C26: =COUNTIF('A. Population Info'!$B:$B, 'A. Age Profile'!A26) -> 0 | D26: =SUM($C$4:C26) -> 320 | E26: 0 | F26: 0 | G26: 11.33305881 | H26: =SUMIF('A. Population Info'!$B:$B, A26,'A. Population Info'!$C:$C) -> 0
A27: 23 | B27: 23.5 | C27: =COUNTIF('A. Population Info'!$B:$B, 'A. Age Profile'!A27) -> 0 | D27: =SUM($C$4:C27) -> 320 | E27: 0 | F27: 0 | G27: 11.45021645 | H27: =SUMIF('A. Population Info'!$B:$B, A27,'A. Population Info'!$C:$C) -> 0
A28: 24 | B28: 24.5 | C28: =COUNTIF('A. Population Info'!$B:$B, 'A. Age Profile'!A28) -> 4 | D28: =SUM($C$4:C28) -> 324 | E28: 98 | F28: 23.16862974 | G28: 11.53817021 | H28: =SUMIF('A. Population Info'!$B:$B, A28,'A. Population Info'!$C:$C) -> 4
A29: 25 | B29: 25.5 | C29: =COUNTIF('A. Population Info'!$B:$B, 'A. Age Profile'!A29) -> 3 | D29: =SUM($C$4:C29) -> 327 | E29: 76.5 | F29: 5.936331457 | G29: 11.59623152 | H29: =SUMIF('A. Population Info'!$B:$B, A29,'A. Population Info'!$C:$C) -> 3
A30: 26 | B30: 26.5 | C30: =COUNTIF('A. Population Info'!$B:$B, 'A. Age Profile'!A30) -> 3 | D30: =SUM($C$4:C30) -> 330 | E30: 79.5 | F30: 0.496190612 | G30: 11.62394387 | H30: =SUMIF('A. Population Info'!$B:$B, A30,'A. Population Info'!$C:$C) -> 3
A31: 27 | B31: 27.5 | C31: =COUNTIF('A. Population Info'!$B:$B, 'A. Age Profile'!A31) -> 2 | D31: =SUM($C$4:C31) -> 332 | E31: 55 | F31: 0.7040331779 | G31: 11.62108887 | H31: =SUMIF('A. Population Info'!$B:$B, A31,'A. Population Info'!$C:$C) -> 2
A32: 28 | B32: 28.5 | C32: =COUNTIF('A. Population Info'!$B:$B, 'A. Age Profile'!A32) -> 1 | D32: =SUM($C$4:C32) -> 333 | E32: 28.5 | F32: 2.538636307 | G32: 11.58768902 | H32: =SUMIF('A. Population Info'!$B:$B, A32,'A. Population Info'!$C:$C) -> 1
A33: 29 | B33: 29.5 | C33: =COUNTIF('A. Population Info'!$B:$B, 'A. Age Profile'!A33) -> 1 | D33: =SUM($C$4:C33) -> 334 | E33: 29.5 | F33: 6.725256026 | G33: 11.52400748 | H33: =SUMIF('A. Population Info'!$B:$B, A33,'A. Population Info'!$C:$C) -> 1
A34: 30 | B34: 30.5 | C34: =COUNTIF('A. Population Info'!$B:$B, 'A. Age Profile'!A34) -> 1 | D34: =SUM($C$4:C34) -> 335 | E34: 30.5 | F34: 12.91187574 | G34: 11.4305446 | H34: =SUMIF('A. Population Info'!$B:$B, A34,'A. Population Info'!$C:$C) -> 1
A35: 31 | B35: 31.5 | C35: =COUNTIF('A. Population Info'!$B:$B, 'A. Age Profile'!A35) -> 2 | D35: =SUM($C$4:C35) -> 337 | E35: 63 | F35: 42.19699092 | G35: 11.30803137 | H35: =SUMIF('A. Population Info'!$B:$B, A35,'A. Population Info'!$C:$C) -> 2
A36: 32 | B36: 32.5 | C36: =COUNTIF('A. Population Info'!$B:$B, 'A. Age Profile'!A36) -> 2 | D36: =SUM($C$4:C36) -> 339 | E36: 65 | F36: =(B36-$L$6)^2*C36 -> 62.57023036 | G36: 11.1574199 | H36: =SUMIF('A. Population Info'!$B:$B, A36,'A. Population Info'!$C:$C) -> 2
A37: 33 | B37: 33.5 | C37: =COUNTIF('A. Population Info'!$B:$B, 'A. Age Profile'!A37) -> 0 | D37: =SUM($C$4:C37) -> 339 | E37: 0 | F37: 0 | G37: 10.9798711 | H37: =SUMIF('A. Population Info'!$B:$B, A37,'A. Population Info'!$C:$C) -> 0
A38: 34 | B38: 34.5 | C38: =COUNTIF('A. Population Info'!$B:$B, 'A. Age Profile'!A38) -> 6 | D38: =SUM($C$4:C38) -> 345 | E38: 207 | F38: 345.9501277 | G38: 10.77673979 | H38: =SUMIF('A. Population Info'!$B:$B, A38,'A. Population Info'!$C:$C) -> 6
A39: 35 | B39: 35.5 | C39: =COUNTIF('A. Population Info'!$B:$B, 'A. Age Profile'!A39) -> 7 | D39: =SUM($C$4:C39) -> 352 | E39: 248.5 | F39: 516.9148203 | G39: 10.54955748 | H39: =SUMIF('A. Population Info'!$B:$B, A39,'A. Population Info'!$C:$C) -> 7
A40: 36 | B40: 36.5 | C40: =COUNTIF('A. Population Info'!$B:$B, 'A. Age Profile'!A40) -> 4 | D40: =SUM($C$4:C40) -> 356 | E40: 146 | F40: 368.1263762 | G40: 10.30001317 | H40: =SUMIF('A. Population Info'!$B:$B, A40,'A. Population Info'!$C:$C) -> 4
A41: 37 | B41: 37.5 | C41: =COUNTIF('A. Population Info'!$B:$B, 'A. Age Profile'!A41) -> 6 | D41: =SUM($C$4:C41) -> 362 | E41: 225 | F41: 673.3092826 | G41: 10.02993245 | H41: =SUMIF('A. Population Info'!$B:$B, A41,'A. Population Info'!$C:$C) -> 6
A42: 38 | B42: 38.5 | C42: =COUNTIF('A. Population Info'!$B:$B, 'A. Age Profile'!A42) -> 5 | D42: =SUM($C$4:C42) -> 367 | E42: 192.5 | F42: 672.0241675 | G42: 9.741255339 | H42: =SUMIF('A. Population Info'!$B:$B, A42,'A. Population Info'!$C:$C) -> 5
A43: 39 | B43: 39.5 | C43: =COUNTIF('A. Population Info'!$B:$B, 'A. Age Profile'!A43) -> 5 | D43: =SUM($C$4:C43) -> 372 | E43: 197.5 | F43: 792.957266 | G43: 9.43601315 | H43: =SUMIF('A. Population Info'!$B:$B, A43,'A. Population Info'!$C:$C) -> 5
A44: 40 | B44: 40.5 | C44: =COUNTIF('A. Population Info'!$B:$B, 'A. Age Profile'!A44) -> 9 | D44: =SUM($C$4:C44) -> 381 | E44: 364.5 | F44: 1663.002656 | G44: 9.11630483 | H44: =SUMIF('A. Population Info'!$B:$B, A44,'A. Population Info'!$C:$C) -> 9
A45: 41 | B45: 41.5 | C45: =COUNTIF('A. Population Info'!$B:$B, 'A. Age Profile'!A45) -> 5 | D45: =SUM($C$4:C45) -> 386 | E45: 207.5 | F45: 1064.823463 | G45: 8.78427313 | H45: =SUMIF('A. Population Info'!$B:$B, A45,'A. Population Info'!$C:$C) -> 5
A46: 42 | B46: 42.5 | C46: =COUNTIF('A. Population Info'!$B:$B, 'A. Age Profile'!A46) -> 6 | D46: =SUM($C$4:C46) -> 392 | E46: 255 | F46: 1458.907874 | G46: 8.442080986 | H46: =SUMIF('A. Population Info'!$B:$B, A46,'A. Population Info'!$C:$C) -> 6
A47: 43 | B47: 43.5 | C47: =COUNTIF('A. Population Info'!$B:$B, 'A. Age Profile'!A47) -> 5 | D47: =SUM($C$4:C47) -> 397 | E47: 217.5 | F47: 1376.68966 | G47: 8.091888471 | H47: =SUMIF('A. Population Info'!$B:$B, A47,'A. Population Info'!$C:$C) -> 5
A48: 44 | B48: 44.5 | C48: =COUNTIF('A. Population Info'!$B:$B, 'A. Age Profile'!A48) -> 7 | D48: =SUM($C$4:C48) -> 404 | E48: 311.5 | F48: 2166.671863 | G48: 7.735830647 | H48: =SUMIF('A. Population Info'!$B:$B, A48,'A. Population Info'!$C:$C) -> 7
A49: 45 | B49: 45.5 | C49: =COUNTIF('A. Population Info'!$B:$B, 'A. Age Profile'!A49) -> 8 | D49: =SUM($C$4:C49) -> 412 | E49: 364 | F49: 2765.689372 | G49: 7.375996634 | H49: =SUMIF('A. Population Info'!$B:$B, A49,'A. Population Info'!$C:$C) -> 8
A50: 46 | B50: 46.5 | C50: =COUNTIF('A. Population Info'!$B:$B, 'A. Age Profile'!A50) -> 10 | D50: =SUM($C$4:C50) -> 422 | E50: 465 | F50: 3838.977912 | G50: 7.014410159 | H50: =SUMIF('A. Population Info'!$B:$B, A50,'A. Population Info'!$C:$C) -> 10
A51: 47 | B51: 47.5 | C51: =COUNTIF('A. Population Info'!$B:$B, 'A. Age Profile'!A51) -> 16 | D51: =SUM($C$4:C51) -> 438 | E51: 760 | F51: 6785.350575 | G51: 6.653011826 | H51: =SUMIF('A. Population Info'!$B:$B, A51,'A. Population Info'!$C:$C) -> 16
A52: 48 | B52: 48.5 | C52: =COUNTIF('A. Population Info'!$B:$B, 'A. Age Profile'!A52) -> 8 | D52: =SUM($C$4:C52) -> 446 | E52: 388 | F52: 3730.168245 | G52: 6.293643295 | H52: =SUMIF('A. Population Info'!$B:$B, A52,'A. Population Info'!$C:$C) -> 8
A53: 49 | B53: 49.5 | C53: =COUNTIF('A. Population Info'!$B:$B, 'A. Age Profile'!A53) -> 11 | D53: =SUM($C$4:C53) -> 457 | E53: 544.5 | F53: 5615.034154 | G53: 5.938033523 | H53: =SUMIF('A. Population Info'!$B:$B, A53,'A. Population Info'!$C:$C) -> 11
A54: 50 | B54: 50.5 | C54: =COUNTIF('A. Population Info'!$B:$B, 'A. Age Profile'!A54) -> 12 | D54: =SUM($C$4:C54) -> 469 | E54: 606 | F54: 6679.731241 | G54: 5.587787173 | H54: =SUMIF('A. Population Info'!$B:$B, A54,'A. Population Info'!$C:$C) -> 12
A55: 51 | B55: 51.5 | C55: =COUNTIF('A. Population Info'!$B:$B, 'A. Age Profile'!A55) -> 10 | D55: =SUM($C$4:C55) -> 479 | E55: 515 | F55: 6048.308898 | G55: 5.244375245 | H55: =SUMIF('A. Population Info'!$B:$B, A55,'A. Population Info'!$C:$C) -> 10
A56: 52 | B56: 52.5 | C56: =COUNTIF('A. Population Info'!$B:$B, 'A. Age Profile'!A56) -> 9 | D56: =SUM($C$4:C56) -> 488 | E56: 472.5 | F56: 5895.157586 | G56: 4.909127956 | H56: =SUMIF('A. Population Info'!$B:$B, A56,'A. Population Info'!$C:$C) -> 9
A57: 53 | B57: 53.5 | C57: =COUNTIF('A. Population Info'!$B:$B, 'A. Age Profile'!A57) -> 6 | D57: =SUM($C$4:C57) -> 494 | E57: 321 | F57: 4243.224776 | G57: 4.583229837 | H57: =SUMIF('A. Population Info'!$B:$B, A57,'A. Population Info'!$C:$C) -> 6
A58: 54 | B58: 54.5 | C58: =COUNTIF('A. Population Info'!$B:$B, 'A. Age Profile'!A58) -> 17 | D58: =SUM($C$4:C58) -> 511 | E58: 926.5 | F58: 12943.64273 | G58: 4.267716991 | H58: =SUMIF('A. Population Info'!$B:$B, A58,'A. Population Info'!$C:$C) -> 17
A59: 55 | B59: 55.5 | C59: =COUNTIF('A. Population Info'!$B:$B, 'A. Age Profile'!A59) -> 15 | D59: =SUM($C$4:C59) -> 526 | E59: 832.5 | F59: 12263.66053 | G59: 3.963476416 | H59: =SUMIF('A. Population Info'!$B:$B, A59,'A. Population Info'!$C:$C) -> 15
A60: 56 | B60: 56.5 | C60: =COUNTIF('A. Population Info'!$B:$B, 'A. Age Profile'!A60) -> 14 | D60: =SUM($C$4:C60) -> 540 | E60: 791 | F60: 12260.69584 | G60: 3.671247263 | H60: =SUMIF('A. Population Info'!$B:$B, A60,'A. Population Info'!$C:$C) -> 14
A61: 57 | B61: 57.5 | C61: =COUNTIF('A. Population Info'!$B:$B, 'A. Age Profile'!A61) -> 3 | D61: =SUM($C$4:C61) -> 543 | E61: 172.5 | F61: 2807.851824 | G61: 3.391623878 | H61: =SUMIF('A. Population Info'!$B:$B, A61,'A. Population Info'!$C:$C) -> 3
A62: 58 | B62: 58.5 | C62: =COUNTIF('A. Population Info'!$B:$B, 'A. Age Profile'!A62) -> 10 | D62: =SUM($C$4:C62) -> 553 | E62: 585 | F62: 9981.372279 | G62: 3.125060458 | H62: =SUMIF('A. Population Info'!$B:$B, A62,'A. Population Info'!$C:$C) -> 10
A63: 59 | B63: 59.5 | C63: =COUNTIF('A. Population Info'!$B:$B, 'A. Age Profile'!A63) -> 2 | D63: =SUM($C$4:C63) -> 555 | E63: 119 | F63: 2124.647695 | G63: 2.871877123 | H63: =SUMIF('A. Population Info'!$B:$B, A63,'A. Population Info'!$C:$C) -> 2
A64: 60 | B64: 60.5 | C64: =COUNTIF('A. Population Info'!$B:$B, 'A. Age Profile'!A64) -> 1 | D64: =SUM($C$4:C64) -> 556 | E64: 60.5 | F64: 1128.510467 | G64: 2.632267221 | H64: =SUMIF('A. Population Info'!$B:$B, A64,'A. Population Info'!$C:$C) -> 1
A65: 61 | B65: 61.5 | C65: =COUNTIF('A. Population Info'!$B:$B, 'A. Age Profile'!A65) -> 4 | D65: =SUM($C$4:C65) -> 560 | E65: 246 | F65: 4786.788348 | G65: 2.406305635 | H65: =SUMIF('A. Population Info'!$B:$B, A65,'A. Population Info'!$C:$C) -> 4
A66: 62 | B66: 62.5 | C66: =COUNTIF('A. Population Info'!$B:$B, 'A. Age Profile'!A66) -> 0 | D66: =SUM($C$4:C66) -> 560 | E66: 0 | F66: 0 | G66: 2.19395791 | H66: =SUMIF('A. Population Info'!$B:$B, A66,'A. Population Info'!$C:$C) -> 0
A67: 63 | B67: 63.5 | C67: =COUNTIF('A. Population Info'!$B:$B, 'A. Age Profile'!A67) -> 0 | D67: =SUM($C$4:C67) -> 560 | E67: 0 | F67: 0 | G67: 1.995089974 | H67: =SUMIF('A. Population Info'!$B:$B, A67,'A. Population Info'!$C:$C) -> 0
A68: 64 | B68: 64.5 | C68: =COUNTIF('A. Population Info'!$B:$B, 'A. Age Profile'!A68) -> 3 | D68: =SUM($C$4:C68) -> 563 | E68: 193.5 | F68: =(B68-$L$6)^2*C68 -> 4239.770838 | G68: 1.809478269 | H68: =SUMIF('A. Population Info'!$B:$B, A68,'A. Population Info'!$C:$C) -> 3
A69: 65 | B69: 65.5 | C69: =COUNTIF('A. Population Info'!$B:$B, 'A. Age Profile'!A69) -> 2 | D69: =SUM($C$4:C69) -> 565 | E69: 131 | F69: 2978.887132 | G69: =_xlfn.NORM.DIST(B69,$L$6,$L$7,FALSE)*$L$4 -> 1.636820096 | H69: =SUMIF('A. Population Info'!$B:$B, A69,'A. Population Info'!$C:$C) -> 2
A70: 66 | B70: 66.5 | C70: =COUNTIF('A. Population Info'!$B:$B, 'A. Age Profile'!A70) -> 1 | D70: =SUM($C$4:C70) -> 566 | E70: =B70*C70 -> 66.5 | F70: 1567.630186 | G70: 1.476744003 | H70: =SUMIF('A. Population Info'!$B:$B, A70,'A. Population Info'!$C:$C) -> 1
A71: 67 | B71: 67.5 | C71: =COUNTIF('A. Population Info'!$B:$B, 'A. Age Profile'!A71) -> 1 | D71: =SUM($C$4:C71) -> 567 | E71: 67.5 | F71: 1647.816805 | G71: 1.328820056 | H71: =SUMIF('A. Population Info'!$B:$B, A71,'A. Population Info'!$C:$C) -> 1
A72: 68 | B72: 68.5 | C72: =COUNTIF('A. Population Info'!$B:$B, 'A. Age Profile'!A72) -> 0 | D72: =SUM($C$4:C72) -> 567 | E72: 0 | F72: 0 | G72: 1.192569846 | H72: =SUMIF('A. Population Info'!$B:$B, A72,'A. Population Info'!$C:$C) -> 0
A73: 69 | B73: 69.5 | C73: =COUNTIF('A. Population Info'!$B:$B, 'A. Age Profile'!A73) -> 0 | D73: =SUM($C$4:C73) -> 567 | E73: 0 | F73: 0 | G73: 1.067476111 | H73: =SUMIF('A. Population Info'!$B:$B, A73,'A. Population Info'!$C:$C) -> 0
A74: 70 | B74: 70.5 | C74: =COUNTIF('A. Population Info'!$B:$B, 'A. Age Profile'!A74) -> 0 | D74: =SUM($C$4:C74) -> 567 | E74: 0 | F74: 0 | G74: 0.9529918715 | H74: =SUMIF('A. Population Info'!$B:$B, A74,'A. Population Info'!$C:$C) -> 0
A75: 71 | B75: 71.5 | C75: =COUNTIF('A. Population Info'!$B:$B, 'A. Age Profile'!A75) -> 0 | D75: =SUM($C$4:C75) -> 567 | E75: 0 | F75: 0 | G75: 0.8485489864 | H75: =SUMIF('A. Population Info'!$B:$B, A75,'A. Population Info'!$C:$C) -> 0
A76: 72 | B76: 72.5 | C76: =COUNTIF('A. Population Info'!$B:$B, 'A. Age Profile'!A76) -> 1 | D76: =SUM($C$4:C76) -> 568 | E76: 72.5 | F76: 2078.749904 | G76: 0.7535660647 | H76: =SUMIF('A. Population Info'!$B:$B, A76,'A. Population Info'!$C:$C) -> 1
A77: 73 | B77: 73.5 | C77: =COUNTIF('A. Population Info'!$B:$B, 'A. Age Profile'!A77) -> 0 | D77: =SUM($C$4:C77) -> 568 | E77: 0 | F77: 0 | G77: 0.6674556864 | H77: =SUMIF('A. Population Info'!$B:$B, A77,'A. Population Info'!$C:$C) -> 0
A78: 74 | B78: 74.5 | C78: =COUNTIF('A. Population Info'!$B:$B, 'A. Age Profile'!A78) -> 0 | D78: =SUM($C$4:C78) -> 568 | E78: 0 | F78: 0 | G78: 0.5896308975 | H78: =SUMIF('A. Population Info'!$B:$B, A78,'A. Population Info'!$C:$C) -> 0
A79: 75 | B79: 75.5 | C79: =COUNTIF('A. Population Info'!$B:$B, 'A. Age Profile'!A79) -> 0 | D79: =SUM($C$4:C79) -> 568 | E79: 0 | F79: 0 | G79: 0.5195109667 | H79: =SUMIF('A. Population Info'!$B:$B, A79,'A. Population Info'!$C:$C) -> 0
A80: 76 | B80: 76.5 | C80: =COUNTIF('A. Population Info'!$B:$B, 'A. Age Profile'!A80) -> 0 | D80: =SUM($C$4:C80) -> 568 | E80: 0 | F80: 0 | G80: 0.4565264006 | H80: =SUMIF('A. Population Info'!$B:$B, A80,'A. Population Info'!$C:$C) -> 0
A81: 77 | B81: 77.5 | C81: =COUNTIF('A. Population Info'!$B:$B, 'A. Age Profile'!A81) -> 0 | D81: =SUM($C$4:C81) -> 568 | E81: 0 | F81: 0 | G81: 0.4001232302 | H81: =SUMIF('A. Population Info'!$B:$B, A81,'A. Population Info'!$C:$C) -> 0
A82: 78 | B82: 78.5 | C82: =COUNTIF('A. Population Info'!$B:$B, 'A. Age Profile'!A82) -> 0 | D82: =SUM($C$4:C82) -> 568 | E82: 0 | F82: 0 | G82: 0.3497665925 | H82: =SUMIF('A. Population Info'!$B:$B, A82,'A. Population Info'!$C:$C) -> 0
A83: 79 | B83: 79.5 | C83: =COUNTIF('A. Population Info'!$B:$B, 'A. Age Profile'!A83) -> 0 | D83: =SUM($C$4:C83) -> 568 | E83: 0 | F83: 0 | G83: 0.3049436377 | H83: =SUMIF('A. Population Info'!$B:$B, A83,'A. Population Info'!$C:$C) -> 0
A84: 80 | B84: 80.5 | C84: =COUNTIF('A. Population Info'!$B:$B, 'A. Age Profile'!A84) -> 0 | D84: =SUM($C$4:C84) -> 568 | E84: 0 | F84: 0 | G84: 0.2651658053 | H84: =SUMIF('A. Population Info'!$B:$B, A84,'A. Population Info'!$C:$C) -> 0
A85: 81 | B85: 81.5 | C85: =COUNTIF('A. Population Info'!$B:$B, 'A. Age Profile'!A85) -> 0 | D85: =SUM($C$4:C85) -> 568 | E85: 0 | F85: 0 | G85: 0.2299705116 | H85: =SUMIF('A. Population Info'!$B:$B, A85,'A. Population Info'!$C:$C) -> 0
A86: 82 | B86: 82.5 | C86: =COUNTIF('A. Population Info'!$B:$B, 'A. Age Profile'!A86) -> 0 | D86: =SUM($C$4:C86) -> 568 | E86: 0 | F86: 0 | G86: 0.1989223014 | H86: =SUMIF('A. Population Info'!$B:$B, A86,'A. Population Info'!$C:$C) -> 0
A87: 83 | B87: 83.5 | C87: =COUNTIF('A. Population Info'!$B:$B, 'A. Age Profile'!A87) -> 0 | D87: =SUM($C$4:C87) -> 568 | E87: 0 | F87: 0 | G87: 0.1716135163 | H87: =SUMIF('A. Population Info'!$B:$B, A87,'A. Population Info'!$C:$C) -> 0
A88: 84 | B88: 84.5 | C88: =COUNTIF('A. Population Info'!$B:$B, 'A. Age Profile'!A88) -> 0 | D88: =SUM($C$4:C88) -> 568 | E88: 0 | F88: 0 | G88: 0.1476645329 | H88: =SUMIF('A. Population Info'!$B:$B, A88,'A. Population Info'!$C:$C) -> 0
A89: 85 | B89: 85.5 | C89: =COUNTIF('A. Population Info'!$B:$B, 'A. Age Profile'!A89) -> 0 | D89: =SUM($C$4:C89) -> 568 | E89: 0 | F89: 0 | G89: 0.1267236265 | H89: =SUMIF('A. Population Info'!$B:$B, A89,'A. Population Info'!$C:$C) -> 0
A90: 86 | B90: 86.5 | C90: =COUNTIF('A. Population Info'!$B:$B, 'A. Age Profile'!A90) -> 0 | D90: =SUM($C$4:C90) -> 568 | E90: 0 | F90: 0 | G90: 0.1084665135 | H90: =SUMIF('A. Population Info'!$B:$B, A90,'A. Population Info'!$C:$C) -> 0
A91: 87 | B91: 87.5 | C91: =COUNTIF('A. Population Info'!$B:$B, 'A. Age Profile'!A91) -> 0 | D91: =SUM($C$4:C91) -> 568 | E91: 0 | F91: 0 | G91: 0.09259562331 | H91: =SUMIF('A. Population Info'!$B:$B, A91,'A. Population Info'!$C:$C) -> 0
A92: 88 | B92: 88.5 | C92: =COUNTIF('A. Population Info'!$B:$B, 'A. Age Profile'!A92) -> 0 | D92: =SUM($C$4:C92) -> 568 | E92: 0 | F92: 0 | G92: 0.07883914929 | H92: =SUMIF('A. Population Info'!$B:$B, A92,'A. Population Info'!$C:$C) -> 0
A93: 89 | B93: 89.5 | C93: =COUNTIF('A. Population Info'!$B:$B, 'A. Age Profile'!A93) -> 0 | D93: =SUM($C$4:C93) -> 568 | E93: 0 | F93: 0 | G93: 0.06694992431 | H93: =SUMIF('A. Population Info'!$B:$B, A93,'A. Population Info'!$C:$C) -> 0
A94: 90 | B94: 90.5 | C94: =COUNTIF('A. Population Info'!$B:$B, 'A. Age Profile'!A94) -> 0 | D94: =SUM($C$4:C94) -> 568 | E94: =B94*C94 -> 0 | F94: 0 | G94: 0.05670416274 | H94: =SUMIF('A. Population Info'!$B:$B, A94,'A. Population Info'!$C:$C) -> 0
A95: 91 | B95: 91.5 | C95: =COUNTIF('A. Population Info'!$B:$B, 'A. Age Profile'!A95) -> 0 | D95: =SUM($C$4:C95) -> 568 | E95: =B95*C95 -> 0 | F95: 0 | G95: 0.04790010718 | H95: =SUMIF('A. Population Info'!$B:$B, A95,'A. Population Info'!$C:$C) -> 0
A96: 92 | B96: 92.5 | C96: =COUNTIF('A. Population Info'!$B:$B, 'A. Age Profile'!A96) -> 0 | D96: =SUM($C$4:C96) -> 568 | E96: 0 | F96: 0 | G96: 0.04035661384 | H96: =SUMIF('A. Population Info'!$B:$B, A96,'A. Population Info'!$C:$C) -> 0
A97: 93 | B97: 93.5 | C97: =COUNTIF('A. Population Info'!$B:$B, 'A. Age Profile'!A97) -> 0 | D97: =SUM($C$4:C97) -> 568 | E97: 0 | F97: 0 | G97: 0.03391170645 | H97: =SUMIF('A. Population Info'!$B:$B, A97,'A. Population Info'!$C:$C) -> 0
A98: 94 | B98: 94.5 | C98: =COUNTIF('A. Population Info'!$B:$B, 'A. Age Profile'!A98) -> 0 | D98: =SUM($C$4:C98) -> 568 | E98: 0 | F98: 0 | G98: 0.0284211247 | H98: =SUMIF('A. Population Info'!$B:$B, A98,'A. Population Info'!$C:$C) -> 0
A99: 95 | B99: 95.5 | C99: =COUNTIF('A. Population Info'!$B:$B, 'A. Age Profile'!A99) -> 0 | D99: =SUM($C$4:C99) -> 568 | E99: 0 | F99: 0 | G99: 0.02375688893 | H99: =SUMIF('A. Population Info'!$B:$B, A99,'A. Population Info'!$C:$C) -> 0
A100: 96 | B100: 96.5 | C100: =COUNTIF('A. Population Info'!$B:$B, 'A. Age Profile'!A100) -> 0 | D100: =SUM($C$4:C100) -> 568 | E100: 0 | F100: 0 | G100: 0.01980589924 | H100: =SUMIF('A. Population Info'!$B:$B, A100,'A. Population Info'!$C:$C) -> 0
A101: 97 | B101: 97.5 | C101: =COUNTIF('A. Population Info'!$B:$B, 'A. Age Profile'!A101) -> 0 | D101: =SUM($C$4:C101) -> 568 | E101: 0 | F101: 0 | G101: 0.01646858381 | H101: =SUMIF('A. Population Info'!$B:$B, A101,'A. Population Info'!$C:$C) -> 0
A102: 98 | B102: 98.5 | C102: =COUNTIF('A. Population Info'!$B:$B, 'A. Age Profile'!A102) -> 0 | D102: =SUM($C$4:C102) -> 568 | E102: 0 | F102: 0 | G102: 0.01365760771 | H102: =SUMIF('A. Population Info'!$B:$B, A102,'A. Population Info'!$C:$C) -> 0
A103: 99 | B103: 99.5 | C103: =COUNTIF('A. Population Info'!$B:$B, 'A. Age Profile'!A103) -> 0 | D103: =SUM($C$4:C103) -> 568 | E103: 0 | F103: 0 | G103: 0.01129665083 | H103: =SUMIF('A. Population Info'!$B:$B, A103,'A. Population Info'!$C:$C) -> 0
A104: 100 | B104: 100.5 | C104: =COUNTIF('A. Population Info'!$B:$B, 'A. Age Profile'!A104) -> 0 | D104: =SUM($C$4:C104) -> 568 | E104: 0 | F104: 0 | G104: 0.009319260838 | H104: =SUMIF('A. Population Info'!$B:$B, A104,'A. Population Info'!$C:$C) -> 0

Sheet A. Initial PoF
B1: Initial Probability of Failure
A3: Age Label | B3: No. of Asset Units | C3: PoFpoor (Upper 95%) | D3: PoFavg | E3: PoFgood (Lower 95%)
A4: 0 | B4: 1 | C4: =IF('B. PoF Summary Stats & Params'!$C$12="C", B4*'B. PoF Summary Stats & Params'!$I$8*'B. PoF Summary Stats & Params'!$I$10*A4^('B. PoF Summary Stats & Params'!$I$10-1), IF('B. PoF Summary Stats & Params'!$C$12="W", B4*(('B. PoF Summary Stats & Params'!$M$14/'B. PoF Summary Stats & Params'!$O$14)*((A4)/'B. PoF Summary Stats & Params'!$O$14)^('B. PoF Summary Stats & Params'!$M$14-1)), "Choose Model")) -> 0 | D4: =IF('B. PoF Summary Stats & Params'!$C$12="C", B4*'B. PoF Summary Stats & Params'!$I$8*'B. PoF Summary Stats & Params'!$I$6*A4^('B. PoF Summary Stats & Params'!$I$6-1), IF('B. PoF Summary Stats & Params'!$C$12="W", B4*(('B. PoF Summary Stats & Params'!$M$6/'B. PoF Summary Stats & Params'!$M$8)*((A4)/'B. PoF Summary Stats & Params'!$M$8)^('B. PoF Summary Stats & Params'!$M$6-1)), "Choose Model")) -> 0 | E4: =IF('B. PoF Summary Stats & Params'!$C$12="C", B4*'B. PoF Summary Stats & Params'!$I$8*'B. PoF Summary Stats & Params'!$I$12*A4^('B. PoF Summary Stats & Params'!$I$12-1), IF('B. PoF Summary Stats & Params'!$C$12="W", B4*(('B. PoF Summary Stats & Params'!$M$12/'B. PoF Summary Stats & Params'!$O$12)*((A4)/'B. PoF Summary Stats & Params'!$O$12)^('B. PoF Summary Stats & Params'!$M$12-1)), "Choose Model")) -> 0
A5: 1 | B5: 1 | C5: =IF('B. PoF Summary Stats & Params'!$C$12="C", B5*'B. PoF Summary Stats & Params'!$I$8*'B. PoF Summary Stats & Params'!$I$10*A5^('B. PoF Summary Stats & Params'!$I$10-1), IF('B. PoF Summary Stats & Params'!$C$12="W", B5*(('B. PoF Summary Stats & Params'!$M$14/'B. PoF Summary Stats & Params'!$O$14)*((A5)/'B. PoF Summary Stats & Params'!$O$14)^('B. PoF Summary Stats & Params'!$M$14-1)), "Choose Model")) -> 2.00354758e-07 | D5: =IF('B. PoF Summary Stats & Params'!$C$12="C", B5*'B. PoF Summary Stats & Params'!$I$8*'B. PoF Summary Stats & Params'!$I$6*A5^('B. PoF Summary Stats & Params'!$I$6-1), IF('B. PoF Summary Stats & Params'!$C$12="W", B5*(('B. PoF Summary Stats & Params'!$M$6/'B. PoF Summary Stats & Params'!$M$8)*((A5)/'B. PoF Summary Stats & Params'!$M$8)^('B. PoF Summary Stats & Params'!$M$6-1)), "Choose Model")) -> 1.897739417e-07 | E5: =IF('B. PoF Summary Stats & Params'!$C$12="C", B5*'B. PoF Summary Stats & Params'!$I$8*'B. PoF Summary Stats & Params'!$I$12*A5^('B. PoF Summary Stats & Params'!$I$12-1), IF('B. PoF Summary Stats & Params'!$C$12="W", B5*(('B. PoF Summary Stats & Params'!$M$12/'B. PoF Summary Stats & Params'!$O$12)*((A5)/'B. PoF Summary Stats & Params'!$O$12)^('B. PoF Summary Stats & Params'!$M$12-1)), "Choose Model")) -> 1.791930294e-07
A6: 2 | B6: 1 | C6: =IF('B. PoF Summary Stats & Params'!$C$12="C", B6*'B. PoF Summary Stats & Params'!$I$8*'B. PoF Summary Stats & Params'!$I$10*A6^('B. PoF Summary Stats & Params'!$I$10-1), IF('B. PoF Summary Stats & Params'!$C$12="W", B6*(('B. PoF Summary Stats & Params'!$M$14/'B. PoF Summary Stats & Params'!$O$14)*((A6)/'B. PoF Summary Stats & Params'!$O$14)^('B. PoF Summary Stats & Params'!$M$14-1)), "Choose Model")) -> 1.587359252e-06 | D6: =IF('B. PoF Summary Stats & Params'!$C$12="C", B6*'B. PoF Summary Stats & Params'!$I$8*'B. PoF Summary Stats & Params'!$I$6*A6^('B. PoF Summary Stats & Params'!$I$6-1), IF('B. PoF Summary Stats & Params'!$C$12="W", B6*(('B. PoF Summary Stats & Params'!$M$6/'B. PoF Summary Stats & Params'!$M$8)*((A6)/'B. PoF Summary Stats & Params'!$M$8)^('B. PoF Summary Stats & Params'!$M$6-1)), "Choose Model")) -> 1.299317322e-06 | E6: =IF('B. PoF Summary Stats & Params'!$C$12="C", B6*'B. PoF Summary Stats & Params'!$I$8*'B. PoF Summary Stats & Params'!$I$12*A6^('B. PoF Summary Stats & Params'!$I$12-1), IF('B. PoF Summary Stats & Params'!$C$12="W", B6*(('B. PoF Summary Stats & Params'!$M$12/'B. PoF Summary Stats & Params'!$O$12)*((A6)/'B. PoF Summary Stats & Params'!$O$12)^('B. PoF Summary Stats & Params'!$M$12-1)), "Choose Model")) -> 1.060236727e-06
A7: 3 | B7: 1 | C7: =IF('B. PoF Summary Stats & Params'!$C$12="C", B7*'B. PoF Summary Stats & Params'!$I$8*'B. PoF Summary Stats & Params'!$I$10*A7^('B. PoF Summary Stats & Params'!$I$10-1), IF('B. PoF Summary Stats & Params'!$C$12="W", B7*(('B. PoF Summary Stats & Params'!$M$14/'B. PoF Summary Stats & Params'!$O$14)*((A7)/'B. PoF Summary Stats & Params'!$O$14)^('B. PoF Summary Stats & Params'!$M$14-1)), "Choose Model")) -> 5.327012638e-06 | D7: =IF('B. PoF Summary Stats & Params'!$C$12="C", B7*'B. PoF Summary Stats & Params'!$I$8*'B. PoF Summary Stats & Params'!$I$6*A7^('B. PoF Summary Stats & Params'!$I$6-1), IF('B. PoF Summary Stats & Params'!$C$12="W", B7*(('B. PoF Summary Stats & Params'!$M$6/'B. PoF Summary Stats & Params'!$M$8)*((A7)/'B. PoF Summary Stats & Params'!$M$8)^('B. PoF Summary Stats & Params'!$M$6-1)), "Choose Model")) -> 4.00349148e-06 | E7: =IF('B. PoF Summary Stats & Params'!$C$12="C", B7*'B. PoF Summary Stats & Params'!$I$8*'B. PoF Summary Stats & Params'!$I$12*A7^('B. PoF Summary Stats & Params'!$I$12-1), IF('B. PoF Summary Stats & Params'!$C$12="W", B7*(('B. PoF Summary Stats & Params'!$M$12/'B. PoF Summary Stats & Params'!$O$12)*((A7)/'B. PoF Summary Stats & Params'!$O$12)^('B. PoF Summary Stats & Params'!$M$12-1)), "Choose Model")) -> 2.999450545e-06
A8: 4 | B8: 1 | C8: =IF('B. PoF Summary Stats & Params'!$C$12="C", B8*'B. PoF Summary Stats & Params'!$I$8*'B. PoF Summary Stats & Params'!$I$10*A8^('B. PoF Summary Stats & Params'!$I$10-1), IF('B. PoF Summary Stats & Params'!$C$12="W", B8*(('B. PoF Summary Stats & Params'!$M$14/'B. PoF Summary Stats & Params'!$O$14)*((A8)/'B. PoF Summary Stats & Params'!$O$14)^('B. PoF Summary Stats & Params'!$M$14-1)), "Choose Model")) -> 1.257623936e-05 | D8: =IF('B. PoF Summary Stats & Params'!$C$12="C", B8*'B. PoF Summary Stats & Params'!$I$8*'B. PoF Summary Stats & Params'!$I$6*A8^('B. PoF Summary Stats & Params'!$I$6-1), IF('B. PoF Summary Stats & Params'!$C$12="W", B8*(('B. PoF Summary Stats & Params'!$M$6/'B. PoF Summary Stats & Params'!$M$8)*((A8)/'B. PoF Summary Stats & Params'!$M$8)^('B. PoF Summary Stats & Params'!$M$6-1)), "Choose Model")) -> 8.895981646e-06 | E8: =IF('B. PoF Summary Stats & Params'!$C$12="C", B8*'B. PoF Summary Stats & Params'!$I$8*'B. PoF Summary Stats & Params'!$I$12*A8^('B. PoF Summary Stats & Params'!$I$12-1), IF('B. PoF Summary Stats & Params'!$C$12="W", B8*(('B. PoF Summary Stats & Params'!$M$12/'B. PoF Summary Stats & Params'!$O$12)*((A8)/'B. PoF Summary Stats & Params'!$O$12)^('B. PoF Summary Stats & Params'!$M$12-1)), "Choose Model")) -> 6.273134184e-06
A9: 5 | B9: 1 | C9: =IF('B. PoF Summary Stats & Params'!$C$12="C", B9*'B. PoF Summary Stats & Params'!$I$8*'B. PoF Summary Stats & Params'!$I$10*A9^('B. PoF Summary Stats & Params'!$I$10-1), IF('B. PoF Summary Stats & Params'!$C$12="W", B9*(('B. PoF Summary Stats & Params'!$M$14/'B. PoF Summary Stats & Params'!$O$14)*((A9)/'B. PoF Summary Stats & Params'!$O$14)^('B. PoF Summary Stats & Params'!$M$14-1)), "Choose Model")) -> 2.448635229e-05 | D9: =IF('B. PoF Summary Stats & Params'!$C$12="C", B9*'B. PoF Summary Stats & Params'!$I$8*'B. PoF Summary Stats & Params'!$I$6*A9^('B. PoF Summary Stats & Params'!$I$6-1), IF('B. PoF Summary Stats & Params'!$C$12="W", B9*(('B. PoF Summary Stats & Params'!$M$6/'B. PoF Summary Stats & Params'!$M$8)*((A9)/'B. PoF Summary Stats & Params'!$M$8)^('B. PoF Summary Stats & Params'!$M$6-1)), "Choose Model")) -> 1.652562632e-05 | E9: =IF('B. PoF Summary Stats & Params'!$C$12="C", B9*'B. PoF Summary Stats & Params'!$I$8*'B. PoF Summary Stats & Params'!$I$12*A9^('B. PoF Summary Stats & Params'!$I$12-1), IF('B. PoF Summary Stats & Params'!$C$12="W", B9*(('B. PoF Summary Stats & Params'!$M$12/'B. PoF Summary Stats & Params'!$O$12)*((A9)/'B. PoF Summary Stats & Params'!$O$12)^('B. PoF Summary Stats & Params'!$M$12-1)), "Choose Model")) -> 1.111832536e-05
A10: 6 | B10: 1 | C10: =IF('B. PoF Summary Stats & Params'!$C$12="C", B10*'B. PoF Summary Stats & Params'!$I$8*'B. PoF Summary Stats & Params'!$I$10*A10^('B. PoF Summary Stats & Params'!$I$10-1), IF('B. PoF Summary Stats & Params'!$C$12="W", B10*(('B. PoF Summary Stats & Params'!$M$14/'B. PoF Summary Stats & Params'!$O$14)*((A10)/'B. PoF Summary Stats & Params'!$O$14)^('B. PoF Summary Stats & Params'!$M$14-1)), "Choose Model")) -> 4.220455196e-05 | D10: =IF('B. PoF Summary Stats & Params'!$C$12="C", B10*'B. PoF Summary Stats & Params'!$I$8*'B. PoF Summary Stats & Params'!$I$6*A10^('B. PoF Summary Stats & Params'!$I$6-1), IF('B. PoF Summary Stats & Params'!$C$12="W", B10*(('B. PoF Summary Stats & Params'!$M$6/'B. PoF Summary Stats & Params'!$M$8)*((A10)/'B. PoF Summary Stats & Params'!$M$8)^('B. PoF Summary Stats & Params'!$M$6-1)), "Choose Model")) -> 2.741053793e-05 | E10: =IF('B. PoF Summary Stats & Params'!$C$12="C", B10*'B. PoF Summary Stats & Params'!$I$8*'B. PoF Summary Stats & Params'!$I$12*A10^('B. PoF Summary Stats & Params'!$I$12-1), IF('B. PoF Summary Stats & Params'!$C$12="W", B10*(('B. PoF Summary Stats & Params'!$M$12/'B. PoF Summary Stats & Params'!$O$12)*((A10)/'B. PoF Summary Stats & Params'!$O$12)^('B. PoF Summary Stats & Params'!$M$12-1)), "Choose Model")) -> 1.774693826e-05
A11: 7 | B11: 1 | C11: =IF('B. PoF Summary Stats & Params'!$C$12="C", B11*'B. PoF Summary Stats & Params'!$I$8*'B. PoF Summary Stats & Params'!$I$10*A11^('B. PoF Summary Stats & Params'!$I$10-1), IF('B. PoF Summary Stats & Params'!$C$12="W", B11*(('B. PoF Summary Stats & Params'!$M$14/'B. PoF Summary Stats & Params'!$O$14)*((A11)/'B. PoF Summary Stats & Params'!$O$14)^('B. PoF Summary Stats & Params'!$M$14-1)), "Choose Model")) -> 6.687478642e-05 | D11: =IF('B. PoF Summary Stats & Params'!$C$12="C", B11*'B. PoF Summary Stats & Params'!$I$8*'B. PoF Summary Stats & Params'!$I$6*A11^('B. PoF Summary Stats & Params'!$I$6-1), IF('B. PoF Summary Stats & Params'!$C$12="W", B11*(('B. PoF Summary Stats & Params'!$M$6/'B. PoF Summary Stats & Params'!$M$8)*((A11)/'B. PoF Summary Stats & Params'!$M$8)^('B. PoF Summary Stats & Params'!$M$6-1)), "Choose Model")) -> 4.204570884e-05 | E11: =IF('B. PoF Summary Stats & Params'!$C$12="C", B11*'B. PoF Summary Stats & Params'!$I$8*'B. PoF Summary Stats & Params'!$I$12*A11^('B. PoF Summary Stats & Params'!$I$12-1), IF('B. PoF Summary Stats & Params'!$C$12="W", B11*(('B. PoF Summary Stats & Params'!$M$12/'B. PoF Summary Stats & Params'!$O$12)*((A11)/'B. PoF Summary Stats & Params'!$O$12)^('B. PoF Summary Stats & Params'!$M$12-1)), "Choose Model")) -> 2.635290913e-05
A12: 8 | B12: 1 | C12: =IF('B. PoF Summary Stats & Params'!$C$12="C", B12*'B. PoF Summary Stats & Params'!$I$8*'B. PoF Summary Stats & Params'!$I$10*A12^('B. PoF Summary Stats & Params'!$I$10-1), IF('B. PoF Summary Stats & Params'!$C$12="W", B12*(('B. PoF Summary Stats & Params'!$M$14/'B. PoF Summary Stats & Params'!$O$14)*((A12)/'B. PoF Summary Stats & Params'!$O$14)^('B. PoF Summary Stats & Params'!$M$14-1)), "Choose Model")) -> 9.963831206e-05 | D12: =IF('B. PoF Summary Stats & Params'!$C$12="C", B12*'B. PoF Summary Stats & Params'!$I$8*'B. PoF Summary Stats & Params'!$I$6*A12^('B. PoF Summary Stats & Params'!$I$6-1), IF('B. PoF Summary Stats & Params'!$C$12="W", B12*(('B. PoF Summary Stats & Params'!$M$6/'B. PoF Summary Stats & Params'!$M$8)*((A12)/'B. PoF Summary Stats & Params'!$M$8)^('B. PoF Summary Stats & Params'!$M$6-1)), "Choose Model")) -> 6.090774603e-05 | E12: =IF('B. PoF Summary Stats & Params'!$C$12="C", B12*'B. PoF Summary Stats & Params'!$I$8*'B. PoF Summary Stats & Params'!$I$12*A12^('B. PoF Summary Stats & Params'!$I$12-1), IF('B. PoF Summary Stats & Params'!$C$12="W", B12*(('B. PoF Summary Stats & Params'!$M$12/'B. PoF Summary Stats & Params'!$O$12)*((A12)/'B. PoF Summary Stats & Params'!$O$12)^('B. PoF Summary Stats & Params'!$M$12-1)), "Choose Model")) -> 3.711643963e-05
A13: 9 | B13: 1 | C13: =IF('B. PoF Summary Stats & Params'!$C$12="C", B13*'B. PoF Summary Stats & Params'!$I$8*'B. PoF Summary Stats & Params'!$I$10*A13^('B. PoF Summary Stats & Params'!$I$10-1), IF('B. PoF Summary Stats & Params'!$C$12="W", B13*(('B. PoF Summary Stats & Params'!$M$14/'B. PoF Summary Stats & Params'!$O$14)*((A13)/'B. PoF Summary Stats & Params'!$O$14)^('B. PoF Summary Stats & Params'!$M$14-1)), "Choose Model")) -> 0.0001416340891 | D13: =IF('B. PoF Summary Stats & Params'!$C$12="C", B13*'B. PoF Summary Stats & Params'!$I$8*'B. PoF Summary Stats & Params'!$I$6*A13^('B. PoF Summary Stats & Params'!$I$6-1), IF('B. PoF Summary Stats & Params'!$C$12="W", B13*(('B. PoF Summary Stats & Params'!$M$6/'B. PoF Summary Stats & Params'!$M$8)*((A13)/'B. PoF Summary Stats & Params'!$M$8)^('B. PoF Summary Stats & Params'!$M$6-1)), "Choose Model")) -> 8.445808674e-05 | E13: =IF('B. PoF Summary Stats & Params'!$C$12="C", B13*'B. PoF Summary Stats & Params'!$I$8*'B. PoF Summary Stats & Params'!$I$12*A13^('B. PoF Summary Stats & Params'!$I$12-1), IF('B. PoF Summary Stats & Params'!$C$12="W", B13*(('B. PoF Summary Stats & Params'!$M$12/'B. PoF Summary Stats & Params'!$O$12)*((A13)/'B. PoF Summary Stats & Params'!$O$12)^('B. PoF Summary Stats & Params'!$M$12-1)), "Choose Model")) -> 5.020677201e-05
A14: 10 | B14: 1 | C14: =IF('B. PoF Summary Stats & Params'!$C$12="C", B14*'B. PoF Summary Stats & Params'!$I$8*'B. PoF Summary Stats & Params'!$I$10*A14^('B. PoF Summary Stats & Params'!$I$10-1), IF('B. PoF Summary Stats & Params'!$C$12="W", B14*(('B. PoF Summary Stats & Params'!$M$14/'B. PoF Summary Stats & Params'!$O$14)*((A14)/'B. PoF Summary Stats & Params'!$O$14)^('B. PoF Summary Stats & Params'!$M$14-1)), "Choose Model")) -> 0.0001939990756 | D14: =IF('B. PoF Summary Stats & Params'!$C$12="C", B14*'B. PoF Summary Stats & Params'!$I$8*'B. PoF Summary Stats & Params'!$I$6*A14^('B. PoF Summary Stats & Params'!$I$6-1), IF('B. PoF Summary Stats & Params'!$C$12="W", B14*(('B. PoF Summary Stats & Params'!$M$6/'B. PoF Summary Stats & Params'!$M$8)*((A14)/'B. PoF Summary Stats & Params'!$M$8)^('B. PoF Summary Stats & Params'!$M$6-1)), "Choose Model")) -> 0.0001131453156 | E14: =IF('B. PoF Summary Stats & Params'!$C$12="C", B14*'B. PoF Summary Stats & Params'!$I$8*'B. PoF Summary Stats & Params'!$I$12*A14^('B. PoF Summary Stats & Params'!$I$12-1), IF('B. PoF Summary Stats & Params'!$C$12="W", B14*(('B. PoF Summary Stats & Params'!$M$12/'B. PoF Summary Stats & Params'!$O$12)*((A14)/'B. PoF Summary Stats & Params'!$O$12)^('B. PoF Summary Stats & Params'!$M$12-1)), "Choose Model")) -> 6.578412637e-05
A15: 11 | B15: 1 | C15: =IF('B. PoF Summary Stats & Params'!$C$12="C", B15*'B. PoF Summary Stats & Params'!$I$8*'B. PoF Summary Stats & Params'!$I$10*A15^('B. PoF Summary Stats & Params'!$I$10-1), IF('B. PoF Summary Stats & Params'!$C$12="W", B15*(('B. PoF Summary Stats & Params'!$M$14/'B. PoF Summary Stats & Params'!$O$14)*((A15)/'B. PoF Summary Stats & Params'!$O$14)^('B. PoF Summary Stats & Params'!$M$14-1)), "Choose Model")) -> 0.0002578684551 | D15: =IF('B. PoF Summary Stats & Params'!$C$12="C", B15*'B. PoF Summary Stats & Params'!$I$8*'B. PoF Summary Stats & Params'!$I$6*A15^('B. PoF Summary Stats & Params'!$I$6-1), IF('B. PoF Summary Stats & Params'!$C$12="W", B15*(('B. PoF Summary Stats & Params'!$M$6/'B. PoF Summary Stats & Params'!$M$8)*((A15)/'B. PoF Summary Stats & Params'!$M$8)^('B. PoF Summary Stats & Params'!$M$6-1)), "Choose Model")) -> 0.000147406908 | E15: =IF('B. PoF Summary Stats & Params'!$C$12="C", B15*'B. PoF Summary Stats & Params'!$I$8*'B. PoF Summary Stats & Params'!$I$12*A15^('B. PoF Summary Stats & Params'!$I$12-1), IF('B. PoF Summary Stats & Params'!$C$12="W", B15*(('B. PoF Summary Stats & Params'!$M$12/'B. PoF Summary Stats & Params'!$O$12)*((A15)/'B. PoF Summary Stats & Params'!$O$12)^('B. PoF Summary Stats & Params'!$M$12-1)), "Choose Model")) -> 8.40011188e-05
A16: 12 | B16: 1 | C16: =IF('B. PoF Summary Stats & Params'!$C$12="C", B16*'B. PoF Summary Stats & Params'!$I$8*'B. PoF Summary Stats & Params'!$I$10*A16^('B. PoF Summary Stats & Params'!$I$10-1), IF('B. PoF Summary Stats & Params'!$C$12="W", B16*(('B. PoF Summary Stats & Params'!$M$14/'B. PoF Summary Stats & Params'!$O$14)*((A16)/'B. PoF Summary Stats & Params'!$O$14)^('B. PoF Summary Stats & Params'!$M$14-1)), "Choose Model")) -> 0.0003343758175 | D16: =IF('B. PoF Summary Stats & Params'!$C$12="C", B16*'B. PoF Summary Stats & Params'!$I$8*'B. PoF Summary Stats & Params'!$I$6*A16^('B. PoF Summary Stats & Params'!$I$6-1), IF('B. PoF Summary Stats & Params'!$C$12="W", B16*(('B. PoF Summary Stats & Params'!$M$6/'B. PoF Summary Stats & Params'!$M$8)*((A16)/'B. PoF Summary Stats & Params'!$M$8)^('B. PoF Summary Stats & Params'!$M$6-1)), "Choose Model")) -> 0.0001876705853 | E16: =IF('B. PoF Summary Stats & Params'!$C$12="C", B16*'B. PoF Summary Stats & Params'!$I$8*'B. PoF Summary Stats & Params'!$I$12*A16^('B. PoF Summary Stats & Params'!$I$12-1), IF('B. PoF Summary Stats & Params'!$C$12="W", B16*(('B. PoF Summary Stats & Params'!$M$12/'B. PoF Summary Stats & Params'!$O$12)*((A16)/'B. PoF Summary Stats & Params'!$O$12)^('B. PoF Summary Stats & Params'!$M$12-1)), "Choose Model")) -> 0.0001050038375
A17: 13 | B17: 1 | C17: =IF('B. PoF Summary Stats & Params'!$C$12="C", B17*'B. PoF Summary Stats & Params'!$I$8*'B. PoF Summary Stats & Params'!$I$10*A17^('B. PoF Summary Stats & Params'!$I$10-1), IF('B. PoF Summary Stats & Params'!$C$12="W", B17*(('B. PoF Summary Stats & Params'!$M$14/'B. PoF Summary Stats & Params'!$O$14)*((A17)/'B. PoF Summary Stats & Params'!$O$14)^('B. PoF Summary Stats & Params'!$M$14-1)), "Choose Model")) -> 0.000424653307 | D17: =IF('B. PoF Summary Stats & Params'!$C$12="C", B17*'B. PoF Summary Stats & Params'!$I$8*'B. PoF Summary Stats & Params'!$I$6*A17^('B. PoF Summary Stats & Params'!$I$6-1), IF('B. PoF Summary Stats & Params'!$C$12="W", B17*(('B. PoF Summary Stats & Params'!$M$6/'B. PoF Summary Stats & Params'!$M$8)*((A17)/'B. PoF Summary Stats & Params'!$M$8)^('B. PoF Summary Stats & Params'!$M$6-1)), "Choose Model")) -> 0.0002343553964 | E17: =IF('B. PoF Summary Stats & Params'!$C$12="C", B17*'B. PoF Summary Stats & Params'!$I$8*'B. PoF Summary Stats & Params'!$I$12*A17^('B. PoF Summary Stats & Params'!$I$12-1), IF('B. PoF Summary Stats & Params'!$C$12="W", B17*(('B. PoF Summary Stats & Params'!$M$12/'B. PoF Summary Stats & Params'!$O$12)*((A17)/'B. PoF Summary Stats & Params'!$O$12)^('B. PoF Summary Stats & Params'!$M$12-1)), "Choose Model")) -> 0.0001289326834
A18: 14 | B18: 1 | C18: =IF('B. PoF Summary Stats & Params'!$C$12="C", B18*'B. PoF Summary Stats & Params'!$I$8*'B. PoF Summary Stats & Params'!$I$10*A18^('B. PoF Summary Stats & Params'!$I$10-1), IF('B. PoF Summary Stats & Params'!$C$12="W", B18*(('B. PoF Summary Stats & Params'!$M$14/'B. PoF Summary Stats & Params'!$O$14)*((A18)/'B. PoF Summary Stats & Params'!$O$14)^('B. PoF Summary Stats & Params'!$M$14-1)), "Choose Model")) -> 0.0005298317443 | D18: =IF('B. PoF Summary Stats & Params'!$C$12="C", B18*'B. PoF Summary Stats & Params'!$I$8*'B. PoF Summary Stats & Params'!$I$6*A18^('B. PoF Summary Stats & Params'!$I$6-1), IF('B. PoF Summary Stats & Params'!$C$12="W", B18*(('B. PoF Summary Stats & Params'!$M$6/'B. PoF Summary Stats & Params'!$M$8)*((A18)/'B. PoF Summary Stats & Params'!$M$8)^('B. PoF Summary Stats & Params'!$M$6-1)), "Choose Model")) -> 0.0002878725988 | E18: =IF('B. PoF Summary Stats & Params'!$C$12="C", B18*'B. PoF Summary Stats & Params'!$I$8*'B. PoF Summary Stats & Params'!$I$12*A18^('B. PoF Summary Stats & Params'!$I$12-1), IF('B. PoF Summary Stats & Params'!$C$12="W", B18*(('B. PoF Summary Stats & Params'!$M$12/'B. PoF Summary Stats & Params'!$O$12)*((A18)/'B. PoF Summary Stats & Params'!$O$12)^('B. PoF Summary Stats & Params'!$M$12-1)), "Choose Model")) -> 0.0001559230414
A19: 15 | B19: 1 | C19: =IF('B. PoF Summary Stats & Params'!$C$12="C", B19*'B. PoF Summary Stats & Params'!$I$8*'B. PoF Summary Stats & Params'!$I$10*A19^('B. PoF Summary Stats & Params'!$I$10-1), IF('B. PoF Summary Stats & Params'!$C$12="W", B19*(('B. PoF Summary Stats & Params'!$M$14/'B. PoF Summary Stats & Params'!$O$14)*((A19)/'B. PoF Summary Stats & Params'!$O$14)^('B. PoF Summary Stats & Params'!$M$14-1)), "Choose Model")) -> 0.0006510407309 | D19: =IF('B. PoF Summary Stats & Params'!$C$12="C", B19*'B. PoF Summary Stats & Params'!$I$8*'B. PoF Summary Stats & Params'!$I$6*A19^('B. PoF Summary Stats & Params'!$I$6-1), IF('B. PoF Summary Stats & Params'!$C$12="W", B19*(('B. PoF Summary Stats & Params'!$M$6/'B. PoF Summary Stats & Params'!$M$8)*((A19)/'B. PoF Summary Stats & Params'!$M$8)^('B. PoF Summary Stats & Params'!$M$6-1)), "Choose Model")) -> 0.0003486263899 | E19: =IF('B. PoF Summary Stats & Params'!$C$12="C", B19*'B. PoF Summary Stats & Params'!$I$8*'B. PoF Summary Stats & Params'!$I$12*A19^('B. PoF Summary Stats & Params'!$I$12-1), IF('B. PoF Summary Stats & Params'!$C$12="W", B19*(('B. PoF Summary Stats & Params'!$M$12/'B. PoF Summary Stats & Params'!$O$12)*((A19)/'B. PoF Summary Stats & Params'!$O$12)^('B. PoF Summary Stats & Params'!$M$12-1)), "Choose Model")) -> 0.0001861058277
A20: 16 | B20: 1 | C20: =IF('B. PoF Summary Stats & Params'!$C$12="C", B20*'B. PoF Summary Stats & Params'!$I$8*'B. PoF Summary Stats & Params'!$I$10*A20^('B. PoF Summary Stats & Params'!$I$10-1), IF('B. PoF Summary Stats & Params'!$C$12="W", B20*(('B. PoF Summary Stats & Params'!$M$14/'B. PoF Summary Stats & Params'!$O$14)*((A20)/'B. PoF Summary Stats & Params'!$O$14)^('B. PoF Summary Stats & Params'!$M$14-1)), "Choose Model")) -> 0.0007894087369 | D20: =IF('B. PoF Summary Stats & Params'!$C$12="C", B20*'B. PoF Summary Stats & Params'!$I$8*'B. PoF Summary Stats & Params'!$I$6*A20^('B. PoF Summary Stats & Params'!$I$6-1), IF('B. PoF Summary Stats & Params'!$C$12="W", B20*(('B. PoF Summary Stats & Params'!$M$6/'B. PoF Summary Stats & Params'!$M$8)*((A20)/'B. PoF Summary Stats & Params'!$M$8)^('B. PoF Summary Stats & Params'!$M$6-1)), "Choose Model")) -> 0.0004170145212 | E20: =IF('B. PoF Summary Stats & Params'!$C$12="C", B20*'B. PoF Summary Stats & Params'!$I$8*'B. PoF Summary Stats & Params'!$I$12*A20^('B. PoF Summary Stats & Params'!$I$12-1), IF('B. PoF Summary Stats & Params'!$C$12="W", B20*(('B. PoF Summary Stats & Params'!$M$12/'B. PoF Summary Stats & Params'!$O$12)*((A20)/'B. PoF Summary Stats & Params'!$O$12)^('B. PoF Summary Stats & Params'!$M$12-1)), "Choose Model")) -> 0.0002196079425
A21: 17 | B21: 1 | C21: =IF('B. PoF Summary Stats & Params'!$C$12="C", B21*'B. PoF Summary Stats & Params'!$I$8*'B. PoF Summary Stats & Params'!$I$10*A21^('B. PoF Summary Stats & Params'!$I$10-1), IF('B. PoF Summary Stats & Params'!$C$12="W", B21*(('B. PoF Summary Stats & Params'!$M$14/'B. PoF Summary Stats & Params'!$O$14)*((A21)/'B. PoF Summary Stats & Params'!$O$14)^('B. PoF Summary Stats & Params'!$M$14-1)), "Choose Model")) -> 0.0009460631785 | D21: =IF('B. PoF Summary Stats & Params'!$C$12="C", B21*'B. PoF Summary Stats & Params'!$I$8*'B. PoF Summary Stats & Params'!$I$6*A21^('B. PoF Summary Stats & Params'!$I$6-1), IF('B. PoF Summary Stats & Params'!$C$12="W", B21*(('B. PoF Summary Stats & Params'!$M$6/'B. PoF Summary Stats & Params'!$M$8)*((A21)/'B. PoF Summary Stats & Params'!$M$8)^('B. PoF Summary Stats & Params'!$M$6-1)), "Choose Model")) -> 0.000493428823 | E21: =IF('B. PoF Summary Stats & Params'!$C$12="C", B21*'B. PoF Summary Stats & Params'!$I$8*'B. PoF Summary Stats & Params'!$I$12*A21^('B. PoF Summary Stats & Params'!$I$12-1), IF('B. PoF Summary Stats & Params'!$C$12="W", B21*(('B. PoF Summary Stats & Params'!$M$12/'B. PoF Summary Stats & Params'!$O$12)*((A21)/'B. PoF Summary Stats & Params'!$O$12)^('B. PoF Summary Stats & Params'!$M$12-1)), "Choose Model")) -> 0.0002565526501
A22: 18 | B22: 1 | C22: =IF('B. PoF Summary Stats & Params'!$C$12="C", B22*'B. PoF Summary Stats & Params'!$I$8*'B. PoF Summary Stats & Params'!$I$10*A22^('B. PoF Summary Stats & Params'!$I$10-1), IF('B. PoF Summary Stats & Params'!$C$12="W", B22*(('B. PoF Summary Stats & Params'!$M$14/'B. PoF Summary Stats & Params'!$O$14)*((A22)/'B. PoF Summary Stats & Params'!$O$14)^('B. PoF Summary Stats & Params'!$M$14-1)), "Choose Model")) -> 0.001122130484 | D22: =IF('B. PoF Summary Stats & Params'!$C$12="C", B22*'B. PoF Summary Stats & Params'!$I$8*'B. PoF Summary Stats & Params'!$I$6*A22^('B. PoF Summary Stats & Params'!$I$6-1), IF('B. PoF Summary Stats & Params'!$C$12="W", B22*(('B. PoF Summary Stats & Params'!$M$6/'B. PoF Summary Stats & Params'!$M$8)*((A22)/'B. PoF Summary Stats & Params'!$M$8)^('B. PoF Summary Stats & Params'!$M$6-1)), "Choose Model")) -> 0.0005782556554 | E22: =IF('B. PoF Summary Stats & Params'!$C$12="C", B22*'B. PoF Summary Stats & Params'!$I$8*'B. PoF Summary Stats & Params'!$I$12*A22^('B. PoF Summary Stats & Params'!$I$12-1), IF('B. PoF Summary Stats & Params'!$C$12="W", B22*(('B. PoF Summary Stats & Params'!$M$12/'B. PoF Summary Stats & Params'!$O$12)*((A22)/'B. PoF Summary Stats & Params'!$O$12)^('B. PoF Summary Stats & Params'!$M$12-1)), "Choose Model")) -> 0.0002970599014
A23: 19 | B23: 1 | C23: =IF('B. PoF Summary Stats & Params'!$C$12="C", B23*'B. PoF Summary Stats & Params'!$I$8*'B. PoF Summary Stats & Params'!$I$10*A23^('B. PoF Summary Stats & Params'!$I$10-1), IF('B. PoF Summary Stats & Params'!$C$12="W", B23*(('B. PoF Summary Stats & Params'!$M$14/'B. PoF Summary Stats & Params'!$O$14)*((A23)/'B. PoF Summary Stats & Params'!$O$14)^('B. PoF Summary Stats & Params'!$M$14-1)), "Choose Model")) -> 0.001318736154 | D23: =IF('B. PoF Summary Stats & Params'!$C$12="C", B23*'B. PoF Summary Stats & Params'!$I$8*'B. PoF Summary Stats & Params'!$I$6*A23^('B. PoF Summary Stats & Params'!$I$6-1), IF('B. PoF Summary Stats & Params'!$C$12="W", B23*(('B. PoF Summary Stats & Params'!$M$6/'B. PoF Summary Stats & Params'!$M$8)*((A23)/'B. PoF Summary Stats & Params'!$M$8)^('B. PoF Summary Stats & Params'!$M$6-1)), "Choose Model")) -> 0.0006718763007 | E23: =IF('B. PoF Summary Stats & Params'!$C$12="C", B23*'B. PoF Summary Stats & Params'!$I$8*'B. PoF Summary Stats & Params'!$I$12*A23^('B. PoF Summary Stats & Params'!$I$12-1), IF('B. PoF Summary Stats & Params'!$C$12="W", B23*(('B. PoF Summary Stats & Params'!$M$12/'B. PoF Summary Stats & Params'!$O$12)*((A23)/'B. PoF Summary Stats & Params'!$O$12)^('B. PoF Summary Stats & Params'!$M$12-1)), "Choose Model")) -> 0.0003412466112
A24: 20 | B24: 1 | C24: =IF('B. PoF Summary Stats & Params'!$C$12="C", B24*'B. PoF Summary Stats & Params'!$I$8*'B. PoF Summary Stats & Params'!$I$10*A24^('B. PoF Summary Stats & Params'!$I$10-1), IF('B. PoF Summary Stats & Params'!$C$12="W", B24*(('B. PoF Summary Stats & Params'!$M$14/'B. PoF Summary Stats & Params'!$O$14)*((A24)/'B. PoF Summary Stats & Params'!$O$14)^('B. PoF Summary Stats & Params'!$M$14-1)), "Choose Model")) -> 0.001537004813 | D24: =IF('B. PoF Summary Stats & Params'!$C$12="C", B24*'B. PoF Summary Stats & Params'!$I$8*'B. PoF Summary Stats & Params'!$I$6*A24^('B. PoF Summary Stats & Params'!$I$6-1), IF('B. PoF Summary Stats & Params'!$C$12="W", B24*(('B. PoF Summary Stats & Params'!$M$6/'B. PoF Summary Stats & Params'!$M$8)*((A24)/'B. PoF Summary Stats & Params'!$M$8)^('B. PoF Summary Stats & Params'!$M$6-1)), "Choose Model")) -> 0.0007746673075 | E24: =IF('B. PoF Summary Stats & Params'!$C$12="C", B24*'B. PoF Summary Stats & Params'!$I$8*'B. PoF Summary Stats & Params'!$I$12*A24^('B. PoF Summary Stats & Params'!$I$12-1), IF('B. PoF Summary Stats & Params'!$C$12="W", B24*(('B. PoF Summary Stats & Params'!$M$12/'B. PoF Summary Stats & Params'!$O$12)*((A24)/'B. PoF Summary Stats & Params'!$O$12)^('B. PoF Summary Stats & Params'!$M$12-1)), "Choose Model")) -> 0.0003892268974
A25: 21 | B25: 1 | C25: =IF('B. PoF Summary Stats & Params'!$C$12="C", B25*'B. PoF Summary Stats & Params'!$I$8*'B. PoF Summary Stats & Params'!$I$10*A25^('B. PoF Summary Stats & Params'!$I$10-1), IF('B. PoF Summary Stats & Params'!$C$12="W", B25*(('B. PoF Summary Stats & Params'!$M$14/'B. PoF Summary Stats & Params'!$O$14)*((A25)/'B. PoF Summary Stats & Params'!$O$14)^('B. PoF Summary Stats & Params'!$M$14-1)), "Choose Model")) -> 0.001778060256 | D25: =IF('B. PoF Summary Stats & Params'!$C$12="C", B25*'B. PoF Summary Stats & Params'!$I$8*'B. PoF Summary Stats & Params'!$I$6*A25^('B. PoF Summary Stats & Params'!$I$6-1), IF('B. PoF Summary Stats & Params'!$C$12="W", B25*(('B. PoF Summary Stats & Params'!$M$6/'B. PoF Summary Stats & Params'!$M$8)*((A25)/'B. PoF Summary Stats & Params'!$M$8)^('B. PoF Summary Stats & Params'!$M$6-1)), "Choose Model")) -> 0.0008870007946 | E25: =IF('B. PoF Summary Stats & Params'!$C$12="C", B25*'B. PoF Summary Stats & Params'!$I$8*'B. PoF Summary Stats & Params'!$I$12*A25^('B. PoF Summary Stats & Params'!$I$12-1), IF('B. PoF Summary Stats & Params'!$C$12="W", B25*(('B. PoF Summary Stats & Params'!$M$12/'B. PoF Summary Stats & Params'!$O$12)*((A25)/'B. PoF Summary Stats & Params'!$O$12)^('B. PoF Summary Stats & Params'!$M$12-1)), "Choose Model")) -> 0.0004411122907
A26: 22 | B26: 1 | C26: =IF('B. PoF Summary Stats & Params'!$C$12="C", B26*'B. PoF Summary Stats & Params'!$I$8*'B. PoF Summary Stats & Params'!$I$10*A26^('B. PoF Summary Stats & Params'!$I$10-1), IF('B. PoF Summary Stats & Params'!$C$12="W", B26*(('B. PoF Summary Stats & Params'!$M$14/'B. PoF Summary Stats & Params'!$O$14)*((A26)/'B. PoF Summary Stats & Params'!$O$14)^('B. PoF Summary Stats & Params'!$M$14-1)), "Choose Model")) -> 0.002043025491 | D26: =IF('B. PoF Summary Stats & Params'!$C$12="C", B26*'B. PoF Summary Stats & Params'!$I$8*'B. PoF Summary Stats & Params'!$I$6*A26^('B. PoF Summary Stats & Params'!$I$6-1), IF('B. PoF Summary Stats & Params'!$C$12="W", B26*(('B. PoF Summary Stats & Params'!$M$6/'B. PoF Summary Stats & Params'!$M$8)*((A26)/'B. PoF Summary Stats & Params'!$M$8)^('B. PoF Summary Stats & Params'!$M$6-1)), "Choose Model")) -> 0.001009244721 | E26: =IF('B. PoF Summary Stats & Params'!$C$12="C", B26*'B. PoF Summary Stats & Params'!$I$8*'B. PoF Summary Stats & Params'!$I$12*A26^('B. PoF Summary Stats & Params'!$I$12-1), IF('B. PoF Summary Stats & Params'!$C$12="W", B26*(('B. PoF Summary Stats & Params'!$M$12/'B. PoF Summary Stats & Params'!$O$12)*((A26)/'B. PoF Summary Stats & Params'!$O$12)^('B. PoF Summary Stats & Params'!$M$12-1)), "Choose Model")) -> 0.0004970119184
A27: 23 | B27: 1 | C27: =IF('B. PoF Summary Stats & Params'!$C$12="C", B27*'B. PoF Summary Stats & Params'!$I$8*'B. PoF Summary Stats & Params'!$I$10*A27^('B. PoF Summary Stats & Params'!$I$10-1), IF('B. PoF Summary Stats & Params'!$C$12="W", B27*(('B. PoF Summary Stats & Params'!$M$14/'B. PoF Summary Stats & Params'!$O$14)*((A27)/'B. PoF Summary Stats & Params'!$O$14)^('B. PoF Summary Stats & Params'!$M$14-1)), "Choose Model")) -> 0.002333022777 | D27: =IF('B. PoF Summary Stats & Params'!$C$12="C", B27*'B. PoF Summary Stats & Params'!$I$8*'B. PoF Summary Stats & Params'!$I$6*A27^('B. PoF Summary Stats & Params'!$I$6-1), IF('B. PoF Summary Stats & Params'!$C$12="W", B27*(('B. PoF Summary Stats & Params'!$M$6/'B. PoF Summary Stats & Params'!$M$8)*((A27)/'B. PoF Summary Stats & Params'!$M$8)^('B. PoF Summary Stats & Params'!$M$6-1)), "Choose Model")) -> 0.001141763129 | E27: =IF('B. PoF Summary Stats & Params'!$C$12="C", B27*'B. PoF Summary Stats & Params'!$I$8*'B. PoF Summary Stats & Params'!$I$12*A27^('B. PoF Summary Stats & Params'!$I$12-1), IF('B. PoF Summary Stats & Params'!$C$12="W", B27*(('B. PoF Summary Stats & Params'!$M$12/'B. PoF Summary Stats & Params'!$O$12)*((A27)/'B. PoF Summary Stats & Params'!$O$12)^('B. PoF Summary Stats & Params'!$M$12-1)), "Choose Model")) -> 0.0005570326675
A28: 24 | B28: 1 | C28: =IF('B. PoF Summary Stats & Params'!$C$12="C", B28*'B. PoF Summary Stats & Params'!$I$8*'B. PoF Summary Stats & Params'!$I$10*A28^('B. PoF Summary Stats & Params'!$I$10-1), IF('B. PoF Summary Stats & Params'!$C$12="W", B28*(('B. PoF Summary Stats & Params'!$M$14/'B. PoF Summary Stats & Params'!$O$14)*((A28)/'B. PoF Summary Stats & Params'!$O$14)^('B. PoF Summary Stats & Params'!$M$14-1)), "Choose Model")) -> 0.00264917366 | D28: =IF('B. PoF Summary Stats & Params'!$C$12="C", B28*'B. PoF Summary Stats & Params'!$I$8*'B. PoF Summary Stats & Params'!$I$6*A28^('B. PoF Summary Stats & Params'!$I$6-1), IF('B. PoF Summary Stats & Params'!$C$12="W", B28*(('B. PoF Summary Stats & Params'!$M$6/'B. PoF Summary Stats & Params'!$M$8)*((A28)/'B. PoF Summary Stats & Params'!$M$8)^('B. PoF Summary Stats & Params'!$M$6-1)), "Choose Model")) -> 0.001284916359 | E28: =IF('B. PoF Summary Stats & Params'!$C$12="C", B28*'B. PoF Summary Stats & Params'!$I$8*'B. PoF Summary Stats & Params'!$I$12*A28^('B. PoF Summary Stats & Params'!$I$12-1), IF('B. PoF Summary Stats & Params'!$C$12="W", B28*(('B. PoF Summary Stats & Params'!$M$12/'B. PoF Summary Stats & Params'!$O$12)*((A28)/'B. PoF Summary Stats & Params'!$O$12)^('B. PoF Summary Stats & Params'!$M$12-1)), "Choose Model")) -> 0.0006212793292
A29: 25 | B29: 1 | C29: =IF('B. PoF Summary Stats & Params'!$C$12="C", B29*'B. PoF Summary Stats & Params'!$I$8*'B. PoF Summary Stats & Params'!$I$10*A29^('B. PoF Summary Stats & Params'!$I$10-1), IF('B. PoF Summary Stats & Params'!$C$12="W", B29*(('B. PoF Summary Stats & Params'!$M$14/'B. PoF Summary Stats & Params'!$O$14)*((A29)/'B. PoF Summary Stats & Params'!$O$14)^('B. PoF Summary Stats & Params'!$M$14-1)), "Choose Model")) -> 0.002992599 | D29: =IF('B. PoF Summary Stats & Params'!$C$12="C", B29*'B. PoF Summary Stats & Params'!$I$8*'B. PoF Summary Stats & Params'!$I$6*A29^('B. PoF Summary Stats & Params'!$I$6-1), IF('B. PoF Summary Stats & Params'!$C$12="W", B29*(('B. PoF Summary Stats & Params'!$M$6/'B. PoF Summary Stats & Params'!$M$8)*((A29)/'B. PoF Summary Stats & Params'!$M$8)^('B. PoF Summary Stats & Params'!$M$6-1)), "Choose Model")) -> 0.001439061248 | E29: =IF('B. PoF Summary Stats & Params'!$C$12="C", B29*'B. PoF Summary Stats & Params'!$I$8*'B. PoF Summary Stats & Params'!$I$12*A29^('B. PoF Summary Stats & Params'!$I$12-1), IF('B. PoF Summary Stats & Params'!$C$12="W", B29*(('B. PoF Summary Stats & Params'!$M$12/'B. PoF Summary Stats & Params'!$O$12)*((A29)/'B. PoF Summary Stats & Params'!$O$12)^('B. PoF Summary Stats & Params'!$M$12-1)), "Choose Model")) -> 0.000689854729
A30: 26 | B30: 1 | C30: =IF('B. PoF Summary Stats & Params'!$C$12="C", B30*'B. PoF Summary Stats & Params'!$I$8*'B. PoF Summary Stats & Params'!$I$10*A30^('B. PoF Summary Stats & Params'!$I$10-1), IF('B. PoF Summary Stats & Params'!$C$12="W", B30*(('B. PoF Summary Stats & Params'!$M$14/'B. PoF Summary Stats & Params'!$O$14)*((A30)/'B. PoF Summary Stats & Params'!$O$14)^('B. PoF Summary Stats & Params'!$M$14-1)), "Choose Model")) -> 0.003364419005 | D30: =IF('B. PoF Summary Stats & Params'!$C$12="C", B30*'B. PoF Summary Stats & Params'!$I$8*'B. PoF Summary Stats & Params'!$I$6*A30^('B. PoF Summary Stats & Params'!$I$6-1), IF('B. PoF Summary Stats & Params'!$C$12="W", B30*(('B. PoF Summary Stats & Params'!$M$6/'B. PoF Summary Stats & Params'!$M$8)*((A30)/'B. PoF Summary Stats & Params'!$M$8)^('B. PoF Summary Stats & Params'!$M$6-1)), "Choose Model")) -> 0.001604551306 | E30: =IF('B. PoF Summary Stats & Params'!$C$12="C", B30*'B. PoF Summary Stats & Params'!$I$8*'B. PoF Summary Stats & Params'!$I$12*A30^('B. PoF Summary Stats & Params'!$I$12-1), IF('B. PoF Summary Stats & Params'!$C$12="W", B30*(('B. PoF Summary Stats & Params'!$M$12/'B. PoF Summary Stats & Params'!$O$12)*((A30)/'B. PoF Summary Stats & Params'!$O$12)^('B. PoF Summary Stats & Params'!$M$12-1)), "Choose Model")) -> 0.0007628598434
A31: 27 | B31: 1 | C31: =IF('B. PoF Summary Stats & Params'!$C$12="C", B31*'B. PoF Summary Stats & Params'!$I$8*'B. PoF Summary Stats & Params'!$I$10*A31^('B. PoF Summary Stats & Params'!$I$10-1), IF('B. PoF Summary Stats & Params'!$C$12="W", B31*(('B. PoF Summary Stats & Params'!$M$14/'B. PoF Summary Stats & Params'!$O$14)*((A31)/'B. PoF Summary Stats & Params'!$O$14)^('B. PoF Summary Stats & Params'!$M$14-1)), "Choose Model")) -> 0.003765753256 | D31: =IF('B. PoF Summary Stats & Params'!$C$12="C", B31*'B. PoF Summary Stats & Params'!$I$8*'B. PoF Summary Stats & Params'!$I$6*A31^('B. PoF Summary Stats & Params'!$I$6-1), IF('B. PoF Summary Stats & Params'!$C$12="W", B31*(('B. PoF Summary Stats & Params'!$M$6/'B. PoF Summary Stats & Params'!$M$8)*((A31)/'B. PoF Summary Stats & Params'!$M$8)^('B. PoF Summary Stats & Params'!$M$6-1)), "Choose Model")) -> 0.001781736879 | E31: =IF('B. PoF Summary Stats & Params'!$C$12="C", B31*'B. PoF Summary Stats & Params'!$I$8*'B. PoF Summary Stats & Params'!$I$12*A31^('B. PoF Summary Stats & Params'!$I$12-1), IF('B. PoF Summary Stats & Params'!$C$12="W", B31*(('B. PoF Summary Stats & Params'!$M$12/'B. PoF Summary Stats & Params'!$O$12)*((A31)/'B. PoF Summary Stats & Params'!$O$12)^('B. PoF Summary Stats & Params'!$M$12-1)), "Choose Model")) -> 0.0008403939047
A32: 28 | B32: 1 | C32: =IF('B. PoF Summary Stats & Params'!$C$12="C", B32*'B. PoF Summary Stats & Params'!$I$8*'B. PoF Summary Stats & Params'!$I$10*A32^('B. PoF Summary Stats & Params'!$I$10-1), IF('B. PoF Summary Stats & Params'!$C$12="W", B32*(('B. PoF Summary Stats & Params'!$M$14/'B. PoF Summary Stats & Params'!$O$14)*((A32)/'B. PoF Summary Stats & Params'!$O$14)^('B. PoF Summary Stats & Params'!$M$14-1)), "Choose Model")) -> 0.004197720731 | D32: =IF('B. PoF Summary Stats & Params'!$C$12="C", B32*'B. PoF Summary Stats & Params'!$I$8*'B. PoF Summary Stats & Params'!$I$6*A32^('B. PoF Summary Stats & Params'!$I$6-1), IF('B. PoF Summary Stats & Params'!$C$12="W", B32*(('B. PoF Summary Stats & Params'!$M$6/'B. PoF Summary Stats & Params'!$M$8)*((A32)/'B. PoF Summary Stats & Params'!$M$8)^('B. PoF Summary Stats & Params'!$M$6-1)), "Choose Model")) -> 0.001970965301 | E32: =IF('B. PoF Summary Stats & Params'!$C$12="C", B32*'B. PoF Summary Stats & Params'!$I$8*'B. PoF Summary Stats & Params'!$I$12*A32^('B. PoF Summary Stats & Params'!$I$12-1), IF('B. PoF Summary Stats & Params'!$C$12="W", B32*(('B. PoF Summary Stats & Params'!$M$12/'B. PoF Summary Stats & Params'!$O$12)*((A32)/'B. PoF Summary Stats & Params'!$O$12)^('B. PoF Summary Stats & Params'!$M$12-1)), "Choose Model")) -> 0.0009225544973
A33: 29 | B33: 1 | C33: =IF('B. PoF Summary Stats & Params'!$C$12="C", B33*'B. PoF Summary Stats & Params'!$I$8*'B. PoF Summary Stats & Params'!$I$10*A33^('B. PoF Summary Stats & Params'!$I$10-1), IF('B. PoF Summary Stats & Params'!$C$12="W", B33*(('B. PoF Summary Stats & Params'!$M$14/'B. PoF Summary Stats & Params'!$O$14)*((A33)/'B. PoF Summary Stats & Params'!$O$14)^('B. PoF Summary Stats & Params'!$M$14-1)), "Choose Model")) -> 0.004661439825 | D33: =IF('B. PoF Summary Stats & Params'!$C$12="C", B33*'B. PoF Summary Stats & Params'!$I$8*'B. PoF Summary Stats & Params'!$I$6*A33^('B. PoF Summary Stats & Params'!$I$6-1), IF('B. PoF Summary Stats & Params'!$C$12="W", B33*(('B. PoF Summary Stats & Params'!$M$6/'B. PoF Summary Stats & Params'!$M$8)*((A33)/'B. PoF Summary Stats & Params'!$M$8)^('B. PoF Summary Stats & Params'!$M$6-1)), "Choose Model")) -> 0.002172581022 | E33: =IF('B. PoF Summary Stats & Params'!$C$12="C", B33*'B. PoF Summary Stats & Params'!$I$8*'B. PoF Summary Stats & Params'!$I$12*A33^('B. PoF Summary Stats & Params'!$I$12-1), IF('B. PoF Summary Stats & Params'!$C$12="W", B33*(('B. PoF Summary Stats & Params'!$M$12/'B. PoF Summary Stats & Params'!$O$12)*((A33)/'B. PoF Summary Stats & Params'!$O$12)^('B. PoF Summary Stats & Params'!$M$12-1)), "Choose Model")) -> 0.001009437644
A34: 30 | B34: 1 | C34: =IF('B. PoF Summary Stats & Params'!$C$12="C", B34*'B. PoF Summary Stats & Params'!$I$8*'B. PoF Summary Stats & Params'!$I$10*A34^('B. PoF Summary Stats & Params'!$I$10-1), IF('B. PoF Summary Stats & Params'!$C$12="W", B34*(('B. PoF Summary Stats & Params'!$M$14/'B. PoF Summary Stats & Params'!$O$14)*((A34)/'B. PoF Summary Stats & Params'!$O$14)^('B. PoF Summary Stats & Params'!$M$14-1)), "Choose Model")) -> 0.005158028377 | D34: =IF('B. PoF Summary Stats & Params'!$C$12="C", B34*'B. PoF Summary Stats & Params'!$I$8*'B. PoF Summary Stats & Params'!$I$6*A34^('B. PoF Summary Stats & Params'!$I$6-1), IF('B. PoF Summary Stats & Params'!$C$12="W", B34*(('B. PoF Summary Stats & Params'!$M$6/'B. PoF Summary Stats & Params'!$M$8)*((A34)/'B. PoF Summary Stats & Params'!$M$8)^('B. PoF Summary Stats & Params'!$M$6-1)), "Choose Model")) -> 0.002386925744 | E34: =IF('B. PoF Summary Stats & Params'!$C$12="C", B34*'B. PoF Summary Stats & Params'!$I$8*'B. PoF Summary Stats & Params'!$I$12*A34^('B. PoF Summary Stats & Params'!$I$12-1), IF('B. PoF Summary Stats & Params'!$C$12="W", B34*(('B. PoF Summary Stats & Params'!$M$12/'B. PoF Summary Stats & Params'!$O$12)*((A34)/'B. PoF Summary Stats & Params'!$O$12)^('B. PoF Summary Stats & Params'!$M$12-1)), "Choose Model")) -> 0.001101137887
A35: 31 | B35: 1 | C35: =IF('B. PoF Summary Stats & Params'!$C$12="C", B35*'B. PoF Summary Stats & Params'!$I$8*'B. PoF Summary Stats & Params'!$I$10*A35^('B. PoF Summary Stats & Params'!$I$10-1), IF('B. PoF Summary Stats & Params'!$C$12="W", B35*(('B. PoF Summary Stats & Params'!$M$14/'B. PoF Summary Stats & Params'!$O$14)*((A35)/'B. PoF Summary Stats & Params'!$O$14)^('B. PoF Summary Stats & Params'!$M$14-1)), "Choose Model")) -> 0.005688603685 | D35: =IF('B. PoF Summary Stats & Params'!$C$12="C", B35*'B. PoF Summary Stats & Params'!$I$8*'B. PoF Summary Stats & Params'!$I$6*A35^('B. PoF Summary Stats & Params'!$I$6-1), IF('B. PoF Summary Stats & Params'!$C$12="W", B35*(('B. PoF Summary Stats & Params'!$M$6/'B. PoF Summary Stats & Params'!$M$8)*((A35)/'B. PoF Summary Stats & Params'!$M$8)^('B. PoF Summary Stats & Params'!$M$6-1)), "Choose Model")) -> 0.002614338529 | E35: =IF('B. PoF Summary Stats & Params'!$C$12="C", B35*'B. PoF Summary Stats & Params'!$I$8*'B. PoF Summary Stats & Params'!$I$12*A35^('B. PoF Summary Stats & Params'!$I$12-1), IF('B. PoF Summary Stats & Params'!$C$12="W", B35*(('B. PoF Summary Stats & Params'!$M$12/'B. PoF Summary Stats & Params'!$O$12)*((A35)/'B. PoF Summary Stats & Params'!$O$12)^('B. PoF Summary Stats & Params'!$M$12-1)), "Choose Model")) -> 0.001197748357
A36: 32 | B36: 1 | C36: =IF('B. PoF Summary Stats & Params'!$C$12="C", B36*'B. PoF Summary Stats & Params'!$I$8*'B. PoF Summary Stats & Params'!$I$10*A36^('B. PoF Summary Stats & Params'!$I$10-1), IF('B. PoF Summary Stats & Params'!$C$12="W", B36*(('B. PoF Summary Stats & Params'!$M$14/'B. PoF Summary Stats & Params'!$O$14)*((A36)/'B. PoF Summary Stats & Params'!$O$14)^('B. PoF Summary Stats & Params'!$M$14-1)), "Choose Model")) -> 0.006254282525 | D36: =IF('B. PoF Summary Stats & Params'!$C$12="C", B36*'B. PoF Summary Stats & Params'!$I$8*'B. PoF Summary Stats & Params'!$I$6*A36^('B. PoF Summary Stats & Params'!$I$6-1), IF('B. PoF Summary Stats & Params'!$C$12="W", B36*(('B. PoF Summary Stats & Params'!$M$6/'B. PoF Summary Stats & Params'!$M$8)*((A36)/'B. PoF Summary Stats & Params'!$M$8)^('B. PoF Summary Stats & Params'!$M$6-1)), "Choose Model")) -> 0.002855155907 | E36: =IF('B. PoF Summary Stats & Params'!$C$12="C", B36*'B. PoF Summary Stats & Params'!$I$8*'B. PoF Summary Stats & Params'!$I$12*A36^('B. PoF Summary Stats & Params'!$I$12-1), IF('B. PoF Summary Stats & Params'!$C$12="W", B36*(('B. PoF Summary Stats & Params'!$M$12/'B. PoF Summary Stats & Params'!$O$12)*((A36)/'B. PoF Summary Stats & Params'!$O$12)^('B. PoF Summary Stats & Params'!$M$12-1)), "Choose Model")) -> 0.001299360846
A37: 33 | B37: 1 | C37: =IF('B. PoF Summary Stats & Params'!$C$12="C", B37*'B. PoF Summary Stats & Params'!$I$8*'B. PoF Summary Stats & Params'!$I$10*A37^('B. PoF Summary Stats & Params'!$I$10-1), IF('B. PoF Summary Stats & Params'!$C$12="W", B37*(('B. PoF Summary Stats & Params'!$M$14/'B. PoF Summary Stats & Params'!$O$14)*((A37)/'B. PoF Summary Stats & Params'!$O$14)^('B. PoF Summary Stats & Params'!$M$14-1)), "Choose Model")) -> 0.00685618117 | D37: =IF('B. PoF Summary Stats & Params'!$C$12="C", B37*'B. PoF Summary Stats & Params'!$I$8*'B. PoF Summary Stats & Params'!$I$6*A37^('B. PoF Summary Stats & Params'!$I$6-1), IF('B. PoF Summary Stats & Params'!$C$12="W", B37*(('B. PoF Summary Stats & Params'!$M$6/'B. PoF Summary Stats & Params'!$M$8)*((A37)/'B. PoF Summary Stats & Params'!$M$8)^('B. PoF Summary Stats & Params'!$M$6-1)), "Choose Model")) -> 0.003109711982 | E37: =IF('B. PoF Summary Stats & Params'!$C$12="C", B37*'B. PoF Summary Stats & Params'!$I$8*'B. PoF Summary Stats & Params'!$I$12*A37^('B. PoF Summary Stats & Params'!$I$12-1), IF('B. PoF Summary Stats & Params'!$C$12="W", B37*(('B. PoF Summary Stats & Params'!$M$12/'B. PoF Summary Stats & Params'!$O$12)*((A37)/'B. PoF Summary Stats & Params'!$O$12)^('B. PoF Summary Stats & Params'!$M$12-1)), "Choose Model")) -> 0.001406065863
A38: 34 | B38: 1 | C38: =IF('B. PoF Summary Stats & Params'!$C$12="C", B38*'B. PoF Summary Stats & Params'!$I$8*'B. PoF Summary Stats & Params'!$I$10*A38^('B. PoF Summary Stats & Params'!$I$10-1), IF('B. PoF Summary Stats & Params'!$C$12="W", B38*(('B. PoF Summary Stats & Params'!$M$14/'B. PoF Summary Stats & Params'!$O$14)*((A38)/'B. PoF Summary Stats & Params'!$O$14)^('B. PoF Summary Stats & Params'!$M$14-1)), "Choose Model")) -> 0.007495415402 | D38: =IF('B. PoF Summary Stats & Params'!$C$12="C", B38*'B. PoF Summary Stats & Params'!$I$8*'B. PoF Summary Stats & Params'!$I$6*A38^('B. PoF Summary Stats & Params'!$I$6-1), IF('B. PoF Summary Stats & Params'!$C$12="W", B38*(('B. PoF Summary Stats & Params'!$M$6/'B. PoF Summary Stats & Params'!$M$8)*((A38)/'B. PoF Summary Stats & Params'!$M$8)^('B. PoF Summary Stats & Params'!$M$6-1)), "Choose Model")) -> 0.003378338517 | E38: =IF('B. PoF Summary Stats & Params'!$C$12="C", B38*'B. PoF Summary Stats & Params'!$I$8*'B. PoF Summary Stats & Params'!$I$12*A38^('B. PoF Summary Stats & Params'!$I$12-1), IF('B. PoF Summary Stats & Params'!$C$12="W", B38*(('B. PoF Summary Stats & Params'!$M$12/'B. PoF Summary Stats & Params'!$O$12)*((A38)/'B. PoF Summary Stats & Params'!$O$12)^('B. PoF Summary Stats & Params'!$M$12-1)), "Choose Model")) -> 0.001517952696
A39: 35 | B39: 1 | C39: =IF('B. PoF Summary Stats & Params'!$C$12="C", B39*'B. PoF Summary Stats & Params'!$I$8*'B. PoF Summary Stats & Params'!$I$10*A39^('B. PoF Summary Stats & Params'!$I$10-1), IF('B. PoF Summary Stats & Params'!$C$12="W", B39*(('B. PoF Summary Stats & Params'!$M$14/'B. PoF Summary Stats & Params'!$O$14)*((A39)/'B. PoF Summary Stats & Params'!$O$14)^('B. PoF Summary Stats & Params'!$M$14-1)), "Choose Model")) -> 0.008173100532 | D39: =IF('B. PoF Summary Stats & Params'!$C$12="C", B39*'B. PoF Summary Stats & Params'!$I$8*'B. PoF Summary Stats & Params'!$I$6*A39^('B. PoF Summary Stats & Params'!$I$6-1), IF('B. PoF Summary Stats & Params'!$C$12="W", B39*(('B. PoF Summary Stats & Params'!$M$6/'B. PoF Summary Stats & Params'!$M$8)*((A39)/'B. PoF Summary Stats & Params'!$M$8)^('B. PoF Summary Stats & Params'!$M$6-1)), "Choose Model")) -> 0.003661365024 | E39: =IF('B. PoF Summary Stats & Params'!$C$12="C", B39*'B. PoF Summary Stats & Params'!$I$8*'B. PoF Summary Stats & Params'!$I$12*A39^('B. PoF Summary Stats & Params'!$I$12-1), IF('B. PoF Summary Stats & Params'!$C$12="W", B39*(('B. PoF Summary Stats & Params'!$M$12/'B. PoF Summary Stats & Params'!$O$12)*((A39)/'B. PoF Summary Stats & Params'!$O$12)^('B. PoF Summary Stats & Params'!$M$12-1)), "Choose Model")) -> 0.001635109462
A40: 36 | B40: 1 | C40: =IF('B. PoF Summary Stats & Params'!$C$12="C", B40*'B. PoF Summary Stats & Params'!$I$8*'B. PoF Summary Stats & Params'!$I$10*A40^('B. PoF Summary Stats & Params'!$I$10-1), IF('B. PoF Summary Stats & Params'!$C$12="W", B40*(('B. PoF Summary Stats & Params'!$M$14/'B. PoF Summary Stats & Params'!$O$14)*((A40)/'B. PoF Summary Stats & Params'!$O$14)^('B. PoF Summary Stats & Params'!$M$14-1)), "Choose Model")) -> 0.008890351412 | D40: =IF('B. PoF Summary Stats & Params'!$C$12="C", B40*'B. PoF Summary Stats & Params'!$I$8*'B. PoF Summary Stats & Params'!$I$6*A40^('B. PoF Summary Stats & Params'!$I$6-1), IF('B. PoF Summary Stats & Params'!$C$12="W", B40*(('B. PoF Summary Stats & Params'!$M$6/'B. PoF Summary Stats & Params'!$M$8)*((A40)/'B. PoF Summary Stats & Params'!$M$8)^('B. PoF Summary Stats & Params'!$M$6-1)), "Choose Model")) -> 0.003959118848 | E40: =IF('B. PoF Summary Stats & Params'!$C$12="C", B40*'B. PoF Summary Stats & Params'!$I$8*'B. PoF Summary Stats & Params'!$I$12*A40^('B. PoF Summary Stats & Params'!$I$12-1), IF('B. PoF Summary Stats & Params'!$C$12="W", B40*(('B. PoF Summary Stats & Params'!$M$12/'B. PoF Summary Stats & Params'!$O$12)*((A40)/'B. PoF Summary Stats & Params'!$O$12)^('B. PoF Summary Stats & Params'!$M$12-1)), "Choose Model")) -> 0.001757623156
A41: 37 | B41: 1 | C41: =IF('B. PoF Summary Stats & Params'!$C$12="C", B41*'B. PoF Summary Stats & Params'!$I$8*'B. PoF Summary Stats & Params'!$I$10*A41^('B. PoF Summary Stats & Params'!$I$10-1), IF('B. PoF Summary Stats & Params'!$C$12="W", B41*(('B. PoF Summary Stats & Params'!$M$14/'B. PoF Summary Stats & Params'!$O$14)*((A41)/'B. PoF Summary Stats & Params'!$O$14)^('B. PoF Summary Stats & Params'!$M$14-1)), "Choose Model")) -> 0.009648282445 | D41: =IF('B. PoF Summary Stats & Params'!$C$12="C", B41*'B. PoF Summary Stats & Params'!$I$8*'B. PoF Summary Stats & Params'!$I$6*A41^('B. PoF Summary Stats & Params'!$I$6-1), IF('B. PoF Summary Stats & Params'!$C$12="W", B41*(('B. PoF Summary Stats & Params'!$M$6/'B. PoF Summary Stats & Params'!$M$8)*((A41)/'B. PoF Summary Stats & Params'!$M$8)^('B. PoF Summary Stats & Params'!$M$6-1)), "Choose Model")) -> 0.004271925235 | E41: =IF('B. PoF Summary Stats & Params'!$C$12="C", B41*'B. PoF Summary Stats & Params'!$I$8*'B. PoF Summary Stats & Params'!$I$12*A41^('B. PoF Summary Stats & Params'!$I$12-1), IF('B. PoF Summary Stats & Params'!$C$12="W", B41*(('B. PoF Summary Stats & Params'!$M$12/'B. PoF Summary Stats & Params'!$O$12)*((A41)/'B. PoF Summary Stats & Params'!$O$12)^('B. PoF Summary Stats & Params'!$M$12-1)), "Choose Model")) -> 0.001885579698
A42: 38 | B42: 1 | C42: =IF('B. PoF Summary Stats & Params'!$C$12="C", B42*'B. PoF Summary Stats & Params'!$I$8*'B. PoF Summary Stats & Params'!$I$10*A42^('B. PoF Summary Stats & Params'!$I$10-1), IF('B. PoF Summary Stats & Params'!$C$12="W", B42*(('B. PoF Summary Stats & Params'!$M$14/'B. PoF Summary Stats & Params'!$O$14)*((A42)/'B. PoF Summary Stats & Params'!$O$14)^('B. PoF Summary Stats & Params'!$M$14-1)), "Choose Model")) -> 0.0104480076 | D42: =IF('B. PoF Summary Stats & Params'!$C$12="C", B42*'B. PoF Summary Stats & Params'!$I$8*'B. PoF Summary Stats & Params'!$I$6*A42^('B. PoF Summary Stats & Params'!$I$6-1), IF('B. PoF Summary Stats & Params'!$C$12="W", B42*(('B. PoF Summary Stats & Params'!$M$6/'B. PoF Summary Stats & Params'!$M$8)*((A42)/'B. PoF Summary Stats & Params'!$M$8)^('B. PoF Summary Stats & Params'!$M$6-1)), "Choose Model")) -> 0.00460010741 | E42: =IF('B. PoF Summary Stats & Params'!$C$12="C", B42*'B. PoF Summary Stats & Params'!$I$8*'B. PoF Summary Stats & Params'!$I$12*A42^('B. PoF Summary Stats & Params'!$I$12-1), IF('B. PoF Summary Stats & Params'!$C$12="W", B42*(('B. PoF Summary Stats & Params'!$M$12/'B. PoF Summary Stats & Params'!$O$12)*((A42)/'B. PoF Summary Stats & Params'!$O$12)^('B. PoF Summary Stats & Params'!$M$12-1)), "Choose Model")) -> 0.002019063976
A43: 39 | B43: 1 | C43: =IF('B. PoF Summary Stats & Params'!$C$12="C", B43*'B. PoF Summary Stats & Params'!$I$8*'B. PoF Summary Stats & Params'!$I$10*A43^('B. PoF Summary Stats & Params'!$I$10-1), IF('B. PoF Summary Stats & Params'!$C$12="W", B43*(('B. PoF Summary Stats & Params'!$M$14/'B. PoF Summary Stats & Params'!$O$14)*((A43)/'B. PoF Summary Stats & Params'!$O$14)^('B. PoF Summary Stats & Params'!$M$14-1)), "Choose Model")) -> 0.01129064044 | D43: =IF('B. PoF Summary Stats & Params'!$C$12="C", B43*'B. PoF Summary Stats & Params'!$I$8*'B. PoF Summary Stats & Params'!$I$6*A43^('B. PoF Summary Stats & Params'!$I$6-1), IF('B. PoF Summary Stats & Params'!$C$12="W", B43*(('B. PoF Summary Stats & Params'!$M$6/'B. PoF Summary Stats & Params'!$M$8)*((A43)/'B. PoF Summary Stats & Params'!$M$8)^('B. PoF Summary Stats & Params'!$M$6-1)), "Choose Model")) -> 0.004943986641 | E43: =IF('B. PoF Summary Stats & Params'!$C$12="C", B43*'B. PoF Summary Stats & Params'!$I$8*'B. PoF Summary Stats & Params'!$I$12*A43^('B. PoF Summary Stats & Params'!$I$12-1), IF('B. PoF Summary Stats & Params'!$C$12="W", B43*(('B. PoF Summary Stats & Params'!$M$12/'B. PoF Summary Stats & Params'!$O$12)*((A43)/'B. PoF Summary Stats & Params'!$O$12)^('B. PoF Summary Stats & Params'!$M$12-1)), "Choose Model")) -> 0.002158159884
A44: 40 | B44: 1 | C44: =IF('B. PoF Summary Stats & Params'!$C$12="C", B44*'B. PoF Summary Stats & Params'!$I$8*'B. PoF Summary Stats & Params'!$I$10*A44^('B. PoF Summary Stats & Params'!$I$10-1), IF('B. PoF Summary Stats & Params'!$C$12="W", B44*(('B. PoF Summary Stats & Params'!$M$14/'B. PoF Summary Stats & Params'!$O$14)*((A44)/'B. PoF Summary Stats & Params'!$O$14)^('B. PoF Summary Stats & Params'!$M$14-1)), "Choose Model")) -> 0.01217729409 | D44: =IF('B. PoF Summary Stats & Params'!$C$12="C", B44*'B. PoF Summary Stats & Params'!$I$8*'B. PoF Summary Stats & Params'!$I$6*A44^('B. PoF Summary Stats & Params'!$I$6-1), IF('B. PoF Summary Stats & Params'!$C$12="W", B44*(('B. PoF Summary Stats & Params'!$M$6/'B. PoF Summary Stats & Params'!$M$8)*((A44)/'B. PoF Summary Stats & Params'!$M$8)^('B. PoF Summary Stats & Params'!$M$6-1)), "Choose Model")) -> 0.005303882303 | E44: =IF('B. PoF Summary Stats & Params'!$C$12="C", B44*'B. PoF Summary Stats & Params'!$I$8*'B. PoF Summary Stats & Params'!$I$12*A44^('B. PoF Summary Stats & Params'!$I$12-1), IF('B. PoF Summary Stats & Params'!$C$12="W", B44*(('B. PoF Summary Stats & Params'!$M$12/'B. PoF Summary Stats & Params'!$O$12)*((A44)/'B. PoF Summary Stats & Params'!$O$12)^('B. PoF Summary Stats & Params'!$M$12-1)), "Choose Model")) -> 0.002302950362
A45: 41 | B45: 1 | C45: =IF('B. PoF Summary Stats & Params'!$C$12="C", B45*'B. PoF Summary Stats & Params'!$I$8*'B. PoF Summary Stats & Params'!$I$10*A45^('B. PoF Summary Stats & Params'!$I$10-1), IF('B. PoF Summary Stats & Params'!$C$12="W", B45*(('B. PoF Summary Stats & Params'!$M$14/'B. PoF Summary Stats & Params'!$O$14)*((A45)/'B. PoF Summary Stats & Params'!$O$14)^('B. PoF Summary Stats & Params'!$M$14-1)), "Choose Model")) -> 0.01310908129 | D45: =IF('B. PoF Summary Stats & Params'!$C$12="C", B45*'B. PoF Summary Stats & Params'!$I$8*'B. PoF Summary Stats & Params'!$I$6*A45^('B. PoF Summary Stats & Params'!$I$6-1), IF('B. PoF Summary Stats & Params'!$C$12="W", B45*(('B. PoF Summary Stats & Params'!$M$6/'B. PoF Summary Stats & Params'!$M$8)*((A45)/'B. PoF Summary Stats & Params'!$M$8)^('B. PoF Summary Stats & Params'!$M$6-1)), "Choose Model")) -> 0.005680111935 | E45: =IF('B. PoF Summary Stats & Params'!$C$12="C", B45*'B. PoF Summary Stats & Params'!$I$8*'B. PoF Summary Stats & Params'!$I$12*A45^('B. PoF Summary Stats & Params'!$I$12-1), IF('B. PoF Summary Stats & Params'!$C$12="W", B45*(('B. PoF Summary Stats & Params'!$M$12/'B. PoF Summary Stats & Params'!$O$12)*((A45)/'B. PoF Summary Stats & Params'!$O$12)^('B. PoF Summary Stats & Params'!$M$12-1)), "Choose Model")) -> 0.002453517428
A46: 42 | B46: 1 | C46: =IF('B. PoF Summary Stats & Params'!$C$12="C", B46*'B. PoF Summary Stats & Params'!$I$8*'B. PoF Summary Stats & Params'!$I$10*A46^('B. PoF Summary Stats & Params'!$I$10-1), IF('B. PoF Summary Stats & Params'!$C$12="W", B46*(('B. PoF Summary Stats & Params'!$M$14/'B. PoF Summary Stats & Params'!$O$14)*((A46)/'B. PoF Summary Stats & Params'!$O$14)^('B. PoF Summary Stats & Params'!$M$14-1)), "Choose Model")) -> 0.01408711441 | D46: =IF('B. PoF Summary Stats & Params'!$C$12="C", B46*'B. PoF Summary Stats & Params'!$I$8*'B. PoF Summary Stats & Params'!$I$6*A46^('B. PoF Summary Stats & Params'!$I$6-1), IF('B. PoF Summary Stats & Params'!$C$12="W", B46*(('B. PoF Summary Stats & Params'!$M$6/'B. PoF Summary Stats & Params'!$M$8)*((A46)/'B. PoF Summary Stats & Params'!$M$8)^('B. PoF Summary Stats & Params'!$M$6-1)), "Choose Model")) -> 0.006072991298 | E46: =IF('B. PoF Summary Stats & Params'!$C$12="C", B46*'B. PoF Summary Stats & Params'!$I$8*'B. PoF Summary Stats & Params'!$I$12*A46^('B. PoF Summary Stats & Params'!$I$12-1), IF('B. PoF Summary Stats & Params'!$C$12="W", B46*(('B. PoF Summary Stats & Params'!$M$12/'B. PoF Summary Stats & Params'!$O$12)*((A46)/'B. PoF Summary Stats & Params'!$O$12)^('B. PoF Summary Stats & Params'!$M$12-1)), "Choose Model")) -> 0.002609942212
A47: 43 | B47: 1 | C47: =IF('B. PoF Summary Stats & Params'!$C$12="C", B47*'B. PoF Summary Stats & Params'!$I$8*'B. PoF Summary Stats & Params'!$I$10*A47^('B. PoF Summary Stats & Params'!$I$10-1), IF('B. PoF Summary Stats & Params'!$C$12="W", B47*(('B. PoF Summary Stats & Params'!$M$14/'B. PoF Summary Stats & Params'!$O$14)*((A47)/'B. PoF Summary Stats & Params'!$O$14)^('B. PoF Summary Stats & Params'!$M$14-1)), "Choose Model")) -> 0.01511250539 | D47: =IF('B. PoF Summary Stats & Params'!$C$12="C", B47*'B. PoF Summary Stats & Params'!$I$8*'B. PoF Summary Stats & Params'!$I$6*A47^('B. PoF Summary Stats & Params'!$I$6-1), IF('B. PoF Summary Stats & Params'!$C$12="W", B47*(('B. PoF Summary Stats & Params'!$M$6/'B. PoF Summary Stats & Params'!$M$8)*((A47)/'B. PoF Summary Stats & Params'!$M$8)^('B. PoF Summary Stats & Params'!$M$6-1)), "Choose Model")) -> 0.006482834429 | E47: =IF('B. PoF Summary Stats & Params'!$C$12="C", B47*'B. PoF Summary Stats & Params'!$I$8*'B. PoF Summary Stats & Params'!$I$12*A47^('B. PoF Summary Stats & Params'!$I$12-1), IF('B. PoF Summary Stats & Params'!$C$12="W", B47*(('B. PoF Summary Stats & Params'!$M$12/'B. PoF Summary Stats & Params'!$O$12)*((A47)/'B. PoF Summary Stats & Params'!$O$12)^('B. PoF Summary Stats & Params'!$M$12-1)), "Choose Model")) -> 0.002772304988
A48: 44 | B48: 1 | C48: =IF('B. PoF Summary Stats & Params'!$C$12="C", B48*'B. PoF Summary Stats & Params'!$I$8*'B. PoF Summary Stats & Params'!$I$10*A48^('B. PoF Summary Stats & Params'!$I$10-1), IF('B. PoF Summary Stats & Params'!$C$12="W", B48*(('B. PoF Summary Stats & Params'!$M$14/'B. PoF Summary Stats & Params'!$O$14)*((A48)/'B. PoF Summary Stats & Params'!$O$14)^('B. PoF Summary Stats & Params'!$M$14-1)), "Choose Model")) -> 0.01618636586 | D48: =IF('B. PoF Summary Stats & Params'!$C$12="C", B48*'B. PoF Summary Stats & Params'!$I$8*'B. PoF Summary Stats & Params'!$I$6*A48^('B. PoF Summary Stats & Params'!$I$6-1), IF('B. PoF Summary Stats & Params'!$C$12="W", B48*(('B. PoF Summary Stats & Params'!$M$6/'B. PoF Summary Stats & Params'!$M$8)*((A48)/'B. PoF Summary Stats & Params'!$M$8)^('B. PoF Summary Stats & Params'!$M$6-1)), "Choose Model")) -> 0.006909953687 | E48: =IF('B. PoF Summary Stats & Params'!$C$12="C", B48*'B. PoF Summary Stats & Params'!$I$8*'B. PoF Summary Stats & Params'!$I$12*A48^('B. PoF Summary Stats & Params'!$I$12-1), IF('B. PoF Summary Stats & Params'!$C$12="W", B48*(('B. PoF Summary Stats & Params'!$M$12/'B. PoF Summary Stats & Params'!$O$12)*((A48)/'B. PoF Summary Stats & Params'!$O$12)^('B. PoF Summary Stats & Params'!$M$12-1)), "Choose Model")) -> 0.002940685202
A49: 45 | B49: 1 | C49: =IF('B. PoF Summary Stats & Params'!$C$12="C", B49*'B. PoF Summary Stats & Params'!$I$8*'B. PoF Summary Stats & Params'!$I$10*A49^('B. PoF Summary Stats & Params'!$I$10-1), IF('B. PoF Summary Stats & Params'!$C$12="W", B49*(('B. PoF Summary Stats & Params'!$M$14/'B. PoF Summary Stats & Params'!$O$14)*((A49)/'B. PoF Summary Stats & Params'!$O$14)^('B. PoF Summary Stats & Params'!$M$14-1)), "Choose Model")) -> 0.01730980704 | D49: =IF('B. PoF Summary Stats & Params'!$C$12="C", B49*'B. PoF Summary Stats & Params'!$I$8*'B. PoF Summary Stats & Params'!$I$6*A49^('B. PoF Summary Stats & Params'!$I$6-1), IF('B. PoF Summary Stats & Params'!$C$12="W", B49*(('B. PoF Summary Stats & Params'!$M$6/'B. PoF Summary Stats & Params'!$M$8)*((A49)/'B. PoF Summary Stats & Params'!$M$8)^('B. PoF Summary Stats & Params'!$M$6-1)), "Choose Model")) -> 0.007354659806 | E49: =IF('B. PoF Summary Stats & Params'!$C$12="C", B49*'B. PoF Summary Stats & Params'!$I$8*'B. PoF Summary Stats & Params'!$I$12*A49^('B. PoF Summary Stats & Params'!$I$12-1), IF('B. PoF Summary Stats & Params'!$C$12="W", B49*(('B. PoF Summary Stats & Params'!$M$12/'B. PoF Summary Stats & Params'!$O$12)*((A49)/'B. PoF Summary Stats & Params'!$O$12)^('B. PoF Summary Stats & Params'!$M$12-1)), "Choose Model")) -> 0.0031151615
A50: 46 | B50: 1 | C50: =IF('B. PoF Summary Stats & Params'!$C$12="C", B50*'B. PoF Summary Stats & Params'!$I$8*'B. PoF Summary Stats & Params'!$I$10*A50^('B. PoF Summary Stats & Params'!$I$10-1), IF('B. PoF Summary Stats & Params'!$C$12="W", B50*(('B. PoF Summary Stats & Params'!$M$14/'B. PoF Summary Stats & Params'!$O$14)*((A50)/'B. PoF Summary Stats & Params'!$O$14)^('B. PoF Summary Stats & Params'!$M$14-1)), "Choose Model")) -> 0.01848393982 | D50: =IF('B. PoF Summary Stats & Params'!$C$12="C", B50*'B. PoF Summary Stats & Params'!$I$8*'B. PoF Summary Stats & Params'!$I$6*A50^('B. PoF Summary Stats & Params'!$I$6-1), IF('B. PoF Summary Stats & Params'!$C$12="W", B50*(('B. PoF Summary Stats & Params'!$M$6/'B. PoF Summary Stats & Params'!$M$8)*((A50)/'B. PoF Summary Stats & Params'!$M$8)^('B. PoF Summary Stats & Params'!$M$6-1)), "Choose Model")) -> 0.007817261937 | E50: =IF('B. PoF Summary Stats & Params'!$C$12="C", B50*'B. PoF Summary Stats & Params'!$I$8*'B. PoF Summary Stats & Params'!$I$12*A50^('B. PoF Summary Stats & Params'!$I$12-1), IF('B. PoF Summary Stats & Params'!$C$12="W", B50*(('B. PoF Summary Stats & Params'!$M$12/'B. PoF Summary Stats & Params'!$O$12)*((A50)/'B. PoF Summary Stats & Params'!$O$12)^('B. PoF Summary Stats & Params'!$M$12-1)), "Choose Model")) -> 0.003295811754
A51: 47 | B51: 1 | C51: =IF('B. PoF Summary Stats & Params'!$C$12="C", B51*'B. PoF Summary Stats & Params'!$I$8*'B. PoF Summary Stats & Params'!$I$10*A51^('B. PoF Summary Stats & Params'!$I$10-1), IF('B. PoF Summary Stats & Params'!$C$12="W", B51*(('B. PoF Summary Stats & Params'!$M$14/'B. PoF Summary Stats & Params'!$O$14)*((A51)/'B. PoF Summary Stats & Params'!$O$14)^('B. PoF Summary Stats & Params'!$M$14-1)), "Choose Model")) -> 0.01970987474 | D51: =IF('B. PoF Summary Stats & Params'!$C$12="C", B51*'B. PoF Summary Stats & Params'!$I$8*'B. PoF Summary Stats & Params'!$I$6*A51^('B. PoF Summary Stats & Params'!$I$6-1), IF('B. PoF Summary Stats & Params'!$C$12="W", B51*(('B. PoF Summary Stats & Params'!$M$6/'B. PoF Summary Stats & Params'!$M$8)*((A51)/'B. PoF Summary Stats & Params'!$M$8)^('B. PoF Summary Stats & Params'!$M$6-1)), "Choose Model")) -> 0.00829806769 | E51: =IF('B. PoF Summary Stats & Params'!$C$12="C", B51*'B. PoF Summary Stats & Params'!$I$8*'B. PoF Summary Stats & Params'!$I$12*A51^('B. PoF Summary Stats & Params'!$I$12-1), IF('B. PoF Summary Stats & Params'!$C$12="W", B51*(('B. PoF Summary Stats & Params'!$M$12/'B. PoF Summary Stats & Params'!$O$12)*((A51)/'B. PoF Summary Stats & Params'!$O$12)^('B. PoF Summary Stats & Params'!$M$12-1)), "Choose Model")) -> 0.003482713085
A52: 48 | B52: 1 | C52: =IF('B. PoF Summary Stats & Params'!$C$12="C", B52*'B. PoF Summary Stats & Params'!$I$8*'B. PoF Summary Stats & Params'!$I$10*A52^('B. PoF Summary Stats & Params'!$I$10-1), IF('B. PoF Summary Stats & Params'!$C$12="W", B52*(('B. PoF Summary Stats & Params'!$M$14/'B. PoF Summary Stats & Params'!$O$14)*((A52)/'B. PoF Summary Stats & Params'!$O$14)^('B. PoF Summary Stats & Params'!$M$14-1)), "Choose Model")) -> 0.020988722 | D52: =IF('B. PoF Summary Stats & Params'!$C$12="C", B52*'B. PoF Summary Stats & Params'!$I$8*'B. PoF Summary Stats & Params'!$I$6*A52^('B. PoF Summary Stats & Params'!$I$6-1), IF('B. PoF Summary Stats & Params'!$C$12="W", B52*(('B. PoF Summary Stats & Params'!$M$6/'B. PoF Summary Stats & Params'!$M$8)*((A52)/'B. PoF Summary Stats & Params'!$M$8)^('B. PoF Summary Stats & Params'!$M$6-1)), "Choose Model")) -> 0.008797383178 | E52: =IF('B. PoF Summary Stats & Params'!$C$12="C", B52*'B. PoF Summary Stats & Params'!$I$8*'B. PoF Summary Stats & Params'!$I$12*A52^('B. PoF Summary Stats & Params'!$I$12-1), IF('B. PoF Summary Stats & Params'!$C$12="W", B52*(('B. PoF Summary Stats & Params'!$M$12/'B. PoF Summary Stats & Params'!$O$12)*((A52)/'B. PoF Summary Stats & Params'!$O$12)^('B. PoF Summary Stats & Params'!$M$12-1)), "Choose Model")) -> 0.003675941888
A53: 49 | B53: 1 | C53: =IF('B. PoF Summary Stats & Params'!$C$12="C", B53*'B. PoF Summary Stats & Params'!$I$8*'B. PoF Summary Stats & Params'!$I$10*A53^('B. PoF Summary Stats & Params'!$I$10-1), IF('B. PoF Summary Stats & Params'!$C$12="W", B53*(('B. PoF Summary Stats & Params'!$M$14/'B. PoF Summary Stats & Params'!$O$14)*((A53)/'B. PoF Summary Stats & Params'!$O$14)^('B. PoF Summary Stats & Params'!$M$14-1)), "Choose Model")) -> 0.02232159147 | D53: =IF('B. PoF Summary Stats & Params'!$C$12="C", B53*'B. PoF Summary Stats & Params'!$I$8*'B. PoF Summary Stats & Params'!$I$6*A53^('B. PoF Summary Stats & Params'!$I$6-1), IF('B. PoF Summary Stats & Params'!$C$12="W", B53*(('B. PoF Summary Stats & Params'!$M$6/'B. PoF Summary Stats & Params'!$M$8)*((A53)/'B. PoF Summary Stats & Params'!$M$8)^('B. PoF Summary Stats & Params'!$M$6-1)), "Choose Model")) -> 0.009315513055 | E53: =IF('B. PoF Summary Stats & Params'!$C$12="C", B53*'B. PoF Summary Stats & Params'!$I$8*'B. PoF Summary Stats & Params'!$I$12*A53^('B. PoF Summary Stats & Params'!$I$12-1), IF('B. PoF Summary Stats & Params'!$C$12="W", B53*(('B. PoF Summary Stats & Params'!$M$12/'B. PoF Summary Stats & Params'!$O$12)*((A53)/'B. PoF Summary Stats & Params'!$O$12)^('B. PoF Summary Stats & Params'!$M$12-1)), "Choose Model")) -> 0.003875573856
A54: 50 | B54: 1 | C54: =IF('B. PoF Summary Stats & Params'!$C$12="C", B54*'B. PoF Summary Stats & Params'!$I$8*'B. PoF Summary Stats & Params'!$I$10*A54^('B. PoF Summary Stats & Params'!$I$10-1), IF('B. PoF Summary Stats & Params'!$C$12="W", B54*(('B. PoF Summary Stats & Params'!$M$14/'B. PoF Summary Stats & Params'!$O$14)*((A54)/'B. PoF Summary Stats & Params'!$O$14)^('B. PoF Summary Stats & Params'!$M$14-1)), "Choose Model")) -> 0.0237095927 | D54: =IF('B. PoF Summary Stats & Params'!$C$12="C", B54*'B. PoF Summary Stats & Params'!$I$8*'B. PoF Summary Stats & Params'!$I$6*A54^('B. PoF Summary Stats & Params'!$I$6-1), IF('B. PoF Summary Stats & Params'!$C$12="W", B54*(('B. PoF Summary Stats & Params'!$M$6/'B. PoF Summary Stats & Params'!$M$8)*((A54)/'B. PoF Summary Stats & Params'!$M$8)^('B. PoF Summary Stats & Params'!$M$6-1)), "Choose Model")) -> 0.00985276055 | E54: =IF('B. PoF Summary Stats & Params'!$C$12="C", B54*'B. PoF Summary Stats & Params'!$I$8*'B. PoF Summary Stats & Params'!$I$12*A54^('B. PoF Summary Stats & Params'!$I$12-1), IF('B. PoF Summary Stats & Params'!$C$12="W", B54*(('B. PoF Summary Stats & Params'!$M$12/'B. PoF Summary Stats & Params'!$O$12)*((A54)/'B. PoF Summary Stats & Params'!$O$12)^('B. PoF Summary Stats & Params'!$M$12-1)), "Choose Model")) -> 0.004081683997
A55: 51 | B55: 1 | C55: =IF('B. PoF Summary Stats & Params'!$C$12="C", B55*'B. PoF Summary Stats & Params'!$I$8*'B. PoF Summary Stats & Params'!$I$10*A55^('B. PoF Summary Stats & Params'!$I$10-1), IF('B. PoF Summary Stats & Params'!$C$12="W", B55*(('B. PoF Summary Stats & Params'!$M$14/'B. PoF Summary Stats & Params'!$O$14)*((A55)/'B. PoF Summary Stats & Params'!$O$14)^('B. PoF Summary Stats & Params'!$M$14-1)), "Choose Model")) -> 0.02515383492 | D55: =IF('B. PoF Summary Stats & Params'!$C$12="C", B55*'B. PoF Summary Stats & Params'!$I$8*'B. PoF Summary Stats & Params'!$I$6*A55^('B. PoF Summary Stats & Params'!$I$6-1), IF('B. PoF Summary Stats & Params'!$C$12="W", B55*(('B. PoF Summary Stats & Params'!$M$6/'B. PoF Summary Stats & Params'!$M$8)*((A55)/'B. PoF Summary Stats & Params'!$M$8)^('B. PoF Summary Stats & Params'!$M$6-1)), "Choose Model")) -> 0.01040942751 | E55: =IF('B. PoF Summary Stats & Params'!$C$12="C", B55*'B. PoF Summary Stats & Params'!$I$8*'B. PoF Summary Stats & Params'!$I$12*A55^('B. PoF Summary Stats & Params'!$I$12-1), IF('B. PoF Summary Stats & Params'!$C$12="W", B55*(('B. PoF Summary Stats & Params'!$M$12/'B. PoF Summary Stats & Params'!$O$12)*((A55)/'B. PoF Summary Stats & Params'!$O$12)^('B. PoF Summary Stats & Params'!$M$12-1)), "Choose Model")) -> 0.004294346654
A56: 52 | B56: 1 | C56: =IF('B. PoF Summary Stats & Params'!$C$12="C", B56*'B. PoF Summary Stats & Params'!$I$8*'B. PoF Summary Stats & Params'!$I$10*A56^('B. PoF Summary Stats & Params'!$I$10-1), IF('B. PoF Summary Stats & Params'!$C$12="W", B56*(('B. PoF Summary Stats & Params'!$M$14/'B. PoF Summary Stats & Params'!$O$14)*((A56)/'B. PoF Summary Stats & Params'!$O$14)^('B. PoF Summary Stats & Params'!$M$14-1)), "Choose Model")) -> 0.02665542704 | D56: =IF('B. PoF Summary Stats & Params'!$C$12="C", B56*'B. PoF Summary Stats & Params'!$I$8*'B. PoF Summary Stats & Params'!$I$6*A56^('B. PoF Summary Stats & Params'!$I$6-1), IF('B. PoF Summary Stats & Params'!$C$12="W", B56*(('B. PoF Summary Stats & Params'!$M$6/'B. PoF Summary Stats & Params'!$M$8)*((A56)/'B. PoF Summary Stats & Params'!$M$8)^('B. PoF Summary Stats & Params'!$M$6-1)), "Choose Model")) -> 0.01098581442 | E56: =IF('B. PoF Summary Stats & Params'!$C$12="C", B56*'B. PoF Summary Stats & Params'!$I$8*'B. PoF Summary Stats & Params'!$I$12*A56^('B. PoF Summary Stats & Params'!$I$12-1), IF('B. PoF Summary Stats & Params'!$C$12="W", B56*(('B. PoF Summary Stats & Params'!$M$12/'B. PoF Summary Stats & Params'!$O$12)*((A56)/'B. PoF Summary Stats & Params'!$O$12)^('B. PoF Summary Stats & Params'!$M$12-1)), "Choose Model")) -> 0.004513635528
A57: 53 | B57: 1 | C57: =IF('B. PoF Summary Stats & Params'!$C$12="C", B57*'B. PoF Summary Stats & Params'!$I$8*'B. PoF Summary Stats & Params'!$I$10*A57^('B. PoF Summary Stats & Params'!$I$10-1), IF('B. PoF Summary Stats & Params'!$C$12="W", B57*(('B. PoF Summary Stats & Params'!$M$14/'B. PoF Summary Stats & Params'!$O$14)*((A57)/'B. PoF Summary Stats & Params'!$O$14)^('B. PoF Summary Stats & Params'!$M$14-1)), "Choose Model")) -> 0.02821547768 | D57: =IF('B. PoF Summary Stats & Params'!$C$12="C", B57*'B. PoF Summary Stats & Params'!$I$8*'B. PoF Summary Stats & Params'!$I$6*A57^('B. PoF Summary Stats & Params'!$I$6-1), IF('B. PoF Summary Stats & Params'!$C$12="W", B57*(('B. PoF Summary Stats & Params'!$M$6/'B. PoF Summary Stats & Params'!$M$8)*((A57)/'B. PoF Summary Stats & Params'!$M$8)^('B. PoF Summary Stats & Params'!$M$6-1)), "Choose Model")) -> 0.01158222045 | E57: =IF('B. PoF Summary Stats & Params'!$C$12="C", B57*'B. PoF Summary Stats & Params'!$I$8*'B. PoF Summary Stats & Params'!$I$12*A57^('B. PoF Summary Stats & Params'!$I$12-1), IF('B. PoF Summary Stats & Params'!$C$12="W", B57*(('B. PoF Summary Stats & Params'!$M$12/'B. PoF Summary Stats & Params'!$O$12)*((A57)/'B. PoF Summary Stats & Params'!$O$12)^('B. PoF Summary Stats & Params'!$M$12-1)), "Choose Model")) -> 0.004739623694
A58: 54 | B58: 1 | C58: =IF('B. PoF Summary Stats & Params'!$C$12="C", B58*'B. PoF Summary Stats & Params'!$I$8*'B. PoF Summary Stats & Params'!$I$10*A58^('B. PoF Summary Stats & Params'!$I$10-1), IF('B. PoF Summary Stats & Params'!$C$12="W", B58*(('B. PoF Summary Stats & Params'!$M$14/'B. PoF Summary Stats & Params'!$O$14)*((A58)/'B. PoF Summary Stats & Params'!$O$14)^('B. PoF Summary Stats & Params'!$M$14-1)), "Choose Model")) -> 0.02983509516 | D58: =IF('B. PoF Summary Stats & Params'!$C$12="C", B58*'B. PoF Summary Stats & Params'!$I$8*'B. PoF Summary Stats & Params'!$I$6*A58^('B. PoF Summary Stats & Params'!$I$6-1), IF('B. PoF Summary Stats & Params'!$C$12="W", B58*(('B. PoF Summary Stats & Params'!$M$6/'B. PoF Summary Stats & Params'!$M$8)*((A58)/'B. PoF Summary Stats & Params'!$M$8)^('B. PoF Summary Stats & Params'!$M$6-1)), "Choose Model")) -> 0.01219894348 | E58: =IF('B. PoF Summary Stats & Params'!$C$12="C", B58*'B. PoF Summary Stats & Params'!$I$8*'B. PoF Summary Stats & Params'!$I$12*A58^('B. PoF Summary Stats & Params'!$I$12-1), IF('B. PoF Summary Stats & Params'!$C$12="W", B58*(('B. PoF Summary Stats & Params'!$M$12/'B. PoF Summary Stats & Params'!$O$12)*((A58)/'B. PoF Summary Stats & Params'!$O$12)^('B. PoF Summary Stats & Params'!$M$12-1)), "Choose Model")) -> 0.004972383615
A59: 55 | B59: 1 | C59: =IF('B. PoF Summary Stats & Params'!$C$12="C", B59*'B. PoF Summary Stats & Params'!$I$8*'B. PoF Summary Stats & Params'!$I$10*A59^('B. PoF Summary Stats & Params'!$I$10-1), IF('B. PoF Summary Stats & Params'!$C$12="W", B59*(('B. PoF Summary Stats & Params'!$M$14/'B. PoF Summary Stats & Params'!$O$14)*((A59)/'B. PoF Summary Stats & Params'!$O$14)^('B. PoF Summary Stats & Params'!$M$14-1)), "Choose Model")) -> 0.0315153875 | D59: =IF('B. PoF Summary Stats & Params'!$C$12="C", B59*'B. PoF Summary Stats & Params'!$I$8*'B. PoF Summary Stats & Params'!$I$6*A59^('B. PoF Summary Stats & Params'!$I$6-1), IF('B. PoF Summary Stats & Params'!$C$12="W", B59*(('B. PoF Summary Stats & Params'!$M$6/'B. PoF Summary Stats & Params'!$M$8)*((A59)/'B. PoF Summary Stats & Params'!$M$8)^('B. PoF Summary Stats & Params'!$M$6-1)), "Choose Model")) -> 0.01283628014 | E59: =IF('B. PoF Summary Stats & Params'!$C$12="C", B59*'B. PoF Summary Stats & Params'!$I$8*'B. PoF Summary Stats & Params'!$I$12*A59^('B. PoF Summary Stats & Params'!$I$12-1), IF('B. PoF Summary Stats & Params'!$C$12="W", B59*(('B. PoF Summary Stats & Params'!$M$12/'B. PoF Summary Stats & Params'!$O$12)*((A59)/'B. PoF Summary Stats & Params'!$O$12)^('B. PoF Summary Stats & Params'!$M$12-1)), "Choose Model")) -> 0.005211987165
A60: 56 | B60: 1 | C60: =IF('B. PoF Summary Stats & Params'!$C$12="C", B60*'B. PoF Summary Stats & Params'!$I$8*'B. PoF Summary Stats & Params'!$I$10*A60^('B. PoF Summary Stats & Params'!$I$10-1), IF('B. PoF Summary Stats & Params'!$C$12="W", B60*(('B. PoF Summary Stats & Params'!$M$14/'B. PoF Summary Stats & Params'!$O$14)*((A60)/'B. PoF Summary Stats & Params'!$O$14)^('B. PoF Summary Stats & Params'!$M$14-1)), "Choose Model")) -> 0.03325746243 | D60: =IF('B. PoF Summary Stats & Params'!$C$12="C", B60*'B. PoF Summary Stats & Params'!$I$8*'B. PoF Summary Stats & Params'!$I$6*A60^('B. PoF Summary Stats & Params'!$I$6-1), IF('B. PoF Summary Stats & Params'!$C$12="W", B60*(('B. PoF Summary Stats & Params'!$M$6/'B. PoF Summary Stats & Params'!$M$8)*((A60)/'B. PoF Summary Stats & Params'!$M$8)^('B. PoF Summary Stats & Params'!$M$6-1)), "Choose Model")) -> 0.01349452581 | E60: =IF('B. PoF Summary Stats & Params'!$C$12="C", B60*'B. PoF Summary Stats & Params'!$I$8*'B. PoF Summary Stats & Params'!$I$12*A60^('B. PoF Summary Stats & Params'!$I$12-1), IF('B. PoF Summary Stats & Params'!$C$12="W", B60*(('B. PoF Summary Stats & Params'!$M$12/'B. PoF Summary Stats & Params'!$O$12)*((A60)/'B. PoF Summary Stats & Params'!$O$12)^('B. PoF Summary Stats & Params'!$M$12-1)), "Choose Model")) -> 0.005458505638
A61: 57 | B61: 1 | C61: =IF('B. PoF Summary Stats & Params'!$C$12="C", B61*'B. PoF Summary Stats & Params'!$I$8*'B. PoF Summary Stats & Params'!$I$10*A61^('B. PoF Summary Stats & Params'!$I$10-1), IF('B. PoF Summary Stats & Params'!$C$12="W", B61*(('B. PoF Summary Stats & Params'!$M$14/'B. PoF Summary Stats & Params'!$O$14)*((A61)/'B. PoF Summary Stats & Params'!$O$14)^('B. PoF Summary Stats & Params'!$M$14-1)), "Choose Model")) -> 0.03506242742 | D61: =IF('B. PoF Summary Stats & Params'!$C$12="C", B61*'B. PoF Summary Stats & Params'!$I$8*'B. PoF Summary Stats & Params'!$I$6*A61^('B. PoF Summary Stats & Params'!$I$6-1), IF('B. PoF Summary Stats & Params'!$C$12="W", B61*(('B. PoF Summary Stats & Params'!$M$6/'B. PoF Summary Stats & Params'!$M$8)*((A61)/'B. PoF Summary Stats & Params'!$M$8)^('B. PoF Summary Stats & Params'!$M$6-1)), "Choose Model")) -> 0.01417397468 | E61: =IF('B. PoF Summary Stats & Params'!$C$12="C", B61*'B. PoF Summary Stats & Params'!$I$8*'B. PoF Summary Stats & Params'!$I$12*A61^('B. PoF Summary Stats & Params'!$I$12-1), IF('B. PoF Summary Stats & Params'!$C$12="W", B61*(('B. PoF Summary Stats & Params'!$M$12/'B. PoF Summary Stats & Params'!$O$12)*((A61)/'B. PoF Summary Stats & Params'!$O$12)^('B. PoF Summary Stats & Params'!$M$12-1)), "Choose Model")) -> 0.005712009767
A62: 58 | B62: 1 | C62: =IF('B. PoF Summary Stats & Params'!$C$12="C", B62*'B. PoF Summary Stats & Params'!$I$8*'B. PoF Summary Stats & Params'!$I$10*A62^('B. PoF Summary Stats & Params'!$I$10-1), IF('B. PoF Summary Stats & Params'!$C$12="W", B62*(('B. PoF Summary Stats & Params'!$M$14/'B. PoF Summary Stats & Params'!$O$14)*((A62)/'B. PoF Summary Stats & Params'!$O$14)^('B. PoF Summary Stats & Params'!$M$14-1)), "Choose Model")) -> 0.03693138963 | D62: =IF('B. PoF Summary Stats & Params'!$C$12="C", B62*'B. PoF Summary Stats & Params'!$I$8*'B. PoF Summary Stats & Params'!$I$6*A62^('B. PoF Summary Stats & Params'!$I$6-1), IF('B. PoF Summary Stats & Params'!$C$12="W", B62*(('B. PoF Summary Stats & Params'!$M$6/'B. PoF Summary Stats & Params'!$M$8)*((A62)/'B. PoF Summary Stats & Params'!$M$8)^('B. PoF Summary Stats & Params'!$M$6-1)), "Choose Model")) -> 0.01487491976 | E62: =IF('B. PoF Summary Stats & Params'!$C$12="C", B62*'B. PoF Summary Stats & Params'!$I$8*'B. PoF Summary Stats & Params'!$I$12*A62^('B. PoF Summary Stats & Params'!$I$12-1), IF('B. PoF Summary Stats & Params'!$C$12="W", B62*(('B. PoF Summary Stats & Params'!$M$12/'B. PoF Summary Stats & Params'!$O$12)*((A62)/'B. PoF Summary Stats & Params'!$O$12)^('B. PoF Summary Stats & Params'!$M$12-1)), "Choose Model")) -> 0.005972569738
A63: 59 | B63: 1 | C63: =IF('B. PoF Summary Stats & Params'!$C$12="C", B63*'B. PoF Summary Stats & Params'!$I$8*'B. PoF Summary Stats & Params'!$I$10*A63^('B. PoF Summary Stats & Params'!$I$10-1), IF('B. PoF Summary Stats & Params'!$C$12="W", B63*(('B. PoF Summary Stats & Params'!$M$14/'B. PoF Summary Stats & Params'!$O$14)*((A63)/'B. PoF Summary Stats & Params'!$O$14)^('B. PoF Summary Stats & Params'!$M$14-1)), "Choose Model")) -> 0.03886545598 | D63: =IF('B. PoF Summary Stats & Params'!$C$12="C", B63*'B. PoF Summary Stats & Params'!$I$8*'B. PoF Summary Stats & Params'!$I$6*A63^('B. PoF Summary Stats & Params'!$I$6-1), IF('B. PoF Summary Stats & Params'!$C$12="W", B63*(('B. PoF Summary Stats & Params'!$M$6/'B. PoF Summary Stats & Params'!$M$8)*((A63)/'B. PoF Summary Stats & Params'!$M$8)^('B. PoF Summary Stats & Params'!$M$6-1)), "Choose Model")) -> 0.01559765289 | E63: =IF('B. PoF Summary Stats & Params'!$C$12="C", B63*'B. PoF Summary Stats & Params'!$I$8*'B. PoF Summary Stats & Params'!$I$12*A63^('B. PoF Summary Stats & Params'!$I$12-1), IF('B. PoF Summary Stats & Params'!$C$12="W", B63*(('B. PoF Summary Stats & Params'!$M$12/'B. PoF Summary Stats & Params'!$O$12)*((A63)/'B. PoF Summary Stats & Params'!$O$12)^('B. PoF Summary Stats & Params'!$M$12-1)), "Choose Model")) -> 0.006240255202
A64: 60 | B64: 1 | C64: =IF('B. PoF Summary Stats & Params'!$C$12="C", B64*'B. PoF Summary Stats & Params'!$I$8*'B. PoF Summary Stats & Params'!$I$10*A64^('B. PoF Summary Stats & Params'!$I$10-1), IF('B. PoF Summary Stats & Params'!$C$12="W", B64*(('B. PoF Summary Stats & Params'!$M$14/'B. PoF Summary Stats & Params'!$O$14)*((A64)/'B. PoF Summary Stats & Params'!$O$14)^('B. PoF Summary Stats & Params'!$M$14-1)), "Choose Model")) -> 0.04086573309 | D64: =IF('B. PoF Summary Stats & Params'!$C$12="C", B64*'B. PoF Summary Stats & Params'!$I$8*'B. PoF Summary Stats & Params'!$I$6*A64^('B. PoF Summary Stats & Params'!$I$6-1), IF('B. PoF Summary Stats & Params'!$C$12="W", B64*(('B. PoF Summary Stats & Params'!$M$6/'B. PoF Summary Stats & Params'!$M$8)*((A64)/'B. PoF Summary Stats & Params'!$M$8)^('B. PoF Summary Stats & Params'!$M$6-1)), "Choose Model")) -> 0.01634246481 | E64: =IF('B. PoF Summary Stats & Params'!$C$12="C", B64*'B. PoF Summary Stats & Params'!$I$8*'B. PoF Summary Stats & Params'!$I$12*A64^('B. PoF Summary Stats & Params'!$I$12-1), IF('B. PoF Summary Stats & Params'!$C$12="W", B64*(('B. PoF Summary Stats & Params'!$M$12/'B. PoF Summary Stats & Params'!$O$12)*((A64)/'B. PoF Summary Stats & Params'!$O$12)^('B. PoF Summary Stats & Params'!$M$12-1)), "Choose Model")) -> 0.006515135291
A65: 61 | B65: 1 | C65: =IF('B. PoF Summary Stats & Params'!$C$12="C", B65*'B. PoF Summary Stats & Params'!$I$8*'B. PoF Summary Stats & Params'!$I$10*A65^('B. PoF Summary Stats & Params'!$I$10-1), IF('B. PoF Summary Stats & Params'!$C$12="W", B65*(('B. PoF Summary Stats & Params'!$M$14/'B. PoF Summary Stats & Params'!$O$14)*((A65)/'B. PoF Summary Stats & Params'!$O$14)^('B. PoF Summary Stats & Params'!$M$14-1)), "Choose Model")) -> 0.04293332736 | D65: =IF('B. PoF Summary Stats & Params'!$C$12="C", B65*'B. PoF Summary Stats & Params'!$I$8*'B. PoF Summary Stats & Params'!$I$6*A65^('B. PoF Summary Stats & Params'!$I$6-1), IF('B. PoF Summary Stats & Params'!$C$12="W", B65*(('B. PoF Summary Stats & Params'!$M$6/'B. PoF Summary Stats & Params'!$M$8)*((A65)/'B. PoF Summary Stats & Params'!$M$8)^('B. PoF Summary Stats & Params'!$M$6-1)), "Choose Model")) -> 0.01710964515 | E65: =IF('B. PoF Summary Stats & Params'!$C$12="C", B65*'B. PoF Summary Stats & Params'!$I$8*'B. PoF Summary Stats & Params'!$I$12*A65^('B. PoF Summary Stats & Params'!$I$12-1), IF('B. PoF Summary Stats & Params'!$C$12="W", B65*(('B. PoF Summary Stats & Params'!$M$12/'B. PoF Summary Stats & Params'!$O$12)*((A65)/'B. PoF Summary Stats & Params'!$O$12)^('B. PoF Summary Stats & Params'!$M$12-1)), "Choose Model")) -> 0.006797278626
A66: 62 | B66: 1 | C66: =IF('B. PoF Summary Stats & Params'!$C$12="C", B66*'B. PoF Summary Stats & Params'!$I$8*'B. PoF Summary Stats & Params'!$I$10*A66^('B. PoF Summary Stats & Params'!$I$10-1), IF('B. PoF Summary Stats & Params'!$C$12="W", B66*(('B. PoF Summary Stats & Params'!$M$14/'B. PoF Summary Stats & Params'!$O$14)*((A66)/'B. PoF Summary Stats & Params'!$O$14)^('B. PoF Summary Stats & Params'!$M$14-1)), "Choose Model")) -> 0.04506934489 | D66: =IF('B. PoF Summary Stats & Params'!$C$12="C", B66*'B. PoF Summary Stats & Params'!$I$8*'B. PoF Summary Stats & Params'!$I$6*A66^('B. PoF Summary Stats & Params'!$I$6-1), IF('B. PoF Summary Stats & Params'!$C$12="W", B66*(('B. PoF Summary Stats & Params'!$M$6/'B. PoF Summary Stats & Params'!$M$8)*((A66)/'B. PoF Summary Stats & Params'!$M$8)^('B. PoF Summary Stats & Params'!$M$6-1)), "Choose Model")) -> 0.01789948243 | E66: =IF('B. PoF Summary Stats & Params'!$C$12="C", B66*'B. PoF Summary Stats & Params'!$I$8*'B. PoF Summary Stats & Params'!$I$12*A66^('B. PoF Summary Stats & Params'!$I$12-1), IF('B. PoF Summary Stats & Params'!$C$12="W", B66*(('B. PoF Summary Stats & Params'!$M$12/'B. PoF Summary Stats & Params'!$O$12)*((A66)/'B. PoF Summary Stats & Params'!$O$12)^('B. PoF Summary Stats & Params'!$M$12-1)), "Choose Model")) -> 0.007086753335
A67: 63 | B67: 1 | C67: =IF('B. PoF Summary Stats & Params'!$C$12="C", B67*'B. PoF Summary Stats & Params'!$I$8*'B. PoF Summary Stats & Params'!$I$10*A67^('B. PoF Summary Stats & Params'!$I$10-1), IF('B. PoF Summary Stats & Params'!$C$12="W", B67*(('B. PoF Summary Stats & Params'!$M$14/'B. PoF Summary Stats & Params'!$O$14)*((A67)/'B. PoF Summary Stats & Params'!$O$14)^('B. PoF Summary Stats & Params'!$M$14-1)), "Choose Model")) -> 0.04727489154 | D67: =IF('B. PoF Summary Stats & Params'!$C$12="C", B67*'B. PoF Summary Stats & Params'!$I$8*'B. PoF Summary Stats & Params'!$I$6*A67^('B. PoF Summary Stats & Params'!$I$6-1), IF('B. PoF Summary Stats & Params'!$C$12="W", B67*(('B. PoF Summary Stats & Params'!$M$6/'B. PoF Summary Stats & Params'!$M$8)*((A67)/'B. PoF Summary Stats & Params'!$M$8)^('B. PoF Summary Stats & Params'!$M$6-1)), "Choose Model")) -> 0.01871226414 | E67: =IF('B. PoF Summary Stats & Params'!$C$12="C", B67*'B. PoF Summary Stats & Params'!$I$8*'B. PoF Summary Stats & Params'!$I$12*A67^('B. PoF Summary Stats & Params'!$I$12-1), IF('B. PoF Summary Stats & Params'!$C$12="W", B67*(('B. PoF Summary Stats & Params'!$M$12/'B. PoF Summary Stats & Params'!$O$12)*((A67)/'B. PoF Summary Stats & Params'!$O$12)^('B. PoF Summary Stats & Params'!$M$12-1)), "Choose Model")) -> 0.00738362706
A68: 64 | B68: 1 | C68: =IF('B. PoF Summary Stats & Params'!$C$12="C", B68*'B. PoF Summary Stats & Params'!$I$8*'B. PoF Summary Stats & Params'!$I$10*A68^('B. PoF Summary Stats & Params'!$I$10-1), IF('B. PoF Summary Stats & Params'!$C$12="W", B68*(('B. PoF Summary Stats & Params'!$M$14/'B. PoF Summary Stats & Params'!$O$14)*((A68)/'B. PoF Summary Stats & Params'!$O$14)^('B. PoF Summary Stats & Params'!$M$14-1)), "Choose Model")) -> 0.04955107294 | D68: =IF('B. PoF Summary Stats & Params'!$C$12="C", B68*'B. PoF Summary Stats & Params'!$I$8*'B. PoF Summary Stats & Params'!$I$6*A68^('B. PoF Summary Stats & Params'!$I$6-1), IF('B. PoF Summary Stats & Params'!$C$12="W", B68*(('B. PoF Summary Stats & Params'!$M$6/'B. PoF Summary Stats & Params'!$M$8)*((A68)/'B. PoF Summary Stats & Params'!$M$8)^('B. PoF Summary Stats & Params'!$M$6-1)), "Choose Model")) -> 0.01954827672 | E68: =IF('B. PoF Summary Stats & Params'!$C$12="C", B68*'B. PoF Summary Stats & Params'!$I$8*'B. PoF Summary Stats & Params'!$I$12*A68^('B. PoF Summary Stats & Params'!$I$12-1), IF('B. PoF Summary Stats & Params'!$C$12="W", B68*(('B. PoF Summary Stats & Params'!$M$12/'B. PoF Summary Stats & Params'!$O$12)*((A68)/'B. PoF Summary Stats & Params'!$O$12)^('B. PoF Summary Stats & Params'!$M$12-1)), "Choose Model")) -> 0.00768796697
A69: 65 | B69: 1 | C69: =IF('B. PoF Summary Stats & Params'!$C$12="C", B69*'B. PoF Summary Stats & Params'!$I$8*'B. PoF Summary Stats & Params'!$I$10*A69^('B. PoF Summary Stats & Params'!$I$10-1), IF('B. PoF Summary Stats & Params'!$C$12="W", B69*(('B. PoF Summary Stats & Params'!$M$14/'B. PoF Summary Stats & Params'!$O$14)*((A69)/'B. PoF Summary Stats & Params'!$O$14)^('B. PoF Summary Stats & Params'!$M$14-1)), "Choose Model")) -> 0.05189899445 | D69: =IF('B. PoF Summary Stats & Params'!$C$12="C", B69*'B. PoF Summary Stats & Params'!$I$8*'B. PoF Summary Stats & Params'!$I$6*A69^('B. PoF Summary Stats & Params'!$I$6-1), IF('B. PoF Summary Stats & Params'!$C$12="W", B69*(('B. PoF Summary Stats & Params'!$M$6/'B. PoF Summary Stats & Params'!$M$8)*((A69)/'B. PoF Summary Stats & Params'!$M$8)^('B. PoF Summary Stats & Params'!$M$6-1)), "Choose Model")) -> 0.02040780558 | E69: =IF('B. PoF Summary Stats & Params'!$C$12="C", B69*'B. PoF Summary Stats & Params'!$I$8*'B. PoF Summary Stats & Params'!$I$12*A69^('B. PoF Summary Stats & Params'!$I$12-1), IF('B. PoF Summary Stats & Params'!$C$12="W", B69*(('B. PoF Summary Stats & Params'!$M$12/'B. PoF Summary Stats & Params'!$O$12)*((A69)/'B. PoF Summary Stats & Params'!$O$12)^('B. PoF Summary Stats & Params'!$M$12-1)), "Choose Model")) -> 0.007999839772
A70: 66 | B70: 1 | C70: =IF('B. PoF Summary Stats & Params'!$C$12="C", B70*'B. PoF Summary Stats & Params'!$I$8*'B. PoF Summary Stats & Params'!$I$10*A70^('B. PoF Summary Stats & Params'!$I$10-1), IF('B. PoF Summary Stats & Params'!$C$12="W", B70*(('B. PoF Summary Stats & Params'!$M$14/'B. PoF Summary Stats & Params'!$O$14)*((A70)/'B. PoF Summary Stats & Params'!$O$14)^('B. PoF Summary Stats & Params'!$M$14-1)), "Choose Model")) -> 0.0543197612 | D70: =IF('B. PoF Summary Stats & Params'!$C$12="C", B70*'B. PoF Summary Stats & Params'!$I$8*'B. PoF Summary Stats & Params'!$I$6*A70^('B. PoF Summary Stats & Params'!$I$6-1), IF('B. PoF Summary Stats & Params'!$C$12="W", B70*(('B. PoF Summary Stats & Params'!$M$6/'B. PoF Summary Stats & Params'!$M$8)*((A70)/'B. PoF Summary Stats & Params'!$M$8)^('B. PoF Summary Stats & Params'!$M$6-1)), "Choose Model")) -> 0.02129113516 | E70: =IF('B. PoF Summary Stats & Params'!$C$12="C", B70*'B. PoF Summary Stats & Params'!$I$8*'B. PoF Summary Stats & Params'!$I$12*A70^('B. PoF Summary Stats & Params'!$I$12-1), IF('B. PoF Summary Stats & Params'!$C$12="W", B70*(('B. PoF Summary Stats & Params'!$M$12/'B. PoF Summary Stats & Params'!$O$12)*((A70)/'B. PoF Summary Stats & Params'!$O$12)^('B. PoF Summary Stats & Params'!$M$12-1)), "Choose Model")) -> 0.008319311721
A71: 67 | B71: 1 | C71: =IF('B. PoF Summary Stats & Params'!$C$12="C", B71*'B. PoF Summary Stats & Params'!$I$8*'B. PoF Summary Stats & Params'!$I$10*A71^('B. PoF Summary Stats & Params'!$I$10-1), IF('B. PoF Summary Stats & Params'!$C$12="W", B71*(('B. PoF Summary Stats & Params'!$M$14/'B. PoF Summary Stats & Params'!$O$14)*((A71)/'B. PoF Summary Stats & Params'!$O$14)^('B. PoF Summary Stats & Params'!$M$14-1)), "Choose Model")) -> 0.05681447807 | D71: =IF('B. PoF Summary Stats & Params'!$C$12="C", B71*'B. PoF Summary Stats & Params'!$I$8*'B. PoF Summary Stats & Params'!$I$6*A71^('B. PoF Summary Stats & Params'!$I$6-1), IF('B. PoF Summary Stats & Params'!$C$12="W", B71*(('B. PoF Summary Stats & Params'!$M$6/'B. PoF Summary Stats & Params'!$M$8)*((A71)/'B. PoF Summary Stats & Params'!$M$8)^('B. PoF Summary Stats & Params'!$M$6-1)), "Choose Model")) -> 0.02219854889 | E71: =IF('B. PoF Summary Stats & Params'!$C$12="C", B71*'B. PoF Summary Stats & Params'!$I$8*'B. PoF Summary Stats & Params'!$I$12*A71^('B. PoF Summary Stats & Params'!$I$12-1), IF('B. PoF Summary Stats & Params'!$C$12="W", B71*(('B. PoF Summary Stats & Params'!$M$12/'B. PoF Summary Stats & Params'!$O$12)*((A71)/'B. PoF Summary Stats & Params'!$O$12)^('B. PoF Summary Stats & Params'!$M$12-1)), "Choose Model")) -> 0.008646448628
A72: 68 | B72: 1 | C72: =IF('B. PoF Summary Stats & Params'!$C$12="C", B72*'B. PoF Summary Stats & Params'!$I$8*'B. PoF Summary Stats & Params'!$I$10*A72^('B. PoF Summary Stats & Params'!$I$10-1), IF('B. PoF Summary Stats & Params'!$C$12="W", B72*(('B. PoF Summary Stats & Params'!$M$14/'B. PoF Summary Stats & Params'!$O$14)*((A72)/'B. PoF Summary Stats & Params'!$O$14)^('B. PoF Summary Stats & Params'!$M$14-1)), "Choose Model")) -> 0.05938424972 | D72: =IF('B. PoF Summary Stats & Params'!$C$12="C", B72*'B. PoF Summary Stats & Params'!$I$8*'B. PoF Summary Stats & Params'!$I$6*A72^('B. PoF Summary Stats & Params'!$I$6-1), IF('B. PoF Summary Stats & Params'!$C$12="W", B72*(('B. PoF Summary Stats & Params'!$M$6/'B. PoF Summary Stats & Params'!$M$8)*((A72)/'B. PoF Summary Stats & Params'!$M$8)^('B. PoF Summary Stats & Params'!$M$6-1)), "Choose Model")) -> 0.02313032924 | E72: =IF('B. PoF Summary Stats & Params'!$C$12="C", B72*'B. PoF Summary Stats & Params'!$I$8*'B. PoF Summary Stats & Params'!$I$12*A72^('B. PoF Summary Stats & Params'!$I$12-1), IF('B. PoF Summary Stats & Params'!$C$12="W", B72*(('B. PoF Summary Stats & Params'!$M$12/'B. PoF Summary Stats & Params'!$O$12)*((A72)/'B. PoF Summary Stats & Params'!$O$12)^('B. PoF Summary Stats & Params'!$M$12-1)), "Choose Model")) -> 0.008981315874
A73: 69 | B73: 1 | C73: =IF('B. PoF Summary Stats & Params'!$C$12="C", B73*'B. PoF Summary Stats & Params'!$I$8*'B. PoF Summary Stats & Params'!$I$10*A73^('B. PoF Summary Stats & Params'!$I$10-1), IF('B. PoF Summary Stats & Params'!$C$12="W", B73*(('B. PoF Summary Stats & Params'!$M$14/'B. PoF Summary Stats & Params'!$O$14)*((A73)/'B. PoF Summary Stats & Params'!$O$14)^('B. PoF Summary Stats & Params'!$M$14-1)), "Choose Model")) -> 0.06203018058 | D73: =IF('B. PoF Summary Stats & Params'!$C$12="C", B73*'B. PoF Summary Stats & Params'!$I$8*'B. PoF Summary Stats & Params'!$I$6*A73^('B. PoF Summary Stats & Params'!$I$6-1), IF('B. PoF Summary Stats & Params'!$C$12="W", B73*(('B. PoF Summary Stats & Params'!$M$6/'B. PoF Summary Stats & Params'!$M$8)*((A73)/'B. PoF Summary Stats & Params'!$M$8)^('B. PoF Summary Stats & Params'!$M$6-1)), "Choose Model")) -> 0.02408675775 | E73: =IF('B. PoF Summary Stats & Params'!$C$12="C", B73*'B. PoF Summary Stats & Params'!$I$8*'B. PoF Summary Stats & Params'!$I$12*A73^('B. PoF Summary Stats & Params'!$I$12-1), IF('B. PoF Summary Stats & Params'!$C$12="W", B73*(('B. PoF Summary Stats & Params'!$M$12/'B. PoF Summary Stats & Params'!$O$12)*((A73)/'B. PoF Summary Stats & Params'!$O$12)^('B. PoF Summary Stats & Params'!$M$12-1)), "Choose Model")) -> 0.009323978415
A74: 70 | B74: 1 | C74: =IF('B. PoF Summary Stats & Params'!$C$12="C", B74*'B. PoF Summary Stats & Params'!$I$8*'B. PoF Summary Stats & Params'!$I$10*A74^('B. PoF Summary Stats & Params'!$I$10-1), IF('B. PoF Summary Stats & Params'!$C$12="W", B74*(('B. PoF Summary Stats & Params'!$M$14/'B. PoF Summary Stats & Params'!$O$14)*((A74)/'B. PoF Summary Stats & Params'!$O$14)^('B. PoF Summary Stats & Params'!$M$14-1)), "Choose Model")) -> 0.06475337483 | D74: =IF('B. PoF Summary Stats & Params'!$C$12="C", B74*'B. PoF Summary Stats & Params'!$I$8*'B. PoF Summary Stats & Params'!$I$6*A74^('B. PoF Summary Stats & Params'!$I$6-1), IF('B. PoF Summary Stats & Params'!$C$12="W", B74*(('B. PoF Summary Stats & Params'!$M$6/'B. PoF Summary Stats & Params'!$M$8)*((A74)/'B. PoF Summary Stats & Params'!$M$8)^('B. PoF Summary Stats & Params'!$M$6-1)), "Choose Model")) -> 0.02506811501 | E74: =IF('B. PoF Summary Stats & Params'!$C$12="C", B74*'B. PoF Summary Stats & Params'!$I$8*'B. PoF Summary Stats & Params'!$I$12*A74^('B. PoF Summary Stats & Params'!$I$12-1), IF('B. PoF Summary Stats & Params'!$C$12="W", B74*(('B. PoF Summary Stats & Params'!$M$12/'B. PoF Summary Stats & Params'!$O$12)*((A74)/'B. PoF Summary Stats & Params'!$O$12)^('B. PoF Summary Stats & Params'!$M$12-1)), "Choose Model")) -> 0.009674500793
A75: 71 | B75: 1 | C75: =IF('B. PoF Summary Stats & Params'!$C$12="C", B75*'B. PoF Summary Stats & Params'!$I$8*'B. PoF Summary Stats & Params'!$I$10*A75^('B. PoF Summary Stats & Params'!$I$10-1), IF('B. PoF Summary Stats & Params'!$C$12="W", B75*(('B. PoF Summary Stats & Params'!$M$14/'B. PoF Summary Stats & Params'!$O$14)*((A75)/'B. PoF Summary Stats & Params'!$O$14)^('B. PoF Summary Stats & Params'!$M$14-1)), "Choose Model")) -> 0.06755493645 | D75: =IF('B. PoF Summary Stats & Params'!$C$12="C", B75*'B. PoF Summary Stats & Params'!$I$8*'B. PoF Summary Stats & Params'!$I$6*A75^('B. PoF Summary Stats & Params'!$I$6-1), IF('B. PoF Summary Stats & Params'!$C$12="W", B75*(('B. PoF Summary Stats & Params'!$M$6/'B. PoF Summary Stats & Params'!$M$8)*((A75)/'B. PoF Summary Stats & Params'!$M$8)^('B. PoF Summary Stats & Params'!$M$6-1)), "Choose Model")) -> 0.02607468072 | E75: =IF('B. PoF Summary Stats & Params'!$C$12="C", B75*'B. PoF Summary Stats & Params'!$I$8*'B. PoF Summary Stats & Params'!$I$12*A75^('B. PoF Summary Stats & Params'!$I$12-1), IF('B. PoF Summary Stats & Params'!$C$12="W", B75*(('B. PoF Summary Stats & Params'!$M$12/'B. PoF Summary Stats & Params'!$O$12)*((A75)/'B. PoF Summary Stats & Params'!$O$12)^('B. PoF Summary Stats & Params'!$M$12-1)), "Choose Model")) -> 0.01003294715
A76: 72 | B76: 1 | C76: =IF('B. PoF Summary Stats & Params'!$C$12="C", B76*'B. PoF Summary Stats & Params'!$I$8*'B. PoF Summary Stats & Params'!$I$10*A76^('B. PoF Summary Stats & Params'!$I$10-1), IF('B. PoF Summary Stats & Params'!$C$12="W", B76*(('B. PoF Summary Stats & Params'!$M$14/'B. PoF Summary Stats & Params'!$O$14)*((A76)/'B. PoF Summary Stats & Params'!$O$14)^('B. PoF Summary Stats & Params'!$M$14-1)), "Choose Model")) -> 0.0704359692 | D76: =IF('B. PoF Summary Stats & Params'!$C$12="C", B76*'B. PoF Summary Stats & Params'!$I$8*'B. PoF Summary Stats & Params'!$I$6*A76^('B. PoF Summary Stats & Params'!$I$6-1), IF('B. PoF Summary Stats & Params'!$C$12="W", B76*(('B. PoF Summary Stats & Params'!$M$6/'B. PoF Summary Stats & Params'!$M$8)*((A76)/'B. PoF Summary Stats & Params'!$M$8)^('B. PoF Summary Stats & Params'!$M$6-1)), "Choose Model")) -> 0.02710673368 | E76: =IF('B. PoF Summary Stats & Params'!$C$12="C", B76*'B. PoF Summary Stats & Params'!$I$8*'B. PoF Summary Stats & Params'!$I$12*A76^('B. PoF Summary Stats & Params'!$I$12-1), IF('B. PoF Summary Stats & Params'!$C$12="W", B76*(('B. PoF Summary Stats & Params'!$M$12/'B. PoF Summary Stats & Params'!$O$12)*((A76)/'B. PoF Summary Stats & Params'!$O$12)^('B. PoF Summary Stats & Params'!$M$12-1)), "Choose Model")) -> 0.01039938121
A77: 73 | B77: 1 | C77: =IF('B. PoF Summary Stats & Params'!$C$12="C", B77*'B. PoF Summary Stats & Params'!$I$8*'B. PoF Summary Stats & Params'!$I$10*A77^('B. PoF Summary Stats & Params'!$I$10-1), IF('B. PoF Summary Stats & Params'!$C$12="W", B77*(('B. PoF Summary Stats & Params'!$M$14/'B. PoF Summary Stats & Params'!$O$14)*((A77)/'B. PoF Summary Stats & Params'!$O$14)^('B. PoF Summary Stats & Params'!$M$14-1)), "Choose Model")) -> 0.0733975766 | D77: =IF('B. PoF Summary Stats & Params'!$C$12="C", B77*'B. PoF Summary Stats & Params'!$I$8*'B. PoF Summary Stats & Params'!$I$6*A77^('B. PoF Summary Stats & Params'!$I$6-1), IF('B. PoF Summary Stats & Params'!$C$12="W", B77*(('B. PoF Summary Stats & Params'!$M$6/'B. PoF Summary Stats & Params'!$M$8)*((A77)/'B. PoF Summary Stats & Params'!$M$8)^('B. PoF Summary Stats & Params'!$M$6-1)), "Choose Model")) -> 0.02816455179 | E77: =IF('B. PoF Summary Stats & Params'!$C$12="C", B77*'B. PoF Summary Stats & Params'!$I$8*'B. PoF Summary Stats & Params'!$I$12*A77^('B. PoF Summary Stats & Params'!$I$12-1), IF('B. PoF Summary Stats & Params'!$C$12="W", B77*(('B. PoF Summary Stats & Params'!$M$12/'B. PoF Summary Stats & Params'!$O$12)*((A77)/'B. PoF Summary Stats & Params'!$O$12)^('B. PoF Summary Stats & Params'!$M$12-1)), "Choose Model")) -> 0.01077386633
A78: 74 | B78: 1 | C78: =IF('B. PoF Summary Stats & Params'!$C$12="C", B78*'B. PoF Summary Stats & Params'!$I$8*'B. PoF Summary Stats & Params'!$I$10*A78^('B. PoF Summary Stats & Params'!$I$10-1), IF('B. PoF Summary Stats & Params'!$C$12="W", B78*(('B. PoF Summary Stats & Params'!$M$14/'B. PoF Summary Stats & Params'!$O$14)*((A78)/'B. PoF Summary Stats & Params'!$O$14)^('B. PoF Summary Stats & Params'!$M$14-1)), "Choose Model")) -> 0.07644086197 | D78: =IF('B. PoF Summary Stats & Params'!$C$12="C", B78*'B. PoF Summary Stats & Params'!$I$8*'B. PoF Summary Stats & Params'!$I$6*A78^('B. PoF Summary Stats & Params'!$I$6-1), IF('B. PoF Summary Stats & Params'!$C$12="W", B78*(('B. PoF Summary Stats & Params'!$M$6/'B. PoF Summary Stats & Params'!$M$8)*((A78)/'B. PoF Summary Stats & Params'!$M$8)^('B. PoF Summary Stats & Params'!$M$6-1)), "Choose Model")) -> 0.0292484121 | E78: =IF('B. PoF Summary Stats & Params'!$C$12="C", B78*'B. PoF Summary Stats & Params'!$I$8*'B. PoF Summary Stats & Params'!$I$12*A78^('B. PoF Summary Stats & Params'!$I$12-1), IF('B. PoF Summary Stats & Params'!$C$12="W", B78*(('B. PoF Summary Stats & Params'!$M$12/'B. PoF Summary Stats & Params'!$O$12)*((A78)/'B. PoF Summary Stats & Params'!$O$12)^('B. PoF Summary Stats & Params'!$M$12-1)), "Choose Model")) -> 0.01115646549
A79: 75 | B79: 1 | C79: =IF('B. PoF Summary Stats & Params'!$C$12="C", B79*'B. PoF Summary Stats & Params'!$I$8*'B. PoF Summary Stats & Params'!$I$10*A79^('B. PoF Summary Stats & Params'!$I$10-1), IF('B. PoF Summary Stats & Params'!$C$12="W", B79*(('B. PoF Summary Stats & Params'!$M$14/'B. PoF Summary Stats & Params'!$O$14)*((A79)/'B. PoF Summary Stats & Params'!$O$14)^('B. PoF Summary Stats & Params'!$M$14-1)), "Choose Model")) -> 0.07956692842 | D79: =IF('B. PoF Summary Stats & Params'!$C$12="C", B79*'B. PoF Summary Stats & Params'!$I$8*'B. PoF Summary Stats & Params'!$I$6*A79^('B. PoF Summary Stats & Params'!$I$6-1), IF('B. PoF Summary Stats & Params'!$C$12="W", B79*(('B. PoF Summary Stats & Params'!$M$6/'B. PoF Summary Stats & Params'!$M$8)*((A79)/'B. PoF Summary Stats & Params'!$M$8)^('B. PoF Summary Stats & Params'!$M$6-1)), "Choose Model")) -> 0.03035859082 | E79: =IF('B. PoF Summary Stats & Params'!$C$12="C", B79*'B. PoF Summary Stats & Params'!$I$8*'B. PoF Summary Stats & Params'!$I$12*A79^('B. PoF Summary Stats & Params'!$I$12-1), IF('B. PoF Summary Stats & Params'!$C$12="W", B79*(('B. PoF Summary Stats & Params'!$M$12/'B. PoF Summary Stats & Params'!$O$12)*((A79)/'B. PoF Summary Stats & Params'!$O$12)^('B. PoF Summary Stats & Params'!$M$12-1)), "Choose Model")) -> 0.01154724126
A80: 76 | B80: 1 | C80: =IF('B. PoF Summary Stats & Params'!$C$12="C", B80*'B. PoF Summary Stats & Params'!$I$8*'B. PoF Summary Stats & Params'!$I$10*A80^('B. PoF Summary Stats & Params'!$I$10-1), IF('B. PoF Summary Stats & Params'!$C$12="W", B80*(('B. PoF Summary Stats & Params'!$M$14/'B. PoF Summary Stats & Params'!$O$14)*((A80)/'B. PoF Summary Stats & Params'!$O$14)^('B. PoF Summary Stats & Params'!$M$14-1)), "Choose Model")) -> 0.08277687885 | D80: =IF('B. PoF Summary Stats & Params'!$C$12="C", B80*'B. PoF Summary Stats & Params'!$I$8*'B. PoF Summary Stats & Params'!$I$6*A80^('B. PoF Summary Stats & Params'!$I$6-1), IF('B. PoF Summary Stats & Params'!$C$12="W", B80*(('B. PoF Summary Stats & Params'!$M$6/'B. PoF Summary Stats & Params'!$M$8)*((A80)/'B. PoF Summary Stats & Params'!$M$8)^('B. PoF Summary Stats & Params'!$M$6-1)), "Choose Model")) -> 0.0314953633 | E80: =IF('B. PoF Summary Stats & Params'!$C$12="C", B80*'B. PoF Summary Stats & Params'!$I$8*'B. PoF Summary Stats & Params'!$I$12*A80^('B. PoF Summary Stats & Params'!$I$12-1), IF('B. PoF Summary Stats & Params'!$C$12="W", B80*(('B. PoF Summary Stats & Params'!$M$12/'B. PoF Summary Stats & Params'!$O$12)*((A80)/'B. PoF Summary Stats & Params'!$O$12)^('B. PoF Summary Stats & Params'!$M$12-1)), "Choose Model")) -> 0.01194625589
A81: 77 | B81: 1 | C81: =IF('B. PoF Summary Stats & Params'!$C$12="C", B81*'B. PoF Summary Stats & Params'!$I$8*'B. PoF Summary Stats & Params'!$I$10*A81^('B. PoF Summary Stats & Params'!$I$10-1), IF('B. PoF Summary Stats & Params'!$C$12="W", B81*(('B. PoF Summary Stats & Params'!$M$14/'B. PoF Summary Stats & Params'!$O$14)*((A81)/'B. PoF Summary Stats & Params'!$O$14)^('B. PoF Summary Stats & Params'!$M$14-1)), "Choose Model")) -> 0.08607181596 | D81: =IF('B. PoF Summary Stats & Params'!$C$12="C", B81*'B. PoF Summary Stats & Params'!$I$8*'B. PoF Summary Stats & Params'!$I$6*A81^('B. PoF Summary Stats & Params'!$I$6-1), IF('B. PoF Summary Stats & Params'!$C$12="W", B81*(('B. PoF Summary Stats & Params'!$M$6/'B. PoF Summary Stats & Params'!$M$8)*((A81)/'B. PoF Summary Stats & Params'!$M$8)^('B. PoF Summary Stats & Params'!$M$6-1)), "Choose Model")) -> 0.03265900407 | E81: =IF('B. PoF Summary Stats & Params'!$C$12="C", B81*'B. PoF Summary Stats & Params'!$I$8*'B. PoF Summary Stats & Params'!$I$12*A81^('B. PoF Summary Stats & Params'!$I$12-1), IF('B. PoF Summary Stats & Params'!$C$12="W", B81*(('B. PoF Summary Stats & Params'!$M$12/'B. PoF Summary Stats & Params'!$O$12)*((A81)/'B. PoF Summary Stats & Params'!$O$12)^('B. PoF Summary Stats & Params'!$M$12-1)), "Choose Model")) -> 0.01235357122
A82: 78 | B82: 1 | C82: =IF('B. PoF Summary Stats & Params'!$C$12="C", B82*'B. PoF Summary Stats & Params'!$I$8*'B. PoF Summary Stats & Params'!$I$10*A82^('B. PoF Summary Stats & Params'!$I$10-1), IF('B. PoF Summary Stats & Params'!$C$12="W", B82*(('B. PoF Summary Stats & Params'!$M$14/'B. PoF Summary Stats & Params'!$O$14)*((A82)/'B. PoF Summary Stats & Params'!$O$14)^('B. PoF Summary Stats & Params'!$M$14-1)), "Choose Model")) -> 0.08945284222 | D82: =IF('B. PoF Summary Stats & Params'!$C$12="C", B82*'B. PoF Summary Stats & Params'!$I$8*'B. PoF Summary Stats & Params'!$I$6*A82^('B. PoF Summary Stats & Params'!$I$6-1), IF('B. PoF Summary Stats & Params'!$C$12="W", B82*(('B. PoF Summary Stats & Params'!$M$6/'B. PoF Summary Stats & Params'!$M$8)*((A82)/'B. PoF Summary Stats & Params'!$M$8)^('B. PoF Summary Stats & Params'!$M$6-1)), "Choose Model")) -> 0.03384978687 | E82: =IF('B. PoF Summary Stats & Params'!$C$12="C", B82*'B. PoF Summary Stats & Params'!$I$8*'B. PoF Summary Stats & Params'!$I$12*A82^('B. PoF Summary Stats & Params'!$I$12-1), IF('B. PoF Summary Stats & Params'!$C$12="W", B82*(('B. PoF Summary Stats & Params'!$M$12/'B. PoF Summary Stats & Params'!$O$12)*((A82)/'B. PoF Summary Stats & Params'!$O$12)^('B. PoF Summary Stats & Params'!$M$12-1)), "Choose Model")) -> 0.01276924879
A83: 79 | B83: 1 | C83: =IF('B. PoF Summary Stats & Params'!$C$12="C", B83*'B. PoF Summary Stats & Params'!$I$8*'B. PoF Summary Stats & Params'!$I$10*A83^('B. PoF Summary Stats & Params'!$I$10-1), IF('B. PoF Summary Stats & Params'!$C$12="W", B83*(('B. PoF Summary Stats & Params'!$M$14/'B. PoF Summary Stats & Params'!$O$14)*((A83)/'B. PoF Summary Stats & Params'!$O$14)^('B. PoF Summary Stats & Params'!$M$14-1)), "Choose Model")) -> 0.09292105994 | D83: =IF('B. PoF Summary Stats & Params'!$C$12="C", B83*'B. PoF Summary Stats & Params'!$I$8*'B. PoF Summary Stats & Params'!$I$6*A83^('B. PoF Summary Stats & Params'!$I$6-1), IF('B. PoF Summary Stats & Params'!$C$12="W", B83*(('B. PoF Summary Stats & Params'!$M$6/'B. PoF Summary Stats & Params'!$M$8)*((A83)/'B. PoF Summary Stats & Params'!$M$8)^('B. PoF Summary Stats & Params'!$M$6-1)), "Choose Model")) -> 0.03506798462 | E83: =IF('B. PoF Summary Stats & Params'!$C$12="C", B83*'B. PoF Summary Stats & Params'!$I$8*'B. PoF Summary Stats & Params'!$I$12*A83^('B. PoF Summary Stats & Params'!$I$12-1), IF('B. PoF Summary Stats & Params'!$C$12="W", B83*(('B. PoF Summary Stats & Params'!$M$12/'B. PoF Summary Stats & Params'!$O$12)*((A83)/'B. PoF Summary Stats & Params'!$O$12)^('B. PoF Summary Stats & Params'!$M$12-1)), "Choose Model")) -> 0.01319334974
A84: 80 | B84: 1 | C84: =IF('B. PoF Summary Stats & Params'!$C$12="C", B84*'B. PoF Summary Stats & Params'!$I$8*'B. PoF Summary Stats & Params'!$I$10*A84^('B. PoF Summary Stats & Params'!$I$10-1), IF('B. PoF Summary Stats & Params'!$C$12="W", B84*(('B. PoF Summary Stats & Params'!$M$14/'B. PoF Summary Stats & Params'!$O$14)*((A84)/'B. PoF Summary Stats & Params'!$O$14)^('B. PoF Summary Stats & Params'!$M$14-1)), "Choose Model")) -> 0.0964775712 | D84: =IF('B. PoF Summary Stats & Params'!$C$12="C", B84*'B. PoF Summary Stats & Params'!$I$8*'B. PoF Summary Stats & Params'!$I$6*A84^('B. PoF Summary Stats & Params'!$I$6-1), IF('B. PoF Summary Stats & Params'!$C$12="W", B84*(('B. PoF Summary Stats & Params'!$M$6/'B. PoF Summary Stats & Params'!$M$8)*((A84)/'B. PoF Summary Stats & Params'!$M$8)^('B. PoF Summary Stats & Params'!$M$6-1)), "Choose Model")) -> 0.03631386947 | E84: =IF('B. PoF Summary Stats & Params'!$C$12="C", B84*'B. PoF Summary Stats & Params'!$I$8*'B. PoF Summary Stats & Params'!$I$12*A84^('B. PoF Summary Stats & Params'!$I$12-1), IF('B. PoF Summary Stats & Params'!$C$12="W", B84*(('B. PoF Summary Stats & Params'!$M$12/'B. PoF Summary Stats & Params'!$O$12)*((A84)/'B. PoF Summary Stats & Params'!$O$12)^('B. PoF Summary Stats & Params'!$M$12-1)), "Choose Model")) -> 0.01362593491
A85: 81 | B85: 1 | C85: =IF('B. PoF Summary Stats & Params'!$C$12="C", B85*'B. PoF Summary Stats & Params'!$I$8*'B. PoF Summary Stats & Params'!$I$10*A85^('B. PoF Summary Stats & Params'!$I$10-1), IF('B. PoF Summary Stats & Params'!$C$12="W", B85*(('B. PoF Summary Stats & Params'!$M$14/'B. PoF Summary Stats & Params'!$O$14)*((A85)/'B. PoF Summary Stats & Params'!$O$14)^('B. PoF Summary Stats & Params'!$M$14-1)), "Choose Model")) -> 0.1001234779 | D85: =IF('B. PoF Summary Stats & Params'!$C$12="C", B85*'B. PoF Summary Stats & Params'!$I$8*'B. PoF Summary Stats & Params'!$I$6*A85^('B. PoF Summary Stats & Params'!$I$6-1), IF('B. PoF Summary Stats & Params'!$C$12="W", B85*(('B. PoF Summary Stats & Params'!$M$6/'B. PoF Summary Stats & Params'!$M$8)*((A85)/'B. PoF Summary Stats & Params'!$M$8)^('B. PoF Summary Stats & Params'!$M$6-1)), "Choose Model")) -> 0.03758771279 | E85: =IF('B. PoF Summary Stats & Params'!$C$12="C", B85*'B. PoF Summary Stats & Params'!$I$8*'B. PoF Summary Stats & Params'!$I$12*A85^('B. PoF Summary Stats & Params'!$I$12-1), IF('B. PoF Summary Stats & Params'!$C$12="W", B85*(('B. PoF Summary Stats & Params'!$M$12/'B. PoF Summary Stats & Params'!$O$12)*((A85)/'B. PoF Summary Stats & Params'!$O$12)^('B. PoF Summary Stats & Params'!$M$12-1)), "Choose Model")) -> 0.0140670648
A86: 82 | B86: 1 | C86: =IF('B. PoF Summary Stats & Params'!$C$12="C", B86*'B. PoF Summary Stats & Params'!$I$8*'B. PoF Summary Stats & Params'!$I$10*A86^('B. PoF Summary Stats & Params'!$I$10-1), IF('B. PoF Summary Stats & Params'!$C$12="W", B86*(('B. PoF Summary Stats & Params'!$M$14/'B. PoF Summary Stats & Params'!$O$14)*((A86)/'B. PoF Summary Stats & Params'!$O$14)^('B. PoF Summary Stats & Params'!$M$14-1)), "Choose Model")) -> 0.1038598817 | D86: =IF('B. PoF Summary Stats & Params'!$C$12="C", B86*'B. PoF Summary Stats & Params'!$I$8*'B. PoF Summary Stats & Params'!$I$6*A86^('B. PoF Summary Stats & Params'!$I$6-1), IF('B. PoF Summary Stats & Params'!$C$12="W", B86*(('B. PoF Summary Stats & Params'!$M$6/'B. PoF Summary Stats & Params'!$M$8)*((A86)/'B. PoF Summary Stats & Params'!$M$8)^('B. PoF Summary Stats & Params'!$M$6-1)), "Choose Model")) -> 0.03888978518 | E86: =IF('B. PoF Summary Stats & Params'!$C$12="C", B86*'B. PoF Summary Stats & Params'!$I$8*'B. PoF Summary Stats & Params'!$I$12*A86^('B. PoF Summary Stats & Params'!$I$12-1), IF('B. PoF Summary Stats & Params'!$C$12="W", B86*(('B. PoF Summary Stats & Params'!$M$12/'B. PoF Summary Stats & Params'!$O$12)*((A86)/'B. PoF Summary Stats & Params'!$O$12)^('B. PoF Summary Stats & Params'!$M$12-1)), "Choose Model")) -> 0.01451679955
A87: 83 | B87: 1 | C87: =IF('B. PoF Summary Stats & Params'!$C$12="C", B87*'B. PoF Summary Stats & Params'!$I$8*'B. PoF Summary Stats & Params'!$I$10*A87^('B. PoF Summary Stats & Params'!$I$10-1), IF('B. PoF Summary Stats & Params'!$C$12="W", B87*(('B. PoF Summary Stats & Params'!$M$14/'B. PoF Summary Stats & Params'!$O$14)*((A87)/'B. PoF Summary Stats & Params'!$O$14)^('B. PoF Summary Stats & Params'!$M$14-1)), "Choose Model")) -> 0.1076878842 | D87: =IF('B. PoF Summary Stats & Params'!$C$12="C", B87*'B. PoF Summary Stats & Params'!$I$8*'B. PoF Summary Stats & Params'!$I$6*A87^('B. PoF Summary Stats & Params'!$I$6-1), IF('B. PoF Summary Stats & Params'!$C$12="W", B87*(('B. PoF Summary Stats & Params'!$M$6/'B. PoF Summary Stats & Params'!$M$8)*((A87)/'B. PoF Summary Stats & Params'!$M$8)^('B. PoF Summary Stats & Params'!$M$6-1)), "Choose Model")) -> 0.04022035651 | E87: =IF('B. PoF Summary Stats & Params'!$C$12="C", B87*'B. PoF Summary Stats & Params'!$I$8*'B. PoF Summary Stats & Params'!$I$12*A87^('B. PoF Summary Stats & Params'!$I$12-1), IF('B. PoF Summary Stats & Params'!$C$12="W", B87*(('B. PoF Summary Stats & Params'!$M$12/'B. PoF Summary Stats & Params'!$O$12)*((A87)/'B. PoF Summary Stats & Params'!$O$12)^('B. PoF Summary Stats & Params'!$M$12-1)), "Choose Model")) -> 0.01497519902
A88: 84 | B88: 1 | C88: =IF('B. PoF Summary Stats & Params'!$C$12="C", B88*'B. PoF Summary Stats & Params'!$I$8*'B. PoF Summary Stats & Params'!$I$10*A88^('B. PoF Summary Stats & Params'!$I$10-1), IF('B. PoF Summary Stats & Params'!$C$12="W", B88*(('B. PoF Summary Stats & Params'!$M$14/'B. PoF Summary Stats & Params'!$O$14)*((A88)/'B. PoF Summary Stats & Params'!$O$14)^('B. PoF Summary Stats & Params'!$M$14-1)), "Choose Model")) -> 0.1116085867 | D88: =IF('B. PoF Summary Stats & Params'!$C$12="C", B88*'B. PoF Summary Stats & Params'!$I$8*'B. PoF Summary Stats & Params'!$I$6*A88^('B. PoF Summary Stats & Params'!$I$6-1), IF('B. PoF Summary Stats & Params'!$C$12="W", B88*(('B. PoF Summary Stats & Params'!$M$6/'B. PoF Summary Stats & Params'!$M$8)*((A88)/'B. PoF Summary Stats & Params'!$M$8)^('B. PoF Summary Stats & Params'!$M$6-1)), "Choose Model")) -> 0.04157969591 | E88: =IF('B. PoF Summary Stats & Params'!$C$12="C", B88*'B. PoF Summary Stats & Params'!$I$8*'B. PoF Summary Stats & Params'!$I$12*A88^('B. PoF Summary Stats & Params'!$I$12-1), IF('B. PoF Summary Stats & Params'!$C$12="W", B88*(('B. PoF Summary Stats & Params'!$M$12/'B. PoF Summary Stats & Params'!$O$12)*((A88)/'B. PoF Summary Stats & Params'!$O$12)^('B. PoF Summary Stats & Params'!$M$12-1)), "Choose Model")) -> 0.01544232273
A89: 85 | B89: 1 | C89: =IF('B. PoF Summary Stats & Params'!$C$12="C", B89*'B. PoF Summary Stats & Params'!$I$8*'B. PoF Summary Stats & Params'!$I$10*A89^('B. PoF Summary Stats & Params'!$I$10-1), IF('B. PoF Summary Stats & Params'!$C$12="W", B89*(('B. PoF Summary Stats & Params'!$M$14/'B. PoF Summary Stats & Params'!$O$14)*((A89)/'B. PoF Summary Stats & Params'!$O$14)^('B. PoF Summary Stats & Params'!$M$14-1)), "Choose Model")) -> 0.1156230903 | D89: =IF('B. PoF Summary Stats & Params'!$C$12="C", B89*'B. PoF Summary Stats & Params'!$I$8*'B. PoF Summary Stats & Params'!$I$6*A89^('B. PoF Summary Stats & Params'!$I$6-1), IF('B. PoF Summary Stats & Params'!$C$12="W", B89*(('B. PoF Summary Stats & Params'!$M$6/'B. PoF Summary Stats & Params'!$M$8)*((A89)/'B. PoF Summary Stats & Params'!$M$8)^('B. PoF Summary Stats & Params'!$M$6-1)), "Choose Model")) -> 0.04296807176 | E89: =IF('B. PoF Summary Stats & Params'!$C$12="C", B89*'B. PoF Summary Stats & Params'!$I$8*'B. PoF Summary Stats & Params'!$I$12*A89^('B. PoF Summary Stats & Params'!$I$12-1), IF('B. PoF Summary Stats & Params'!$C$12="W", B89*(('B. PoF Summary Stats & Params'!$M$12/'B. PoF Summary Stats & Params'!$O$12)*((A89)/'B. PoF Summary Stats & Params'!$O$12)^('B. PoF Summary Stats & Params'!$M$12-1)), "Choose Model")) -> 0.01591822988
A90: 86 | B90: 1 | C90: =IF('B. PoF Summary Stats & Params'!$C$12="C", B90*'B. PoF Summary Stats & Params'!$I$8*'B. PoF Summary Stats & Params'!$I$10*A90^('B. PoF Summary Stats & Params'!$I$10-1), IF('B. PoF Summary Stats & Params'!$C$12="W", B90*(('B. PoF Summary Stats & Params'!$M$14/'B. PoF Summary Stats & Params'!$O$14)*((A90)/'B. PoF Summary Stats & Params'!$O$14)^('B. PoF Summary Stats & Params'!$M$14-1)), "Choose Model")) -> 0.119732496 | D90: =IF('B. PoF Summary Stats & Params'!$C$12="C", B90*'B. PoF Summary Stats & Params'!$I$8*'B. PoF Summary Stats & Params'!$I$6*A90^('B. PoF Summary Stats & Params'!$I$6-1), IF('B. PoF Summary Stats & Params'!$C$12="W", B90*(('B. PoF Summary Stats & Params'!$M$6/'B. PoF Summary Stats & Params'!$M$8)*((A90)/'B. PoF Summary Stats & Params'!$M$8)^('B. PoF Summary Stats & Params'!$M$6-1)), "Choose Model")) -> 0.04438575176 | E90: =IF('B. PoF Summary Stats & Params'!$C$12="C", B90*'B. PoF Summary Stats & Params'!$I$8*'B. PoF Summary Stats & Params'!$I$12*A90^('B. PoF Summary Stats & Params'!$I$12-1), IF('B. PoF Summary Stats & Params'!$C$12="W", B90*(('B. PoF Summary Stats & Params'!$M$12/'B. PoF Summary Stats & Params'!$O$12)*((A90)/'B. PoF Summary Stats & Params'!$O$12)^('B. PoF Summary Stats & Params'!$M$12-1)), "Choose Model")) -> 0.01640297939
A91: 87 | B91: 1 | C91: =IF('B. PoF Summary Stats & Params'!$C$12="C", B91*'B. PoF Summary Stats & Params'!$I$8*'B. PoF Summary Stats & Params'!$I$10*A91^('B. PoF Summary Stats & Params'!$I$10-1), IF('B. PoF Summary Stats & Params'!$C$12="W", B91*(('B. PoF Summary Stats & Params'!$M$14/'B. PoF Summary Stats & Params'!$O$14)*((A91)/'B. PoF Summary Stats & Params'!$O$14)^('B. PoF Summary Stats & Params'!$M$14-1)), "Choose Model")) -> 0.1239379045 | D91: =IF('B. PoF Summary Stats & Params'!$C$12="C", B91*'B. PoF Summary Stats & Params'!$I$8*'B. PoF Summary Stats & Params'!$I$6*A91^('B. PoF Summary Stats & Params'!$I$6-1), IF('B. PoF Summary Stats & Params'!$C$12="W", B91*(('B. PoF Summary Stats & Params'!$M$6/'B. PoF Summary Stats & Params'!$M$8)*((A91)/'B. PoF Summary Stats & Params'!$M$8)^('B. PoF Summary Stats & Params'!$M$6-1)), "Choose Model")) -> 0.04583300286 | E91: =IF('B. PoF Summary Stats & Params'!$C$12="C", B91*'B. PoF Summary Stats & Params'!$I$8*'B. PoF Summary Stats & Params'!$I$12*A91^('B. PoF Summary Stats & Params'!$I$12-1), IF('B. PoF Summary Stats & Params'!$C$12="W", B91*(('B. PoF Summary Stats & Params'!$M$12/'B. PoF Summary Stats & Params'!$O$12)*((A91)/'B. PoF Summary Stats & Params'!$O$12)^('B. PoF Summary Stats & Params'!$M$12-1)), "Choose Model")) -> 0.01689662987
A92: 88 | B92: 1 | C92: =IF('B. PoF Summary Stats & Params'!$C$12="C", B92*'B. PoF Summary Stats & Params'!$I$8*'B. PoF Summary Stats & Params'!$I$10*A92^('B. PoF Summary Stats & Params'!$I$10-1), IF('B. PoF Summary Stats & Params'!$C$12="W", B92*(('B. PoF Summary Stats & Params'!$M$14/'B. PoF Summary Stats & Params'!$O$14)*((A92)/'B. PoF Summary Stats & Params'!$O$14)^('B. PoF Summary Stats & Params'!$M$14-1)), "Choose Model")) -> 0.1282404164 | D92: =IF('B. PoF Summary Stats & Params'!$C$12="C", B92*'B. PoF Summary Stats & Params'!$I$8*'B. PoF Summary Stats & Params'!$I$6*A92^('B. PoF Summary Stats & Params'!$I$6-1), IF('B. PoF Summary Stats & Params'!$C$12="W", B92*(('B. PoF Summary Stats & Params'!$M$6/'B. PoF Summary Stats & Params'!$M$8)*((A92)/'B. PoF Summary Stats & Params'!$M$8)^('B. PoF Summary Stats & Params'!$M$6-1)), "Choose Model")) -> 0.04731009134 | E92: =IF('B. PoF Summary Stats & Params'!$C$12="C", B92*'B. PoF Summary Stats & Params'!$I$8*'B. PoF Summary Stats & Params'!$I$12*A92^('B. PoF Summary Stats & Params'!$I$12-1), IF('B. PoF Summary Stats & Params'!$C$12="W", B92*(('B. PoF Summary Stats & Params'!$M$12/'B. PoF Summary Stats & Params'!$O$12)*((A92)/'B. PoF Summary Stats & Params'!$O$12)^('B. PoF Summary Stats & Params'!$M$12-1)), "Choose Model")) -> 0.01739923961
A93: 89 | B93: 1 | C93: =IF('B. PoF Summary Stats & Params'!$C$12="C", B93*'B. PoF Summary Stats & Params'!$I$8*'B. PoF Summary Stats & Params'!$I$10*A93^('B. PoF Summary Stats & Params'!$I$10-1), IF('B. PoF Summary Stats & Params'!$C$12="W", B93*(('B. PoF Summary Stats & Params'!$M$14/'B. PoF Summary Stats & Params'!$O$14)*((A93)/'B. PoF Summary Stats & Params'!$O$14)^('B. PoF Summary Stats & Params'!$M$14-1)), "Choose Model")) -> 0.1326411322 | D93: =IF('B. PoF Summary Stats & Params'!$C$12="C", B93*'B. PoF Summary Stats & Params'!$I$8*'B. PoF Summary Stats & Params'!$I$6*A93^('B. PoF Summary Stats & Params'!$I$6-1), IF('B. PoF Summary Stats & Params'!$C$12="W", B93*(('B. PoF Summary Stats & Params'!$M$6/'B. PoF Summary Stats & Params'!$M$8)*((A93)/'B. PoF Summary Stats & Params'!$M$8)^('B. PoF Summary Stats & Params'!$M$6-1)), "Choose Model")) -> 0.04881728281 | E93: =IF('B. PoF Summary Stats & Params'!$C$12="C", B93*'B. PoF Summary Stats & Params'!$I$8*'B. PoF Summary Stats & Params'!$I$12*A93^('B. PoF Summary Stats & Params'!$I$12-1), IF('B. PoF Summary Stats & Params'!$C$12="W", B93*(('B. PoF Summary Stats & Params'!$M$12/'B. PoF Summary Stats & Params'!$O$12)*((A93)/'B. PoF Summary Stats & Params'!$O$12)^('B. PoF Summary Stats & Params'!$M$12-1)), "Choose Model")) -> 0.01791086665
A94: 90 | B94: 1 | C94: =IF('B. PoF Summary Stats & Params'!$C$12="C", B94*'B. PoF Summary Stats & Params'!$I$8*'B. PoF Summary Stats & Params'!$I$10*A94^('B. PoF Summary Stats & Params'!$I$10-1), IF('B. PoF Summary Stats & Params'!$C$12="W", B94*(('B. PoF Summary Stats & Params'!$M$14/'B. PoF Summary Stats & Params'!$O$14)*((A94)/'B. PoF Summary Stats & Params'!$O$14)^('B. PoF Summary Stats & Params'!$M$14-1)), "Choose Model")) -> 0.1371411521 | D94: =IF('B. PoF Summary Stats & Params'!$C$12="C", B94*'B. PoF Summary Stats & Params'!$I$8*'B. PoF Summary Stats & Params'!$I$6*A94^('B. PoF Summary Stats & Params'!$I$6-1), IF('B. PoF Summary Stats & Params'!$C$12="W", B94*(('B. PoF Summary Stats & Params'!$M$6/'B. PoF Summary Stats & Params'!$M$8)*((A94)/'B. PoF Summary Stats & Params'!$M$8)^('B. PoF Summary Stats & Params'!$M$6-1)), "Choose Model")) -> 0.05035484216 | E94: =IF('B. PoF Summary Stats & Params'!$C$12="C", B94*'B. PoF Summary Stats & Params'!$I$8*'B. PoF Summary Stats & Params'!$I$12*A94^('B. PoF Summary Stats & Params'!$I$12-1), IF('B. PoF Summary Stats & Params'!$C$12="W", B94*(('B. PoF Summary Stats & Params'!$M$12/'B. PoF Summary Stats & Params'!$O$12)*((A94)/'B. PoF Summary Stats & Params'!$O$12)^('B. PoF Summary Stats & Params'!$M$12-1)), "Choose Model")) -> 0.01843156872
A95: 91 | B95: 1 | C95: =IF('B. PoF Summary Stats & Params'!$C$12="C", B95*'B. PoF Summary Stats & Params'!$I$8*'B. PoF Summary Stats & Params'!$I$10*A95^('B. PoF Summary Stats & Params'!$I$10-1), IF('B. PoF Summary Stats & Params'!$C$12="W", B95*(('B. PoF Summary Stats & Params'!$M$14/'B. PoF Summary Stats & Params'!$O$14)*((A95)/'B. PoF Summary Stats & Params'!$O$14)^('B. PoF Summary Stats & Params'!$M$14-1)), "Choose Model")) -> 0.1417415762 | D95: =IF('B. PoF Summary Stats & Params'!$C$12="C", B95*'B. PoF Summary Stats & Params'!$I$8*'B. PoF Summary Stats & Params'!$I$6*A95^('B. PoF Summary Stats & Params'!$I$6-1), IF('B. PoF Summary Stats & Params'!$C$12="W", B95*(('B. PoF Summary Stats & Params'!$M$6/'B. PoF Summary Stats & Params'!$M$8)*((A95)/'B. PoF Summary Stats & Params'!$M$8)^('B. PoF Summary Stats & Params'!$M$6-1)), "Choose Model")) -> 0.05192303364 | E95: =IF('B. PoF Summary Stats & Params'!$C$12="C", B95*'B. PoF Summary Stats & Params'!$I$8*'B. PoF Summary Stats & Params'!$I$12*A95^('B. PoF Summary Stats & Params'!$I$12-1), IF('B. PoF Summary Stats & Params'!$C$12="W", B95*(('B. PoF Summary Stats & Params'!$M$12/'B. PoF Summary Stats & Params'!$O$12)*((A95)/'B. PoF Summary Stats & Params'!$O$12)^('B. PoF Summary Stats & Params'!$M$12-1)), "Choose Model")) -> 0.01896140326
A96: 92 | B96: 1 | C96: =IF('B. PoF Summary Stats & Params'!$C$12="C", B96*'B. PoF Summary Stats & Params'!$I$8*'B. PoF Summary Stats & Params'!$I$10*A96^('B. PoF Summary Stats & Params'!$I$10-1), IF('B. PoF Summary Stats & Params'!$C$12="W", B96*(('B. PoF Summary Stats & Params'!$M$14/'B. PoF Summary Stats & Params'!$O$14)*((A96)/'B. PoF Summary Stats & Params'!$O$14)^('B. PoF Summary Stats & Params'!$M$14-1)), "Choose Model")) -> 0.1464435044 | D96: =IF('B. PoF Summary Stats & Params'!$C$12="C", B96*'B. PoF Summary Stats & Params'!$I$8*'B. PoF Summary Stats & Params'!$I$6*A96^('B. PoF Summary Stats & Params'!$I$6-1), IF('B. PoF Summary Stats & Params'!$C$12="W", B96*(('B. PoF Summary Stats & Params'!$M$6/'B. PoF Summary Stats & Params'!$M$8)*((A96)/'B. PoF Summary Stats & Params'!$M$8)^('B. PoF Summary Stats & Params'!$M$6-1)), "Choose Model")) -> 0.05352212085 | E96: =IF('B. PoF Summary Stats & Params'!$C$12="C", B96*'B. PoF Summary Stats & Params'!$I$8*'B. PoF Summary Stats & Params'!$I$12*A96^('B. PoF Summary Stats & Params'!$I$12-1), IF('B. PoF Summary Stats & Params'!$C$12="W", B96*(('B. PoF Summary Stats & Params'!$M$12/'B. PoF Summary Stats & Params'!$O$12)*((A96)/'B. PoF Summary Stats & Params'!$O$12)^('B. PoF Summary Stats & Params'!$M$12-1)), "Choose Model")) -> 0.01950042745
A97: 93 | B97: 1 | C97: =IF('B. PoF Summary Stats & Params'!$C$12="C", B97*'B. PoF Summary Stats & Params'!$I$8*'B. PoF Summary Stats & Params'!$I$10*A97^('B. PoF Summary Stats & Params'!$I$10-1), IF('B. PoF Summary Stats & Params'!$C$12="W", B97*(('B. PoF Summary Stats & Params'!$M$14/'B. PoF Summary Stats & Params'!$O$14)*((A97)/'B. PoF Summary Stats & Params'!$O$14)^('B. PoF Summary Stats & Params'!$M$14-1)), "Choose Model")) -> 0.1512480363 | D97: =IF('B. PoF Summary Stats & Params'!$C$12="C", B97*'B. PoF Summary Stats & Params'!$I$8*'B. PoF Summary Stats & Params'!$I$6*A97^('B. PoF Summary Stats & Params'!$I$6-1), IF('B. PoF Summary Stats & Params'!$C$12="W", B97*(('B. PoF Summary Stats & Params'!$M$6/'B. PoF Summary Stats & Params'!$M$8)*((A97)/'B. PoF Summary Stats & Params'!$M$8)^('B. PoF Summary Stats & Params'!$M$6-1)), "Choose Model")) -> 0.05515236671 | E97: =IF('B. PoF Summary Stats & Params'!$C$12="C", B97*'B. PoF Summary Stats & Params'!$I$8*'B. PoF Summary Stats & Params'!$I$12*A97^('B. PoF Summary Stats & Params'!$I$12-1), IF('B. PoF Summary Stats & Params'!$C$12="W", B97*(('B. PoF Summary Stats & Params'!$M$12/'B. PoF Summary Stats & Params'!$O$12)*((A97)/'B. PoF Summary Stats & Params'!$O$12)^('B. PoF Summary Stats & Params'!$M$12-1)), "Choose Model")) -> 0.02004869819
A98: 94 | B98: 1 | C98: =IF('B. PoF Summary Stats & Params'!$C$12="C", B98*'B. PoF Summary Stats & Params'!$I$8*'B. PoF Summary Stats & Params'!$I$10*A98^('B. PoF Summary Stats & Params'!$I$10-1), IF('B. PoF Summary Stats & Params'!$C$12="W", B98*(('B. PoF Summary Stats & Params'!$M$14/'B. PoF Summary Stats & Params'!$O$14)*((A98)/'B. PoF Summary Stats & Params'!$O$14)^('B. PoF Summary Stats & Params'!$M$14-1)), "Choose Model")) -> 0.1561562717 | D98: =IF('B. PoF Summary Stats & Params'!$C$12="C", B98*'B. PoF Summary Stats & Params'!$I$8*'B. PoF Summary Stats & Params'!$I$6*A98^('B. PoF Summary Stats & Params'!$I$6-1), IF('B. PoF Summary Stats & Params'!$C$12="W", B98*(('B. PoF Summary Stats & Params'!$M$6/'B. PoF Summary Stats & Params'!$M$8)*((A98)/'B. PoF Summary Stats & Params'!$M$8)^('B. PoF Summary Stats & Params'!$M$6-1)), "Choose Model")) -> 0.05681403352 | E98: =IF('B. PoF Summary Stats & Params'!$C$12="C", B98*'B. PoF Summary Stats & Params'!$I$8*'B. PoF Summary Stats & Params'!$I$12*A98^('B. PoF Summary Stats & Params'!$I$12-1), IF('B. PoF Summary Stats & Params'!$C$12="W", B98*(('B. PoF Summary Stats & Params'!$M$12/'B. PoF Summary Stats & Params'!$O$12)*((A98)/'B. PoF Summary Stats & Params'!$O$12)^('B. PoF Summary Stats & Params'!$M$12-1)), "Choose Model")) -> 0.02060627211
A99: 95 | B99: 1 | C99: =IF('B. PoF Summary Stats & Params'!$C$12="C", B99*'B. PoF Summary Stats & Params'!$I$8*'B. PoF Summary Stats & Params'!$I$10*A99^('B. PoF Summary Stats & Params'!$I$10-1), IF('B. PoF Summary Stats & Params'!$C$12="W", B99*(('B. PoF Summary Stats & Params'!$M$14/'B. PoF Summary Stats & Params'!$O$14)*((A99)/'B. PoF Summary Stats & Params'!$O$14)^('B. PoF Summary Stats & Params'!$M$14-1)), "Choose Model")) -> 0.1611693097 | D99: =IF('B. PoF Summary Stats & Params'!$C$12="C", B99*'B. PoF Summary Stats & Params'!$I$8*'B. PoF Summary Stats & Params'!$I$6*A99^('B. PoF Summary Stats & Params'!$I$6-1), IF('B. PoF Summary Stats & Params'!$C$12="W", B99*(('B. PoF Summary Stats & Params'!$M$6/'B. PoF Summary Stats & Params'!$M$8)*((A99)/'B. PoF Summary Stats & Params'!$M$8)^('B. PoF Summary Stats & Params'!$M$6-1)), "Choose Model")) -> 0.05850738294 | E99: =IF('B. PoF Summary Stats & Params'!$C$12="C", B99*'B. PoF Summary Stats & Params'!$I$8*'B. PoF Summary Stats & Params'!$I$12*A99^('B. PoF Summary Stats & Params'!$I$12-1), IF('B. PoF Summary Stats & Params'!$C$12="W", B99*(('B. PoF Summary Stats & Params'!$M$12/'B. PoF Summary Stats & Params'!$O$12)*((A99)/'B. PoF Summary Stats & Params'!$O$12)^('B. PoF Summary Stats & Params'!$M$12-1)), "Choose Model")) -> 0.02117320558
A100: 96 | B100: 1 | C100: =IF('B. PoF Summary Stats & Params'!$C$12="C", B100*'B. PoF Summary Stats & Params'!$I$8*'B. PoF Summary Stats & Params'!$I$10*A100^('B. PoF Summary Stats & Params'!$I$10-1), IF('B. PoF Summary Stats & Params'!$C$12="W", B100*(('B. PoF Summary Stats & Params'!$M$14/'B. PoF Summary Stats & Params'!$O$14)*((A100)/'B. PoF Summary Stats & Params'!$O$14)^('B. PoF Summary Stats & Params'!$M$14-1)), "Choose Model")) -> 0.1662882498 | D100: =IF('B. PoF Summary Stats & Params'!$C$12="C", B100*'B. PoF Summary Stats & Params'!$I$8*'B. PoF Summary Stats & Params'!$I$6*A100^('B. PoF Summary Stats & Params'!$I$6-1), IF('B. PoF Summary Stats & Params'!$C$12="W", B100*(('B. PoF Summary Stats & Params'!$M$6/'B. PoF Summary Stats & Params'!$M$8)*((A100)/'B. PoF Summary Stats & Params'!$M$8)^('B. PoF Summary Stats & Params'!$M$6-1)), "Choose Model")) -> 0.06023267602 | E100: =IF('B. PoF Summary Stats & Params'!$C$12="C", B100*'B. PoF Summary Stats & Params'!$I$8*'B. PoF Summary Stats & Params'!$I$12*A100^('B. PoF Summary Stats & Params'!$I$12-1), IF('B. PoF Summary Stats & Params'!$C$12="W", B100*(('B. PoF Summary Stats & Params'!$M$12/'B. PoF Summary Stats & Params'!$O$12)*((A100)/'B. PoF Summary Stats & Params'!$O$12)^('B. PoF Summary Stats & Params'!$M$12-1)), "Choose Model")) -> 0.02174955472
A101: 97 | B101: 1 | C101: =IF('B. PoF Summary Stats & Params'!$C$12="C", B101*'B. PoF Summary Stats & Params'!$I$8*'B. PoF Summary Stats & Params'!$I$10*A101^('B. PoF Summary Stats & Params'!$I$10-1), IF('B. PoF Summary Stats & Params'!$C$12="W", B101*(('B. PoF Summary Stats & Params'!$M$14/'B. PoF Summary Stats & Params'!$O$14)*((A101)/'B. PoF Summary Stats & Params'!$O$14)^('B. PoF Summary Stats & Params'!$M$14-1)), "Choose Model")) -> 0.1715141909 | D101: =IF('B. PoF Summary Stats & Params'!$C$12="C", B101*'B. PoF Summary Stats & Params'!$I$8*'B. PoF Summary Stats & Params'!$I$6*A101^('B. PoF Summary Stats & Params'!$I$6-1), IF('B. PoF Summary Stats & Params'!$C$12="W", B101*(('B. PoF Summary Stats & Params'!$M$6/'B. PoF Summary Stats & Params'!$M$8)*((A101)/'B. PoF Summary Stats & Params'!$M$8)^('B. PoF Summary Stats & Params'!$M$6-1)), "Choose Model")) -> 0.06199017317 | E101: =IF('B. PoF Summary Stats & Params'!$C$12="C", B101*'B. PoF Summary Stats & Params'!$I$8*'B. PoF Summary Stats & Params'!$I$12*A101^('B. PoF Summary Stats & Params'!$I$12-1), IF('B. PoF Summary Stats & Params'!$C$12="W", B101*(('B. PoF Summary Stats & Params'!$M$12/'B. PoF Summary Stats & Params'!$O$12)*((A101)/'B. PoF Summary Stats & Params'!$O$12)^('B. PoF Summary Stats & Params'!$M$12-1)), "Choose Model")) -> 0.02233537537
A102: 98 | B102: 1 | C102: =IF('B. PoF Summary Stats & Params'!$C$12="C", B102*'B. PoF Summary Stats & Params'!$I$8*'B. PoF Summary Stats & Params'!$I$10*A102^('B. PoF Summary Stats & Params'!$I$10-1), IF('B. PoF Summary Stats & Params'!$C$12="W", B102*(('B. PoF Summary Stats & Params'!$M$14/'B. PoF Summary Stats & Params'!$O$14)*((A102)/'B. PoF Summary Stats & Params'!$O$14)^('B. PoF Summary Stats & Params'!$M$14-1)), "Choose Model")) -> 0.176848232 | D102: =IF('B. PoF Summary Stats & Params'!$C$12="C", B102*'B. PoF Summary Stats & Params'!$I$8*'B. PoF Summary Stats & Params'!$I$6*A102^('B. PoF Summary Stats & Params'!$I$6-1), IF('B. PoF Summary Stats & Params'!$C$12="W", B102*(('B. PoF Summary Stats & Params'!$M$6/'B. PoF Summary Stats & Params'!$M$8)*((A102)/'B. PoF Summary Stats & Params'!$M$8)^('B. PoF Summary Stats & Params'!$M$6-1)), "Choose Model")) -> 0.06378013421 | E102: =IF('B. PoF Summary Stats & Params'!$C$12="C", B102*'B. PoF Summary Stats & Params'!$I$8*'B. PoF Summary Stats & Params'!$I$12*A102^('B. PoF Summary Stats & Params'!$I$12-1), IF('B. PoF Summary Stats & Params'!$C$12="W", B102*(('B. PoF Summary Stats & Params'!$M$12/'B. PoF Summary Stats & Params'!$O$12)*((A102)/'B. PoF Summary Stats & Params'!$O$12)^('B. PoF Summary Stats & Params'!$M$12-1)), "Choose Model")) -> 0.02293072312
A103: 99 | B103: 1 | C103: =IF('B. PoF Summary Stats & Params'!$C$12="C", B103*'B. PoF Summary Stats & Params'!$I$8*'B. PoF Summary Stats & Params'!$I$10*A103^('B. PoF Summary Stats & Params'!$I$10-1), IF('B. PoF Summary Stats & Params'!$C$12="W", B103*(('B. PoF Summary Stats & Params'!$M$14/'B. PoF Summary Stats & Params'!$O$14)*((A103)/'B. PoF Summary Stats & Params'!$O$14)^('B. PoF Summary Stats & Params'!$M$14-1)), "Choose Model")) -> 0.1822914719 | D103: =IF('B. PoF Summary Stats & Params'!$C$12="C", B103*'B. PoF Summary Stats & Params'!$I$8*'B. PoF Summary Stats & Params'!$I$6*A103^('B. PoF Summary Stats & Params'!$I$6-1), IF('B. PoF Summary Stats & Params'!$C$12="W", B103*(('B. PoF Summary Stats & Params'!$M$6/'B. PoF Summary Stats & Params'!$M$8)*((A103)/'B. PoF Summary Stats & Params'!$M$8)^('B. PoF Summary Stats & Params'!$M$6-1)), "Choose Model")) -> 0.06560281834 | E103: =IF('B. PoF Summary Stats & Params'!$C$12="C", B103*'B. PoF Summary Stats & Params'!$I$8*'B. PoF Summary Stats & Params'!$I$12*A103^('B. PoF Summary Stats & Params'!$I$12-1), IF('B. PoF Summary Stats & Params'!$C$12="W", B103*(('B. PoF Summary Stats & Params'!$M$12/'B. PoF Summary Stats & Params'!$O$12)*((A103)/'B. PoF Summary Stats & Params'!$O$12)^('B. PoF Summary Stats & Params'!$M$12-1)), "Choose Model")) -> 0.02353565334
A104: 100 | B104: 1 | C104: =IF('B. PoF Summary Stats & Params'!$C$12="C", B104*'B. PoF Summary Stats & Params'!$I$8*'B. PoF Summary Stats & Params'!$I$10*A104^('B. PoF Summary Stats & Params'!$I$10-1), IF('B. PoF Summary Stats & Params'!$C$12="W", B104*(('B. PoF Summary Stats & Params'!$M$14/'B. PoF Summary Stats & Params'!$O$14)*((A104)/'B. PoF Summary Stats & Params'!$O$14)^('B. PoF Summary Stats & Params'!$M$14-1)), "Choose Model")) -> 0.187845009 | D104: =IF('B. PoF Summary Stats & Params'!$C$12="C", B104*'B. PoF Summary Stats & Params'!$I$8*'B. PoF Summary Stats & Params'!$I$6*A104^('B. PoF Summary Stats & Params'!$I$6-1), IF('B. PoF Summary Stats & Params'!$C$12="W", B104*(('B. PoF Summary Stats & Params'!$M$6/'B. PoF Summary Stats & Params'!$M$8)*((A104)/'B. PoF Summary Stats & Params'!$M$8)^('B. PoF Summary Stats & Params'!$M$6-1)), "Choose Model")) -> 0.06745848419 | E104: =IF('B. PoF Summary Stats & Params'!$C$12="C", B104*'B. PoF Summary Stats & Params'!$I$8*'B. PoF Summary Stats & Params'!$I$12*A104^('B. PoF Summary Stats & Params'!$I$12-1), IF('B. PoF Summary Stats & Params'!$C$12="W", B104*(('B. PoF Summary Stats & Params'!$M$12/'B. PoF Summary Stats & Params'!$O$12)*((A104)/'B. PoF Summary Stats & Params'!$O$12)^('B. PoF Summary Stats & Params'!$M$12-1)), "Choose Model")) -> 0.02415022112

Sheet B. PoF Summary Stats & Params
C1: PoF Summary Statistics and Parameters
B3: Summary Statisitics | E3: Failure Model Parameters | H3: Crow-AMSAA Parameters | L3: Weibull Parameters | R3: Health Index Parameters
B5: Number of PoF Adjustment Factors | C5: =COUNTIF('B. Population PoF Scores'!$O$5:$S$5,">"&0) -> 3
B6: Min Score | C6: =C5*1 -> 3 | E6: βavg | F6: =IF($C$12="C", I6, IF($C$12="W", M6, "Choose Model")) -> 3.7754 | H6: βavg | L6: βavg | M6: 3.7754 | S6: Earliest Age Asset Considered (Years) | V6: 0.5 | X6: Min PoF | Y6: =IF($C$12="C", I8*I12*V6^(I12-1), IF($C$12="W", (($M12/$O12)*((V6)/$O12)^(M12-1)), "Choose Model")) -> 3.028582292e-08
B7: Max Score | C7: =C5*5 -> 15 | E7: 95%CI Adj (β) | F7: =(F6-F14)/F6 -> 0.05578216878 | S7: Asset RAB Life (Years) | V7: 45.89 | X7: Max PoF | Y7: =IF($C$12="C", I8*I10*V9^(I10-1), IF($C$12="W", (($M14/$O14)*((V9)/$O14)^(M14-1)), "Choose Model")) -> 0.0237095927
B8: No. of Z-Scores | C8: =5^C5 -> 125 | F8: =F6*F7 -> 0.2106 | H8: λavg | L8: havg | M8: 85.7497 | S8: Asset RAB Life Addition (%) | V8: 0.1 | X8: HI Categories | Y8: 10
E9: Std. Dev | F9: =SQRT(_xlfn.STDEV.P(({1;2;3;4;5}*'B. Population PoF Scores'!O5))^2+_xlfn.STDEV.P(({1;2;3;4;5}*'B. Population PoF Scores'!P5))^2+_xlfn.STDEV.P(({1;2;3;4;5}*'B. Population PoF Scores'!Q5))^2+_xlfn.STDEV.P(({1;2;3;4;5}*'B. Population PoF Scores'!R5))^2+_xlfn.STDEV.P(({1;2;3;4;5}*'B. Population PoF Scores'!S5))^2) -> 2.449489743 | S9: Asset RAB Life + Addition (%) | V9: =ROUND(V7*(1+V8), 0) -> 50 | X9: Delta per Cat. | Y9: =(Y7-Y6)/Y8 -> 0.002370956242
B10: Reference Date | C10: 2018 | E10: Max Std. Dev | F10: =(SUM('B. Population PoF Scores'!O5:S5)-F11)/F9*-1 -> 2.449489743 | H10: βpoor | L10: b | M10: -16.806
E11: Average PoF Factor Score | F11: =SUM('B. Population PoF Scores'!O5:S5)*3 -> 9
B12: Crow-AMSAA or Weibull Failure Model | C12: W | E12: β ZCF Scalar | F12: =F8/F10 -> 0.08597708997 | H12: βgood | L12: βgood | M12: 3.5648 | N12: hgood | O12: 111.5424 | S12: HEALTH INDEX | T12: PoF Range
S13: 1 | T13: 0 | U13: =$Y$6+S13*$Y$9 -> 0.002370986527
B14: Replacement Type | C14: Like-for-like | E14: βgood | F14: =IF($C$12="C", I12, IF($C$12="W", M12, "Choose Model")) -> 3.5648 | L14: βpoor | M14: 3.986 | N14: hpoor | O14: 67.7787 | S14: 2 | T14: =U13 -> 0.002370986527 | U14: 0.004741942769
E15: βpoor | F15: =IF($C$12="C", I10, IF($C$12="W", M14, "Choose Model")) -> 3.986 | S15: 3 | T15: 0.004741942769 | U15: 0.007112899011
E16: λpopulation | F16: =IF($C$12="C", I8, "Not Applicable") -> Not Applicable | S16: 4 | T16: 0.007112899011 | U16: 0.009483855252
S17: 5 | T17: 0.009483855252 | U17: 0.01185481149
E18: havg | F18: =IF($C$12="C", "Not Applicable", M8) -> 85.7497 | S18: 6 | T18: 0.01185481149 | U18: 0.01422576774
E19: Intercept (b) | F19: =IF($C$12="C", "Not Applicable", M10) -> -16.806 | S19: 7 | T19: 0.01422576774 | U19: 0.01659672398
E20: hgood | F20: =IF($C$12="C", "Not Applicable", O12) -> 111.5424 | S20: 8 | T20: 0.01659672398 | U20: 0.01896768022
E21: 95%CI Adj (hgood) | F21: =IF($C$12="C", "Not Applicable", (F20-M8)/M8) -> 0.3007905567 | S21: 9 | T21: 0.01896768022 | U21: 0.02133863646
S22: 10 | T22: 0.02133863646 | U22: 0.0237095927
E23: hpoor | F23: =IF($C$12="C", "Not Applicable", O14) -> 67.7787
E24: 95%CI Adj (hpoor) | F24: =IF($C$12="C", "Not Applicable", (F23-M8)/M8) -> -0.2095750772
E26: Replacement Asset PoF | F26: =IF($C$14="Like-for-like",IF($C$12="C",I8*I6*V6^(I12-1),IF($C$12="W",(($M6/$M8)*((V6)/$M8)^(M6-1)),"Choose Model")),IF($C$14="New model",IF($C$12="C", I8*I12*V6^(I12-1), IF($C$12="W", (($M12/$O12)*((V6)/$O12)^(M12-1)), "Choose Model")))) -> 2.771774713e-08

Sheet B. PoF Adj Factor Scoring
C1: PoF Adjustment Factors and Scores
B3: PoF Affect | C3: PoF Score | E3: ='B. Population PoF Scores'!B4 -> Insulation Type | G3: ='B. Population PoF Scores'!C4 -> Oil Test Results | I3: ='B. Population PoF Scores'!D4 -> Leakages | K3: ='B. Population PoF Scores'!E4 -> 0 | M3: ='B. Population PoF Scores'!F4 -> 0
E4: Factor Value | F4: PoF Score | G4: Factor Value | H4: PoF Score | I4: Factor Value | J4: PoF Score | K4: Factor Value | L4: PoF Score | M4: Factor Value | N4: PoF Score
E5: CAST_RESIN | F5: 1 | G5: 1 | H5: 1 | I5: 0 | J5: 1 | K5: 0 | L5: 1
B6: Insignificant | C6: 1 | E6: OIL | F6: 1 | G6: 2 | H6: 2 | I6: 1000 | J6: 2
B7: Minor | C7: 2 | E7: OIL_FR3 | F7: 1 | G7: 3 | H7: 3 | I7: 3000 | J7: 3
B8: Moderate | C8: 3 | E8: SF6 | F8: 1 | G8: 4 | H8: 4 | I8: 5000 | J8: 4
B9: Major | C9: 4 | G9: 5 | H9: 5 | I9: 20000 | J9: 5
B10: Severe | C10: 5 | G10: N/A | H10: 1

Sheet B. Population PoF Scores
C1: Population PoF Scores
A3: Asset Identifier | B3: POF ADJUSTMENT FACTORS | G3: POF SCORES
B4: ='A. Population Info'!G5 -> Insulation Type | C4: ='A. Population Info'!H5 -> Oil Test Results | D4: ='A. Population Info'!I5 -> Leakages | E4: ='A. Population Info'!J5 -> 0 | F4: ='A. Population Info'!K5 -> 0 | G4: =B4 -> Insulation Type | H4: =C4 -> Oil Test Results | I4: =D4 -> Leakages | J4: =E4 -> 0 | K4: =F4 -> 0 | O4: =B4 -> Insulation Type | P4: =C4 -> Oil Test Results | Q4: =D4 -> Leakages | R4: =E4 -> 0 | S4: =F4 -> 0
G5: =O5 -> 1 | H5: =P5 -> 1 | I5: =Q5 -> 1 | J5: =R5 -> 0 | K5: =S5 -> 0 | N5: Weighting 1 | O5: 1 | P5: 1 | Q5: 1 | R5: 0 | S5: 0
A6: ='A. Population Info'!A6 -> 1000023626 | B6: ='A. Population Info'!G6 -> OIL | C6: ='A. Population Info'!H6 -> 1 | D6: ='A. Population Info'!I6 -> 0 | E6: ='A. Population Info'!J6 -> 0 | F6: ='A. Population Info'!K6 -> 0 | G6: =VLOOKUP(B:B,OFFSET('B. PoF Adj Factor Scoring'!$E$5:$F$282,,MATCH(G$4,'B. PoF Adj Factor Scoring'!$E$3:$N$3,0)-1),2,TRUE) -> 1 | H6: =VLOOKUP(C:C,OFFSET('B. PoF Adj Factor Scoring'!$E$5:$F$282,,MATCH(H$4,'B. PoF Adj Factor Scoring'!$E$3:$N$3,0)-1),2,TRUE) -> 1 | I6: =VLOOKUP(D:D,OFFSET('B. PoF Adj Factor Scoring'!$E$5:$F$282,,MATCH(I$4,'B. PoF Adj Factor Scoring'!$E$3:$N$3,0)-1),2,TRUE) -> 1 | J6: =VLOOKUP(E:E,OFFSET('B. PoF Adj Factor Scoring'!$E$5:$F$282,,MATCH(J$4,'B. PoF Adj Factor Scoring'!$E$3:$N$3,0)-1),2,TRUE) -> 1 | K6: =VLOOKUP(F:F,OFFSET('B. PoF Adj Factor Scoring'!$E$5:$F$282,,MATCH(K$4,'B. PoF Adj Factor Scoring'!$E$3:$N$3,0)-1),2,TRUE) -> 1
A7: ='A. Population Info'!A7 -> 1000023638 | B7: ='A. Population Info'!G7 -> OIL | C7: ='A. Population Info'!H7 -> 1 | D7: ='A. Population Info'!I7 -> 0 | E7: ='A. Population Info'!J7 -> 0 | F7: ='A. Population Info'!K7 -> 0 | G7: =VLOOKUP(B:B,OFFSET('B. PoF Adj Factor Scoring'!$E$5:$F$282,,MATCH(G$4,'B. PoF Adj Factor Scoring'!$E$3:$N$3,0)-1),2,TRUE) -> 1 | H7: =VLOOKUP(C:C,OFFSET('B. PoF Adj Factor Scoring'!$E$5:$F$282,,MATCH(H$4,'B. PoF Adj Factor Scoring'!$E$3:$N$3,0)-1),2,TRUE) -> 1 | I7: =VLOOKUP(D:D,OFFSET('B. PoF Adj Factor Scoring'!$E$5:$F$282,,MATCH(I$4,'B. PoF Adj Factor Scoring'!$E$3:$N$3,0)-1),2,TRUE) -> 1 | J7: =VLOOKUP(E:E,OFFSET('B. PoF Adj Factor Scoring'!$E$5:$F$282,,MATCH(J$4,'B. PoF Adj Factor Scoring'!$E$3:$N$3,0)-1),2,TRUE) -> 1 | K7: =VLOOKUP(F:F,OFFSET('B. PoF Adj Factor Scoring'!$E$5:$F$282,,MATCH(K$4,'B. PoF Adj Factor Scoring'!$E$3:$N$3,0)-1),2,TRUE) -> 1
A8: ='A. Population Info'!A8 -> 1000023649 | B8: ='A. Population Info'!G8 -> OIL | C8: ='A. Population Info'!H8 -> 1 | D8: ='A. Population Info'!I8 -> 0 | E8: ='A. Population Info'!J8 -> 0 | F8: ='A. Population Info'!K8 -> 0 | G8: =VLOOKUP(B:B,OFFSET('B. PoF Adj Factor Scoring'!$E$5:$F$282,,MATCH(G$4,'B. PoF Adj Factor Scoring'!$E$3:$N$3,0)-1),2,TRUE) -> 1 | H8: =VLOOKUP(C:C,OFFSET('B. PoF Adj Factor Scoring'!$E$5:$F$282,,MATCH(H$4,'B. PoF Adj Factor Scoring'!$E$3:$N$3,0)-1),2,TRUE) -> 1 | I8: =VLOOKUP(D:D,OFFSET('B. PoF Adj Factor Scoring'!$E$5:$F$282,,MATCH(I$4,'B. PoF Adj Factor Scoring'!$E$3:$N$3,0)-1),2,TRUE) -> 1 | J8: =VLOOKUP(E:E,OFFSET('B. PoF Adj Factor Scoring'!$E$5:$F$282,,MATCH(J$4,'B. PoF Adj Factor Scoring'!$E$3:$N$3,0)-1),2,TRUE) -> 1 | K8: =VLOOKUP(F:F,OFFSET('B. PoF Adj Factor Scoring'!$E$5:$F$282,,MATCH(K$4,'B. PoF Adj Factor Scoring'!$E$3:$N$3,0)-1),2,TRUE) -> 1
A9: ='A. Population Info'!A9 -> 1000048071 | B9: ='A. Population Info'!G9 -> OIL | C9: ='A. Population Info'!H9 -> 1 | D9: ='A. Population Info'!I9 -> 0 | E9: ='A. Population Info'!J9 -> 0 | F9: ='A. Population Info'!K9 -> 0 | G9: =VLOOKUP(B:B,OFFSET('B. PoF Adj Factor Scoring'!$E$5:$F$282,,MATCH(G$4,'B. PoF Adj Factor Scoring'!$E$3:$N$3,0)-1),2,TRUE) -> 1 | H9: =VLOOKUP(C:C,OFFSET('B. PoF Adj Factor Scoring'!$E$5:$F$282,,MATCH(H$4,'B. PoF Adj Factor Scoring'!$E$3:$N$3,0)-1),2,TRUE) -> 1 | I9: =VLOOKUP(D:D,OFFSET('B. PoF Adj Factor Scoring'!$E$5:$F$282,,MATCH(I$4,'B. PoF Adj Factor Scoring'!$E$3:$N$3,0)-1),2,TRUE) -> 1 | J9: =VLOOKUP(E:E,OFFSET('B. PoF Adj Factor Scoring'!$E$5:$F$282,,MATCH(J$4,'B. PoF Adj Factor Scoring'!$E$3:$N$3,0)-1),2,TRUE) -> 1 | K9: =VLOOKUP(F:F,OFFSET('B. PoF Adj Factor Scoring'!$E$5:$F$282,,MATCH(K$4,'B. PoF Adj Factor Scoring'!$E$3:$N$3,0)-1),2,TRUE) -> 1
A10: ='A. Population Info'!A10 -> 1000048606 | B10: ='A. Population Info'!G10 -> OIL | C10: ='A. Population Info'!H10 -> 1 | D10: ='A. Population Info'!I10 -> 0 | E10: ='A. Population Info'!J10 -> 0 | F10: ='A. Population Info'!K10 -> 0 | G10: =VLOOKUP(B:B,OFFSET('B. PoF Adj Factor Scoring'!$E$5:$F$282,,MATCH(G$4,'B. PoF Adj Factor Scoring'!$E$3:$N$3,0)-1),2,TRUE) -> 1 | H10: =VLOOKUP(C:C,OFFSET('B. PoF Adj Factor Scoring'!$E$5:$F$282,,MATCH(H$4,'B. PoF Adj Factor Scoring'!$E$3:$N$3,0)-1),2,TRUE) -> 1 | I10: =VLOOKUP(D:D,OFFSET('B. PoF Adj Factor Scoring'!$E$5:$F$282,,MATCH(I$4,'B. PoF Adj Factor Scoring'!$E$3:$N$3,0)-1),2,TRUE) -> 1 | J10: =VLOOKUP(E:E,OFFSET('B. PoF Adj Factor Scoring'!$E$5:$F$282,,MATCH(J$4,'B. PoF Adj Factor Scoring'!$E$3:$N$3,0)-1),2,TRUE) -> 1 | K10: =VLOOKUP(F:F,OFFSET('B. PoF Adj Factor Scoring'!$E$5:$F$282,,MATCH(K$4,'B. PoF Adj Factor Scoring'!$E$3:$N$3,0)-1),2,TRUE) -> 1
A11: ='A. Population Info'!A11 -> 1000048621 | B11: ='A. Population Info'!G11 -> OIL | C11: ='A. Population Info'!H11 -> 1 | D11: ='A. Population Info'!I11 -> 0 | E11: ='A. Population Info'!J11 -> 0 | F11: ='A. Population Info'!K11 -> 0 | G11: =VLOOKUP(B:B,OFFSET('B. PoF Adj Factor Scoring'!$E$5:$F$282,,MATCH(G$4,'B. PoF Adj Factor Scoring'!$E$3:$N$3,0)-1),2,TRUE) -> 1 | H11: =VLOOKUP(C:C,OFFSET('B. PoF Adj Factor Scoring'!$E$5:$F$282,,MATCH(H$4,'B. PoF Adj Factor Scoring'!$E$3:$N$3,0)-1),2,TRUE) -> 1 | I11: =VLOOKUP(D:D,OFFSET('B. PoF Adj Factor Scoring'!$E$5:$F$282,,MATCH(I$4,'B. PoF Adj Factor Scoring'!$E$3:$N$3,0)-1),2,TRUE) -> 1 | J11: =VLOOKUP(E:E,OFFSET('B. PoF Adj Factor Scoring'!$E$5:$F$282,,MATCH(J$4,'B. PoF Adj Factor Scoring'!$E$3:$N$3,0)-1),2,TRUE) -> 1 | K11: =VLOOKUP(F:F,OFFSET('B. PoF Adj Factor Scoring'!$E$5:$F$282,,MATCH(K$4,'B. PoF Adj Factor Scoring'!$E$3:$N$3,0)-1),2,TRUE) -> 1
A12: ='A. Population Info'!A12 -> 1000048751 | B12: ='A. Population Info'!G12 -> OIL | C12: ='A. Population Info'!H12 -> 1 | D12: ='A. Population Info'!I12 -> 0 | E12: ='A. Population Info'!J12 -> 0 | F12: ='A. Population Info'!K12 -> 0 | G12: =VLOOKUP(B:B,OFFSET('B. PoF Adj Factor Scoring'!$E$5:$F$282,,MATCH(G$4,'B. PoF Adj Factor Scoring'!$E$3:$N$3,0)-1),2,TRUE) -> 1 | H12: =VLOOKUP(C:C,OFFSET('B. PoF Adj Factor Scoring'!$E$5:$F$282,,MATCH(H$4,'B. PoF Adj Factor Scoring'!$E$3:$N$3,0)-1),2,TRUE) -> 1 | I12: =VLOOKUP(D:D,OFFSET('B. PoF Adj Factor Scoring'!$E$5:$F$282,,MATCH(I$4,'B. PoF Adj Factor Scoring'!$E$3:$N$3,0)-1),2,TRUE) -> 1 | J12: =VLOOKUP(E:E,OFFSET('B. PoF Adj Factor Scoring'!$E$5:$F$282,,MATCH(J$4,'B. PoF Adj Factor Scoring'!$E$3:$N$3,0)-1),2,TRUE) -> 1 | K12: =VLOOKUP(F:F,OFFSET('B. PoF Adj Factor Scoring'!$E$5:$F$282,,MATCH(K$4,'B. PoF Adj Factor Scoring'!$E$3:$N$3,0)-1),2,TRUE) -> 1
A13: ='A. Population Info'!A13 -> 1000063506 | B13: ='A. Population Info'!G13 -> OIL | C13: ='A. Population Info'!H13 -> 1 | D13: ='A. Population Info'!I13 -> 0 | E13: ='A. Population Info'!J13 -> 0 | F13: ='A. Population Info'!K13 -> 0 | G13: =VLOOKUP(B:B,OFFSET('B. PoF Adj Factor Scoring'!$E$5:$F$282,,MATCH(G$4,'B. PoF Adj Factor Scoring'!$E$3:$N$3,0)-1),2,TRUE) -> 1 | H13: =VLOOKUP(C:C,OFFSET('B. PoF Adj Factor Scoring'!$E$5:$F$282,,MATCH(H$4,'B. PoF Adj Factor Scoring'!$E$3:$N$3,0)-1),2,TRUE) -> 1 | I13: =VLOOKUP(D:D,OFFSET('B. PoF Adj Factor Scoring'!$E$5:$F$282,,MATCH(I$4,'B. PoF Adj Factor Scoring'!$E$3:$N$3,0)-1),2,TRUE) -> 1 | J13: =VLOOKUP(E:E,OFFSET('B. PoF Adj Factor Scoring'!$E$5:$F$282,,MATCH(J$4,'B. PoF Adj Factor Scoring'!$E$3:$N$3,0)-1),2,TRUE) -> 1 | K13: =VLOOKUP(F:F,OFFSET('B. PoF Adj Factor Scoring'!$E$5:$F$282,,MATCH(K$4,'B. PoF Adj Factor Scoring'!$E$3:$N$3,0)-1),2,TRUE) -> 1
A14: ='A. Population Info'!A14 -> 1000096500 | B14: ='A. Population Info'!G14 -> OIL | C14: ='A. Population Info'!H14 -> 1 | D14: ='A. Population Info'!I14 -> 0 | E14: ='A. Population Info'!J14 -> 0 | F14: ='A. Population Info'!K14 -> 0 | G14: =VLOOKUP(B:B,OFFSET('B. PoF Adj Factor Scoring'!$E$5:$F$282,,MATCH(G$4,'B. PoF Adj Factor Scoring'!$E$3:$N$3,0)-1),2,TRUE) -> 1 | H14: =VLOOKUP(C:C,OFFSET('B. PoF Adj Factor Scoring'!$E$5:$F$282,,MATCH(H$4,'B. PoF Adj Factor Scoring'!$E$3:$N$3,0)-1),2,TRUE) -> 1 | I14: =VLOOKUP(D:D,OFFSET('B. PoF Adj Factor Scoring'!$E$5:$F$282,,MATCH(I$4,'B. PoF Adj Factor Scoring'!$E$3:$N$3,0)-1),2,TRUE) -> 1 | J14: =VLOOKUP(E:E,OFFSET('B. PoF Adj Factor Scoring'!$E$5:$F$282,,MATCH(J$4,'B. PoF Adj Factor Scoring'!$E$3:$N$3,0)-1),2,TRUE) -> 1 | K14: =VLOOKUP(F:F,OFFSET('B. PoF Adj Factor Scoring'!$E$5:$F$282,,MATCH(K$4,'B. PoF Adj Factor Scoring'!$E$3:$N$3,0)-1),2,TRUE) -> 1
A15: ='A. Population Info'!A15 -> 1000096880 | B15: ='A. Population Info'!G15 -> OIL | C15: ='A. Population Info'!H15 -> 1 | D15: ='A. Population Info'!I15 -> 0 | E15: ='A. Population Info'!J15 -> 0 | F15: ='A. Population Info'!K15 -> 0 | G15: =VLOOKUP(B:B,OFFSET('B. PoF Adj Factor Scoring'!$E$5:$F$282,,MATCH(G$4,'B. PoF Adj Factor Scoring'!$E$3:$N$3,0)-1),2,TRUE) -> 1 | H15: =VLOOKUP(C:C,OFFSET('B. PoF Adj Factor Scoring'!$E$5:$F$282,,MATCH(H$4,'B. PoF Adj Factor Scoring'!$E$3:$N$3,0)-1),2,TRUE) -> 1 | I15: =VLOOKUP(D:D,OFFSET('B. PoF Adj Factor Scoring'!$E$5:$F$282,,MATCH(I$4,'B. PoF Adj Factor Scoring'!$E$3:$N$3,0)-1),2,TRUE) -> 1 | J15: =VLOOKUP(E:E,OFFSET('B. PoF Adj Factor Scoring'!$E$5:$F$282,,MATCH(J$4,'B. PoF Adj Factor Scoring'!$E$3:$N$3,0)-1),2,TRUE) -> 1 | K15: =VLOOKUP(F:F,OFFSET('B. PoF Adj Factor Scoring'!$E$5:$F$282,,MATCH(K$4,'B. PoF Adj Factor Scoring'!$E$3:$N$3,0)-1),2,TRUE) -> 1
A16: ='A. Population Info'!A16 -> 1000114250 | B16: ='A. Population Info'!G16 -> OIL | C16: ='A. Population Info'!H16 -> 1 | D16: ='A. Population Info'!I16 -> 0 | E16: ='A. Population Info'!J16 -> 0 | F16: ='A. Population Info'!K16 -> 0 | G16: =VLOOKUP(B:B,OFFSET('B. PoF Adj Factor Scoring'!$E$5:$F$282,,MATCH(G$4,'B. PoF Adj Factor Scoring'!$E$3:$N$3,0)-1),2,TRUE) -> 1 | H16: =VLOOKUP(C:C,OFFSET('B. PoF Adj Factor Scoring'!$E$5:$F$282,,MATCH(H$4,'B. PoF Adj Factor Scoring'!$E$3:$N$3,0)-1),2,TRUE) -> 1 | I16: =VLOOKUP(D:D,OFFSET('B. PoF Adj Factor Scoring'!$E$5:$F$282,,MATCH(I$4,'B. PoF Adj Factor Scoring'!$E$3:$N$3,0)-1),2,TRUE) -> 1 | J16: =VLOOKUP(E:E,OFFSET('B. PoF Adj Factor Scoring'!$E$5:$F$282,,MATCH(J$4,'B. PoF Adj Factor Scoring'!$E$3:$N$3,0)-1),2,TRUE) -> 1 | K16: =VLOOKUP(F:F,OFFSET('B. PoF Adj Factor Scoring'!$E$5:$F$282,,MATCH(K$4,'B. PoF Adj Factor Scoring'!$E$3:$N$3,0)-1),2,TRUE) -> 1
A17: ='A. Population Info'!A17 -> 1000131033 | B17: ='A. Population Info'!G17 -> OIL | C17: ='A. Population Info'!H17 -> 1 | D17: ='A. Population Info'!I17 -> 0 | E17: ='A. Population Info'!J17 -> 0 | F17: ='A. Population Info'!K17 -> 0 | G17: =VLOOKUP(B:B,OFFSET('B. PoF Adj Factor Scoring'!$E$5:$F$282,,MATCH(G$4,'B. PoF Adj Factor Scoring'!$E$3:$N$3,0)-1),2,TRUE) -> 1 | H17: =VLOOKUP(C:C,OFFSET('B. PoF Adj Factor Scoring'!$E$5:$F$282,,MATCH(H$4,'B. PoF Adj Factor Scoring'!$E$3:$N$3,0)-1),2,TRUE) -> 1 | I17: =VLOOKUP(D:D,OFFSET('B. PoF Adj Factor Scoring'!$E$5:$F$282,,MATCH(I$4,'B. PoF Adj Factor Scoring'!$E$3:$N$3,0)-1),2,TRUE) -> 1 | J17: =VLOOKUP(E:E,OFFSET('B. PoF Adj Factor Scoring'!$E$5:$F$282,,MATCH(J$4,'B. PoF Adj Factor Scoring'!$E$3:$N$3,0)-1),2,TRUE) -> 1 | K17: =VLOOKUP(F:F,OFFSET('B. PoF Adj Factor Scoring'!$E$5:$F$282,,MATCH(K$4,'B. PoF Adj Factor Scoring'!$E$3:$N$3,0)-1),2,TRUE) -> 1
A18: ='A. Population Info'!A18 -> 1000207623 | B18: ='A. Population Info'!G18 -> OIL | C18: ='A. Population Info'!H18 -> 1 | D18: ='A. Population Info'!I18 -> 0 | E18: ='A. Population Info'!J18 -> 0 | F18: ='A. Population Info'!K18 -> 0 | G18: =VLOOKUP(B:B,OFFSET('B. PoF Adj Factor Scoring'!$E$5:$F$282,,MATCH(G$4,'B. PoF Adj Factor Scoring'!$E$3:$N$3,0)-1),2,TRUE) -> 1 | H18: =VLOOKUP(C:C,OFFSET('B. PoF Adj Factor Scoring'!$E$5:$F$282,,MATCH(H$4,'B. PoF Adj Factor Scoring'!$E$3:$N$3,0)-1),2,TRUE) -> 1 | I18: =VLOOKUP(D:D,OFFSET('B. PoF Adj Factor Scoring'!$E$5:$F$282,,MATCH(I$4,'B. PoF Adj Factor Scoring'!$E$3:$N$3,0)-1),2,TRUE) -> 1 | J18: =VLOOKUP(E:E,OFFSET('B. PoF Adj Factor Scoring'!$E$5:$F$282,,MATCH(J$4,'B. PoF Adj Factor Scoring'!$E$3:$N$3,0)-1),2,TRUE) -> 1 | K18: =VLOOKUP(F:F,OFFSET('B. PoF Adj Factor Scoring'!$E$5:$F$282,,MATCH(K$4,'B. PoF Adj Factor Scoring'!$E$3:$N$3,0)-1),2,TRUE) -> 1
A19: ='A. Population Info'!A19 -> 1000207714 | B19: ='A. Population Info'!G19 -> OIL | C19: ='A. Population Info'!H19 -> 1 | D19: ='A. Population Info'!I19 -> 0 | E19: ='A. Population Info'!J19 -> 0 | F19: ='A. Population Info'!K19 -> 0 | G19: =VLOOKUP(B:B,OFFSET('B. PoF Adj Factor Scoring'!$E$5:$F$282,,MATCH(G$4,'B. PoF Adj Factor Scoring'!$E$3:$N$3,0)-1),2,TRUE) -> 1 | H19: =VLOOKUP(C:C,OFFSET('B. PoF Adj Factor Scoring'!$E$5:$F$282,,MATCH(H$4,'B. PoF Adj Factor Scoring'!$E$3:$N$3,0)-1),2,TRUE) -> 1 | I19: =VLOOKUP(D:D,OFFSET('B. PoF Adj Factor Scoring'!$E$5:$F$282,,MATCH(I$4,'B. PoF Adj Factor Scoring'!$E$3:$N$3,0)-1),2,TRUE) -> 1 | J19: =VLOOKUP(E:E,OFFSET('B. PoF Adj Factor Scoring'!$E$5:$F$282,,MATCH(J$4,'B. PoF Adj Factor Scoring'!$E$3:$N$3,0)-1),2,TRUE) -> 1 | K19: =VLOOKUP(F:F,OFFSET('B. PoF Adj Factor Scoring'!$E$5:$F$282,,MATCH(K$4,'B. PoF Adj Factor Scoring'!$E$3:$N$3,0)-1),2,TRUE) -> 1
A20: ='A. Population Info'!A20 -> 1000207726 | B20: ='A. Population Info'!G20 -> OIL | C20: ='A. Population Info'!H20 -> 1 | D20: ='A. Population Info'!I20 -> 0 | E20: ='A. Population Info'!J20 -> 0 | F20: ='A. Population Info'!K20 -> 0 | G20: =VLOOKUP(B:B,OFFSET('B. PoF Adj Factor Scoring'!$E$5:$F$282,,MATCH(G$4,'B. PoF Adj Factor Scoring'!$E$3:$N$3,0)-1),2,TRUE) -> 1 | H20: =VLOOKUP(C:C,OFFSET('B. PoF Adj Factor Scoring'!$E$5:$F$282,,MATCH(H$4,'B. PoF Adj Factor Scoring'!$E$3:$N$3,0)-1),2,TRUE) -> 1 | I20: =VLOOKUP(D:D,OFFSET('B. PoF Adj Factor Scoring'!$E$5:$F$282,,MATCH(I$4,'B. PoF Adj Factor Scoring'!$E$3:$N$3,0)-1),2,TRUE) -> 1 | J20: =VLOOKUP(E:E,OFFSET('B. PoF Adj Factor Scoring'!$E$5:$F$282,,MATCH(J$4,'B. PoF Adj Factor Scoring'!$E$3:$N$3,0)-1),2,TRUE) -> 1 | K20: =VLOOKUP(F:F,OFFSET('B. PoF Adj Factor Scoring'!$E$5:$F$282,,MATCH(K$4,'B. PoF Adj Factor Scoring'!$E$3:$N$3,0)-1),2,TRUE) -> 1
A21: ='A. Population Info'!A21 -> 1000224415 | B21: ='A. Population Info'!G21 -> OIL | C21: ='A. Population Info'!H21 -> 1 | D21: ='A. Population Info'!I21 -> 0 | E21: ='A. Population Info'!J21 -> 0 | F21: ='A. Population Info'!K21 -> 0 | G21: =VLOOKUP(B:B,OFFSET('B. PoF Adj Factor Scoring'!$E$5:$F$282,,MATCH(G$4,'B. PoF Adj Factor Scoring'!$E$3:$N$3,0)-1),2,TRUE) -> 1 | H21: =VLOOKUP(C:C,OFFSET('B. PoF Adj Factor Scoring'!$E$5:$F$282,,MATCH(H$4,'B. PoF Adj Factor Scoring'!$E$3:$N$3,0)-1),2,TRUE) -> 1 | I21: =VLOOKUP(D:D,OFFSET('B. PoF Adj Factor Scoring'!$E$5:$F$282,,MATCH(I$4,'B. PoF Adj Factor Scoring'!$E$3:$N$3,0)-1),2,TRUE) -> 1 | J21: =VLOOKUP(E:E,OFFSET('B. PoF Adj Factor Scoring'!$E$5:$F$282,,MATCH(J$4,'B. PoF Adj Factor Scoring'!$E$3:$N$3,0)-1),2,TRUE) -> 1 | K21: =VLOOKUP(F:F,OFFSET('B. PoF Adj Factor Scoring'!$E$5:$F$282,,MATCH(K$4,'B. PoF Adj Factor Scoring'!$E$3:$N$3,0)-1),2,TRUE) -> 1
A22: ='A. Population Info'!A22 -> 1000224424 | B22: ='A. Population Info'!G22 -> OIL | C22: ='A. Population Info'!H22 -> 3 | D22: ='A. Population Info'!I22 -> 0 | E22: ='A. Population Info'!J22 -> 0 | F22: ='A. Population Info'!K22 -> 0 | G22: =VLOOKUP(B:B,OFFSET('B. PoF Adj Factor Scoring'!$E$5:$F$282,,MATCH(G$4,'B. PoF Adj Factor Scoring'!$E$3:$N$3,0)-1),2,TRUE) -> 1 | H22: =VLOOKUP(C:C,OFFSET('B. PoF Adj Factor Scoring'!$E$5:$F$282,,MATCH(H$4,'B. PoF Adj Factor Scoring'!$E$3:$N$3,0)-1),2,TRUE) -> 3 | I22: =VLOOKUP(D:D,OFFSET('B. PoF Adj Factor Scoring'!$E$5:$F$282,,MATCH(I$4,'B. PoF Adj Factor Scoring'!$E$3:$N$3,0)-1),2,TRUE) -> 1 | J22: =VLOOKUP(E:E,OFFSET('B. PoF Adj Factor Scoring'!$E$5:$F$282,,MATCH(J$4,'B. PoF Adj Factor Scoring'!$E$3:$N$3,0)-1),2,TRUE) -> 1 | K22: =VLOOKUP(F:F,OFFSET('B. PoF Adj Factor Scoring'!$E$5:$F$282,,MATCH(K$4,'B. PoF Adj Factor Scoring'!$E$3:$N$3,0)-1),2,TRUE) -> 1
A23: ='A. Population Info'!A23 -> 1000224437 | B23: ='A. Population Info'!G23 -> OIL | C23: ='A. Population Info'!H23 -> 1 | D23: ='A. Population Info'!I23 -> 0 | E23: ='A. Population Info'!J23 -> 0 | F23: ='A. Population Info'!K23 -> 0 | G23: =VLOOKUP(B:B,OFFSET('B. PoF Adj Factor Scoring'!$E$5:$F$282,,MATCH(G$4,'B. PoF Adj Factor Scoring'!$E$3:$N$3,0)-1),2,TRUE) -> 1 | H23: =VLOOKUP(C:C,OFFSET('B. PoF Adj Factor Scoring'!$E$5:$F$282,,MATCH(H$4,'B. PoF Adj Factor Scoring'!$E$3:$N$3,0)-1),2,TRUE) -> 1 | I23: =VLOOKUP(D:D,OFFSET('B. PoF Adj Factor Scoring'!$E$5:$F$282,,MATCH(I$4,'B. PoF Adj Factor Scoring'!$E$3:$N$3,0)-1),2,TRUE) -> 1 | J23: =VLOOKUP(E:E,OFFSET('B. PoF Adj Factor Scoring'!$E$5:$F$282,,MATCH(J$4,'B. PoF Adj Factor Scoring'!$E$3:$N$3,0)-1),2,TRUE) -> 1 | K23: =VLOOKUP(F:F,OFFSET('B. PoF Adj Factor Scoring'!$E$5:$F$282,,MATCH(K$4,'B. PoF Adj Factor Scoring'!$E$3:$N$3,0)-1),2,TRUE) -> 1
A24: ='A. Population Info'!A24 -> 1000224450 | B24: ='A. Population Info'!G24 -> OIL | C24: ='A. Population Info'!H24 -> 2 | D24: ='A. Population Info'!I24 -> 0 | E24: ='A. Population Info'!J24 -> 0 | F24: ='A. Population Info'!K24 -> 0 | G24: =VLOOKUP(B:B,OFFSET('B. PoF Adj Factor Scoring'!$E$5:$F$282,,MATCH(G$4,'B. PoF Adj Factor Scoring'!$E$3:$N$3,0)-1),2,TRUE) -> 1 | H24: =VLOOKUP(C:C,OFFSET('B. PoF Adj Factor Scoring'!$E$5:$F$282,,MATCH(H$4,'B. PoF Adj Factor Scoring'!$E$3:$N$3,0)-1),2,TRUE) -> 2 | I24: =VLOOKUP(D:D,OFFSET('B. PoF Adj Factor Scoring'!$E$5:$F$282,,MATCH(I$4,'B. PoF Adj Factor Scoring'!$E$3:$N$3,0)-1),2,TRUE) -> 1 | J24: =VLOOKUP(E:E,OFFSET('B. PoF Adj Factor Scoring'!$E$5:$F$282,,MATCH(J$4,'B. PoF Adj Factor Scoring'!$E$3:$N$3,0)-1),2,TRUE) -> 1 | K24: =VLOOKUP(F:F,OFFSET('B. PoF Adj Factor Scoring'!$E$5:$F$282,,MATCH(K$4,'B. PoF Adj Factor Scoring'!$E$3:$N$3,0)-1),2,TRUE) -> 1
A25: ='A. Population Info'!A25 -> 1000224464 | B25: ='A. Population Info'!G25 -> OIL | C25: ='A. Population Info'!H25 -> 1 | D25: ='A. Population Info'!I25 -> 0 | E25: ='A. Population Info'!J25 -> 0 | F25: ='A. Population Info'!K25 -> 0 | G25: =VLOOKUP(B:B,OFFSET('B. PoF Adj Factor Scoring'!$E$5:$F$282,,MATCH(G$4,'B. PoF Adj Factor Scoring'!$E$3:$N$3,0)-1),2,TRUE) -> 1 | H25: =VLOOKUP(C:C,OFFSET('B. PoF Adj Factor Scoring'!$E$5:$F$282,,MATCH(H$4,'B. PoF Adj Factor Scoring'!$E$3:$N$3,0)-1),2,TRUE) -> 1 | I25: =VLOOKUP(D:D,OFFSET('B. PoF Adj Factor Scoring'!$E$5:$F$282,,MATCH(I$4,'B. PoF Adj Factor Scoring'!$E$3:$N$3,0)-1),2,TRUE) -> 1 | J25: =VLOOKUP(E:E,OFFSET('B. PoF Adj Factor Scoring'!$E$5:$F$282,,MATCH(J$4,'B. PoF Adj Factor Scoring'!$E$3:$N$3,0)-1),2,TRUE) -> 1 | K25: =VLOOKUP(F:F,OFFSET('B. PoF Adj Factor Scoring'!$E$5:$F$282,,MATCH(K$4,'B. PoF Adj Factor Scoring'!$E$3:$N$3,0)-1),2,TRUE) -> 1
A26: ='A. Population Info'!A26 -> 1000224475 | B26: ='A. Population Info'!G26 -> OIL_FR3 | C26: ='A. Population Info'!H26 -> 3 | D26: ='A. Population Info'!I26 -> 0 | E26: ='A. Population Info'!J26 -> 0 | F26: ='A. Population Info'!K26 -> 0 | G26: =VLOOKUP(B:B,OFFSET('B. PoF Adj Factor Scoring'!$E$5:$F$282,,MATCH(G$4,'B. PoF Adj Factor Scoring'!$E$3:$N$3,0)-1),2,TRUE) -> 1 | H26: =VLOOKUP(C:C,OFFSET('B. PoF Adj Factor Scoring'!$E$5:$F$282,,MATCH(H$4,'B. PoF Adj Factor Scoring'!$E$3:$N$3,0)-1),2,TRUE) -> 3 | I26: =VLOOKUP(D:D,OFFSET('B. PoF Adj Factor Scoring'!$E$5:$F$282,,MATCH(I$4,'B. PoF Adj Factor Scoring'!$E$3:$N$3,0)-1),2,TRUE) -> 1 | J26: =VLOOKUP(E:E,OFFSET('B. PoF Adj Factor Scoring'!$E$5:$F$282,,MATCH(J$4,'B. PoF Adj Factor Scoring'!$E$3:$N$3,0)-1),2,TRUE) -> 1 | K26: =VLOOKUP(F:F,OFFSET('B. PoF Adj Factor Scoring'!$E$5:$F$282,,MATCH(K$4,'B. PoF Adj Factor Scoring'!$E$3:$N$3,0)-1),2,TRUE) -> 1
A27: ='A. Population Info'!A27 -> 1000267271 | B27: ='A. Population Info'!G27 -> OIL | C27: ='A. Population Info'!H27 -> 1 | D27: ='A. Population Info'!I27 -> 0 | E27: ='A. Population Info'!J27 -> 0 | F27: ='A. Population Info'!K27 -> 0 | G27: =VLOOKUP(B:B,OFFSET('B. PoF Adj Factor Scoring'!$E$5:$F$282,,MATCH(G$4,'B. PoF Adj Factor Scoring'!$E$3:$N$3,0)-1),2,TRUE) -> 1 | H27: =VLOOKUP(C:C,OFFSET('B. PoF Adj Factor Scoring'!$E$5:$F$282,,MATCH(H$4,'B. PoF Adj Factor Scoring'!$E$3:$N$3,0)-1),2,TRUE) -> 1 | I27: =VLOOKUP(D:D,OFFSET('B. PoF Adj Factor Scoring'!$E$5:$F$282,,MATCH(I$4,'B. PoF Adj Factor Scoring'!$E$3:$N$3,0)-1),2,TRUE) -> 1 | J27: =VLOOKUP(E:E,OFFSET('B. PoF Adj Factor Scoring'!$E$5:$F$282,,MATCH(J$4,'B. PoF Adj Factor Scoring'!$E$3:$N$3,0)-1),2,TRUE) -> 1 | K27: =VLOOKUP(F:F,OFFSET('B. PoF Adj Factor Scoring'!$E$5:$F$282,,MATCH(K$4,'B. PoF Adj Factor Scoring'!$E$3:$N$3,0)-1),2,TRUE) -> 1
A28: ='A. Population Info'!A28 -> 1000276491 | B28: ='A. Population Info'!G28 -> OIL | C28: ='A. Population Info'!H28 -> 2 | D28: ='A. Population Info'!I28 -> 0 | E28: ='A. Population Info'!J28 -> 0 | F28: ='A. Population Info'!K28 -> 0 | G28: =VLOOKUP(B:B,OFFSET('B. PoF Adj Factor Scoring'!$E$5:$F$282,,MATCH(G$4,'B. PoF Adj Factor Scoring'!$E$3:$N$3,0)-1),2,TRUE) -> 1 | H28: =VLOOKUP(C:C,OFFSET('B. PoF Adj Factor Scoring'!$E$5:$F$282,,MATCH(H$4,'B. PoF Adj Factor Scoring'!$E$3:$N$3,0)-1),2,TRUE) -> 2 | I28: =VLOOKUP(D:D,OFFSET('B. PoF Adj Factor Scoring'!$E$5:$F$282,,MATCH(I$4,'B. PoF Adj Factor Scoring'!$E$3:$N$3,0)-1),2,TRUE) -> 1 | J28: =VLOOKUP(E:E,OFFSET('B. PoF Adj Factor Scoring'!$E$5:$F$282,,MATCH(J$4,'B. PoF Adj Factor Scoring'!$E$3:$N$3,0)-1),2,TRUE) -> 1 | K28: =VLOOKUP(F:F,OFFSET('B. PoF Adj Factor Scoring'!$E$5:$F$282,,MATCH(K$4,'B. PoF Adj Factor Scoring'!$E$3:$N$3,0)-1),2,TRUE) -> 1
A29: ='A. Population Info'!A29 -> 1000276518 | B29: ='A. Population Info'!G29 -> OIL | C29: ='A. Population Info'!H29 -> 1 | D29: ='A. Population Info'!I29 -> 0 | E29: ='A. Population Info'!J29 -> 0 | F29: ='A. Population Info'!K29 -> 0 | G29: =VLOOKUP(B:B,OFFSET('B. PoF Adj Factor Scoring'!$E$5:$F$282,,MATCH(G$4,'B. PoF Adj Factor Scoring'!$E$3:$N$3,0)-1),2,TRUE) -> 1 | H29: =VLOOKUP(C:C,OFFSET('B. PoF Adj Factor Scoring'!$E$5:$F$282,,MATCH(H$4,'B. PoF Adj Factor Scoring'!$E$3:$N$3,0)-1),2,TRUE) -> 1 | I29: =VLOOKUP(D:D,OFFSET('B. PoF Adj Factor Scoring'!$E$5:$F$282,,MATCH(I$4,'B. PoF Adj Factor Scoring'!$E$3:$N$3,0)-1),2,TRUE) -> 1 | J29: =VLOOKUP(E:E,OFFSET('B. PoF Adj Factor Scoring'!$E$5:$F$282,,MATCH(J$4,'B. PoF Adj Factor Scoring'!$E$3:$N$3,0)-1),2,TRUE) -> 1 | K29: =VLOOKUP(F:F,OFFSET('B. PoF Adj Factor Scoring'!$E$5:$F$282,,MATCH(K$4,'B. PoF Adj Factor Scoring'!$E$3:$N$3,0)-1),2,TRUE) -> 1
A30: ='A. Population Info'!A30 -> 1000276530 | B30: ='A. Population Info'!G30 -> OIL | C30: ='A. Population Info'!H30 -> 1 | D30: ='A. Population Info'!I30 -> 0 | E30: ='A. Population Info'!J30 -> 0 | F30: ='A. Population Info'!K30 -> 0 | G30: =VLOOKUP(B:B,OFFSET('B. PoF Adj Factor Scoring'!$E$5:$F$282,,MATCH(G$4,'B. PoF Adj Factor Scoring'!$E$3:$N$3,0)-1),2,TRUE) -> 1 | H30: =VLOOKUP(C:C,OFFSET('B. PoF Adj Factor Scoring'!$E$5:$F$282,,MATCH(H$4,'B. PoF Adj Factor Scoring'!$E$3:$N$3,0)-1),2,TRUE) -> 1 | I30: =VLOOKUP(D:D,OFFSET('B. PoF Adj Factor Scoring'!$E$5:$F$282,,MATCH(I$4,'B. PoF Adj Factor Scoring'!$E$3:$N$3,0)-1),2,TRUE) -> 1 | J30: =VLOOKUP(E:E,OFFSET('B. PoF Adj Factor Scoring'!$E$5:$F$282,,MATCH(J$4,'B. PoF Adj Factor Scoring'!$E$3:$N$3,0)-1),2,TRUE) -> 1 | K30: =VLOOKUP(F:F,OFFSET('B. PoF Adj Factor Scoring'!$E$5:$F$282,,MATCH(K$4,'B. PoF Adj Factor Scoring'!$E$3:$N$3,0)-1),2,TRUE) -> 1
A31: ='A. Population Info'!A31 -> 1000276542 | B31: ='A. Population Info'!G31 -> OIL | C31: ='A. Population Info'!H31 -> 1 | D31: ='A. Population Info'!I31 -> 0 | E31: ='A. Population Info'!J31 -> 0 | F31: ='A. Population Info'!K31 -> 0 | G31: =VLOOKUP(B:B,OFFSET('B. PoF Adj Factor Scoring'!$E$5:$F$282,,MATCH(G$4,'B. PoF Adj Factor Scoring'!$E$3:$N$3,0)-1),2,TRUE) -> 1 | H31: =VLOOKUP(C:C,OFFSET('B. PoF Adj Factor Scoring'!$E$5:$F$282,,MATCH(H$4,'B. PoF Adj Factor Scoring'!$E$3:$N$3,0)-1),2,TRUE) -> 1 | I31: =VLOOKUP(D:D,OFFSET('B. PoF Adj Factor Scoring'!$E$5:$F$282,,MATCH(I$4,'B. PoF Adj Factor Scoring'!$E$3:$N$3,0)-1),2,TRUE) -> 1 | J31: =VLOOKUP(E:E,OFFSET('B. PoF Adj Factor Scoring'!$E$5:$F$282,,MATCH(J$4,'B. PoF Adj Factor Scoring'!$E$3:$N$3,0)-1),2,TRUE) -> 1 | K31: =VLOOKUP(F:F,OFFSET('B. PoF Adj Factor Scoring'!$E$5:$F$282,,MATCH(K$4,'B. PoF Adj Factor Scoring'!$E$3:$N$3,0)-1),2,TRUE) -> 1
A32: ='A. Population Info'!A32 -> 1000299647 | B32: ='A. Population Info'!G32 -> OIL | C32: ='A. Population Info'!H32 -> 1 | D32: ='A. Population Info'!I32 -> 0 | E32: ='A. Population Info'!J32 -> 0 | F32: ='A. Population Info'!K32 -> 0 | G32: =VLOOKUP(B:B,OFFSET('B. PoF Adj Factor Scoring'!$E$5:$F$282,,MATCH(G$4,'B. PoF Adj Factor Scoring'!$E$3:$N$3,0)-1),2,TRUE) -> 1 | H32: =VLOOKUP(C:C,OFFSET('B. PoF Adj Factor Scoring'!$E$5:$F$282,,MATCH(H$4,'B. PoF Adj Factor Scoring'!$E$3:$N$3,0)-1),2,TRUE) -> 1 | I32: =VLOOKUP(D:D,OFFSET('B. PoF Adj Factor Scoring'!$E$5:$F$282,,MATCH(I$4,'B. PoF Adj Factor Scoring'!$E$3:$N$3,0)-1),2,TRUE) -> 1 | J32: =VLOOKUP(E:E,OFFSET('B. PoF Adj Factor Scoring'!$E$5:$F$282,,MATCH(J$4,'B. PoF Adj Factor Scoring'!$E$3:$N$3,0)-1),2,TRUE) -> 1 | K32: =VLOOKUP(F:F,OFFSET('B. PoF Adj Factor Scoring'!$E$5:$F$282,,MATCH(K$4,'B. PoF Adj Factor Scoring'!$E$3:$N$3,0)-1),2,TRUE) -> 1
A33: ='A. Population Info'!A33 -> 1000314154 | B33: ='A. Population Info'!G33 -> OIL | C33: ='A. Population Info'!H33 -> 2 | D33: ='A. Population Info'!I33 -> 600 | E33: ='A. Population Info'!J33 -> 0 | F33: ='A. Population Info'!K33 -> 0 | G33: =VLOOKUP(B:B,OFFSET('B. PoF Adj Factor Scoring'!$E$5:$F$282,,MATCH(G$4,'B. PoF Adj Factor Scoring'!$E$3:$N$3,0)-1),2,TRUE) -> 1 | H33: =VLOOKUP(C:C,OFFSET('B. PoF Adj Factor Scoring'!$E$5:$F$282,,MATCH(H$4,'B. PoF Adj Factor Scoring'!$E$3:$N$3,0)-1),2,TRUE) -> 2 | I33: =VLOOKUP(D:D,OFFSET('B. PoF Adj Factor Scoring'!$E$5:$F$282,,MATCH(I$4,'B. PoF Adj Factor Scoring'!$E$3:$N$3,0)-1),2,TRUE) -> 1 | J33: =VLOOKUP(E:E,OFFSET('B. PoF Adj Factor Scoring'!$E$5:$F$282,,MATCH(J$4,'B. PoF Adj Factor Scoring'!$E$3:$N$3,0)-1),2,TRUE) -> 1 | K33: =VLOOKUP(F:F,OFFSET('B. PoF Adj Factor Scoring'!$E$5:$F$282,,MATCH(K$4,'B. PoF Adj Factor Scoring'!$E$3:$N$3,0)-1),2,TRUE) -> 1
A34: ='A. Population Info'!A34 -> 1000314337 | B34: ='A. Population Info'!G34 -> OIL | C34: ='A. Population Info'!H34 -> 3 | D34: ='A. Population Info'!I34 -> 0 | E34: ='A. Population Info'!J34 -> 0 | F34: ='A. Population Info'!K34 -> 0 | G34: =VLOOKUP(B:B,OFFSET('B. PoF Adj Factor Scoring'!$E$5:$F$282,,MATCH(G$4,'B. PoF Adj Factor Scoring'!$E$3:$N$3,0)-1),2,TRUE) -> 1 | H34: =VLOOKUP(C:C,OFFSET('B. PoF Adj Factor Scoring'!$E$5:$F$282,,MATCH(H$4,'B. PoF Adj Factor Scoring'!$E$3:$N$3,0)-1),2,TRUE) -> 3 | I34: =VLOOKUP(D:D,OFFSET('B. PoF Adj Factor Scoring'!$E$5:$F$282,,MATCH(I$4,'B. PoF Adj Factor Scoring'!$E$3:$N$3,0)-1),2,TRUE) -> 1 | J34: =VLOOKUP(E:E,OFFSET('B. PoF Adj Factor Scoring'!$E$5:$F$282,,MATCH(J$4,'B. PoF Adj Factor Scoring'!$E$3:$N$3,0)-1),2,TRUE) -> 1 | K34: =VLOOKUP(F:F,OFFSET('B. PoF Adj Factor Scoring'!$E$5:$F$282,,MATCH(K$4,'B. PoF Adj Factor Scoring'!$E$3:$N$3,0)-1),2,TRUE) -> 1
A35: ='A. Population Info'!A35 -> 1000314363 | B35: ='A. Population Info'!G35 -> OIL | C35: ='A. Population Info'!H35 -> 3 | D35: ='A. Population Info'!I35 -> 400 | E35: ='A. Population Info'!J35 -> 0 | F35: ='A. Population Info'!K35 -> 0 | G35: =VLOOKUP(B:B,OFFSET('B. PoF Adj Factor Scoring'!$E$5:$F$282,,MATCH(G$4,'B. PoF Adj Factor Scoring'!$E$3:$N$3,0)-1),2,TRUE) -> 1 | H35: =VLOOKUP(C:C,OFFSET('B. PoF Adj Factor Scoring'!$E$5:$F$282,,MATCH(H$4,'B. PoF Adj Factor Scoring'!$E$3:$N$3,0)-1),2,TRUE) -> 3 | I35: =VLOOKUP(D:D,OFFSET('B. PoF Adj Factor Scoring'!$E$5:$F$282,,MATCH(I$4,'B. PoF Adj Factor Scoring'!$E$3:$N$3,0)-1),2,TRUE) -> 1 | J35: =VLOOKUP(E:E,OFFSET('B. PoF Adj Factor Scoring'!$E$5:$F$282,,MATCH(J$4,'B. PoF Adj Factor Scoring'!$E$3:$N$3,0)-1),2,TRUE) -> 1 | K35: =VLOOKUP(F:F,OFFSET('B. PoF Adj Factor Scoring'!$E$5:$F$282,,MATCH(K$4,'B. PoF Adj Factor Scoring'!$E$3:$N$3,0)-1),2,TRUE) -> 1
A36: ='A. Population Info'!A36 -> 1000318066 | B36: ='A. Population Info'!G36 -> OIL | C36: ='A. Population Info'!H36 -> 2 | D36: ='A. Population Info'!I36 -> 0 | E36: ='A. Population Info'!J36 -> 0 | F36: ='A. Population Info'!K36 -> 0 | G36: =VLOOKUP(B:B,OFFSET('B. PoF Adj Factor Scoring'!$E$5:$F$282,,MATCH(G$4,'B. PoF Adj Factor Scoring'!$E$3:$N$3,0)-1),2,TRUE) -> 1 | H36: =VLOOKUP(C:C,OFFSET('B. PoF Adj Factor Scoring'!$E$5:$F$282,,MATCH(H$4,'B. PoF Adj Factor Scoring'!$E$3:$N$3,0)-1),2,TRUE) -> 2 | I36: =VLOOKUP(D:D,OFFSET('B. PoF Adj Factor Scoring'!$E$5:$F$282,,MATCH(I$4,'B. PoF Adj Factor Scoring'!$E$3:$N$3,0)-1),2,TRUE) -> 1 | J36: =VLOOKUP(E:E,OFFSET('B. PoF Adj Factor Scoring'!$E$5:$F$282,,MATCH(J$4,'B. PoF Adj Factor Scoring'!$E$3:$N$3,0)-1),2,TRUE) -> 1 | K36: =VLOOKUP(F:F,OFFSET('B. PoF Adj Factor Scoring'!$E$5:$F$282,,MATCH(K$4,'B. PoF Adj Factor Scoring'!$E$3:$N$3,0)-1),2,TRUE) -> 1
A37: ='A. Population Info'!A37 -> 1000318448 | B37: ='A. Population Info'!G37 -> OIL | C37: ='A. Population Info'!H37 -> 4 | D37: ='A. Population Info'!I37 -> 0 | E37: ='A. Population Info'!J37 -> 0 | F37: ='A. Population Info'!K37 -> 0 | G37: =VLOOKUP(B:B,OFFSET('B. PoF Adj Factor Scoring'!$E$5:$F$282,,MATCH(G$4,'B. PoF Adj Factor Scoring'!$E$3:$N$3,0)-1),2,TRUE) -> 1 | H37: =VLOOKUP(C:C,OFFSET('B. PoF Adj Factor Scoring'!$E$5:$F$282,,MATCH(H$4,'B. PoF Adj Factor Scoring'!$E$3:$N$3,0)-1),2,TRUE) -> 4 | I37: =VLOOKUP(D:D,OFFSET('B. PoF Adj Factor Scoring'!$E$5:$F$282,,MATCH(I$4,'B. PoF Adj Factor Scoring'!$E$3:$N$3,0)-1),2,TRUE) -> 1 | J37: =VLOOKUP(E:E,OFFSET('B. PoF Adj Factor Scoring'!$E$5:$F$282,,MATCH(J$4,'B. PoF Adj Factor Scoring'!$E$3:$N$3,0)-1),2,TRUE) -> 1 | K37: =VLOOKUP(F:F,OFFSET('B. PoF Adj Factor Scoring'!$E$5:$F$282,,MATCH(K$4,'B. PoF Adj Factor Scoring'!$E$3:$N$3,0)-1),2,TRUE) -> 1
A38: ='A. Population Info'!A38 -> 1000318505 | B38: ='A. Population Info'!G38 -> OIL | C38: ='A. Population Info'!H38 -> 2 | D38: ='A. Population Info'!I38 -> 0 | E38: ='A. Population Info'!J38 -> 0 | F38: ='A. Population Info'!K38 -> 0 | G38: =VLOOKUP(B:B,OFFSET('B. PoF Adj Factor Scoring'!$E$5:$F$282,,MATCH(G$4,'B. PoF Adj Factor Scoring'!$E$3:$N$3,0)-1),2,TRUE) -> 1 | H38: =VLOOKUP(C:C,OFFSET('B. PoF Adj Factor Scoring'!$E$5:$F$282,,MATCH(H$4,'B. PoF Adj Factor Scoring'!$E$3:$N$3,0)-1),2,TRUE) -> 2 | I38: =VLOOKUP(D:D,OFFSET('B. PoF Adj Factor Scoring'!$E$5:$F$282,,MATCH(I$4,'B. PoF Adj Factor Scoring'!$E$3:$N$3,0)-1),2,TRUE) -> 1 | J38: =VLOOKUP(E:E,OFFSET('B. PoF Adj Factor Scoring'!$E$5:$F$282,,MATCH(J$4,'B. PoF Adj Factor Scoring'!$E$3:$N$3,0)-1),2,TRUE) -> 1 | K38: =VLOOKUP(F:F,OFFSET('B. PoF Adj Factor Scoring'!$E$5:$F$282,,MATCH(K$4,'B. PoF Adj Factor Scoring'!$E$3:$N$3,0)-1),2,TRUE) -> 1
A39: ='A. Population Info'!A39 -> 1000318801 | B39: ='A. Population Info'!G39 -> OIL | C39: ='A. Population Info'!H39 -> 1 | D39: ='A. Population Info'!I39 -> 500 | E39: ='A. Population Info'!J39 -> 0 | F39: ='A. Population Info'!K39 -> 0 | G39: =VLOOKUP(B:B,OFFSET('B. PoF Adj Factor Scoring'!$E$5:$F$282,,MATCH(G$4,'B. PoF Adj Factor Scoring'!$E$3:$N$3,0)-1),2,TRUE) -> 1 | H39: =VLOOKUP(C:C,OFFSET('B. PoF Adj Factor Scoring'!$E$5:$F$282,,MATCH(H$4,'B. PoF Adj Factor Scoring'!$E$3:$N$3,0)-1),2,TRUE) -> 1 | I39: =VLOOKUP(D:D,OFFSET('B. PoF Adj Factor Scoring'!$E$5:$F$282,,MATCH(I$4,'B. PoF Adj Factor Scoring'!$E$3:$N$3,0)-1),2,TRUE) -> 1 | J39: =VLOOKUP(E:E,OFFSET('B. PoF Adj Factor Scoring'!$E$5:$F$282,,MATCH(J$4,'B. PoF Adj Factor Scoring'!$E$3:$N$3,0)-1),2,TRUE) -> 1 | K39: =VLOOKUP(F:F,OFFSET('B. PoF Adj Factor Scoring'!$E$5:$F$282,,MATCH(K$4,'B. PoF Adj Factor Scoring'!$E$3:$N$3,0)-1),2,TRUE) -> 1
A40: ='A. Population Info'!A40 -> 1000318835 | B40: ='A. Population Info'!G40 -> OIL | C40: ='A. Population Info'!H40 -> 2 | D40: ='A. Population Info'!I40 -> 500 | E40: ='A. Population Info'!J40 -> 0 | F40: ='A. Population Info'!K40 -> 0 | G40: =VLOOKUP(B:B,OFFSET('B. PoF Adj Factor Scoring'!$E$5:$F$282,,MATCH(G$4,'B. PoF Adj Factor Scoring'!$E$3:$N$3,0)-1),2,TRUE) -> 1 | H40: =VLOOKUP(C:C,OFFSET('B. PoF Adj Factor Scoring'!$E$5:$F$282,,MATCH(H$4,'B. PoF Adj Factor Scoring'!$E$3:$N$3,0)-1),2,TRUE) -> 2 | I40: =VLOOKUP(D:D,OFFSET('B. PoF Adj Factor Scoring'!$E$5:$F$282,,MATCH(I$4,'B. PoF Adj Factor Scoring'!$E$3:$N$3,0)-1),2,TRUE) -> 1 | J40: =VLOOKUP(E:E,OFFSET('B. PoF Adj Factor Scoring'!$E$5:$F$282,,MATCH(J$4,'B. PoF Adj Factor Scoring'!$E$3:$N$3,0)-1),2,TRUE) -> 1 | K40: =VLOOKUP(F:F,OFFSET('B. PoF Adj Factor Scoring'!$E$5:$F$282,,MATCH(K$4,'B. PoF Adj Factor Scoring'!$E$3:$N$3,0)-1),2,TRUE) -> 1
A41: ='A. Population Info'!A41 -> 1000318894 | B41: ='A. Population Info'!G41 -> OIL | C41: ='A. Population Info'!H41 -> 2 | D41: ='A. Population Info'!I41 -> 0 | E41: ='A. Population Info'!J41 -> 0 | F41: ='A. Population Info'!K41 -> 0 | G41: =VLOOKUP(B:B,OFFSET('B. PoF Adj Factor Scoring'!$E$5:$F$282,,MATCH(G$4,'B. PoF Adj Factor Scoring'!$E$3:$N$3,0)-1),2,TRUE) -> 1 | H41: =VLOOKUP(C:C,OFFSET('B. PoF Adj Factor Scoring'!$E$5:$F$282,,MATCH(H$4,'B. PoF Adj Factor Scoring'!$E$3:$N$3,0)-1),2,TRUE) -> 2 | I41: =VLOOKUP(D:D,OFFSET('B. PoF Adj Factor Scoring'!$E$5:$F$282,,MATCH(I$4,'B. PoF Adj Factor Scoring'!$E$3:$N$3,0)-1),2,TRUE) -> 1 | J41: =VLOOKUP(E:E,OFFSET('B. PoF Adj Factor Scoring'!$E$5:$F$282,,MATCH(J$4,'B. PoF Adj Factor Scoring'!$E$3:$N$3,0)-1),2,TRUE) -> 1 | K41: =VLOOKUP(F:F,OFFSET('B. PoF Adj Factor Scoring'!$E$5:$F$282,,MATCH(K$4,'B. PoF Adj Factor Scoring'!$E$3:$N$3,0)-1),2,TRUE) -> 1
A42: ='A. Population Info'!A42 -> 1000318924 | B42: ='A. Population Info'!G42 -> OIL | C42: ='A. Population Info'!H42 -> 3 | D42: ='A. Population Info'!I42 -> 0 | E42: ='A. Population Info'!J42 -> 0 | F42: ='A. Population Info'!K42 -> 0 | G42: =VLOOKUP(B:B,OFFSET('B. PoF Adj Factor Scoring'!$E$5:$F$282,,MATCH(G$4,'B. PoF Adj Factor Scoring'!$E$3:$N$3,0)-1),2,TRUE) -> 1 | H42: =VLOOKUP(C:C,OFFSET('B. PoF Adj Factor Scoring'!$E$5:$F$282,,MATCH(H$4,'B. PoF Adj Factor Scoring'!$E$3:$N$3,0)-1),2,TRUE) -> 3 | I42: =VLOOKUP(D:D,OFFSET('B. PoF Adj Factor Scoring'!$E$5:$F$282,,MATCH(I$4,'B. PoF Adj Factor Scoring'!$E$3:$N$3,0)-1),2,TRUE) -> 1 | J42: =VLOOKUP(E:E,OFFSET('B. PoF Adj Factor Scoring'!$E$5:$F$282,,MATCH(J$4,'B. PoF Adj Factor Scoring'!$E$3:$N$3,0)-1),2,TRUE) -> 1 | K42: =VLOOKUP(F:F,OFFSET('B. PoF Adj Factor Scoring'!$E$5:$F$282,,MATCH(K$4,'B. PoF Adj Factor Scoring'!$E$3:$N$3,0)-1),2,TRUE) -> 1
A43: ='A. Population Info'!A43 -> 1000318955 | B43: ='A. Population Info'!G43 -> OIL | C43: ='A. Population Info'!H43 -> 3 | D43: ='A. Population Info'!I43 -> 1500 | E43: ='A. Population Info'!J43 -> 0 | F43: ='A. Population Info'!K43 -> 0 | G43: =VLOOKUP(B:B,OFFSET('B. PoF Adj Factor Scoring'!$E$5:$F$282,,MATCH(G$4,'B. PoF Adj Factor Scoring'!$E$3:$N$3,0)-1),2,TRUE) -> 1 | H43: =VLOOKUP(C:C,OFFSET('B. PoF Adj Factor Scoring'!$E$5:$F$282,,MATCH(H$4,'B. PoF Adj Factor Scoring'!$E$3:$N$3,0)-1),2,TRUE) -> 3 | I43: =VLOOKUP(D:D,OFFSET('B. PoF Adj Factor Scoring'!$E$5:$F$282,,MATCH(I$4,'B. PoF Adj Factor Scoring'!$E$3:$N$3,0)-1),2,TRUE) -> 2 | J43: =VLOOKUP(E:E,OFFSET('B. PoF Adj Factor Scoring'!$E$5:$F$282,,MATCH(J$4,'B. PoF Adj Factor Scoring'!$E$3:$N$3,0)-1),2,TRUE) -> 1 | K43: =VLOOKUP(F:F,OFFSET('B. PoF Adj Factor Scoring'!$E$5:$F$282,,MATCH(K$4,'B. PoF Adj Factor Scoring'!$E$3:$N$3,0)-1),2,TRUE) -> 1
A44: ='A. Population Info'!A44 -> 1000318984 | B44: ='A. Population Info'!G44 -> OIL | C44: ='A. Population Info'!H44 -> 2 | D44: ='A. Population Info'!I44 -> 500 | E44: ='A. Population Info'!J44 -> 0 | F44: ='A. Population Info'!K44 -> 0 | G44: =VLOOKUP(B:B,OFFSET('B. PoF Adj Factor Scoring'!$E$5:$F$282,,MATCH(G$4,'B. PoF Adj Factor Scoring'!$E$3:$N$3,0)-1),2,TRUE) -> 1 | H44: =VLOOKUP(C:C,OFFSET('B. PoF Adj Factor Scoring'!$E$5:$F$282,,MATCH(H$4,'B. PoF Adj Factor Scoring'!$E$3:$N$3,0)-1),2,TRUE) -> 2 | I44: =VLOOKUP(D:D,OFFSET('B. PoF Adj Factor Scoring'!$E$5:$F$282,,MATCH(I$4,'B. PoF Adj Factor Scoring'!$E$3:$N$3,0)-1),2,TRUE) -> 1 | J44: =VLOOKUP(E:E,OFFSET('B. PoF Adj Factor Scoring'!$E$5:$F$282,,MATCH(J$4,'B. PoF Adj Factor Scoring'!$E$3:$N$3,0)-1),2,TRUE) -> 1 | K44: =VLOOKUP(F:F,OFFSET('B. PoF Adj Factor Scoring'!$E$5:$F$282,,MATCH(K$4,'B. PoF Adj Factor Scoring'!$E$3:$N$3,0)-1),2,TRUE) -> 1
A45: ='A. Population Info'!A45 -> 1000323012 | B45: ='A. Population Info'!G45 -> OIL | C45: ='A. Population Info'!H45 -> 1 | D45: ='A. Population Info'!I45 -> 0 | E45: ='A. Population Info'!J45 -> 0 | F45: ='A. Population Info'!K45 -> 0 | G45: =VLOOKUP(B:B,OFFSET('B. PoF Adj Factor Scoring'!$E$5:$F$282,,MATCH(G$4,'B. PoF Adj Factor Scoring'!$E$3:$N$3,0)-1),2,TRUE) -> 1 | H45: =VLOOKUP(C:C,OFFSET('B. PoF Adj Factor Scoring'!$E$5:$F$282,,MATCH(H$4,'B. PoF Adj Factor Scoring'!$E$3:$N$3,0)-1),2,TRUE) -> 1 | I45: =VLOOKUP(D:D,OFFSET('B. PoF Adj Factor Scoring'!$E$5:$F$282,,MATCH(I$4,'B. PoF Adj Factor Scoring'!$E$3:$N$3,0)-1),2,TRUE) -> 1 | J45: =VLOOKUP(E:E,OFFSET('B. PoF Adj Factor Scoring'!$E$5:$F$282,,MATCH(J$4,'B. PoF Adj Factor Scoring'!$E$3:$N$3,0)-1),2,TRUE) -> 1 | K45: =VLOOKUP(F:F,OFFSET('B. PoF Adj Factor Scoring'!$E$5:$F$282,,MATCH(K$4,'B. PoF Adj Factor Scoring'!$E$3:$N$3,0)-1),2,TRUE) -> 1
A46: ='A. Population Info'!A46 -> 1000323042 | B46: ='A. Population Info'!G46 -> OIL | C46: ='A. Population Info'!H46 -> 1 | D46: ='A. Population Info'!I46 -> 0 | E46: ='A. Population Info'!J46 -> 0 | F46: ='A. Population Info'!K46 -> 0 | G46: =VLOOKUP(B:B,OFFSET('B. PoF Adj Factor Scoring'!$E$5:$F$282,,MATCH(G$4,'B. PoF Adj Factor Scoring'!$E$3:$N$3,0)-1),2,TRUE) -> 1 | H46: =VLOOKUP(C:C,OFFSET('B. PoF Adj Factor Scoring'!$E$5:$F$282,,MATCH(H$4,'B. PoF Adj Factor Scoring'!$E$3:$N$3,0)-1),2,TRUE) -> 1 | I46: =VLOOKUP(D:D,OFFSET('B. PoF Adj Factor Scoring'!$E$5:$F$282,,MATCH(I$4,'B. PoF Adj Factor Scoring'!$E$3:$N$3,0)-1),2,TRUE) -> 1 | J46: =VLOOKUP(E:E,OFFSET('B. PoF Adj Factor Scoring'!$E$5:$F$282,,MATCH(J$4,'B. PoF Adj Factor Scoring'!$E$3:$N$3,0)-1),2,TRUE) -> 1 | K46: =VLOOKUP(F:F,OFFSET('B. PoF Adj Factor Scoring'!$E$5:$F$282,,MATCH(K$4,'B. PoF Adj Factor Scoring'!$E$3:$N$3,0)-1),2,TRUE) -> 1
A47: ='A. Population Info'!A47 -> 1000323073 | B47: ='A. Population Info'!G47 -> OIL | C47: ='A. Population Info'!H47 -> 1 | D47: ='A. Population Info'!I47 -> 0 | E47: ='A. Population Info'!J47 -> 0 | F47: ='A. Population Info'!K47 -> 0 | G47: =VLOOKUP(B:B,OFFSET('B. PoF Adj Factor Scoring'!$E$5:$F$282,,MATCH(G$4,'B. PoF Adj Factor Scoring'!$E$3:$N$3,0)-1),2,TRUE) -> 1 | H47: =VLOOKUP(C:C,OFFSET('B. PoF Adj Factor Scoring'!$E$5:$F$282,,MATCH(H$4,'B. PoF Adj Factor Scoring'!$E$3:$N$3,0)-1),2,TRUE) -> 1 | I47: =VLOOKUP(D:D,OFFSET('B. PoF Adj Factor Scoring'!$E$5:$F$282,,MATCH(I$4,'B. PoF Adj Factor Scoring'!$E$3:$N$3,0)-1),2,TRUE) -> 1 | J47: =VLOOKUP(E:E,OFFSET('B. PoF Adj Factor Scoring'!$E$5:$F$282,,MATCH(J$4,'B. PoF Adj Factor Scoring'!$E$3:$N$3,0)-1),2,TRUE) -> 1 | K47: =VLOOKUP(F:F,OFFSET('B. PoF Adj Factor Scoring'!$E$5:$F$282,,MATCH(K$4,'B. PoF Adj Factor Scoring'!$E$3:$N$3,0)-1),2,TRUE) -> 1
A48: ='A. Population Info'!A48 -> 1000323106 | B48: ='A. Population Info'!G48 -> OIL | C48: ='A. Population Info'!H48 -> 3 | D48: ='A. Population Info'!I48 -> 0 | E48: ='A. Population Info'!J48 -> 0 | F48: ='A. Population Info'!K48 -> 0 | G48: =VLOOKUP(B:B,OFFSET('B. PoF Adj Factor Scoring'!$E$5:$F$282,,MATCH(G$4,'B. PoF Adj Factor Scoring'!$E$3:$N$3,0)-1),2,TRUE) -> 1 | H48: =VLOOKUP(C:C,OFFSET('B. PoF Adj Factor Scoring'!$E$5:$F$282,,MATCH(H$4,'B. PoF Adj Factor Scoring'!$E$3:$N$3,0)-1),2,TRUE) -> 3 | I48: =VLOOKUP(D:D,OFFSET('B. PoF Adj Factor Scoring'!$E$5:$F$282,,MATCH(I$4,'B. PoF Adj Factor Scoring'!$E$3:$N$3,0)-1),2,TRUE) -> 1 | J48: =VLOOKUP(E:E,OFFSET('B. PoF Adj Factor Scoring'!$E$5:$F$282,,MATCH(J$4,'B. PoF Adj Factor Scoring'!$E$3:$N$3,0)-1),2,TRUE) -> 1 | K48: =VLOOKUP(F:F,OFFSET('B. PoF Adj Factor Scoring'!$E$5:$F$282,,MATCH(K$4,'B. PoF Adj Factor Scoring'!$E$3:$N$3,0)-1),2,TRUE) -> 1
A49: ='A. Population Info'!A49 -> 1000323136 | B49: ='A. Population Info'!G49 -> OIL | C49: ='A. Population Info'!H49 -> 3 | D49: ='A. Population Info'!I49 -> 0 | E49: ='A. Population Info'!J49 -> 0 | F49: ='A. Population Info'!K49 -> 0 | G49: =VLOOKUP(B:B,OFFSET('B. PoF Adj Factor Scoring'!$E$5:$F$282,,MATCH(G$4,'B. PoF Adj Factor Scoring'!$E$3:$N$3,0)-1),2,TRUE) -> 1 | H49: =VLOOKUP(C:C,OFFSET('B. PoF Adj Factor Scoring'!$E$5:$F$282,,MATCH(H$4,'B. PoF Adj Factor Scoring'!$E$3:$N$3,0)-1),2,TRUE) -> 3 | I49: =VLOOKUP(D:D,OFFSET('B. PoF Adj Factor Scoring'!$E$5:$F$282,,MATCH(I$4,'B. PoF Adj Factor Scoring'!$E$3:$N$3,0)-1),2,TRUE) -> 1 | J49: =VLOOKUP(E:E,OFFSET('B. PoF Adj Factor Scoring'!$E$5:$F$282,,MATCH(J$4,'B. PoF Adj Factor Scoring'!$E$3:$N$3,0)-1),2,TRUE) -> 1 | K49: =VLOOKUP(F:F,OFFSET('B. PoF Adj Factor Scoring'!$E$5:$F$282,,MATCH(K$4,'B. PoF Adj Factor Scoring'!$E$3:$N$3,0)-1),2,TRUE) -> 1
A50: ='A. Population Info'!A50 -> 1000323169 | B50: ='A. Population Info'!G50 -> OIL | C50: ='A. Population Info'!H50 -> 1 | D50: ='A. Population Info'!I50 -> 600 | E50: ='A. Population Info'!J50 -> 0 | F50: ='A. Population Info'!K50 -> 0 | G50: =VLOOKUP(B:B,OFFSET('B. PoF Adj Factor Scoring'!$E$5:$F$282,,MATCH(G$4,'B. PoF Adj Factor Scoring'!$E$3:$N$3,0)-1),2,TRUE) -> 1 | H50: =VLOOKUP(C:C,OFFSET('B. PoF Adj Factor Scoring'!$E$5:$F$282,,MATCH(H$4,'B. PoF Adj Factor Scoring'!$E$3:$N$3,0)-1),2,TRUE) -> 1 | I50: =VLOOKUP(D:D,OFFSET('B. PoF Adj Factor Scoring'!$E$5:$F$282,,MATCH(I$4,'B. PoF Adj Factor Scoring'!$E$3:$N$3,0)-1),2,TRUE) -> 1 | J50: =VLOOKUP(E:E,OFFSET('B. PoF Adj Factor Scoring'!$E$5:$F$282,,MATCH(J$4,'B. PoF Adj Factor Scoring'!$E$3:$N$3,0)-1),2,TRUE) -> 1 | K50: =VLOOKUP(F:F,OFFSET('B. PoF Adj Factor Scoring'!$E$5:$F$282,,MATCH(K$4,'B. PoF Adj Factor Scoring'!$E$3:$N$3,0)-1),2,TRUE) -> 1
A51: ='A. Population Info'!A51 -> 1000323229 | B51: ='A. Population Info'!G51 -> OIL | C51: ='A. Population Info'!H51 -> 1 | D51: ='A. Population Info'!I51 -> 0 | E51: ='A. Population Info'!J51 -> 0 | F51: ='A. Population Info'!K51 -> 0 | G51: =VLOOKUP(B:B,OFFSET('B. PoF Adj Factor Scoring'!$E$5:$F$282,,MATCH(G$4,'B. PoF Adj Factor Scoring'!$E$3:$N$3,0)-1),2,TRUE) -> 1 | H51: =VLOOKUP(C:C,OFFSET('B. PoF Adj Factor Scoring'!$E$5:$F$282,,MATCH(H$4,'B. PoF Adj Factor Scoring'!$E$3:$N$3,0)-1),2,TRUE) -> 1 | I51: =VLOOKUP(D:D,OFFSET('B. PoF Adj Factor Scoring'!$E$5:$F$282,,MATCH(I$4,'B. PoF Adj Factor Scoring'!$E$3:$N$3,0)-1),2,TRUE) -> 1 | J51: =VLOOKUP(E:E,OFFSET('B. PoF Adj Factor Scoring'!$E$5:$F$282,,MATCH(J$4,'B. PoF Adj Factor Scoring'!$E$3:$N$3,0)-1),2,TRUE) -> 1 | K51: =VLOOKUP(F:F,OFFSET('B. PoF Adj Factor Scoring'!$E$5:$F$282,,MATCH(K$4,'B. PoF Adj Factor Scoring'!$E$3:$N$3,0)-1),2,TRUE) -> 1
A52: ='A. Population Info'!A52 -> 1000323262 | B52: ='A. Population Info'!G52 -> OIL | C52: ='A. Population Info'!H52 -> 2 | D52: ='A. Population Info'!I52 -> 1800 | E52: ='A. Population Info'!J52 -> 0 | F52: ='A. Population Info'!K52 -> 0 | G52: =VLOOKUP(B:B,OFFSET('B. PoF Adj Factor Scoring'!$E$5:$F$282,,MATCH(G$4,'B. PoF Adj Factor Scoring'!$E$3:$N$3,0)-1),2,TRUE) -> 1 | H52: =VLOOKUP(C:C,OFFSET('B. PoF Adj Factor Scoring'!$E$5:$F$282,,MATCH(H$4,'B. PoF Adj Factor Scoring'!$E$3:$N$3,0)-1),2,TRUE) -> 2 | I52: =VLOOKUP(D:D,OFFSET('B. PoF Adj Factor Scoring'!$E$5:$F$282,,MATCH(I$4,'B. PoF Adj Factor Scoring'!$E$3:$N$3,0)-1),2,TRUE) -> 2 | J52: =VLOOKUP(E:E,OFFSET('B. PoF Adj Factor Scoring'!$E$5:$F$282,,MATCH(J$4,'B. PoF Adj Factor Scoring'!$E$3:$N$3,0)-1),2,TRUE) -> 1 | K52: =VLOOKUP(F:F,OFFSET('B. PoF Adj Factor Scoring'!$E$5:$F$282,,MATCH(K$4,'B. PoF Adj Factor Scoring'!$E$3:$N$3,0)-1),2,TRUE) -> 1
A53: ='A. Population Info'!A53 -> 1000323289 | B53: ='A. Population Info'!G53 -> OIL | C53: ='A. Population Info'!H53 -> 2 | D53: ='A. Population Info'!I53 -> 1000 | E53: ='A. Population Info'!J53 -> 0 | F53: ='A. Population Info'!K53 -> 0 | G53: =VLOOKUP(B:B,OFFSET('B. PoF Adj Factor Scoring'!$E$5:$F$282,,MATCH(G$4,'B. PoF Adj Factor Scoring'!$E$3:$N$3,0)-1),2,TRUE) -> 1 | H53: =VLOOKUP(C:C,OFFSET('B. PoF Adj Factor Scoring'!$E$5:$F$282,,MATCH(H$4,'B. PoF Adj Factor Scoring'!$E$3:$N$3,0)-1),2,TRUE) -> 2 | I53: =VLOOKUP(D:D,OFFSET('B. PoF Adj Factor Scoring'!$E$5:$F$282,,MATCH(I$4,'B. PoF Adj Factor Scoring'!$E$3:$N$3,0)-1),2,TRUE) -> 2 | J53: =VLOOKUP(E:E,OFFSET('B. PoF Adj Factor Scoring'!$E$5:$F$282,,MATCH(J$4,'B. PoF Adj Factor Scoring'!$E$3:$N$3,0)-1),2,TRUE) -> 1 | K53: =VLOOKUP(F:F,OFFSET('B. PoF Adj Factor Scoring'!$E$5:$F$282,,MATCH(K$4,'B. PoF Adj Factor Scoring'!$E$3:$N$3,0)-1),2,TRUE) -> 1
A54: ='A. Population Info'!A54 -> 1000323320 | B54: ='A. Population Info'!G54 -> OIL | C54: ='A. Population Info'!H54 -> 3 | D54: ='A. Population Info'!I54 -> 300 | E54: ='A. Population Info'!J54 -> 0 | F54: ='A. Population Info'!K54 -> 0 | G54: =VLOOKUP(B:B,OFFSET('B. PoF Adj Factor Scoring'!$E$5:$F$282,,MATCH(G$4,'B. PoF Adj Factor Scoring'!$E$3:$N$3,0)-1),2,TRUE) -> 1 | H54: =VLOOKUP(C:C,OFFSET('B. PoF Adj Factor Scoring'!$E$5:$F$282,,MATCH(H$4,'B. PoF Adj Factor Scoring'!$E$3:$N$3,0)-1),2,TRUE) -> 3 | I54: =VLOOKUP(D:D,OFFSET('B. PoF Adj Factor Scoring'!$E$5:$F$282,,MATCH(I$4,'B. PoF Adj Factor Scoring'!$E$3:$N$3,0)-1),2,TRUE) -> 1 | J54: =VLOOKUP(E:E,OFFSET('B. PoF Adj Factor Scoring'!$E$5:$F$282,,MATCH(J$4,'B. PoF Adj Factor Scoring'!$E$3:$N$3,0)-1),2,TRUE) -> 1 | K54: =VLOOKUP(F:F,OFFSET('B. PoF Adj Factor Scoring'!$E$5:$F$282,,MATCH(K$4,'B. PoF Adj Factor Scoring'!$E$3:$N$3,0)-1),2,TRUE) -> 1
A55: ='A. Population Info'!A55 -> 1000323378 | B55: ='A. Population Info'!G55 -> OIL | C55: ='A. Population Info'!H55 -> 3 | D55: ='A. Population Info'!I55 -> 0 | E55: ='A. Population Info'!J55 -> 0 | F55: ='A. Population Info'!K55 -> 0 | G55: =VLOOKUP(B:B,OFFSET('B. PoF Adj Factor Scoring'!$E$5:$F$282,,MATCH(G$4,'B. PoF Adj Factor Scoring'!$E$3:$N$3,0)-1),2,TRUE) -> 1 | H55: =VLOOKUP(C:C,OFFSET('B. PoF Adj Factor Scoring'!$E$5:$F$282,,MATCH(H$4,'B. PoF Adj Factor Scoring'!$E$3:$N$3,0)-1),2,TRUE) -> 3 | I55: =VLOOKUP(D:D,OFFSET('B. PoF Adj Factor Scoring'!$E$5:$F$282,,MATCH(I$4,'B. PoF Adj Factor Scoring'!$E$3:$N$3,0)-1),2,TRUE) -> 1 | J55: =VLOOKUP(E:E,OFFSET('B. PoF Adj Factor Scoring'!$E$5:$F$282,,MATCH(J$4,'B. PoF Adj Factor Scoring'!$E$3:$N$3,0)-1),2,TRUE) -> 1 | K55: =VLOOKUP(F:F,OFFSET('B. PoF Adj Factor Scoring'!$E$5:$F$282,,MATCH(K$4,'B. PoF Adj Factor Scoring'!$E$3:$N$3,0)-1),2,TRUE) -> 1
A56: ='A. Population Info'!A56 -> 1000323408 | B56: ='A. Population Info'!G56 -> OIL | C56: ='A. Population Info'!H56 -> 3 | D56: ='A. Population Info'!I56 -> 0 | E56: ='A. Population Info'!J56 -> 0 | F56: ='A. Population Info'!K56 -> 0 | G56: =VLOOKUP(B:B,OFFSET('B. PoF Adj Factor Scoring'!$E$5:$F$282,,MATCH(G$4,'B. PoF Adj Factor Scoring'!$E$3:$N$3,0)-1),2,TRUE) -> 1 | H56: =VLOOKUP(C:C,OFFSET('B. PoF Adj Factor Scoring'!$E$5:$F$282,,MATCH(H$4,'B. PoF Adj Factor Scoring'!$E$3:$N$3,0)-1),2,TRUE) -> 3 | I56: =VLOOKUP(D:D,OFFSET('B. PoF Adj Factor Scoring'!$E$5:$F$282,,MATCH(I$4,'B. PoF Adj Factor Scoring'!$E$3:$N$3,0)-1),2,TRUE) -> 1 | J56: =VLOOKUP(E:E,OFFSET('B. PoF Adj Factor Scoring'!$E$5:$F$282,,MATCH(J$4,'B. PoF Adj Factor Scoring'!$E$3:$N$3,0)-1),2,TRUE) -> 1 | K56: =VLOOKUP(F:F,OFFSET('B. PoF Adj Factor Scoring'!$E$5:$F$282,,MATCH(K$4,'B. PoF Adj Factor Scoring'!$E$3:$N$3,0)-1),2,TRUE) -> 1
A57: ='A. Population Info'!A57 -> 1000323435 | B57: ='A. Population Info'!G57 -> OIL | C57: ='A. Population Info'!H57 -> 2 | D57: ='A. Population Info'!I57 -> 0 | E57: ='A. Population Info'!J57 -> 0 | F57: ='A. Population Info'!K57 -> 0 | G57: =VLOOKUP(B:B,OFFSET('B. PoF Adj Factor Scoring'!$E$5:$F$282,,MATCH(G$4,'B. PoF Adj Factor Scoring'!$E$3:$N$3,0)-1),2,TRUE) -> 1 | H57: =VLOOKUP(C:C,OFFSET('B. PoF Adj Factor Scoring'!$E$5:$F$282,,MATCH(H$4,'B. PoF Adj Factor Scoring'!$E$3:$N$3,0)-1),2,TRUE) -> 2 | I57: =VLOOKUP(D:D,OFFSET('B. PoF Adj Factor Scoring'!$E$5:$F$282,,MATCH(I$4,'B. PoF Adj Factor Scoring'!$E$3:$N$3,0)-1),2,TRUE) -> 1 | J57: =VLOOKUP(E:E,OFFSET('B. PoF Adj Factor Scoring'!$E$5:$F$282,,MATCH(J$4,'B. PoF Adj Factor Scoring'!$E$3:$N$3,0)-1),2,TRUE) -> 1 | K57: =VLOOKUP(F:F,OFFSET('B. PoF Adj Factor Scoring'!$E$5:$F$282,,MATCH(K$4,'B. PoF Adj Factor Scoring'!$E$3:$N$3,0)-1),2,TRUE) -> 1
A58: ='A. Population Info'!A58 -> 1000323556 | B58: ='A. Population Info'!G58 -> OIL | C58: ='A. Population Info'!H58 -> 2 | D58: ='A. Population Info'!I58 -> 0 | E58: ='A. Population Info'!J58 -> 0 | F58: ='A. Population Info'!K58 -> 0 | G58: =VLOOKUP(B:B,OFFSET('B. PoF Adj Factor Scoring'!$E$5:$F$282,,MATCH(G$4,'B. PoF Adj Factor Scoring'!$E$3:$N$3,0)-1),2,TRUE) -> 1 | H58: =VLOOKUP(C:C,OFFSET('B. PoF Adj Factor Scoring'!$E$5:$F$282,,MATCH(H$4,'B. PoF Adj Factor Scoring'!$E$3:$N$3,0)-1),2,TRUE) -> 2 | I58: =VLOOKUP(D:D,OFFSET('B. PoF Adj Factor Scoring'!$E$5:$F$282,,MATCH(I$4,'B. PoF Adj Factor Scoring'!$E$3:$N$3,0)-1),2,TRUE) -> 1 | J58: =VLOOKUP(E:E,OFFSET('B. PoF Adj Factor Scoring'!$E$5:$F$282,,MATCH(J$4,'B. PoF Adj Factor Scoring'!$E$3:$N$3,0)-1),2,TRUE) -> 1 | K58: =VLOOKUP(F:F,OFFSET('B. PoF Adj Factor Scoring'!$E$5:$F$282,,MATCH(K$4,'B. PoF Adj Factor Scoring'!$E$3:$N$3,0)-1),2,TRUE) -> 1
A59: ='A. Population Info'!A59 -> 1000323583 | B59: ='A. Population Info'!G59 -> OIL | C59: ='A. Population Info'!H59 -> 2 | D59: ='A. Population Info'!I59 -> 0 | E59: ='A. Population Info'!J59 -> 0 | F59: ='A. Population Info'!K59 -> 0 | G59: =VLOOKUP(B:B,OFFSET('B. PoF Adj Factor Scoring'!$E$5:$F$282,,MATCH(G$4,'B. PoF Adj Factor Scoring'!$E$3:$N$3,0)-1),2,TRUE) -> 1 | H59: =VLOOKUP(C:C,OFFSET('B. PoF Adj Factor Scoring'!$E$5:$F$282,,MATCH(H$4,'B. PoF Adj Factor Scoring'!$E$3:$N$3,0)-1),2,TRUE) -> 2 | I59: =VLOOKUP(D:D,OFFSET('B. PoF Adj Factor Scoring'!$E$5:$F$282,,MATCH(I$4,'B. PoF Adj Factor Scoring'!$E$3:$N$3,0)-1),2,TRUE) -> 1 | J59: =VLOOKUP(E:E,OFFSET('B. PoF Adj Factor Scoring'!$E$5:$F$282,,MATCH(J$4,'B. PoF Adj Factor Scoring'!$E$3:$N$3,0)-1),2,TRUE) -> 1 | K59: =VLOOKUP(F:F,OFFSET('B. PoF Adj Factor Scoring'!$E$5:$F$282,,MATCH(K$4,'B. PoF Adj Factor Scoring'!$E$3:$N$3,0)-1),2,TRUE) -> 1
A60: ='A. Population Info'!A60 -> 1000323796 | B60: ='A. Population Info'!G60 -> OIL | C60: ='A. Population Info'!H60 -> 1 | D60: ='A. Population Info'!I60 -> 0 | E60: ='A. Population Info'!J60 -> 0 | F60: ='A. Population Info'!K60 -> 0 | G60: =VLOOKUP(B:B,OFFSET('B. PoF Adj Factor Scoring'!$E$5:$F$282,,MATCH(G$4,'B. PoF Adj Factor Scoring'!$E$3:$N$3,0)-1),2,TRUE) -> 1 | H60: =VLOOKUP(C:C,OFFSET('B. PoF Adj Factor Scoring'!$E$5:$F$282,,MATCH(H$4,'B. PoF Adj Factor Scoring'!$E$3:$N$3,0)-1),2,TRUE) -> 1 | I60: =VLOOKUP(D:D,OFFSET('B. PoF Adj Factor Scoring'!$E$5:$F$282,,MATCH(I$4,'B. PoF Adj Factor Scoring'!$E$3:$N$3,0)-1),2,TRUE) -> 1 | J60: =VLOOKUP(E:E,OFFSET('B. PoF Adj Factor Scoring'!$E$5:$F$282,,MATCH(J$4,'B. PoF Adj Factor Scoring'!$E$3:$N$3,0)-1),2,TRUE) -> 1 | K60: =VLOOKUP(F:F,OFFSET('B. PoF Adj Factor Scoring'!$E$5:$F$282,,MATCH(K$4,'B. PoF Adj Factor Scoring'!$E$3:$N$3,0)-1),2,TRUE) -> 1
A61: ='A. Population Info'!A61 -> 1000323882 | B61: ='A. Population Info'!G61 -> OIL | C61: ='A. Population Info'!H61 -> 1 | D61: ='A. Population Info'!I61 -> 1900 | E61: ='A. Population Info'!J61 -> 0 | F61: ='A. Population Info'!K61 -> 0 | G61: =VLOOKUP(B:B,OFFSET('B. PoF Adj Factor Scoring'!$E$5:$F$282,,MATCH(G$4,'B. PoF Adj Factor Scoring'!$E$3:$N$3,0)-1),2,TRUE) -> 1 | H61: =VLOOKUP(C:C,OFFSET('B. PoF Adj Factor Scoring'!$E$5:$F$282,,MATCH(H$4,'B. PoF Adj Factor Scoring'!$E$3:$N$3,0)-1),2,TRUE) -> 1 | I61: =VLOOKUP(D:D,OFFSET('B. PoF Adj Factor Scoring'!$E$5:$F$282,,MATCH(I$4,'B. PoF Adj Factor Scoring'!$E$3:$N$3,0)-1),2,TRUE) -> 2 | J61: =VLOOKUP(E:E,OFFSET('B. PoF Adj Factor Scoring'!$E$5:$F$282,,MATCH(J$4,'B. PoF Adj Factor Scoring'!$E$3:$N$3,0)-1),2,TRUE) -> 1 | K61: =VLOOKUP(F:F,OFFSET('B. PoF Adj Factor Scoring'!$E$5:$F$282,,MATCH(K$4,'B. PoF Adj Factor Scoring'!$E$3:$N$3,0)-1),2,TRUE) -> 1
A62: ='A. Population Info'!A62 -> 1000323941 | B62: ='A. Population Info'!G62 -> OIL | C62: ='A. Population Info'!H62 -> 2 | D62: ='A. Population Info'!I62 -> 0 | E62: ='A. Population Info'!J62 -> 0 | F62: ='A. Population Info'!K62 -> 0 | G62: =VLOOKUP(B:B,OFFSET('B. PoF Adj Factor Scoring'!$E$5:$F$282,,MATCH(G$4,'B. PoF Adj Factor Scoring'!$E$3:$N$3,0)-1),2,TRUE) -> 1 | H62: =VLOOKUP(C:C,OFFSET('B. PoF Adj Factor Scoring'!$E$5:$F$282,,MATCH(H$4,'B. PoF Adj Factor Scoring'!$E$3:$N$3,0)-1),2,TRUE) -> 2 | I62: =VLOOKUP(D:D,OFFSET('B. PoF Adj Factor Scoring'!$E$5:$F$282,,MATCH(I$4,'B. PoF Adj Factor Scoring'!$E$3:$N$3,0)-1),2,TRUE) -> 1 | J62: =VLOOKUP(E:E,OFFSET('B. PoF Adj Factor Scoring'!$E$5:$F$282,,MATCH(J$4,'B. PoF Adj Factor Scoring'!$E$3:$N$3,0)-1),2,TRUE) -> 1 | K62: =VLOOKUP(F:F,OFFSET('B. PoF Adj Factor Scoring'!$E$5:$F$282,,MATCH(K$4,'B. PoF Adj Factor Scoring'!$E$3:$N$3,0)-1),2,TRUE) -> 1
A63: ='A. Population Info'!A63 -> 1000323998 | B63: ='A. Population Info'!G63 -> OIL | C63: ='A. Population Info'!H63 -> 1 | D63: ='A. Population Info'!I63 -> 300 | E63: ='A. Population Info'!J63 -> 0 | F63: ='A. Population Info'!K63 -> 0 | G63: =VLOOKUP(B:B,OFFSET('B. PoF Adj Factor Scoring'!$E$5:$F$282,,MATCH(G$4,'B. PoF Adj Factor Scoring'!$E$3:$N$3,0)-1),2,TRUE) -> 1 | H63: =VLOOKUP(C:C,OFFSET('B. PoF Adj Factor Scoring'!$E$5:$F$282,,MATCH(H$4,'B. PoF Adj Factor Scoring'!$E$3:$N$3,0)-1),2,TRUE) -> 1 | I63: =VLOOKUP(D:D,OFFSET('B. PoF Adj Factor Scoring'!$E$5:$F$282,,MATCH(I$4,'B. PoF Adj Factor Scoring'!$E$3:$N$3,0)-1),2,TRUE) -> 1 | J63: =VLOOKUP(E:E,OFFSET('B. PoF Adj Factor Scoring'!$E$5:$F$282,,MATCH(J$4,'B. PoF Adj Factor Scoring'!$E$3:$N$3,0)-1),2,TRUE) -> 1 | K63: =VLOOKUP(F:F,OFFSET('B. PoF Adj Factor Scoring'!$E$5:$F$282,,MATCH(K$4,'B. PoF Adj Factor Scoring'!$E$3:$N$3,0)-1),2,TRUE) -> 1
A64: ='A. Population Info'!A64 -> 1000328026 | B64: ='A. Population Info'!G64 -> OIL | C64: ='A. Population Info'!H64 -> 1 | D64: ='A. Population Info'!I64 -> 0 | E64: ='A. Population Info'!J64 -> 0 | F64: ='A. Population Info'!K64 -> 0 | G64: =VLOOKUP(B:B,OFFSET('B. PoF Adj Factor Scoring'!$E$5:$F$282,,MATCH(G$4,'B. PoF Adj Factor Scoring'!$E$3:$N$3,0)-1),2,TRUE) -> 1 | H64: =VLOOKUP(C:C,OFFSET('B. PoF Adj Factor Scoring'!$E$5:$F$282,,MATCH(H$4,'B. PoF Adj Factor Scoring'!$E$3:$N$3,0)-1),2,TRUE) -> 1 | I64: =VLOOKUP(D:D,OFFSET('B. PoF Adj Factor Scoring'!$E$5:$F$282,,MATCH(I$4,'B. PoF Adj Factor Scoring'!$E$3:$N$3,0)-1),2,TRUE) -> 1 | J64: =VLOOKUP(E:E,OFFSET('B. PoF Adj Factor Scoring'!$E$5:$F$282,,MATCH(J$4,'B. PoF Adj Factor Scoring'!$E$3:$N$3,0)-1),2,TRUE) -> 1 | K64: =VLOOKUP(F:F,OFFSET('B. PoF Adj Factor Scoring'!$E$5:$F$282,,MATCH(K$4,'B. PoF Adj Factor Scoring'!$E$3:$N$3,0)-1),2,TRUE) -> 1
A65: ='A. Population Info'!A65 -> 1000328057 | B65: ='A. Population Info'!G65 -> OIL | C65: ='A. Population Info'!H65 -> 2 | D65: ='A. Population Info'!I65 -> 1100 | E65: ='A. Population Info'!J65 -> 0 | F65: ='A. Population Info'!K65 -> 0 | G65: =VLOOKUP(B:B,OFFSET('B. PoF Adj Factor Scoring'!$E$5:$F$282,,MATCH(G$4,'B. PoF Adj Factor Scoring'!$E$3:$N$3,0)-1),2,TRUE) -> 1 | H65: =VLOOKUP(C:C,OFFSET('B. PoF Adj Factor Scoring'!$E$5:$F$282,,MATCH(H$4,'B. PoF Adj Factor Scoring'!$E$3:$N$3,0)-1),2,TRUE) -> 2 | I65: =VLOOKUP(D:D,OFFSET('B. PoF Adj Factor Scoring'!$E$5:$F$282,,MATCH(I$4,'B. PoF Adj Factor Scoring'!$E$3:$N$3,0)-1),2,TRUE) -> 2 | J65: =VLOOKUP(E:E,OFFSET('B. PoF Adj Factor Scoring'!$E$5:$F$282,,MATCH(J$4,'B. PoF Adj Factor Scoring'!$E$3:$N$3,0)-1),2,TRUE) -> 1 | K65: =VLOOKUP(F:F,OFFSET('B. PoF Adj Factor Scoring'!$E$5:$F$282,,MATCH(K$4,'B. PoF Adj Factor Scoring'!$E$3:$N$3,0)-1),2,TRUE) -> 1
A66: ='A. Population Info'!A66 -> 1000328085 | B66: ='A. Population Info'!G66 -> OIL | C66: ='A. Population Info'!H66 -> 2 | D66: ='A. Population Info'!I66 -> 0 | E66: ='A. Population Info'!J66 -> 0 | F66: ='A. Population Info'!K66 -> 0 | G66: =VLOOKUP(B:B,OFFSET('B. PoF Adj Factor Scoring'!$E$5:$F$282,,MATCH(G$4,'B. PoF Adj Factor Scoring'!$E$3:$N$3,0)-1),2,TRUE) -> 1 | H66: =VLOOKUP(C:C,OFFSET('B. PoF Adj Factor Scoring'!$E$5:$F$282,,MATCH(H$4,'B. PoF Adj Factor Scoring'!$E$3:$N$3,0)-1),2,TRUE) -> 2 | I66: =VLOOKUP(D:D,OFFSET('B. PoF Adj Factor Scoring'!$E$5:$F$282,,MATCH(I$4,'B. PoF Adj Factor Scoring'!$E$3:$N$3,0)-1),2,TRUE) -> 1 | J66: =VLOOKUP(E:E,OFFSET('B. PoF Adj Factor Scoring'!$E$5:$F$282,,MATCH(J$4,'B. PoF Adj Factor Scoring'!$E$3:$N$3,0)-1),2,TRUE) -> 1 | K66: =VLOOKUP(F:F,OFFSET('B. PoF Adj Factor Scoring'!$E$5:$F$282,,MATCH(K$4,'B. PoF Adj Factor Scoring'!$E$3:$N$3,0)-1),2,TRUE) -> 1
A67: ='A. Population Info'!A67 -> 1000328116 | B67: ='A. Population Info'!G67 -> OIL | C67: ='A. Population Info'!H67 -> 1 | D67: ='A. Population Info'!I67 -> 800 | E67: ='A. Population Info'!J67 -> 0 | F67: ='A. Population Info'!K67 -> 0 | G67: =VLOOKUP(B:B,OFFSET('B. PoF Adj Factor Scoring'!$E$5:$F$282,,MATCH(G$4,'B. PoF Adj Factor Scoring'!$E$3:$N$3,0)-1),2,TRUE) -> 1 | H67: =VLOOKUP(C:C,OFFSET('B. PoF Adj Factor Scoring'!$E$5:$F$282,,MATCH(H$4,'B. PoF Adj Factor Scoring'!$E$3:$N$3,0)-1),2,TRUE) -> 1 | I67: =VLOOKUP(D:D,OFFSET('B. PoF Adj Factor Scoring'!$E$5:$F$282,,MATCH(I$4,'B. PoF Adj Factor Scoring'!$E$3:$N$3,0)-1),2,TRUE) -> 1 | J67: =VLOOKUP(E:E,OFFSET('B. PoF Adj Factor Scoring'!$E$5:$F$282,,MATCH(J$4,'B. PoF Adj Factor Scoring'!$E$3:$N$3,0)-1),2,TRUE) -> 1 | K67: =VLOOKUP(F:F,OFFSET('B. PoF Adj Factor Scoring'!$E$5:$F$282,,MATCH(K$4,'B. PoF Adj Factor Scoring'!$E$3:$N$3,0)-1),2,TRUE) -> 1
A68: ='A. Population Info'!A68 -> 1000328175 | B68: ='A. Population Info'!G68 -> OIL | C68: ='A. Population Info'!H68 -> 3 | D68: ='A. Population Info'!I68 -> 0 | E68: ='A. Population Info'!J68 -> 0 | F68: ='A. Population Info'!K68 -> 0 | G68: =VLOOKUP(B:B,OFFSET('B. PoF Adj Factor Scoring'!$E$5:$F$282,,MATCH(G$4,'B. PoF Adj Factor Scoring'!$E$3:$N$3,0)-1),2,TRUE) -> 1 | H68: =VLOOKUP(C:C,OFFSET('B. PoF Adj Factor Scoring'!$E$5:$F$282,,MATCH(H$4,'B. PoF Adj Factor Scoring'!$E$3:$N$3,0)-1),2,TRUE) -> 3 | I68: =VLOOKUP(D:D,OFFSET('B. PoF Adj Factor Scoring'!$E$5:$F$282,,MATCH(I$4,'B. PoF Adj Factor Scoring'!$E$3:$N$3,0)-1),2,TRUE) -> 1 | J68: =VLOOKUP(E:E,OFFSET('B. PoF Adj Factor Scoring'!$E$5:$F$282,,MATCH(J$4,'B. PoF Adj Factor Scoring'!$E$3:$N$3,0)-1),2,TRUE) -> 1 | K68: =VLOOKUP(F:F,OFFSET('B. PoF Adj Factor Scoring'!$E$5:$F$282,,MATCH(K$4,'B. PoF Adj Factor Scoring'!$E$3:$N$3,0)-1),2,TRUE) -> 1
A69: ='A. Population Info'!A69 -> 1000328208 | B69: ='A. Population Info'!G69 -> OIL | C69: ='A. Population Info'!H69 -> 2 | D69: ='A. Population Info'!I69 -> 0 | E69: ='A. Population Info'!J69 -> 0 | F69: ='A. Population Info'!K69 -> 0 | G69: =VLOOKUP(B:B,OFFSET('B. PoF Adj Factor Scoring'!$E$5:$F$282,,MATCH(G$4,'B. PoF Adj Factor Scoring'!$E$3:$N$3,0)-1),2,TRUE) -> 1 | H69: =VLOOKUP(C:C,OFFSET('B. PoF Adj Factor Scoring'!$E$5:$F$282,,MATCH(H$4,'B. PoF Adj Factor Scoring'!$E$3:$N$3,0)-1),2,TRUE) -> 2 | I69: =VLOOKUP(D:D,OFFSET('B. PoF Adj Factor Scoring'!$E$5:$F$282,,MATCH(I$4,'B. PoF Adj Factor Scoring'!$E$3:$N$3,0)-1),2,TRUE) -> 1 | J69: =VLOOKUP(E:E,OFFSET('B. PoF Adj Factor Scoring'!$E$5:$F$282,,MATCH(J$4,'B. PoF Adj Factor Scoring'!$E$3:$N$3,0)-1),2,TRUE) -> 1 | K69: =VLOOKUP(F:F,OFFSET('B. PoF Adj Factor Scoring'!$E$5:$F$282,,MATCH(K$4,'B. PoF Adj Factor Scoring'!$E$3:$N$3,0)-1),2,TRUE) -> 1
A70: ='A. Population Info'!A70 -> 1000328413 | B70: ='A. Population Info'!G70 -> OIL | C70: ='A. Population Info'!H70 -> 2 | D70: ='A. Population Info'!I70 -> 0 | E70: ='A. Population Info'!J70 -> 0 | F70: ='A. Population Info'!K70 -> 0 | G70: =VLOOKUP(B:B,OFFSET('B. PoF Adj Factor Scoring'!$E$5:$F$282,,MATCH(G$4,'B. PoF Adj Factor Scoring'!$E$3:$N$3,0)-1),2,TRUE) -> 1 | H70: =VLOOKUP(C:C,OFFSET('B. PoF Adj Factor Scoring'!$E$5:$F$282,,MATCH(H$4,'B. PoF Adj Factor Scoring'!$E$3:$N$3,0)-1),2,TRUE) -> 2 | I70: =VLOOKUP(D:D,OFFSET('B. PoF Adj Factor Scoring'!$E$5:$F$282,,MATCH(I$4,'B. PoF Adj Factor Scoring'!$E$3:$N$3,0)-1),2,TRUE) -> 1 | J70: =VLOOKUP(E:E,OFFSET('B. PoF Adj Factor Scoring'!$E$5:$F$282,,MATCH(J$4,'B. PoF Adj Factor Scoring'!$E$3:$N$3,0)-1),2,TRUE) -> 1 | K70: =VLOOKUP(F:F,OFFSET('B. PoF Adj Factor Scoring'!$E$5:$F$282,,MATCH(K$4,'B. PoF Adj Factor Scoring'!$E$3:$N$3,0)-1),2,TRUE) -> 1
A71: ='A. Population Info'!A71 -> 1000328506 | B71: ='A. Population Info'!G71 -> OIL | C71: ='A. Population Info'!H71 -> 3 | D71: ='A. Population Info'!I71 -> 0 | E71: ='A. Population Info'!J71 -> 0 | F71: ='A. Population Info'!K71 -> 0 | G71: =VLOOKUP(B:B,OFFSET('B. PoF Adj Factor Scoring'!$E$5:$F$282,,MATCH(G$4,'B. PoF Adj Factor Scoring'!$E$3:$N$3,0)-1),2,TRUE) -> 1 | H71: =VLOOKUP(C:C,OFFSET('B. PoF Adj Factor Scoring'!$E$5:$F$282,,MATCH(H$4,'B. PoF Adj Factor Scoring'!$E$3:$N$3,0)-1),2,TRUE) -> 3 | I71: =VLOOKUP(D:D,OFFSET('B. PoF Adj Factor Scoring'!$E$5:$F$282,,MATCH(I$4,'B. PoF Adj Factor Scoring'!$E$3:$N$3,0)-1),2,TRUE) -> 1 | J71: =VLOOKUP(E:E,OFFSET('B. PoF Adj Factor Scoring'!$E$5:$F$282,,MATCH(J$4,'B. PoF Adj Factor Scoring'!$E$3:$N$3,0)-1),2,TRUE) -> 1 | K71: =VLOOKUP(F:F,OFFSET('B. PoF Adj Factor Scoring'!$E$5:$F$282,,MATCH(K$4,'B. PoF Adj Factor Scoring'!$E$3:$N$3,0)-1),2,TRUE) -> 1
A72: ='A. Population Info'!A72 -> 1000328533 | B72: ='A. Population Info'!G72 -> OIL | C72: ='A. Population Info'!H72 -> 2 | D72: ='A. Population Info'!I72 -> 2160 | E72: ='A. Population Info'!J72 -> 0 | F72: ='A. Population Info'!K72 -> 0 | G72: =VLOOKUP(B:B,OFFSET('B. PoF Adj Factor Scoring'!$E$5:$F$282,,MATCH(G$4,'B. PoF Adj Factor Scoring'!$E$3:$N$3,0)-1),2,TRUE) -> 1 | H72: =VLOOKUP(C:C,OFFSET('B. PoF Adj Factor Scoring'!$E$5:$F$282,,MATCH(H$4,'B. PoF Adj Factor Scoring'!$E$3:$N$3,0)-1),2,TRUE) -> 2 | I72: =VLOOKUP(D:D,OFFSET('B. PoF Adj Factor Scoring'!$E$5:$F$282,,MATCH(I$4,'B. PoF Adj Factor Scoring'!$E$3:$N$3,0)-1),2,TRUE) -> 2 | J72: =VLOOKUP(E:E,OFFSET('B. PoF Adj Factor Scoring'!$E$5:$F$282,,MATCH(J$4,'B. PoF Adj Factor Scoring'!$E$3:$N$3,0)-1),2,TRUE) -> 1 | K72: =VLOOKUP(F:F,OFFSET('B. PoF Adj Factor Scoring'!$E$5:$F$282,,MATCH(K$4,'B. PoF Adj Factor Scoring'!$E$3:$N$3,0)-1),2,TRUE) -> 1
A73: ='A. Population Info'!A73 -> 1000328564 | B73: ='A. Population Info'!G73 -> OIL | C73: ='A. Population Info'!H73 -> 2 | D73: ='A. Population Info'!I73 -> 1700 | E73: ='A. Population Info'!J73 -> 0 | F73: ='A. Population Info'!K73 -> 0 | G73: =VLOOKUP(B:B,OFFSET('B. PoF Adj Factor Scoring'!$E$5:$F$282,,MATCH(G$4,'B. PoF Adj Factor Scoring'!$E$3:$N$3,0)-1),2,TRUE) -> 1 | H73: =VLOOKUP(C:C,OFFSET('B. PoF Adj Factor Scoring'!$E$5:$F$282,,MATCH(H$4,'B. PoF Adj Factor Scoring'!$E$3:$N$3,0)-1),2,TRUE) -> 2 | I73: =VLOOKUP(D:D,OFFSET('B. PoF Adj Factor Scoring'!$E$5:$F$282,,MATCH(I$4,'B. PoF Adj Factor Scoring'!$E$3:$N$3,0)-1),2,TRUE) -> 2 | J73: =VLOOKUP(E:E,OFFSET('B. PoF Adj Factor Scoring'!$E$5:$F$282,,MATCH(J$4,'B. PoF Adj Factor Scoring'!$E$3:$N$3,0)-1),2,TRUE) -> 1 | K73: =VLOOKUP(F:F,OFFSET('B. PoF Adj Factor Scoring'!$E$5:$F$282,,MATCH(K$4,'B. PoF Adj Factor Scoring'!$E$3:$N$3,0)-1),2,TRUE) -> 1
A74: ='A. Population Info'!A74 -> 1000328590 | B74: ='A. Population Info'!G74 -> OIL | C74: ='A. Population Info'!H74 -> 3 | D74: ='A. Population Info'!I74 -> 1300 | E74: ='A. Population Info'!J74 -> 0 | F74: ='A. Population Info'!K74 -> 0 | G74: =VLOOKUP(B:B,OFFSET('B. PoF Adj Factor Scoring'!$E$5:$F$282,,MATCH(G$4,'B. PoF Adj Factor Scoring'!$E$3:$N$3,0)-1),2,TRUE) -> 1 | H74: =VLOOKUP(C:C,OFFSET('B. PoF Adj Factor Scoring'!$E$5:$F$282,,MATCH(H$4,'B. PoF Adj Factor Scoring'!$E$3:$N$3,0)-1),2,TRUE) -> 3 | I74: =VLOOKUP(D:D,OFFSET('B. PoF Adj Factor Scoring'!$E$5:$F$282,,MATCH(I$4,'B. PoF Adj Factor Scoring'!$E$3:$N$3,0)-1),2,TRUE) -> 2 | J74: =VLOOKUP(E:E,OFFSET('B. PoF Adj Factor Scoring'!$E$5:$F$282,,MATCH(J$4,'B. PoF Adj Factor Scoring'!$E$3:$N$3,0)-1),2,TRUE) -> 1 | K74: =VLOOKUP(F:F,OFFSET('B. PoF Adj Factor Scoring'!$E$5:$F$282,,MATCH(K$4,'B. PoF Adj Factor Scoring'!$E$3:$N$3,0)-1),2,TRUE) -> 1
A75: ='A. Population Info'!A75 -> 1000328647 | B75: ='A. Population Info'!G75 -> OIL | C75: ='A. Population Info'!H75 -> 3 | D75: ='A. Population Info'!I75 -> 0 | E75: ='A. Population Info'!J75 -> 0 | F75: ='A. Population Info'!K75 -> 0 | G75: =VLOOKUP(B:B,OFFSET('B. PoF Adj Factor Scoring'!$E$5:$F$282,,MATCH(G$4,'B. PoF Adj Factor Scoring'!$E$3:$N$3,0)-1),2,TRUE) -> 1 | H75: =VLOOKUP(C:C,OFFSET('B. PoF Adj Factor Scoring'!$E$5:$F$282,,MATCH(H$4,'B. PoF Adj Factor Scoring'!$E$3:$N$3,0)-1),2,TRUE) -> 3 | I75: =VLOOKUP(D:D,OFFSET('B. PoF Adj Factor Scoring'!$E$5:$F$282,,MATCH(I$4,'B. PoF Adj Factor Scoring'!$E$3:$N$3,0)-1),2,TRUE) -> 1 | J75: =VLOOKUP(E:E,OFFSET('B. PoF Adj Factor Scoring'!$E$5:$F$282,,MATCH(J$4,'B. PoF Adj Factor Scoring'!$E$3:$N$3,0)-1),2,TRUE) -> 1 | K75: =VLOOKUP(F:F,OFFSET('B. PoF Adj Factor Scoring'!$E$5:$F$282,,MATCH(K$4,'B. PoF Adj Factor Scoring'!$E$3:$N$3,0)-1),2,TRUE) -> 1
A76: ='A. Population Info'!A76 -> 1000328676 | B76: ='A. Population Info'!G76 -> OIL | C76: ='A. Population Info'!H76 -> 1 | D76: ='A. Population Info'!I76 -> 0 | E76: ='A. Population Info'!J76 -> 0 | F76: ='A. Population Info'!K76 -> 0 | G76: =VLOOKUP(B:B,OFFSET('B. PoF Adj Factor Scoring'!$E$5:$F$282,,MATCH(G$4,'B. PoF Adj Factor Scoring'!$E$3:$N$3,0)-1),2,TRUE) -> 1 | H76: =VLOOKUP(C:C,OFFSET('B. PoF Adj Factor Scoring'!$E$5:$F$282,,MATCH(H$4,'B. PoF Adj Factor Scoring'!$E$3:$N$3,0)-1),2,TRUE) -> 1 | I76: =VLOOKUP(D:D,OFFSET('B. PoF Adj Factor Scoring'!$E$5:$F$282,,MATCH(I$4,'B. PoF Adj Factor Scoring'!$E$3:$N$3,0)-1),2,TRUE) -> 1 | J76: =VLOOKUP(E:E,OFFSET('B. PoF Adj Factor Scoring'!$E$5:$F$282,,MATCH(J$4,'B. PoF Adj Factor Scoring'!$E$3:$N$3,0)-1),2,TRUE) -> 1 | K76: =VLOOKUP(F:F,OFFSET('B. PoF Adj Factor Scoring'!$E$5:$F$282,,MATCH(K$4,'B. PoF Adj Factor Scoring'!$E$3:$N$3,0)-1),2,TRUE) -> 1
A77: ='A. Population Info'!A77 -> 1000328766 | B77: ='A. Population Info'!G77 -> OIL | C77: ='A. Population Info'!H77 -> 3 | D77: ='A. Population Info'!I77 -> 0 | E77: ='A. Population Info'!J77 -> 0 | F77: ='A. Population Info'!K77 -> 0 | G77: =VLOOKUP(B:B,OFFSET('B. PoF Adj Factor Scoring'!$E$5:$F$282,,MATCH(G$4,'B. PoF Adj Factor Scoring'!$E$3:$N$3,0)-1),2,TRUE) -> 1 | H77: =VLOOKUP(C:C,OFFSET('B. PoF Adj Factor Scoring'!$E$5:$F$282,,MATCH(H$4,'B. PoF Adj Factor Scoring'!$E$3:$N$3,0)-1),2,TRUE) -> 3 | I77: =VLOOKUP(D:D,OFFSET('B. PoF Adj Factor Scoring'!$E$5:$F$282,,MATCH(I$4,'B. PoF Adj Factor Scoring'!$E$3:$N$3,0)-1),2,TRUE) -> 1 | J77: =VLOOKUP(E:E,OFFSET('B. PoF Adj Factor Scoring'!$E$5:$F$282,,MATCH(J$4,'B. PoF Adj Factor Scoring'!$E$3:$N$3,0)-1),2,TRUE) -> 1 | K77: =VLOOKUP(F:F,OFFSET('B. PoF Adj Factor Scoring'!$E$5:$F$282,,MATCH(K$4,'B. PoF Adj Factor Scoring'!$E$3:$N$3,0)-1),2,TRUE) -> 1
A78: ='A. Population Info'!A78 -> 1000328796 | B78: ='A. Population Info'!G78 -> OIL | C78: ='A. Population Info'!H78 -> 4 | D78: ='A. Population Info'!I78 -> 0 | E78: ='A. Population Info'!J78 -> 0 | F78: ='A. Population Info'!K78 -> 0 | G78: =VLOOKUP(B:B,OFFSET('B. PoF Adj Factor Scoring'!$E$5:$F$282,,MATCH(G$4,'B. PoF Adj Factor Scoring'!$E$3:$N$3,0)-1),2,TRUE) -> 1 | H78: =VLOOKUP(C:C,OFFSET('B. PoF Adj Factor Scoring'!$E$5:$F$282,,MATCH(H$4,'B. PoF Adj Factor Scoring'!$E$3:$N$3,0)-1),2,TRUE) -> 4 | I78: =VLOOKUP(D:D,OFFSET('B. PoF Adj Factor Scoring'!$E$5:$F$282,,MATCH(I$4,'B. PoF Adj Factor Scoring'!$E$3:$N$3,0)-1),2,TRUE) -> 1 | J78: =VLOOKUP(E:E,OFFSET('B. PoF Adj Factor Scoring'!$E$5:$F$282,,MATCH(J$4,'B. PoF Adj Factor Scoring'!$E$3:$N$3,0)-1),2,TRUE) -> 1 | K78: =VLOOKUP(F:F,OFFSET('B. PoF Adj Factor Scoring'!$E$5:$F$282,,MATCH(K$4,'B. PoF Adj Factor Scoring'!$E$3:$N$3,0)-1),2,TRUE) -> 1
A79: ='A. Population Info'!A79 -> 1000328825 | B79: ='A. Population Info'!G79 -> OIL | C79: ='A. Population Info'!H79 -> 3 | D79: ='A. Population Info'!I79 -> 0 | E79: ='A. Population Info'!J79 -> 0 | F79: ='A. Population Info'!K79 -> 0 | G79: =VLOOKUP(B:B,OFFSET('B. PoF Adj Factor Scoring'!$E$5:$F$282,,MATCH(G$4,'B. PoF Adj Factor Scoring'!$E$3:$N$3,0)-1),2,TRUE) -> 1 | H79: =VLOOKUP(C:C,OFFSET('B. PoF Adj Factor Scoring'!$E$5:$F$282,,MATCH(H$4,'B. PoF Adj Factor Scoring'!$E$3:$N$3,0)-1),2,TRUE) -> 3 | I79: =VLOOKUP(D:D,OFFSET('B. PoF Adj Factor Scoring'!$E$5:$F$282,,MATCH(I$4,'B. PoF Adj Factor Scoring'!$E$3:$N$3,0)-1),2,TRUE) -> 1 | J79: =VLOOKUP(E:E,OFFSET('B. PoF Adj Factor Scoring'!$E$5:$F$282,,MATCH(J$4,'B. PoF Adj Factor Scoring'!$E$3:$N$3,0)-1),2,TRUE) -> 1 | K79: =VLOOKUP(F:F,OFFSET('B. PoF Adj Factor Scoring'!$E$5:$F$282,,MATCH(K$4,'B. PoF Adj Factor Scoring'!$E$3:$N$3,0)-1),2,TRUE) -> 1
A80: ='A. Population Info'!A80 -> 1000328852 | B80: ='A. Population Info'!G80 -> OIL | C80: ='A. Population Info'!H80 -> 1 | D80: ='A. Population Info'!I80 -> 0 | E80: ='A. Population Info'!J80 -> 0 | F80: ='A. Population Info'!K80 -> 0 | G80: =VLOOKUP(B:B,OFFSET('B. PoF Adj Factor Scoring'!$E$5:$F$282,,MATCH(G$4,'B. PoF Adj Factor Scoring'!$E$3:$N$3,0)-1),2,TRUE) -> 1 | H80: =VLOOKUP(C:C,OFFSET('B. PoF Adj Factor Scoring'!$E$5:$F$282,,MATCH(H$4,'B. PoF Adj Factor Scoring'!$E$3:$N$3,0)-1),2,TRUE) -> 1 | I80: =VLOOKUP(D:D,OFFSET('B. PoF Adj Factor Scoring'!$E$5:$F$282,,MATCH(I$4,'B. PoF Adj Factor Scoring'!$E$3:$N$3,0)-1),2,TRUE) -> 1 | J80: =VLOOKUP(E:E,OFFSET('B. PoF Adj Factor Scoring'!$E$5:$F$282,,MATCH(J$4,'B. PoF Adj Factor Scoring'!$E$3:$N$3,0)-1),2,TRUE) -> 1 | K80: =VLOOKUP(F:F,OFFSET('B. PoF Adj Factor Scoring'!$E$5:$F$282,,MATCH(K$4,'B. PoF Adj Factor Scoring'!$E$3:$N$3,0)-1),2,TRUE) -> 1
A81: ='A. Population Info'!A81 -> 1000328910 | B81: ='A. Population Info'!G81 -> OIL | C81: ='A. Population Info'!H81 -> 2 | D81: ='A. Population Info'!I81 -> 300 | E81: ='A. Population Info'!J81 -> 0 | F81: ='A. Population Info'!K81 -> 0 | G81: =VLOOKUP(B:B,OFFSET('B. PoF Adj Factor Scoring'!$E$5:$F$282,,MATCH(G$4,'B. PoF Adj Factor Scoring'!$E$3:$N$3,0)-1),2,TRUE) -> 1 | H81: =VLOOKUP(C:C,OFFSET('B. PoF Adj Factor Scoring'!$E$5:$F$282,,MATCH(H$4,'B. PoF Adj Factor Scoring'!$E$3:$N$3,0)-1),2,TRUE) -> 2 | I81: =VLOOKUP(D:D,OFFSET('B. PoF Adj Factor Scoring'!$E$5:$F$282,,MATCH(I$4,'B. PoF Adj Factor Scoring'!$E$3:$N$3,0)-1),2,TRUE) -> 1 | J81: =VLOOKUP(E:E,OFFSET('B. PoF Adj Factor Scoring'!$E$5:$F$282,,MATCH(J$4,'B. PoF Adj Factor Scoring'!$E$3:$N$3,0)-1),2,TRUE) -> 1 | K81: =VLOOKUP(F:F,OFFSET('B. PoF Adj Factor Scoring'!$E$5:$F$282,,MATCH(K$4,'B. PoF Adj Factor Scoring'!$E$3:$N$3,0)-1),2,TRUE) -> 1
A82: ='A. Population Info'!A82 -> 1000332025 | B82: ='A. Population Info'!G82 -> OIL | C82: ='A. Population Info'!H82 -> 2 | D82: ='A. Population Info'!I82 -> 800 | E82: ='A. Population Info'!J82 -> 0 | F82: ='A. Population Info'!K82 -> 0 | G82: =VLOOKUP(B:B,OFFSET('B. PoF Adj Factor Scoring'!$E$5:$F$282,,MATCH(G$4,'B. PoF Adj Factor Scoring'!$E$3:$N$3,0)-1),2,TRUE) -> 1 | H82: =VLOOKUP(C:C,OFFSET('B. PoF Adj Factor Scoring'!$E$5:$F$282,,MATCH(H$4,'B. PoF Adj Factor Scoring'!$E$3:$N$3,0)-1),2,TRUE) -> 2 | I82: =VLOOKUP(D:D,OFFSET('B. PoF Adj Factor Scoring'!$E$5:$F$282,,MATCH(I$4,'B. PoF Adj Factor Scoring'!$E$3:$N$3,0)-1),2,TRUE) -> 1 | J82: =VLOOKUP(E:E,OFFSET('B. PoF Adj Factor Scoring'!$E$5:$F$282,,MATCH(J$4,'B. PoF Adj Factor Scoring'!$E$3:$N$3,0)-1),2,TRUE) -> 1 | K82: =VLOOKUP(F:F,OFFSET('B. PoF Adj Factor Scoring'!$E$5:$F$282,,MATCH(K$4,'B. PoF Adj Factor Scoring'!$E$3:$N$3,0)-1),2,TRUE) -> 1
A83: ='A. Population Info'!A83 -> 1000332304 | B83: ='A. Population Info'!G83 -> OIL | C83: ='A. Population Info'!H83 -> 1 | D83: ='A. Population Info'!I83 -> 0 | E83: ='A. Population Info'!J83 -> 0 | F83: ='A. Population Info'!K83 -> 0 | G83: =VLOOKUP(B:B,OFFSET('B. PoF Adj Factor Scoring'!$E$5:$F$282,,MATCH(G$4,'B. PoF Adj Factor Scoring'!$E$3:$N$3,0)-1),2,TRUE) -> 1 | H83: =VLOOKUP(C:C,OFFSET('B. PoF Adj Factor Scoring'!$E$5:$F$282,,MATCH(H$4,'B. PoF Adj Factor Scoring'!$E$3:$N$3,0)-1),2,TRUE) -> 1 | I83: =VLOOKUP(D:D,OFFSET('B. PoF Adj Factor Scoring'!$E$5:$F$282,,MATCH(I$4,'B. PoF Adj Factor Scoring'!$E$3:$N$3,0)-1),2,TRUE) -> 1 | J83: =VLOOKUP(E:E,OFFSET('B. PoF Adj Factor Scoring'!$E$5:$F$282,,MATCH(J$4,'B. PoF Adj Factor Scoring'!$E$3:$N$3,0)-1),2,TRUE) -> 1 | K83: =VLOOKUP(F:F,OFFSET('B. PoF Adj Factor Scoring'!$E$5:$F$282,,MATCH(K$4,'B. PoF Adj Factor Scoring'!$E$3:$N$3,0)-1),2,TRUE) -> 1
A84: ='A. Population Info'!A84 -> 1000332390 | B84: ='A. Population Info'!G84 -> OIL | C84: ='A. Population Info'!H84 -> 3 | D84: ='A. Population Info'!I84 -> 0 | E84: ='A. Population Info'!J84 -> 0 | F84: ='A. Population Info'!K84 -> 0 | G84: =VLOOKUP(B:B,OFFSET('B. PoF Adj Factor Scoring'!$E$5:$F$282,,MATCH(G$4,'B. PoF Adj Factor Scoring'!$E$3:$N$3,0)-1),2,TRUE) -> 1 | H84: =VLOOKUP(C:C,OFFSET('B. PoF Adj Factor Scoring'!$E$5:$F$282,,MATCH(H$4,'B. PoF Adj Factor Scoring'!$E$3:$N$3,0)-1),2,TRUE) -> 3 | I84: =VLOOKUP(D:D,OFFSET('B. PoF Adj Factor Scoring'!$E$5:$F$282,,MATCH(I$4,'B. PoF Adj Factor Scoring'!$E$3:$N$3,0)-1),2,TRUE) -> 1 | J84: =VLOOKUP(E:E,OFFSET('B. PoF Adj Factor Scoring'!$E$5:$F$282,,MATCH(J$4,'B. PoF Adj Factor Scoring'!$E$3:$N$3,0)-1),2,TRUE) -> 1 | K84: =VLOOKUP(F:F,OFFSET('B. PoF Adj Factor Scoring'!$E$5:$F$282,,MATCH(K$4,'B. PoF Adj Factor Scoring'!$E$3:$N$3,0)-1),2,TRUE) -> 1
A85: ='A. Population Info'!A85 -> 1000332419 | B85: ='A. Population Info'!G85 -> OIL | C85: ='A. Population Info'!H85 -> 1 | D85: ='A. Population Info'!I85 -> 0 | E85: ='A. Population Info'!J85 -> 0 | F85: ='A. Population Info'!K85 -> 0 | G85: =VLOOKUP(B:B,OFFSET('B. PoF Adj Factor Scoring'!$E$5:$F$282,,MATCH(G$4,'B. PoF Adj Factor Scoring'!$E$3:$N$3,0)-1),2,TRUE) -> 1 | H85: =VLOOKUP(C:C,OFFSET('B. PoF Adj Factor Scoring'!$E$5:$F$282,,MATCH(H$4,'B. PoF Adj Factor Scoring'!$E$3:$N$3,0)-1),2,TRUE) -> 1 | I85: =VLOOKUP(D:D,OFFSET('B. PoF Adj Factor Scoring'!$E$5:$F$282,,MATCH(I$4,'B. PoF Adj Factor Scoring'!$E$3:$N$3,0)-1),2,TRUE) -> 1 | J85: =VLOOKUP(E:E,OFFSET('B. PoF Adj Factor Scoring'!$E$5:$F$282,,MATCH(J$4,'B. PoF Adj Factor Scoring'!$E$3:$N$3,0)-1),2,TRUE) -> 1 | K85: =VLOOKUP(F:F,OFFSET('B. PoF Adj Factor Scoring'!$E$5:$F$282,,MATCH(K$4,'B. PoF Adj Factor Scoring'!$E$3:$N$3,0)-1),2,TRUE) -> 1
A86: ='A. Population Info'!A86 -> 1000332450 | B86: ='A. Population Info'!G86 -> OIL | C86: ='A. Population Info'!H86 -> 2 | D86: ='A. Population Info'!I86 -> 0 | E86: ='A. Population Info'!J86 -> 0 | F86: ='A. Population Info'!K86 -> 0 | G86: =VLOOKUP(B:B,OFFSET('B. PoF Adj Factor Scoring'!$E$5:$F$282,,MATCH(G$4,'B. PoF Adj Factor Scoring'!$E$3:$N$3,0)-1),2,TRUE) -> 1 | H86: =VLOOKUP(C:C,OFFSET('B. PoF Adj Factor Scoring'!$E$5:$F$282,,MATCH(H$4,'B. PoF Adj Factor Scoring'!$E$3:$N$3,0)-1),2,TRUE) -> 2 | I86: =VLOOKUP(D:D,OFFSET('B. PoF Adj Factor Scoring'!$E$5:$F$282,,MATCH(I$4,'B. PoF Adj Factor Scoring'!$E$3:$N$3,0)-1),2,TRUE) -> 1 | J86: =VLOOKUP(E:E,OFFSET('B. PoF Adj Factor Scoring'!$E$5:$F$282,,MATCH(J$4,'B. PoF Adj Factor Scoring'!$E$3:$N$3,0)-1),2,TRUE) -> 1 | K86: =VLOOKUP(F:F,OFFSET('B. PoF Adj Factor Scoring'!$E$5:$F$282,,MATCH(K$4,'B. PoF Adj Factor Scoring'!$E$3:$N$3,0)-1),2,TRUE) -> 1
A87: ='A. Population Info'!A87 -> 1000332539 | B87: ='A. Population Info'!G87 -> OIL | C87: ='A. Population Info'!H87 -> 1 | D87: ='A. Population Info'!I87 -> 0 | E87: ='A. Population Info'!J87 -> 0 | F87: ='A. Population Info'!K87 -> 0 | G87: =VLOOKUP(B:B,OFFSET('B. PoF Adj Factor Scoring'!$E$5:$F$282,,MATCH(G$4,'B. PoF Adj Factor Scoring'!$E$3:$N$3,0)-1),2,TRUE) -> 1 | H87: =VLOOKUP(C:C,OFFSET('B. PoF Adj Factor Scoring'!$E$5:$F$282,,MATCH(H$4,'B. PoF Adj Factor Scoring'!$E$3:$N$3,0)-1),2,TRUE) -> 1 | I87: =VLOOKUP(D:D,OFFSET('B. PoF Adj Factor Scoring'!$E$5:$F$282,,MATCH(I$4,'B. PoF Adj Factor Scoring'!$E$3:$N$3,0)-1),2,TRUE) -> 1 | J87: =VLOOKUP(E:E,OFFSET('B. PoF Adj Factor Scoring'!$E$5:$F$282,,MATCH(J$4,'B. PoF Adj Factor Scoring'!$E$3:$N$3,0)-1),2,TRUE) -> 1 | K87: =VLOOKUP(F:F,OFFSET('B. PoF Adj Factor Scoring'!$E$5:$F$282,,MATCH(K$4,'B. PoF Adj Factor Scoring'!$E$3:$N$3,0)-1),2,TRUE) -> 1
A88: ='A. Population Info'!A88 -> 1000332568 | B88: ='A. Population Info'!G88 -> OIL | C88: ='A. Population Info'!H88 -> 1 | D88: ='A. Population Info'!I88 -> 500 | E88: ='A. Population Info'!J88 -> 0 | F88: ='A. Population Info'!K88 -> 0 | G88: =VLOOKUP(B:B,OFFSET('B. PoF Adj Factor Scoring'!$E$5:$F$282,,MATCH(G$4,'B. PoF Adj Factor Scoring'!$E$3:$N$3,0)-1),2,TRUE) -> 1 | H88: =VLOOKUP(C:C,OFFSET('B. PoF Adj Factor Scoring'!$E$5:$F$282,,MATCH(H$4,'B. PoF Adj Factor Scoring'!$E$3:$N$3,0)-1),2,TRUE) -> 1 | I88: =VLOOKUP(D:D,OFFSET('B. PoF Adj Factor Scoring'!$E$5:$F$282,,MATCH(I$4,'B. PoF Adj Factor Scoring'!$E$3:$N$3,0)-1),2,TRUE) -> 1 | J88: =VLOOKUP(E:E,OFFSET('B. PoF Adj Factor Scoring'!$E$5:$F$282,,MATCH(J$4,'B. PoF Adj Factor Scoring'!$E$3:$N$3,0)-1),2,TRUE) -> 1 | K88: =VLOOKUP(F:F,OFFSET('B. PoF Adj Factor Scoring'!$E$5:$F$282,,MATCH(K$4,'B. PoF Adj Factor Scoring'!$E$3:$N$3,0)-1),2,TRUE) -> 1
A89: ='A. Population Info'!A89 -> 1000332625 | B89: ='A. Population Info'!G89 -> OIL | C89: ='A. Population Info'!H89 -> 5 | D89: ='A. Population Info'!I89 -> 1000 | E89: ='A. Population Info'!J89 -> 0 | F89: ='A. Population Info'!K89 -> 0 | G89: =VLOOKUP(B:B,OFFSET('B. PoF Adj Factor Scoring'!$E$5:$F$282,,MATCH(G$4,'B. PoF Adj Factor Scoring'!$E$3:$N$3,0)-1),2,TRUE) -> 1 | H89: =VLOOKUP(C:C,OFFSET('B. PoF Adj Factor Scoring'!$E$5:$F$282,,MATCH(H$4,'B. PoF Adj Factor Scoring'!$E$3:$N$3,0)-1),2,TRUE) -> 5 | I89: =VLOOKUP(D:D,OFFSET('B. PoF Adj Factor Scoring'!$E$5:$F$282,,MATCH(I$4,'B. PoF Adj Factor Scoring'!$E$3:$N$3,0)-1),2,TRUE) -> 2 | J89: =VLOOKUP(E:E,OFFSET('B. PoF Adj Factor Scoring'!$E$5:$F$282,,MATCH(J$4,'B. PoF Adj Factor Scoring'!$E$3:$N$3,0)-1),2,TRUE) -> 1 | K89: =VLOOKUP(F:F,OFFSET('B. PoF Adj Factor Scoring'!$E$5:$F$282,,MATCH(K$4,'B. PoF Adj Factor Scoring'!$E$3:$N$3,0)-1),2,TRUE) -> 1
A90: ='A. Population Info'!A90 -> 1000332657 | B90: ='A. Population Info'!G90 -> OIL | C90: ='A. Population Info'!H90 -> 3 | D90: ='A. Population Info'!I90 -> 0 | E90: ='A. Population Info'!J90 -> 0 | F90: ='A. Population Info'!K90 -> 0 | G90: =VLOOKUP(B:B,OFFSET('B. PoF Adj Factor Scoring'!$E$5:$F$282,,MATCH(G$4,'B. PoF Adj Factor Scoring'!$E$3:$N$3,0)-1),2,TRUE) -> 1 | H90: =VLOOKUP(C:C,OFFSET('B. PoF Adj Factor Scoring'!$E$5:$F$282,,MATCH(H$4,'B. PoF Adj Factor Scoring'!$E$3:$N$3,0)-1),2,TRUE) -> 3 | I90: =VLOOKUP(D:D,OFFSET('B. PoF Adj Factor Scoring'!$E$5:$F$282,,MATCH(I$4,'B. PoF Adj Factor Scoring'!$E$3:$N$3,0)-1),2,TRUE) -> 1 | J90: =VLOOKUP(E:E,OFFSET('B. PoF Adj Factor Scoring'!$E$5:$F$282,,MATCH(J$4,'B. PoF Adj Factor Scoring'!$E$3:$N$3,0)-1),2,TRUE) -> 1 | K90: =VLOOKUP(F:F,OFFSET('B. PoF Adj Factor Scoring'!$E$5:$F$282,,MATCH(K$4,'B. PoF Adj Factor Scoring'!$E$3:$N$3,0)-1),2,TRUE) -> 1
A91: ='A. Population Info'!A91 -> 1000332778 | B91: ='A. Population Info'!G91 -> OIL | C91: ='A. Population Info'!H91 -> 2 | D91: ='A. Population Info'!I91 -> 0 | E91: ='A. Population Info'!J91 -> 0 | F91: ='A. Population Info'!K91 -> 0 | G91: =VLOOKUP(B:B,OFFSET('B. PoF Adj Factor Scoring'!$E$5:$F$282,,MATCH(G$4,'B. PoF Adj Factor Scoring'!$E$3:$N$3,0)-1),2,TRUE) -> 1 | H91: =VLOOKUP(C:C,OFFSET('B. PoF Adj Factor Scoring'!$E$5:$F$282,,MATCH(H$4,'B. PoF Adj Factor Scoring'!$E$3:$N$3,0)-1),2,TRUE) -> 2 | I91: =VLOOKUP(D:D,OFFSET('B. PoF Adj Factor Scoring'!$E$5:$F$282,,MATCH(I$4,'B. PoF Adj Factor Scoring'!$E$3:$N$3,0)-1),2,TRUE) -> 1 | J91: =VLOOKUP(E:E,OFFSET('B. PoF Adj Factor Scoring'!$E$5:$F$282,,MATCH(J$4,'B. PoF Adj Factor Scoring'!$E$3:$N$3,0)-1),2,TRUE) -> 1 | K91: =VLOOKUP(F:F,OFFSET('B. PoF Adj Factor Scoring'!$E$5:$F$282,,MATCH(K$4,'B. PoF Adj Factor Scoring'!$E$3:$N$3,0)-1),2,TRUE) -> 1
A92: ='A. Population Info'!A92 -> 1000332841 | B92: ='A. Population Info'!G92 -> OIL | C92: ='A. Population Info'!H92 -> 1 | D92: ='A. Population Info'!I92 -> 0 | E92: ='A. Population Info'!J92 -> 0 | F92: ='A. Population Info'!K92 -> 0 | G92: =VLOOKUP(B:B,OFFSET('B. PoF Adj Factor Scoring'!$E$5:$F$282,,MATCH(G$4,'B. PoF Adj Factor Scoring'!$E$3:$N$3,0)-1),2,TRUE) -> 1 | H92: =VLOOKUP(C:C,OFFSET('B. PoF Adj Factor Scoring'!$E$5:$F$282,,MATCH(H$4,'B. PoF Adj Factor Scoring'!$E$3:$N$3,0)-1),2,TRUE) -> 1 | I92: =VLOOKUP(D:D,OFFSET('B. PoF Adj Factor Scoring'!$E$5:$F$282,,MATCH(I$4,'B. PoF Adj Factor Scoring'!$E$3:$N$3,0)-1),2,TRUE) -> 1 | J92: =VLOOKUP(E:E,OFFSET('B. PoF Adj Factor Scoring'!$E$5:$F$282,,MATCH(J$4,'B. PoF Adj Factor Scoring'!$E$3:$N$3,0)-1),2,TRUE) -> 1 | K92: =VLOOKUP(F:F,OFFSET('B. PoF Adj Factor Scoring'!$E$5:$F$282,,MATCH(K$4,'B. PoF Adj Factor Scoring'!$E$3:$N$3,0)-1),2,TRUE) -> 1
A93: ='A. Population Info'!A93 -> 1000332870 | B93: ='A. Population Info'!G93 -> OIL | C93: ='A. Population Info'!H93 -> 1 | D93: ='A. Population Info'!I93 -> 0 | E93: ='A. Population Info'!J93 -> 0 | F93: ='A. Population Info'!K93 -> 0 | G93: =VLOOKUP(B:B,OFFSET('B. PoF Adj Factor Scoring'!$E$5:$F$282,,MATCH(G$4,'B. PoF Adj Factor Scoring'!$E$3:$N$3,0)-1),2,TRUE) -> 1 | H93: =VLOOKUP(C:C,OFFSET('B. PoF Adj Factor Scoring'!$E$5:$F$282,,MATCH(H$4,'B. PoF Adj Factor Scoring'!$E$3:$N$3,0)-1),2,TRUE) -> 1 | I93: =VLOOKUP(D:D,OFFSET('B. PoF Adj Factor Scoring'!$E$5:$F$282,,MATCH(I$4,'B. PoF Adj Factor Scoring'!$E$3:$N$3,0)-1),2,TRUE) -> 1 | J93: =VLOOKUP(E:E,OFFSET('B. PoF Adj Factor Scoring'!$E$5:$F$282,,MATCH(J$4,'B. PoF Adj Factor Scoring'!$E$3:$N$3,0)-1),2,TRUE) -> 1 | K93: =VLOOKUP(F:F,OFFSET('B. PoF Adj Factor Scoring'!$E$5:$F$282,,MATCH(K$4,'B. PoF Adj Factor Scoring'!$E$3:$N$3,0)-1),2,TRUE) -> 1
A94: ='A. Population Info'!A94 -> 1000332902 | B94: ='A. Population Info'!G94 -> OIL | C94: ='A. Population Info'!H94 -> 1 | D94: ='A. Population Info'!I94 -> 0 | E94: ='A. Population Info'!J94 -> 0 | F94: ='A. Population Info'!K94 -> 0 | G94: =VLOOKUP(B:B,OFFSET('B. PoF Adj Factor Scoring'!$E$5:$F$282,,MATCH(G$4,'B. PoF Adj Factor Scoring'!$E$3:$N$3,0)-1),2,TRUE) -> 1 | H94: =VLOOKUP(C:C,OFFSET('B. PoF Adj Factor Scoring'!$E$5:$F$282,,MATCH(H$4,'B. PoF Adj Factor Scoring'!$E$3:$N$3,0)-1),2,TRUE) -> 1 | I94: =VLOOKUP(D:D,OFFSET('B. PoF Adj Factor Scoring'!$E$5:$F$282,,MATCH(I$4,'B. PoF Adj Factor Scoring'!$E$3:$N$3,0)-1),2,TRUE) -> 1 | J94: =VLOOKUP(E:E,OFFSET('B. PoF Adj Factor Scoring'!$E$5:$F$282,,MATCH(J$4,'B. PoF Adj Factor Scoring'!$E$3:$N$3,0)-1),2,TRUE) -> 1 | K94: =VLOOKUP(F:F,OFFSET('B. PoF Adj Factor Scoring'!$E$5:$F$282,,MATCH(K$4,'B. PoF Adj Factor Scoring'!$E$3:$N$3,0)-1),2,TRUE) -> 1
A95: ='A. Population Info'!A95 -> 1000332930 | B95: ='A. Population Info'!G95 -> OIL | C95: ='A. Population Info'!H95 -> 1 | D95: ='A. Population Info'!I95 -> 0 | E95: ='A. Population Info'!J95 -> 0 | F95: ='A. Population Info'!K95 -> 0 | G95: =VLOOKUP(B:B,OFFSET('B. PoF Adj Factor Scoring'!$E$5:$F$282,,MATCH(G$4,'B. PoF Adj Factor Scoring'!$E$3:$N$3,0)-1),2,TRUE) -> 1 | H95: =VLOOKUP(C:C,OFFSET('B. PoF Adj Factor Scoring'!$E$5:$F$282,,MATCH(H$4,'B. PoF Adj Factor Scoring'!$E$3:$N$3,0)-1),2,TRUE) -> 1 | I95: =VLOOKUP(D:D,OFFSET('B. PoF Adj Factor Scoring'!$E$5:$F$282,,MATCH(I$4,'B. PoF Adj Factor Scoring'!$E$3:$N$3,0)-1),2,TRUE) -> 1 | J95: =VLOOKUP(E:E,OFFSET('B. PoF Adj Factor Scoring'!$E$5:$F$282,,MATCH(J$4,'B. PoF Adj Factor Scoring'!$E$3:$N$3,0)-1),2,TRUE) -> 1 | K95: =VLOOKUP(F:F,OFFSET('B. PoF Adj Factor Scoring'!$E$5:$F$282,,MATCH(K$4,'B. PoF Adj Factor Scoring'!$E$3:$N$3,0)-1),2,TRUE) -> 1
A96: ='A. Population Info'!A96 -> 1000336019 | B96: ='A. Population Info'!G96 -> OIL | C96: ='A. Population Info'!H96 -> 1 | D96: ='A. Population Info'!I96 -> 0 | E96: ='A. Population Info'!J96 -> 0 | F96: ='A. Population Info'!K96 -> 0 | G96: =VLOOKUP(B:B,OFFSET('B. PoF Adj Factor Scoring'!$E$5:$F$282,,MATCH(G$4,'B. PoF Adj Factor Scoring'!$E$3:$N$3,0)-1),2,TRUE) -> 1 | H96: =VLOOKUP(C:C,OFFSET('B. PoF Adj Factor Scoring'!$E$5:$F$282,,MATCH(H$4,'B. PoF Adj Factor Scoring'!$E$3:$N$3,0)-1),2,TRUE) -> 1 | I96: =VLOOKUP(D:D,OFFSET('B. PoF Adj Factor Scoring'!$E$5:$F$282,,MATCH(I$4,'B. PoF Adj Factor Scoring'!$E$3:$N$3,0)-1),2,TRUE) -> 1 | J96: =VLOOKUP(E:E,OFFSET('B. PoF Adj Factor Scoring'!$E$5:$F$282,,MATCH(J$4,'B. PoF Adj Factor Scoring'!$E$3:$N$3,0)-1),2,TRUE) -> 1 | K96: =VLOOKUP(F:F,OFFSET('B. PoF Adj Factor Scoring'!$E$5:$F$282,,MATCH(K$4,'B. PoF Adj Factor Scoring'!$E$3:$N$3,0)-1),2,TRUE) -> 1
A97: ='A. Population Info'!A97 -> 1000336048 | B97: ='A. Population Info'!G97 -> OIL | C97: ='A. Population Info'!H97 -> 1 | D97: ='A. Population Info'!I97 -> 0 | E97: ='A. Population Info'!J97 -> 0 | F97: ='A. Population Info'!K97 -> 0 | G97: =VLOOKUP(B:B,OFFSET('B. PoF Adj Factor Scoring'!$E$5:$F$282,,MATCH(G$4,'B. PoF Adj Factor Scoring'!$E$3:$N$3,0)-1),2,TRUE) -> 1 | H97: =VLOOKUP(C:C,OFFSET('B. PoF Adj Factor Scoring'!$E$5:$F$282,,MATCH(H$4,'B. PoF Adj Factor Scoring'!$E$3:$N$3,0)-1),2,TRUE) -> 1 | I97: =VLOOKUP(D:D,OFFSET('B. PoF Adj Factor Scoring'!$E$5:$F$282,,MATCH(I$4,'B. PoF Adj Factor Scoring'!$E$3:$N$3,0)-1),2,TRUE) -> 1 | J97: =VLOOKUP(E:E,OFFSET('B. PoF Adj Factor Scoring'!$E$5:$F$282,,MATCH(J$4,'B. PoF Adj Factor Scoring'!$E$3:$N$3,0)-1),2,TRUE) -> 1 | K97: =VLOOKUP(F:F,OFFSET('B. PoF Adj Factor Scoring'!$E$5:$F$282,,MATCH(K$4,'B. PoF Adj Factor Scoring'!$E$3:$N$3,0)-1),2,TRUE) -> 1
A98: ='A. Population Info'!A98 -> 1000336078 | B98: ='A. Population Info'!G98 -> OIL | C98: ='A. Population Info'!H98 -> 2 | D98: ='A. Population Info'!I98 -> 500 | E98: ='A. Population Info'!J98 -> 0 | F98: ='A. Population Info'!K98 -> 0 | G98: =VLOOKUP(B:B,OFFSET('B. PoF Adj Factor Scoring'!$E$5:$F$282,,MATCH(G$4,'B. PoF Adj Factor Scoring'!$E$3:$N$3,0)-1),2,TRUE) -> 1 | H98: =VLOOKUP(C:C,OFFSET('B. PoF Adj Factor Scoring'!$E$5:$F$282,,MATCH(H$4,'B. PoF Adj Factor Scoring'!$E$3:$N$3,0)-1),2,TRUE) -> 2 | I98: =VLOOKUP(D:D,OFFSET('B. PoF Adj Factor Scoring'!$E$5:$F$282,,MATCH(I$4,'B. PoF Adj Factor Scoring'!$E$3:$N$3,0)-1),2,TRUE) -> 1 | J98: =VLOOKUP(E:E,OFFSET('B. PoF Adj Factor Scoring'!$E$5:$F$282,,MATCH(J$4,'B. PoF Adj Factor Scoring'!$E$3:$N$3,0)-1),2,TRUE) -> 1 | K98: =VLOOKUP(F:F,OFFSET('B. PoF Adj Factor Scoring'!$E$5:$F$282,,MATCH(K$4,'B. PoF Adj Factor Scoring'!$E$3:$N$3,0)-1),2,TRUE) -> 1
A99: ='A. Population Info'!A99 -> 1000336106 | B99: ='A. Population Info'!G99 -> OIL | C99: ='A. Population Info'!H99 -> 1 | D99: ='A. Population Info'!I99 -> 0 | E99: ='A. Population Info'!J99 -> 0 | F99: ='A. Population Info'!K99 -> 0 | G99: =VLOOKUP(B:B,OFFSET('B. PoF Adj Factor Scoring'!$E$5:$F$282,,MATCH(G$4,'B. PoF Adj Factor Scoring'!$E$3:$N$3,0)-1),2,TRUE) -> 1 | H99: =VLOOKUP(C:C,OFFSET('B. PoF Adj Factor Scoring'!$E$5:$F$282,,MATCH(H$4,'B. PoF Adj Factor Scoring'!$E$3:$N$3,0)-1),2,TRUE) -> 1 | I99: =VLOOKUP(D:D,OFFSET('B. PoF Adj Factor Scoring'!$E$5:$F$282,,MATCH(I$4,'B. PoF Adj Factor Scoring'!$E$3:$N$3,0)-1),2,TRUE) -> 1 | J99: =VLOOKUP(E:E,OFFSET('B. PoF Adj Factor Scoring'!$E$5:$F$282,,MATCH(J$4,'B. PoF Adj Factor Scoring'!$E$3:$N$3,0)-1),2,TRUE) -> 1 | K99: =VLOOKUP(F:F,OFFSET('B. PoF Adj Factor Scoring'!$E$5:$F$282,,MATCH(K$4,'B. PoF Adj Factor Scoring'!$E$3:$N$3,0)-1),2,TRUE) -> 1
A100: ='A. Population Info'!A100 -> 1000336136 | B100: ='A. Population Info'!G100 -> OIL | C100: ='A. Population Info'!H100 -> 1 | D100: ='A. Population Info'!I100 -> 700 | E100: ='A. Population Info'!J100 -> 0 | F100: ='A. Population Info'!K100 -> 0 | G100: =VLOOKUP(B:B,OFFSET('B. PoF Adj Factor Scoring'!$E$5:$F$282,,MATCH(G$4,'B. PoF Adj Factor Scoring'!$E$3:$N$3,0)-1),2,TRUE) -> 1 | H100: =VLOOKUP(C:C,OFFSET('B. PoF Adj Factor Scoring'!$E$5:$F$282,,MATCH(H$4,'B. PoF Adj Factor Scoring'!$E$3:$N$3,0)-1),2,TRUE) -> 1 | I100: =VLOOKUP(D:D,OFFSET('B. PoF Adj Factor Scoring'!$E$5:$F$282,,MATCH(I$4,'B. PoF Adj Factor Scoring'!$E$3:$N$3,0)-1),2,TRUE) -> 1 | J100: =VLOOKUP(E:E,OFFSET('B. PoF Adj Factor Scoring'!$E$5:$F$282,,MATCH(J$4,'B. PoF Adj Factor Scoring'!$E$3:$N$3,0)-1),2,TRUE) -> 1 | K100: =VLOOKUP(F:F,OFFSET('B. PoF Adj Factor Scoring'!$E$5:$F$282,,MATCH(K$4,'B. PoF Adj Factor Scoring'!$E$3:$N$3,0)-1),2,TRUE) -> 1
A101: ='A. Population Info'!A101 -> 1000336165 | B101: ='A. Population Info'!G101 -> OIL | C101: ='A. Population Info'!H101 -> 3 | D101: ='A. Population Info'!I101 -> 0 | E101: ='A. Population Info'!J101 -> 0 | F101: ='A. Population Info'!K101 -> 0 | G101: =VLOOKUP(B:B,OFFSET('B. PoF Adj Factor Scoring'!$E$5:$F$282,,MATCH(G$4,'B. PoF Adj Factor Scoring'!$E$3:$N$3,0)-1),2,TRUE) -> 1 | H101: =VLOOKUP(C:C,OFFSET('B. PoF Adj Factor Scoring'!$E$5:$F$282,,MATCH(H$4,'B. PoF Adj Factor Scoring'!$E$3:$N$3,0)-1),2,TRUE) -> 3 | I101: =VLOOKUP(D:D,OFFSET('B. PoF Adj Factor Scoring'!$E$5:$F$282,,MATCH(I$4,'B. PoF Adj Factor Scoring'!$E$3:$N$3,0)-1),2,TRUE) -> 1 | J101: =VLOOKUP(E:E,OFFSET('B. PoF Adj Factor Scoring'!$E$5:$F$282,,MATCH(J$4,'B. PoF Adj Factor Scoring'!$E$3:$N$3,0)-1),2,TRUE) -> 1 | K101: =VLOOKUP(F:F,OFFSET('B. PoF Adj Factor Scoring'!$E$5:$F$282,,MATCH(K$4,'B. PoF Adj Factor Scoring'!$E$3:$N$3,0)-1),2,TRUE) -> 1
A102: ='A. Population Info'!A102 -> 1000336194 | B102: ='A. Population Info'!G102 -> OIL | C102: ='A. Population Info'!H102 -> 1 | D102: ='A. Population Info'!I102 -> 1900 | E102: ='A. Population Info'!J102 -> 0 | F102: ='A. Population Info'!K102 -> 0 | G102: =VLOOKUP(B:B,OFFSET('B. PoF Adj Factor Scoring'!$E$5:$F$282,,MATCH(G$4,'B. PoF Adj Factor Scoring'!$E$3:$N$3,0)-1),2,TRUE) -> 1 | H102: =VLOOKUP(C:C,OFFSET('B. PoF Adj Factor Scoring'!$E$5:$F$282,,MATCH(H$4,'B. PoF Adj Factor Scoring'!$E$3:$N$3,0)-1),2,TRUE) -> 1 | I102: =VLOOKUP(D:D,OFFSET('B. PoF Adj Factor Scoring'!$E$5:$F$282,,MATCH(I$4,'B. PoF Adj Factor Scoring'!$E$3:$N$3,0)-1),2,TRUE) -> 2 | J102: =VLOOKUP(E:E,OFFSET('B. PoF Adj Factor Scoring'!$E$5:$F$282,,MATCH(J$4,'B. PoF Adj Factor Scoring'!$E$3:$N$3,0)-1),2,TRUE) -> 1 | K102: =VLOOKUP(F:F,OFFSET('B. PoF Adj Factor Scoring'!$E$5:$F$282,,MATCH(K$4,'B. PoF Adj Factor Scoring'!$E$3:$N$3,0)-1),2,TRUE) -> 1
A103: ='A. Population Info'!A103 -> 1000336225 | B103: ='A. Population Info'!G103 -> OIL | C103: ='A. Population Info'!H103 -> 2 | D103: ='A. Population Info'!I103 -> 1900 | E103: ='A. Population Info'!J103 -> 0 | F103: ='A. Population Info'!K103 -> 0 | G103: =VLOOKUP(B:B,OFFSET('B. PoF Adj Factor Scoring'!$E$5:$F$282,,MATCH(G$4,'B. PoF Adj Factor Scoring'!$E$3:$N$3,0)-1),2,TRUE) -> 1 | H103: =VLOOKUP(C:C,OFFSET('B. PoF Adj Factor Scoring'!$E$5:$F$282,,MATCH(H$4,'B. PoF Adj Factor Scoring'!$E$3:$N$3,0)-1),2,TRUE) -> 2 | I103: =VLOOKUP(D:D,OFFSET('B. PoF Adj Factor Scoring'!$E$5:$F$282,,MATCH(I$4,'B. PoF Adj Factor Scoring'!$E$3:$N$3,0)-1),2,TRUE) -> 2 | J103: =VLOOKUP(E:E,OFFSET('B. PoF Adj Factor Scoring'!$E$5:$F$282,,MATCH(J$4,'B. PoF Adj Factor Scoring'!$E$3:$N$3,0)-1),2,TRUE) -> 1 | K103: =VLOOKUP(F:F,OFFSET('B. PoF Adj Factor Scoring'!$E$5:$F$282,,MATCH(K$4,'B. PoF Adj Factor Scoring'!$E$3:$N$3,0)-1),2,TRUE) -> 1
A104: ='A. Population Info'!A104 -> 1000336313 | B104: ='A. Population Info'!G104 -> OIL | C104: ='A. Population Info'!H104 -> 1 | D104: ='A. Population Info'!I104 -> 0 | E104: ='A. Population Info'!J104 -> 0 | F104: ='A. Population Info'!K104 -> 0 | G104: =VLOOKUP(B:B,OFFSET('B. PoF Adj Factor Scoring'!$E$5:$F$282,,MATCH(G$4,'B. PoF Adj Factor Scoring'!$E$3:$N$3,0)-1),2,TRUE) -> 1 | H104: =VLOOKUP(C:C,OFFSET('B. PoF Adj Factor Scoring'!$E$5:$F$282,,MATCH(H$4,'B. PoF Adj Factor Scoring'!$E$3:$N$3,0)-1),2,TRUE) -> 1 | I104: =VLOOKUP(D:D,OFFSET('B. PoF Adj Factor Scoring'!$E$5:$F$282,,MATCH(I$4,'B. PoF Adj Factor Scoring'!$E$3:$N$3,0)-1),2,TRUE) -> 1 | J104: =VLOOKUP(E:E,OFFSET('B. PoF Adj Factor Scoring'!$E$5:$F$282,,MATCH(J$4,'B. PoF Adj Factor Scoring'!$E$3:$N$3,0)-1),2,TRUE) -> 1 | K104: =VLOOKUP(F:F,OFFSET('B. PoF Adj Factor Scoring'!$E$5:$F$282,,MATCH(K$4,'B. PoF Adj Factor Scoring'!$E$3:$N$3,0)-1),2,TRUE) -> 1
A105: ='A. Population Info'!A105 -> 1000336348 | B105: ='A. Population Info'!G105 -> OIL | C105: ='A. Population Info'!H105 -> 1 | D105: ='A. Population Info'!I105 -> 0 | E105: ='A. Population Info'!J105 -> 0 | F105: ='A. Population Info'!K105 -> 0 | G105: =VLOOKUP(B:B,OFFSET('B. PoF Adj Factor Scoring'!$E$5:$F$282,,MATCH(G$4,'B. PoF Adj Factor Scoring'!$E$3:$N$3,0)-1),2,TRUE) -> 1 | H105: =VLOOKUP(C:C,OFFSET('B. PoF Adj Factor Scoring'!$E$5:$F$282,,MATCH(H$4,'B. PoF Adj Factor Scoring'!$E$3:$N$3,0)-1),2,TRUE) -> 1 | I105: =VLOOKUP(D:D,OFFSET('B. PoF Adj Factor Scoring'!$E$5:$F$282,,MATCH(I$4,'B. PoF Adj Factor Scoring'!$E$3:$N$3,0)-1),2,TRUE) -> 1 | J105: =VLOOKUP(E:E,OFFSET('B. PoF Adj Factor Scoring'!$E$5:$F$282,,MATCH(J$4,'B. PoF Adj Factor Scoring'!$E$3:$N$3,0)-1),2,TRUE) -> 1 | K105: =VLOOKUP(F:F,OFFSET('B. PoF Adj Factor Scoring'!$E$5:$F$282,,MATCH(K$4,'B. PoF Adj Factor Scoring'!$E$3:$N$3,0)-1),2,TRUE) -> 1
A106: ='A. Population Info'!A106 -> 1000336383 | B106: ='A. Population Info'!G106 -> OIL | C106: ='A. Population Info'!H106 -> 2 | D106: ='A. Population Info'!I106 -> 0 | E106: ='A. Population Info'!J106 -> 0 | F106: ='A. Population Info'!K106 -> 0 | G106: =VLOOKUP(B:B,OFFSET('B. PoF Adj Factor Scoring'!$E$5:$F$282,,MATCH(G$4,'B. PoF Adj Factor Scoring'!$E$3:$N$3,0)-1),2,TRUE) -> 1 | H106: =VLOOKUP(C:C,OFFSET('B. PoF Adj Factor Scoring'!$E$5:$F$282,,MATCH(H$4,'B. PoF Adj Factor Scoring'!$E$3:$N$3,0)-1),2,TRUE) -> 2 | I106: =VLOOKUP(D:D,OFFSET('B. PoF Adj Factor Scoring'!$E$5:$F$282,,MATCH(I$4,'B. PoF Adj Factor Scoring'!$E$3:$N$3,0)-1),2,TRUE) -> 1 | J106: =VLOOKUP(E:E,OFFSET('B. PoF Adj Factor Scoring'!$E$5:$F$282,,MATCH(J$4,'B. PoF Adj Factor Scoring'!$E$3:$N$3,0)-1),2,TRUE) -> 1 | K106: =VLOOKUP(F:F,OFFSET('B. PoF Adj Factor Scoring'!$E$5:$F$282,,MATCH(K$4,'B. PoF Adj Factor Scoring'!$E$3:$N$3,0)-1),2,TRUE) -> 1
A107: ='A. Population Info'!A107 -> 1000336450 | B107: ='A. Population Info'!G107 -> OIL | C107: ='A. Population Info'!H107 -> 2 | D107: ='A. Population Info'!I107 -> 0 | E107: ='A. Population Info'!J107 -> 0 | F107: ='A. Population Info'!K107 -> 0 | G107: =VLOOKUP(B:B,OFFSET('B. PoF Adj Factor Scoring'!$E$5:$F$282,,MATCH(G$4,'B. PoF Adj Factor Scoring'!$E$3:$N$3,0)-1),2,TRUE) -> 1 | H107: =VLOOKUP(C:C,OFFSET('B. PoF Adj Factor Scoring'!$E$5:$F$282,,MATCH(H$4,'B. PoF Adj Factor Scoring'!$E$3:$N$3,0)-1),2,TRUE) -> 2 | I107: =VLOOKUP(D:D,OFFSET('B. PoF Adj Factor Scoring'!$E$5:$F$282,,MATCH(I$4,'B. PoF Adj Factor Scoring'!$E$3:$N$3,0)-1),2,TRUE) -> 1 | J107: =VLOOKUP(E:E,OFFSET('B. PoF Adj Factor Scoring'!$E$5:$F$282,,MATCH(J$4,'B. PoF Adj Factor Scoring'!$E$3:$N$3,0)-1),2,TRUE) -> 1 | K107: =VLOOKUP(F:F,OFFSET('B. PoF Adj Factor Scoring'!$E$5:$F$282,,MATCH(K$4,'B. PoF Adj Factor Scoring'!$E$3:$N$3,0)-1),2,TRUE) -> 1
A108: ='A. Population Info'!A108 -> 1000336477 | B108: ='A. Population Info'!G108 -> OIL | C108: ='A. Population Info'!H108 -> 1 | D108: ='A. Population Info'!I108 -> 0 | E108: ='A. Population Info'!J108 -> 0 | F108: ='A. Population Info'!K108 -> 0 | G108: =VLOOKUP(B:B,OFFSET('B. PoF Adj Factor Scoring'!$E$5:$F$282,,MATCH(G$4,'B. PoF Adj Factor Scoring'!$E$3:$N$3,0)-1),2,TRUE) -> 1 | H108: =VLOOKUP(C:C,OFFSET('B. PoF Adj Factor Scoring'!$E$5:$F$282,,MATCH(H$4,'B. PoF Adj Factor Scoring'!$E$3:$N$3,0)-1),2,TRUE) -> 1 | I108: =VLOOKUP(D:D,OFFSET('B. PoF Adj Factor Scoring'!$E$5:$F$282,,MATCH(I$4,'B. PoF Adj Factor Scoring'!$E$3:$N$3,0)-1),2,TRUE) -> 1 | J108: =VLOOKUP(E:E,OFFSET('B. PoF Adj Factor Scoring'!$E$5:$F$282,,MATCH(J$4,'B. PoF Adj Factor Scoring'!$E$3:$N$3,0)-1),2,TRUE) -> 1 | K108: =VLOOKUP(F:F,OFFSET('B. PoF Adj Factor Scoring'!$E$5:$F$282,,MATCH(K$4,'B. PoF Adj Factor Scoring'!$E$3:$N$3,0)-1),2,TRUE) -> 1
A109: ='A. Population Info'!A109 -> 1000336508 | B109: ='A. Population Info'!G109 -> OIL | C109: ='A. Population Info'!H109 -> 1 | D109: ='A. Population Info'!I109 -> 0 | E109: ='A. Population Info'!J109 -> 0 | F109: ='A. Population Info'!K109 -> 0 | G109: =VLOOKUP(B:B,OFFSET('B. PoF Adj Factor Scoring'!$E$5:$F$282,,MATCH(G$4,'B. PoF Adj Factor Scoring'!$E$3:$N$3,0)-1),2,TRUE) -> 1 | H109: =VLOOKUP(C:C,OFFSET('B. PoF Adj Factor Scoring'!$E$5:$F$282,,MATCH(H$4,'B. PoF Adj Factor Scoring'!$E$3:$N$3,0)-1),2,TRUE) -> 1 | I109: =VLOOKUP(D:D,OFFSET('B. PoF Adj Factor Scoring'!$E$5:$F$282,,MATCH(I$4,'B. PoF Adj Factor Scoring'!$E$3:$N$3,0)-1),2,TRUE) -> 1 | J109: =VLOOKUP(E:E,OFFSET('B. PoF Adj Factor Scoring'!$E$5:$F$282,,MATCH(J$4,'B. PoF Adj Factor Scoring'!$E$3:$N$3,0)-1),2,TRUE) -> 1 | K109: =VLOOKUP(F:F,OFFSET('B. PoF Adj Factor Scoring'!$E$5:$F$282,,MATCH(K$4,'B. PoF Adj Factor Scoring'!$E$3:$N$3,0)-1),2,TRUE) -> 1
A110: ='A. Population Info'!A110 -> 1000336536 | B110: ='A. Population Info'!G110 -> OIL | C110: ='A. Population Info'!H110 -> 1 | D110: ='A. Population Info'!I110 -> 500 | E110: ='A. Population Info'!J110 -> 0 | F110: ='A. Population Info'!K110 -> 0 | G110: =VLOOKUP(B:B,OFFSET('B. PoF Adj Factor Scoring'!$E$5:$F$282,,MATCH(G$4,'B. PoF Adj Factor Scoring'!$E$3:$N$3,0)-1),2,TRUE) -> 1 | H110: =VLOOKUP(C:C,OFFSET('B. PoF Adj Factor Scoring'!$E$5:$F$282,,MATCH(H$4,'B. PoF Adj Factor Scoring'!$E$3:$N$3,0)-1),2,TRUE) -> 1 | I110: =VLOOKUP(D:D,OFFSET('B. PoF Adj Factor Scoring'!$E$5:$F$282,,MATCH(I$4,'B. PoF Adj Factor Scoring'!$E$3:$N$3,0)-1),2,TRUE) -> 1 | J110: =VLOOKUP(E:E,OFFSET('B. PoF Adj Factor Scoring'!$E$5:$F$282,,MATCH(J$4,'B. PoF Adj Factor Scoring'!$E$3:$N$3,0)-1),2,TRUE) -> 1 | K110: =VLOOKUP(F:F,OFFSET('B. PoF Adj Factor Scoring'!$E$5:$F$282,,MATCH(K$4,'B. PoF Adj Factor Scoring'!$E$3:$N$3,0)-1),2,TRUE) -> 1
A111: ='A. Population Info'!A111 -> 1000336594 | B111: ='A. Population Info'!G111 -> OIL | C111: ='A. Population Info'!H111 -> 1 | D111: ='A. Population Info'!I111 -> 0 | E111: ='A. Population Info'!J111 -> 0 | F111: ='A. Population Info'!K111 -> 0 | G111: =VLOOKUP(B:B,OFFSET('B. PoF Adj Factor Scoring'!$E$5:$F$282,,MATCH(G$4,'B. PoF Adj Factor Scoring'!$E$3:$N$3,0)-1),2,TRUE) -> 1 | H111: =VLOOKUP(C:C,OFFSET('B. PoF Adj Factor Scoring'!$E$5:$F$282,,MATCH(H$4,'B. PoF Adj Factor Scoring'!$E$3:$N$3,0)-1),2,TRUE) -> 1 | I111: =VLOOKUP(D:D,OFFSET('B. PoF Adj Factor Scoring'!$E$5:$F$282,,MATCH(I$4,'B. PoF Adj Factor Scoring'!$E$3:$N$3,0)-1),2,TRUE) -> 1 | J111: =VLOOKUP(E:E,OFFSET('B. PoF Adj Factor Scoring'!$E$5:$F$282,,MATCH(J$4,'B. PoF Adj Factor Scoring'!$E$3:$N$3,0)-1),2,TRUE) -> 1 | K111: =VLOOKUP(F:F,OFFSET('B. PoF Adj Factor Scoring'!$E$5:$F$282,,MATCH(K$4,'B. PoF Adj Factor Scoring'!$E$3:$N$3,0)-1),2,TRUE) -> 1
A112: ='A. Population Info'!A112 -> 1000336623 | B112: ='A. Population Info'!G112 -> OIL | C112: ='A. Population Info'!H112 -> 1 | D112: ='A. Population Info'!I112 -> 0 | E112: ='A. Population Info'!J112 -> 0 | F112: ='A. Population Info'!K112 -> 0 | G112: =VLOOKUP(B:B,OFFSET('B. PoF Adj Factor Scoring'!$E$5:$F$282,,MATCH(G$4,'B. PoF Adj Factor Scoring'!$E$3:$N$3,0)-1),2,TRUE) -> 1 | H112: =VLOOKUP(C:C,OFFSET('B. PoF Adj Factor Scoring'!$E$5:$F$282,,MATCH(H$4,'B. PoF Adj Factor Scoring'!$E$3:$N$3,0)-1),2,TRUE) -> 1 | I112: =VLOOKUP(D:D,OFFSET('B. PoF Adj Factor Scoring'!$E$5:$F$282,,MATCH(I$4,'B. PoF Adj Factor Scoring'!$E$3:$N$3,0)-1),2,TRUE) -> 1 | J112: =VLOOKUP(E:E,OFFSET('B. PoF Adj Factor Scoring'!$E$5:$F$282,,MATCH(J$4,'B. PoF Adj Factor Scoring'!$E$3:$N$3,0)-1),2,TRUE) -> 1 | K112: =VLOOKUP(F:F,OFFSET('B. PoF Adj Factor Scoring'!$E$5:$F$282,,MATCH(K$4,'B. PoF Adj Factor Scoring'!$E$3:$N$3,0)-1),2,TRUE) -> 1
A113: ='A. Population Info'!A113 -> 1000336651 | B113: ='A. Population Info'!G113 -> OIL | C113: ='A. Population Info'!H113 -> 2 | D113: ='A. Population Info'!I113 -> 0 | E113: ='A. Population Info'!J113 -> 0 | F113: ='A. Population Info'!K113 -> 0 | G113: =VLOOKUP(B:B,OFFSET('B. PoF Adj Factor Scoring'!$E$5:$F$282,,MATCH(G$4,'B. PoF Adj Factor Scoring'!$E$3:$N$3,0)-1),2,TRUE) -> 1 | H113: =VLOOKUP(C:C,OFFSET('B. PoF Adj Factor Scoring'!$E$5:$F$282,,MATCH(H$4,'B. PoF Adj Factor Scoring'!$E$3:$N$3,0)-1),2,TRUE) -> 2 | I113: =VLOOKUP(D:D,OFFSET('B. PoF Adj Factor Scoring'!$E$5:$F$282,,MATCH(I$4,'B. PoF Adj Factor Scoring'!$E$3:$N$3,0)-1),2,TRUE) -> 1 | J113: =VLOOKUP(E:E,OFFSET('B. PoF Adj Factor Scoring'!$E$5:$F$282,,MATCH(J$4,'B. PoF Adj Factor Scoring'!$E$3:$N$3,0)-1),2,TRUE) -> 1 | K113: =VLOOKUP(F:F,OFFSET('B. PoF Adj Factor Scoring'!$E$5:$F$282,,MATCH(K$4,'B. PoF Adj Factor Scoring'!$E$3:$N$3,0)-1),2,TRUE) -> 1
A114: ='A. Population Info'!A114 -> 1000336679 | B114: ='A. Population Info'!G114 -> OIL | C114: ='A. Population Info'!H114 -> 1 | D114: ='A. Population Info'!I114 -> 0 | E114: ='A. Population Info'!J114 -> 0 | F114: ='A. Population Info'!K114 -> 0 | G114: =VLOOKUP(B:B,OFFSET('B. PoF Adj Factor Scoring'!$E$5:$F$282,,MATCH(G$4,'B. PoF Adj Factor Scoring'!$E$3:$N$3,0)-1),2,TRUE) -> 1 | H114: =VLOOKUP(C:C,OFFSET('B. PoF Adj Factor Scoring'!$E$5:$F$282,,MATCH(H$4,'B. PoF Adj Factor Scoring'!$E$3:$N$3,0)-1),2,TRUE) -> 1 | I114: =VLOOKUP(D:D,OFFSET('B. PoF Adj Factor Scoring'!$E$5:$F$282,,MATCH(I$4,'B. PoF Adj Factor Scoring'!$E$3:$N$3,0)-1),2,TRUE) -> 1 | J114: =VLOOKUP(E:E,OFFSET('B. PoF Adj Factor Scoring'!$E$5:$F$282,,MATCH(J$4,'B. PoF Adj Factor Scoring'!$E$3:$N$3,0)-1),2,TRUE) -> 1 | K114: =VLOOKUP(F:F,OFFSET('B. PoF Adj Factor Scoring'!$E$5:$F$282,,MATCH(K$4,'B. PoF Adj Factor Scoring'!$E$3:$N$3,0)-1),2,TRUE) -> 1
A115: ='A. Population Info'!A115 -> 1000336708 | B115: ='A. Population Info'!G115 -> OIL | C115: ='A. Population Info'!H115 -> 1 | D115: ='A. Population Info'!I115 -> 0 | E115: ='A. Population Info'!J115 -> 0 | F115: ='A. Population Info'!K115 -> 0 | G115: =VLOOKUP(B:B,OFFSET('B. PoF Adj Factor Scoring'!$E$5:$F$282,,MATCH(G$4,'B. PoF Adj Factor Scoring'!$E$3:$N$3,0)-1),2,TRUE) -> 1 | H115: =VLOOKUP(C:C,OFFSET('B. PoF Adj Factor Scoring'!$E$5:$F$282,,MATCH(H$4,'B. PoF Adj Factor Scoring'!$E$3:$N$3,0)-1),2,TRUE) -> 1 | I115: =VLOOKUP(D:D,OFFSET('B. PoF Adj Factor Scoring'!$E$5:$F$282,,MATCH(I$4,'B. PoF Adj Factor Scoring'!$E$3:$N$3,0)-1),2,TRUE) -> 1 | J115: =VLOOKUP(E:E,OFFSET('B. PoF Adj Factor Scoring'!$E$5:$F$282,,MATCH(J$4,'B. PoF Adj Factor Scoring'!$E$3:$N$3,0)-1),2,TRUE) -> 1 | K115: =VLOOKUP(F:F,OFFSET('B. PoF Adj Factor Scoring'!$E$5:$F$282,,MATCH(K$4,'B. PoF Adj Factor Scoring'!$E$3:$N$3,0)-1),2,TRUE) -> 1
